Workbook

Sheet objekte (hidden)
B1: =COUNT(D7:D1000) -> 171 | H1: =COUNTA(I1:I15) -> 9 | I1: Datenbank | J1: =MATCH(I1,$B$7:$B$500,0) -> 1 | K1: =J1+6 -> 7 | L1: =K1-1+COUNTIF($B$7:$B$500,"="&I1) -> 15 | N1: Kopie O-T | O1: Blatt | P1: Name | Q1: L | R1: T | S1: W | T1: H | Z1: ActiveX | AA1: =COUNT(AG4:AG53) -> 17 | AK1: =COUNT(AM4:AM33) -> 13
I2: Turnierstatistik | J2: 10 | K2: 16 | L2: 35 | O2: Datenbank | P2: wahl_daba | Q2: 149.5108643 | R2: 5.25 | S2: 145.2391357 | T2: 18 | AE2: Zelle Li | AF2: Zelle O | AK2: TIPPABGABE | AL2: Zelle Li | AM2: Zelle O
I3: Tippspiel | J3: 30 | K3: 36 | L3: 56 | O3: Datenbank | P3: wahl_turnier | Q3: 310.5 | R3: 5.25 | S3: 197.1522064 | T3: 18 | AA3: Cobos | AB3: Blatt | AC3: W | AD3: H | AE3: Spalte | AF3: Zeile | AG3: Offset X | AH3: Offset Y | AL3: Spalte | AM3: Zeile | AN3: Offset X | AO3: Offset Y
I4: Tippabgabe | J4: 51 | K4: 57 | L4: 113 | O4: Datenbank | P4: nav | Q4: 5.25 | R4: 7.826063156 | S4: 12.84779549 | T4: 12.75 | AA4: nav | AB4: Datenbank | AC4: 12.75 | AD4: 12.75 | AE4: b2 | AF4: b2 | AG4: 5 | AH4: 0 | AK4: but_print | AL4: ax | AM4: 21 | AN4: 7 | AO4: 4
I5: Ranglisten | J5: 108 | K5: 114 | L5: 118 | O5: Datenbank | P5: txt_daba | Q5: 27.09779549 | R5: 7.826063156 | S5: 115.6630707 | T5: 13.79346466 | AA5: nav | AB5: Turnierstatistik | AC5: 12.75 | AD5: 12.75 | AE5: a1 | AF5: a1 | AG5: 3 | AH5: 3 | AK5: but_msp1 | AL5: ao | AM5: 21 | AN5: 0 | AO5: 4
B6: Blatt | C6: Name | D6: L | E6: T | F6: W | G6: H | I6: EM 2021 XXL | J6: 113 | K6: 119 | L6: 127 | O6: Datenbank | P6: but_nextt | Q6: 765.1304932 | R6: 94.95653534 | S6: 33.75 | T6: 17.90212631 | AA6: nav | AB6: Tippspiel | AC6: 12.75 | AD6: 12.75 | AE6: l11 | AF6: l11 | AG6: 0 | AH6: 0 | AK6: but_settings | AL6: am | AM6: 21 | AN6: 0 | AO6: 4
B7: Datenbank | C7: wahl_daba | D7: 149.5108643 | E7: 5.25 | F7: 145.2391357 | G7: 18 | I7: QUALIFIKATION | J7: 122 | K7: 128 | L7: 128 | O7: Datenbank | P7: but_prevt | Q7: 222.5869293 | R7: 94.95653534 | S7: 33.75 | T7: 17.90212631 | AA7: nav | AB7: Tippabgabe | AC7: 12.75 | AD7: 12.75 | AE7: t21 | AF7: t21 | AG7: 1 | AH7: 5 | AK7: but_impexp | AL7: ar | AM7: 21 | AN7: -4 | AO7: 4
B8: Datenbank | C8: wahl_turnier | D8: 310.5 | E8: 5.25 | F8: 197.1522064 | G8: 18 | I8: Ergebnisse | J8: 123 | K8: 129 | L8: 147 | O8: Datenbank | P8: but_showts | Q8: 558.8151855 | R8: 6 | S8: 135.4891357 | T8: 16.36952782 | AA8: nav | AB8: Ranglisten | AC8: 12.75 | AD8: 12.75 | AE8: e7 | AF8: e7 | AG8: 3 | AH8: 1 | AK8: but_quit | AL8: bb | AM8: 21 | AN8: 0 | AO8: 2
B9: Datenbank | C9: nav | D9: 5.25 | E9: 7.826063156 | F9: 12.84779549 | G9: 12.75 | I9: Tippstatistik | J9: 142 | K9: 148 | L9: 177 | O9: Datenbank | P9: but_showts2 | Q9: 332.4130859 | R9: 6.75 | S9: 139.2391357 | T9: 15.61952782 | AA9: nav | AB9: FWWC2019 | AC9: 12.75 | AD9: 12.75 | AE9: d3 | AF9: d3 | AG9: 5 | AH9: 0 | AK9: but_reload | AL9: ah | AM9: 27 | AN9: 0 | AO9: 4
B10: Datenbank | C10: txt_daba | D10: 27.09779549 | E10: 7.826063156 | F10: 115.6630707 | G10: 13.79346466 | O10: Datenbank | P10: but_showueb | Q10: 824.543457 | R10: 6 | S10: 123.0651932 | T10: 16.36952782 | AA10: nav | AB10: QUALIFIKATION | AC10: 12.75 | AD10: 12.75 | AE10: b1 | AF10: b1 | AG10: 0 | AH10: 0 | AK10: but_showhint | AL10: au | AM10: 21 | AN10: -4 | AO10: 4
B11: Datenbank | C11: but_nextt | D11: 765.1304932 | E11: 94.95653534 | F11: 33.75 | G11: 17.90212631 | O11: Turnierstatistik | P11: auswahl_sd | Q11: 784.5651855 | R11: 453.0325928 | S11: 360 | T11: 18.75 | AA11: nav | AB11: Ergebnisse | AC11: 12.75 | AD11: 12.75 | AE11: g7 | AF11: g7 | AG11: 5 | AH11: -6 | AK11: but_logout | AL11: aa | AM11: 27 | AN11: 0 | AO11: 4
B12: Datenbank | C12: but_prevt | D12: 222.5869293 | E12: 94.95653534 | F12: 33.75 | G12: 17.90212631 | O12: Turnierstatistik | P12: teamwahl | Q12: 779.3477783 | R12: 458.2174072 | S12: 165.7174072 | T12: 16.5 | AA12: kk_allg | AB12: ergebnisse | AE12: w8 | AF12: w8 | AG12: 5 | AH12: 2 | AK12: but_kwmsp | AL12: aa | AM12: 27 | AN12: 19 | AO12: 5
B13: Datenbank | C13: but_showts | D13: 558.8151855 | E13: 6 | F13: 135.4891357 | G13: 16.36952782 | O13: Turnierstatistik | P13: wahl_but1 | Q13: 12 | R13: 14.93480301 | S13: 84 | T13: 28.30433083 | AA13: kk_akt | AB13: ergebnisse | AE13: aj8 | AF13: aj8 | AG13: 5 | AH13: 2 | AK13: kk_kopaarungen | AL13: u | AM13: 92 | AN13: 8 | AO13: 2
B14: Datenbank | C14: but_showts2 | D14: 332.4130859 | E14: 6.75 | F14: 139.2391357 | G14: 15.61952782 | O14: Turnierstatistik | P14: wahl_but2 | Q14: 12 | R14: 53.67393875 | S14: 84 | T14: 28.63039398 | AA14: teamwahl | AB14: turnierstatistik | AC14: 166 | AD14: 16.5 | AE14: df194 | AF14: df194 | AG14: -3 | AH14: 2 | AK14: but_tabkorr | AL14: ap | AM14: 27 | AN14: 0 | AO14: 4
B15: Datenbank | C15: but_showueb | D15: 824.543457 | E15: 6 | F15: 123.0651932 | G15: 16.36952782 | O15: Turnierstatistik | P15: wahl_but3 | Q15: 12 | R15: 93.29346466 | S15: 84 | T15: 28.17393684 | AA15: auswahl_sd | AB15: turnierstatistik | AC15: 360 | AD15: 18.75 | AE15: eq247 | AF15: eq247 | AG15: 0 | AH15: 0 | AK15: pic_txtko | AL15: t | AM15: 92 | AN15: 5 | AO15: 4
B16: Turnierstatistik | C16: auswahl_sd | D16: 784.5651855 | E16: 453.0325928 | F16: 360 | G16: 18.75 | O16: Turnierstatistik | P16: wahl_but4 | Q16: 12 | R16: 171.456543 | S16: 84 | T16: 28.10866165 | AA16: wahl_stats | AB16: tippspiel | AC16: 160 | AD16: 17.25 | AE16: t14 | AF16: t14 | AG16: 5 | AH16: -2 | AK16: pic_txterg | AL16: av | AM16: 21 | AN16: 3 | AO16: 4
B17: Turnierstatistik | C17: teamwahl | D17: 779.3477783 | E17: 458.2174072 | F17: 165.7174072 | G17: 16.5 | O17: Turnierstatistik | P17: wahl_but5 | Q17: 12 | R17: 131.706543 | S17: 84 | T17: 28.30433083 | AA17: wahl_sort | AB17: tippspiel | AC17: 220 | AD17: 17.25 | AE17: ag14 | AF17: ag14 | AG17: 0 | AH17: -2
B18: Turnierstatistik | C18: wahl_but1 | D18: 12 | E18: 14.93480301 | F18: 84 | G18: 28.30433083 | O18: Turnierstatistik | P18: wahl_but6 | Q18: 12 | R18: 210.8152008 | S18: 84 | T18: 27.7174015 | AA18: quickselect_msp | AB18: tippspiel | AC18: 14.25 | AD18: 14.25 | AE18: r24 | AF18: r24 | AG18: 90 | AH18: 5
B19: Turnierstatistik | C19: wahl_but2 | D19: 12 | E19: 53.67393875 | F19: 84 | G19: 28.63039398 | O19: Turnierstatistik | P19: show_treffer_but | Q19: 7.5 | R19: 315.75 | S19: 93 | T19: 15.68480301 | AA19: rangwahl | AB19: ranglisten | AC19: 205 | AD19: 17.25 | AE19: r9 | AF19: r9 | AG19: 2 | AH19: 6
B20: Turnierstatistik | C20: wahl_but3 | D20: 12 | E20: 93.29346466 | F20: 84 | G20: 28.17393684 | O20: Turnierstatistik | P20: show_allteams_but | Q20: 7.5 | R20: 268.8260498 | S20: 93 | T20: 15.75 | AA20: mspselect | AB20: ranglisten | AC20: 9.75 | AD20: 9.75 | AE20: g16 | AF20: g16 | AG20: -12 | AH20: 1
B21: Turnierstatistik | C21: wahl_but4 | D21: 12 | E21: 171.456543 | F21: 84 | G21: 28.10866165 | O21: Turnierstatistik | P21: show_gestab2_but | Q21: 7.5 | R21: 338.6739502 | S21: 93 | T21: 15.48913383 | AB21: tippstatistik
B22: Turnierstatistik | C22: wahl_but5 | D22: 12 | E22: 131.706543 | F22: 84 | G22: 28.30433083 | O22: Turnierstatistik | P22: show_gestab1_but | Q22: 7.5 | R22: 292.2717285 | S22: 93 | T22: 15.48913383 | AB22: tippstatistik
B23: Turnierstatistik | C23: wahl_but6 | D23: 12 | E23: 210.8152008 | F23: 84 | G23: 27.7174015 | O23: Turnierstatistik | P23: show_schieri_but | Q23: 7.5 | R23: 362.1521912 | S23: 93 | T23: 15.48913383 | AB23: tippstatistik
B24: Turnierstatistik | C24: show_treffer_but | D24: 7.5 | E24: 315.75 | F24: 93 | G24: 15.68480301 | O24: Turnierstatistik | P24: show_kader_but | Q24: 7.5 | R24: 392.5760498 | S24: 93 | T24: 15.22826767 | AB24: tippstatistik
B25: Turnierstatistik | C25: show_allteams_but | D25: 7.5 | E25: 268.8260498 | F25: 93 | G25: 15.75 | O25: Turnierstatistik | P25: trenner | Q25: 9.75 | R25: 254.0217285 | S25: 90.75 | T25: 0 | AB25: tippstatistik
B26: Turnierstatistik | C26: show_gestab2_but | D26: 7.5 | E26: 338.6739502 | F26: 93 | G26: 15.48913383 | O26: Turnierstatistik | P26: show_zusch_but | Q26: 784.5651855 | R26: 455.2174072 | S26: 93 | T26: 27.61952782 | AB26: tippstatistik
B27: Turnierstatistik | C27: show_gestab1_but | D27: 7.5 | E27: 292.2717285 | F27: 93 | G27: 15.48913383 | O27: Turnierstatistik | P27: show_bilanz_but | Q27: 784.5651855 | R27: 455.2174072 | S27: 127.5 | T27: 15.68480301 | AB27: tippstatistik
B28: Turnierstatistik | C28: show_schieri_but | D28: 7.5 | E28: 362.1521912 | F28: 93 | G28: 15.48913383 | O28: Turnierstatistik | P28: show_opt_but | Q28: 7.5 | R28: 414.5543213 | S28: 93 | T28: 15.22826767 | AB28: tippstatistik
B29: Turnierstatistik | C29: show_kader_but | D29: 7.5 | E29: 392.5760498 | F29: 93 | G29: 15.22826767 | O29: Turnierstatistik | P29: edit_sd_but | Q29: 7.5 | R29: 436.5978088 | S29: 93 | T29: 15.68480301 | AB29: tippstatistik
B30: Turnierstatistik | C30: trenner | D30: 9.75 | E30: 254.0217285 | F30: 90.75 | G30: 0 | O30: Turnierstatistik | P30: nav | Q30: 3.75 | R30: 3 | S30: 12.75 | T30: 12.75 | AB30: tippstatistik
B31: Turnierstatistik | C31: show_zusch_but | D31: 784.5651855 | E31: 455.2174072 | F31: 93 | G31: 27.61952782 | O31: Tippspiel | P31: but1tueb | Q31: 5.315196991 | R31: 58.10866165 | S31: 59.25 | T31: 13.92393684 | AB31: tippstatistik
B32: Turnierstatistik | C32: show_bilanz_but | D32: 784.5651855 | E32: 455.2174072 | F32: 127.5 | G32: 15.68480301 | O32: Tippspiel | P32: but2tueb | Q32: 66.81519318 | R32: 58.10866165 | S32: 59.25 | T32: 13.92393684 | AB32: tippstatistik
B33: Turnierstatistik | C33: show_opt_but | D33: 7.5 | E33: 414.5543213 | F33: 93 | G33: 15.22826767 | O33: Tippspiel | P33: but3tueb | Q33: 129.0652008 | R33: 58.10866165 | S33: 59.25 | T33: 13.92393684 | AB33: tippstatistik
B34: Turnierstatistik | C34: edit_sd_but | D34: 7.5 | E34: 436.5978088 | F34: 93 | G34: 15.68480301 | O34: Tippspiel | P34: but4tueb | Q34: 191.3152008 | R34: 58.10866165 | S34: 59.25 | T34: 13.92393684 | AB34: tippstatistik
B35: Turnierstatistik | C35: nav | D35: 3.75 | E35: 3 | F35: 12.75 | G35: 12.75 | O35: Tippspiel | P35: nav_gruru | Q35: 0 | R35: 63.94567108 | S35: 2.25 | T35: 0.75 | AB35: tippstatistik
B36: Tippspiel | C36: but1tueb | D36: 5.315196991 | E36: 58.10866165 | F36: 59.25 | G36: 13.92393684 | O36: Tippspiel | P36: nav_koru | Q36: 0 | R36: 63.94567108 | S36: 2.25 | T36: 0.75 | AB36: tippstatistik
B37: Tippspiel | C37: but2tueb | D37: 66.81519318 | E37: 58.10866165 | F37: 59.25 | G37: 13.92393684 | O37: Tippspiel | P37: wahl_sort | Q37: 526.3043213 | R37: 56.60866165 | S37: 219 | T37: 17.25 | AB37: tippabgabe
B38: Tippspiel | C38: but3tueb | D38: 129.0652008 | E38: 58.10866165 | F38: 59.25 | G38: 13.92393684 | O38: Tippspiel | P38: but_print | Q38: 656.7391357 | R38: 8.510866165 | S38: 21 | T38: 19.17393684 | AB38: tippabgabe
B39: Tippspiel | C39: but4tueb | D39: 191.3152008 | E39: 58.10866165 | F39: 59.25 | G39: 13.92393684 | O39: Tippspiel | P39: txttippueb | Q39: 447.7825928 | R39: 57.35866165 | S39: 67.56519318 | T39: 14.67393684 | AB39: tippabgabe
B40: Tippspiel | C40: nav_gruru | D40: 0 | E40: 63.94567108 | F40: 2.25 | G40: 0.75 | O40: Tippspiel | P40: but_msp1 | Q40: 72.06519318 | R40: 24.84779549 | S40: 28.5 | T40: 24.26086617 | AB40: tippabgabe
B41: Tippspiel | C41: nav_koru | D41: 0 | E41: 63.94567108 | F41: 2.25 | G41: 0.75 | O41: Tippspiel | P41: but_msp | Q41: 103.5651932 | R41: 29.18480301 | S41: 30.75 | T41: 14.08692932 | AB41: tippabgabe
B42: Tippspiel | C42: wahl_sort | D42: 526.3043213 | E42: 56.60866165 | F42: 219 | G42: 17.25 | O42: Tippspiel | P42: but_settings | Q42: 31.56519699 | R42: 24.84779549 | S42: 24.75 | T42: 24.26086617 | AB42: tippabgabe
B43: Tippspiel | C43: but_print | D43: 656.7391357 | E43: 8.510866165 | F43: 21 | G43: 19.17393684 | O43: Tippspiel | P43: but_ta | Q43: 150.75 | R43: 24.84779549 | S43: 22.56519699 | T43: 22.17393684 | AB43: tippabgabe
B44: Tippspiel | C44: txttippueb | D44: 447.7825928 | E44: 57.35866165 | F44: 67.56519318 | G44: 14.67393684 | O44: Tippspiel | P44: but_impexp | Q44: 178.5652008 | R44: 24.84779549 | S44: 22.5 | T44: 22.17393684 | AB44: tippabgabe
B45: Tippspiel | C45: but_msp1 | D45: 72.06519318 | E45: 24.84779549 | F45: 28.5 | G45: 24.26086617 | O45: Tippspiel | P45: but_rangli | Q45: 226.5652008 | R45: 25.43480301 | S45: 22.5 | T45: 22.92385864 | AB45: tippabgabe
B46: Tippspiel | C46: but_msp | D46: 103.5651932 | E46: 29.18480301 | F46: 30.75 | G46: 14.08692932 | O46: Tippspiel | P46: but_rules | Q46: 622.8260498 | R46: 6.260866165 | S46: 23.70653534 | T46: 23.67393684 | AB46: tippabgabe
B47: Tippspiel | C47: but_settings | D47: 31.56519699 | E47: 24.84779549 | F47: 24.75 | G47: 24.26086617 | O47: Tippspiel | P47: quickselect_msp | Q47: 244.5652008 | R47: 166.3369293 | S47: 14.25 | T47: 14.25
B48: Tippspiel | C48: but_ta | D48: 150.75 | E48: 24.84779549 | F48: 22.56519699 | G48: 22.17393684 | O48: Tippspiel | P48: but_del | Q48: 590.543457 | R48: 7.010866165 | S48: 22.20653534 | T48: 22.17393684
B49: Tippspiel | C49: but_impexp | D49: 178.5652008 | E49: 24.84779549 | F49: 22.5 | G49: 22.17393684 | O49: Tippspiel | P49: wahl_stats | Q49: 287.6413269 | R49: 56.60866165 | S49: 158.6412659 | T49: 17.25
B50: Tippspiel | C50: but_rangli | D50: 226.5652008 | E50: 25.43480301 | F50: 22.5 | G50: 22.92385864 | O50: Tippspiel | P50: Picture 20 | Q50: 259.5651855 | R50: 4.010866165 | S50: 12.75 | T50: 12.58692932
B51: Tippspiel | C51: but_rules | D51: 622.8260498 | E51: 6.260866165 | F51: 23.70653534 | G51: 23.67393684 | O51: Tippspiel | P51: nav | Q51: 4.565196991 | R51: 25.43480301 | S51: 12.75 | T51: 12.75
B52: Tippspiel | C52: quickselect_msp | D52: 244.5652008 | E52: 166.3369293 | F52: 14.25 | G52: 14.25 | O52: Tippabgabe | P52: cobo_tiptab | Q52: 651.2282715 | R52: 113.5760651 | S52: 196.6303864 | T52: 18
B53: Tippspiel | C53: but_del | D53: 590.543457 | E53: 7.010866165 | F53: 22.20653534 | G53: 22.17393684 | O53: Tippabgabe | P53: cobo_ew1 | Q53: 641.4782715 | R53: 687.7825928 | S53: 37.69567108 | T53: 16.5
B54: Tippspiel | C54: wahl_stats | D54: 287.6413269 | E54: 56.60866165 | F54: 158.6412659 | G54: 17.25 | O54: Tippabgabe | P54: cobo_win1 | Q54: 684.5217285 | R54: 687.7825928 | S54: 37.69567108 | T54: 16.5
B55: Tippspiel | C55: Picture 20 | D55: 259.5651855 | E55: 4.010866165 | F55: 12.75 | G55: 12.58692932 | O55: Tippabgabe | P55: cobo_ew2 | Q55: 641.4782715 | R55: 712.5651855 | S55: 37.69567108 | T55: 16.5
B56: Tippspiel | C56: nav | D56: 4.565196991 | E56: 25.43480301 | F56: 12.75 | G56: 12.75 | O56: Tippabgabe | P56: cobo_win2 | Q56: 684.5217285 | R56: 712.5651855 | S56: 37.69567108 | T56: 16.5
B57: Tippabgabe | C57: cobo_tiptab | D57: 651.2282715 | E57: 113.5760651 | F57: 196.6303864 | G57: 18 | O57: Tippabgabe | P57: cobo_ew3 | Q57: 641.4782715 | R57: 737.3477783 | S57: 37.69567108 | T57: 16.5
B58: Tippabgabe | C58: cobo_ew1 | D58: 641.4782715 | E58: 687.7825928 | F58: 37.69567108 | G58: 16.5 | O58: Tippabgabe | P58: cobo_win3 | Q58: 684.5217285 | R58: 737.3477783 | S58: 37.69567108 | T58: 16.5
B59: Tippabgabe | C59: cobo_win1 | D59: 684.5217285 | E59: 687.7825928 | F59: 37.69567108 | G59: 16.5 | O59: Tippabgabe | P59: cobo_ew4 | Q59: 641.4782715 | R59: 762.1304932 | S59: 37.69567108 | T59: 16.5
B60: Tippabgabe | C60: cobo_ew2 | D60: 641.4782715 | E60: 712.5651855 | F60: 37.69567108 | G60: 16.5 | O60: Tippabgabe | P60: cobo_win4 | Q60: 684.5217285 | R60: 762.1304932 | S60: 37.69567108 | T60: 16.5
B61: Tippabgabe | C61: cobo_win2 | D61: 684.5217285 | E61: 712.5651855 | F61: 37.69567108 | G61: 16.5 | O61: Tippabgabe | P61: cobo_ew5 | Q61: 641.4782715 | R61: 786.9130859 | S61: 37.69567108 | T61: 16.5
B62: Tippabgabe | C62: cobo_ew3 | D62: 641.4782715 | E62: 737.3477783 | F62: 37.69567108 | G62: 16.5 | O62: Tippabgabe | P62: cobo_win5 | Q62: 684.5217285 | R62: 786.9130859 | S62: 37.69567108 | T62: 16.5
B63: Tippabgabe | C63: cobo_win3 | D63: 684.5217285 | E63: 737.3477783 | F63: 37.69567108 | G63: 16.5 | O63: Tippabgabe | P63: cobo_ew6 | Q63: 641.4782715 | R63: 811.6956787 | S63: 37.69567108 | T63: 16.5
B64: Tippabgabe | C64: cobo_ew4 | D64: 641.4782715 | E64: 762.1304932 | F64: 37.69567108 | G64: 16.5 | O64: Tippabgabe | P64: cobo_win6 | Q64: 684.5217285 | R64: 811.6956787 | S64: 37.69567108 | T64: 16.5
B65: Tippabgabe | C65: cobo_win4 | D65: 684.5217285 | E65: 762.1304932 | F65: 37.69567108 | G65: 16.5 | O65: Tippabgabe | P65: cobo_ew7 | Q65: 641.4782715 | R65: 836.4782715 | S65: 37.69567108 | T65: 16.5
B66: Tippabgabe | C66: cobo_ew5 | D66: 641.4782715 | E66: 786.9130859 | F66: 37.69567108 | G66: 16.5 | O66: Tippabgabe | P66: cobo_win7 | Q66: 684.5217285 | R66: 836.4782715 | S66: 37.69567108 | T66: 16.5
B67: Tippabgabe | C67: cobo_win5 | D67: 684.5217285 | E67: 786.9130859 | F67: 37.69567108 | G67: 16.5 | O67: Tippabgabe | P67: cobo_ew8 | Q67: 641.4782715 | R67: 861.2608643 | S67: 37.69567108 | T67: 16.5
B68: Tippabgabe | C68: cobo_ew6 | D68: 641.4782715 | E68: 811.6956787 | F68: 37.69567108 | G68: 16.5 | O68: Tippabgabe | P68: cobo_win8 | Q68: 684.5217285 | R68: 861.2608643 | S68: 37.69567108 | T68: 16.5
B69: Tippabgabe | C69: cobo_win6 | D69: 684.5217285 | E69: 811.6956787 | F69: 37.69567108 | G69: 16.5 | O69: Tippabgabe | P69: cobo_ew9 | Q69: 641.4782715 | R69: 927.1304932 | S69: 37.69567108 | T69: 16.5
B70: Tippabgabe | C70: cobo_ew7 | D70: 641.4782715 | E70: 836.4782715 | F70: 37.69567108 | G70: 16.5 | O70: Tippabgabe | P70: cobo_win9 | Q70: 684.5217285 | R70: 927.1304932 | S70: 37.69567108 | T70: 16.5
B71: Tippabgabe | C71: cobo_win7 | D71: 684.5217285 | E71: 836.4782715 | F71: 37.69567108 | G71: 16.5 | O71: Tippabgabe | P71: cobo_ew10 | Q71: 641.4782715 | R71: 951.9130859 | S71: 37.69567108 | T71: 16.5
B72: Tippabgabe | C72: cobo_ew8 | D72: 641.4782715 | E72: 861.2608643 | F72: 37.69567108 | G72: 16.5 | O72: Tippabgabe | P72: cobo_win10 | Q72: 684.5217285 | R72: 951.9130859 | S72: 37.69567108 | T72: 16.5
B73: Tippabgabe | C73: cobo_win8 | D73: 684.5217285 | E73: 861.2608643 | F73: 37.69567108 | G73: 16.5 | O73: Tippabgabe | P73: cobo_ew11 | Q73: 641.4782715 | R73: 976.6956787 | S73: 37.69567108 | T73: 16.5
B74: Tippabgabe | C74: cobo_ew9 | D74: 641.4782715 | E74: 927.1304932 | F74: 37.69567108 | G74: 16.5 | O74: Tippabgabe | P74: cobo_win11 | Q74: 684.5217285 | R74: 976.6956787 | S74: 37.69567108 | T74: 16.5
B75: Tippabgabe | C75: cobo_win9 | D75: 684.5217285 | E75: 927.1304932 | F75: 37.69567108 | G75: 16.5 | O75: Tippabgabe | P75: cobo_ew12 | Q75: 641.4782715 | R75: 1001.478271 | S75: 37.69567108 | T75: 16.5
B76: Tippabgabe | C76: cobo_ew10 | D76: 641.4782715 | E76: 951.9130859 | F76: 37.69567108 | G76: 16.5 | O76: Tippabgabe | P76: cobo_win12 | Q76: 684.5217285 | R76: 1001.478271 | S76: 37.69567108 | T76: 16.5
B77: Tippabgabe | C77: cobo_win10 | D77: 684.5217285 | E77: 951.9130859 | F77: 37.69567108 | G77: 16.5 | O77: Tippabgabe | P77: cobo_ew13 | Q77: 641.4782715 | R77: 1067.347778 | S77: 37.69567108 | T77: 16.5
B78: Tippabgabe | C78: cobo_ew11 | D78: 641.4782715 | E78: 976.6956787 | F78: 37.69567108 | G78: 16.5 | O78: Tippabgabe | P78: cobo_win13 | Q78: 684.5217285 | R78: 1067.347778 | S78: 37.69567108 | T78: 16.5
B79: Tippabgabe | C79: cobo_win11 | D79: 684.5217285 | E79: 976.6956787 | F79: 37.69567108 | G79: 16.5 | O79: Tippabgabe | P79: cobo_ew14 | Q79: 641.4782715 | R79: 1092.130493 | S79: 37.69567108 | T79: 16.5
B80: Tippabgabe | C80: cobo_ew12 | D80: 641.4782715 | E80: 1001.478271 | F80: 37.69567108 | G80: 16.5 | O80: Tippabgabe | P80: cobo_win14 | Q80: 684.5217285 | R80: 1092.130493 | S80: 37.69567108 | T80: 16.5
B81: Tippabgabe | C81: cobo_win12 | D81: 684.5217285 | E81: 1001.478271 | F81: 37.69567108 | G81: 16.5 | O81: Tippabgabe | P81: cobo_ew15 | Q81: 641.4782715 | R81: 1131.260864 | S81: 37.69567108 | T81: 16.5
B82: Tippabgabe | C82: cobo_ew13 | D82: 641.4782715 | E82: 1067.347778 | F82: 37.69567108 | G82: 16.5 | O82: Tippabgabe | P82: cobo_win15 | Q82: 684.5217285 | R82: 1131.260864 | S82: 37.69567108 | T82: 16.5
B83: Tippabgabe | C83: cobo_win13 | D83: 684.5217285 | E83: 1067.347778 | F83: 37.69567108 | G83: 16.5 | O83: Tippabgabe | P83: but_print | Q83: 803.0543213 | R83: 3.75 | S83: 15.84787369 | T83: 14.25
B84: Tippabgabe | C84: cobo_ew14 | D84: 641.4782715 | E84: 1092.130493 | F84: 37.69567108 | G84: 16.5 | O84: Tippabgabe | P84: but_impexp | Q84: 706.3695068 | R84: 3.75 | S84: 15.84787369 | T84: 15.75
B85: Tippabgabe | C85: cobo_win14 | D85: 684.5217285 | E85: 1092.130493 | F85: 37.69567108 | G85: 16.5 | O85: Tippabgabe | P85: but_quit | Q85: 842.6086426 | R85: 2.25 | S85: 28.89133835 | T85: 23.02173233
B86: Tippabgabe | C86: cobo_ew15 | D86: 641.4782715 | E86: 1131.260864 | F86: 37.69567108 | G86: 16.5 | O86: Tippabgabe | P86: but_reload | Q86: 525.6522217 | R86: 74.18480682 | S86: 14.25 | T86: 14.18472481
B87: Tippabgabe | C87: cobo_win15 | D87: 684.5217285 | E87: 1131.260864 | F87: 37.69567108 | G87: 16.5 | O87: Tippabgabe | P87: but_showhint | Q87: 749.4456787 | R87: 3.75 | S87: 13.56519699 | T87: 14.25
B88: Tippabgabe | C88: but_print | D88: 803.0543213 | E88: 3.75 | F88: 15.84787369 | G88: 14.25 | O88: Tippabgabe | P88: selectmsp | Q88: 9.130472183 | R88: 73.43480682 | S88: 217.6629944 | T88: 18
B89: Tippabgabe | C89: but_impexp | D89: 706.3695068 | E89: 3.75 | F89: 15.84787369 | G89: 15.75 | O89: Tippabgabe | P89: but_logout | Q89: 237.3913422 | R89: 74.18480682 | S89: 16.5 | T89: 16.43472481
B90: Tippabgabe | C90: but_quit | D90: 842.6086426 | E90: 2.25 | F90: 28.89133835 | G90: 23.02173233 | O90: Tippabgabe | P90: but_kwmsp | Q90: 256.1413269 | R90: 75.68480682 | S90: 14.25 | T90: 14.18472481
B91: Tippabgabe | C91: but_reload | D91: 525.6522217 | E91: 74.18480682 | F91: 14.25 | G91: 14.18472481 | O91: Tippabgabe | P91: kk_kopaarungen | Q91: 26.51086617 | R91: 632.25 | S91: 616.4674072 | T91: 17.25
B92: Tippabgabe | C92: but_showhint | D92: 749.4456787 | E92: 3.75 | F92: 13.56519699 | G92: 14.25 | O92: Tippabgabe | P92: but_tabkorr | Q92: 681.5217285 | R92: 74.18480682 | S92: 169.3369293 | T92: 14.18472481
B93: Tippabgabe | C93: selectmsp | D93: 9.130472183 | E93: 73.43480682 | F93: 217.6629944 | G93: 18 | O93: Tippabgabe | P93: pic_txtko | Q93: 14.38047218 | R93: 633.75 | S93: 12.13039398 | T93: 12
B94: Tippabgabe | C94: but_logout | D94: 237.3913422 | E94: 74.18480682 | F94: 16.5 | G94: 16.43472481 | O94: Tippabgabe | P94: but_save | Q94: 301.6956787 | R94: 73.43480682 | S94: 213.5217285 | T94: 17.18472481
B95: Tippabgabe | C95: but_kwmsp | D95: 256.1413269 | E95: 75.68480682 | F95: 14.25 | G95: 14.18472481 | O95: Tippabgabe | P95: pic_txterg | Q95: 770.6086426 | R95: 3.75 | S95: 14.34787369 | T95: 14.25
B96: Tippabgabe | C96: kk_kopaarungen | D96: 26.51086617 | E96: 632.25 | F96: 616.4674072 | G96: 17.25 | O96: Tippabgabe | P96: cobo_tsk | Q96: 179.543457 | R96: 1175.413086 | S96: 252 | T96: 18.75
B97: Tippabgabe | C97: but_tabkorr | D97: 681.5217285 | E97: 74.18480682 | F97: 169.3369293 | G97: 14.18472481 | O97: Tippabgabe | P97: but_etuebernahme | Q97: 855 | R97: 3489.75 | S97: 23.25 | T97: 23.05433083
B98: Tippabgabe | C98: pic_txtko | D98: 14.38047218 | E98: 633.75 | F98: 12.13039398 | G98: 12 | O98: Tippabgabe | P98: but_clearet | Q98: 1998.749878 | R98: 3458.445557 | S98: 26.25 | T98: 26.05433083
B99: Tippabgabe | C99: but_save | D99: 301.6956787 | E99: 73.43480682 | F99: 213.5217285 | G99: 17.18472481 | O99: Tippabgabe | P99: nav | Q99: 9.880472183 | R99: 5.25 | S99: 12.88039398 | T99: 12.75
B100: Tippabgabe | C100: pic_txterg | D100: 770.6086426 | E100: 3.75 | F100: 14.34787369 | G100: 14.25 | O100: Tippabgabe | P100: but_msp1 | Q100: 667.1739502 | R100: 3.75 | S100: 20.34779549 | T100: 17.25
B101: Tippabgabe | C101: cobo_tsk | D101: 179.543457 | E101: 1175.413086 | F101: 252 | G101: 18.75 | O101: Tippabgabe | P101: but_settings | Q101: 638.4782715 | R101: 3.75 | S101: 17.34779549 | T101: 17.25
B102: Tippabgabe | C102: but_etuebernahme | D102: 855 | E102: 3489.75 | F102: 23.25 | G102: 23.05433083 | O102: Tippabgabe | P102: but_reload | Q102: 525.6522217 | R102: 74.18480682 | S102: 14.25 | T102: 14.18472481
B103: Tippabgabe | C103: but_clearet | D103: 1998.749878 | E103: 3458.445557 | F103: 26.25 | G103: 26.05433083 | O103: Tippabgabe | P103: but_logout | Q103: 237.3913422 | R103: 74.18480682 | S103: 16.5 | T103: 16.43472481
B104: Tippabgabe | C104: nav | D104: 9.880472183 | E104: 5.25 | F104: 12.88039398 | G104: 12.75 | O104: Tippabgabe | P104: but_kwmsp | Q104: 256.1413269 | R104: 75.68480682 | S104: 14.25 | T104: 14.18472481
B105: Tippabgabe | C105: but_msp1 | D105: 667.1739502 | E105: 3.75 | F105: 20.34779549 | G105: 17.25 | O105: Tippabgabe | P105: kk_kopaarungen | Q105: 26.51086617 | R105: 632.25 | S105: 616.4674072 | T105: 17.25
B106: Tippabgabe | C106: but_settings | D106: 638.4782715 | E106: 3.75 | F106: 17.34779549 | G106: 17.25 | O106: Tippabgabe | P106: but_tabkorr | Q106: 681.5217285 | R106: 74.18480682 | S106: 169.3369293 | T106: 14.18472481
B107: Tippabgabe | C107: but_reload | D107: 525.6522217 | E107: 74.18480682 | F107: 14.25 | G107: 14.18472481 | O107: Tippabgabe | P107: pic_txtko | Q107: 14.38047218 | R107: 633.75 | S107: 12.13039398 | T107: 12
B108: Tippabgabe | C108: but_logout | D108: 237.3913422 | E108: 74.18480682 | F108: 16.5 | G108: 16.43472481 | O108: Tippabgabe | P108: but_save | Q108: 301.6956787 | R108: 73.43480682 | S108: 197.706543 | T108: 17.86952782
B109: Tippabgabe | C109: but_kwmsp | D109: 256.1413269 | E109: 75.68480682 | F109: 14.25 | G109: 14.18472481 | O109: Ranglisten | P109: mspselect | Q109: 210.0652008 | R109: 89.44567108 | S109: 9.75 | T109: 9.75
B110: Tippabgabe | C110: kk_kopaarungen | D110: 26.51086617 | E110: 632.25 | F110: 616.4674072 | G110: 17.25 | O110: Ranglisten | P110: nav | Q110: 7.565196991 | R110: 0.75 | S110: 12.75 | T110: 12.75
B111: Tippabgabe | C111: but_tabkorr | D111: 681.5217285 | E111: 74.18480682 | F111: 169.3369293 | G111: 14.18472481 | O111: Ranglisten | P111: rangwahl | Q111: 463.3369141 | R111: 21 | S111: 204.6847992 | T111: 17.25
B112: Tippabgabe | C112: pic_txtko | D112: 14.38047218 | E112: 633.75 | F112: 12.13039398 | G112: 12 | O112: Ranglisten | P112: but_zurueck | Q112: 896.0543213 | R112: 8.315196991 | S112: 15.75 | T112: 14.93480301
B113: Tippabgabe | C113: but_save | D113: 301.6956787 | E113: 73.43480682 | F113: 197.706543 | G113: 17.86952782 | O113: Ranglisten | P113: icon7 | Q113: 854.8043213 | R113: 3.75 | S113: 20.25 | T113: 20.25
B114: Ranglisten | C114: mspselect | D114: 210.0652008 | E114: 89.44567108 | F114: 9.75 | G114: 9.75 | O114: EM 2021 XXL | P114: nav | Q114: 23.25 | R114: 11.25 | S114: 12.75 | T114: 12.75
B115: Ranglisten | C115: nav | D115: 7.565196991 | E115: 0.75 | F115: 12.75 | G115: 12.75 | O115: EM 2021 XXL | P115: but_ergupdate | Q115: 774 | R115: 249.75 | S115: 133.5 | T115: 28.5
B116: Ranglisten | C116: rangwahl | D116: 463.3369141 | E116: 21 | F116: 204.6847992 | G116: 17.25 | O116: EM 2021 XXL | P116: but_aktdat | Q116: 774 | R116: 289.5 | S116: 133.5 | T116: 28.5
B117: Ranglisten | C117: but_zurueck | D117: 896.0543213 | E117: 8.315196991 | F117: 15.75 | G117: 14.93480301 | O117: EM 2021 XXL | P117: but_loadakt | Q117: 762 | R117: 222 | S117: 157.5 | T117: 21
B118: Ranglisten | C118: icon7 | D118: 854.8043213 | E118: 3.75 | F118: 20.25 | G118: 20.25 | O118: EM 2021 XXL | P118: but_showdoc | Q118: 790.5 | R118: 398.25 | S118: 103.5 | T118: 20.25
B119: EM 2021 XXL | C119: nav | D119: 23.25 | E119: 11.25 | F119: 12.75 | G119: 12.75 | O119: EM 2021 XXL | P119: but_deldat | Q119: 775.5 | R119: 357 | S119: 133.5 | T119: 28.5
B120: EM 2021 XXL | C120: but_ergupdate | D120: 774 | E120: 249.75 | F120: 133.5 | G120: 28.5 | O120: EM 2021 XXL | P120: but_showsettings | Q120: 23.25 | R120: 338.25 | S120: 133.5 | T120: 28.5
B121: EM 2021 XXL | C121: but_aktdat | D121: 774 | E121: 289.5 | F121: 133.5 | G121: 28.5 | O121: EM 2021 XXL | P121: but_showfaq | Q121: 790.5 | R121: 428.25 | S121: 103.5 | T121: 20.25
B122: EM 2021 XXL | C122: but_loadakt | D122: 762 | E122: 222 | F122: 157.5 | G122: 21 | O122: EM 2021 XXL | P122: but_delkompo | Q122: 775.5 | R122: 456 | S122: 133.5 | T122: 28.5
B123: EM 2021 XXL | C123: but_showdoc | D123: 790.5 | E123: 398.25 | F123: 103.5 | G123: 20.25 | O123: QUALIFIKATION | P123: nav | Q123: 3 | R123: 3 | S123: 12.84779549 | T123: 12.75
B124: EM 2021 XXL | C124: but_deldat | D124: 775.5 | E124: 357 | F124: 133.5 | G124: 28.5 | O124: Ergebnisse | P124: flag9 | Q124: 467.4782715 | R124: 796.4674072 | S124: 36.32606125 | T124: 24
B125: EM 2021 XXL | C125: but_showsettings | D125: 23.25 | E125: 338.25 | F125: 133.5 | G125: 28.5 | O125: Ergebnisse | P125: flag10 | Q125: 713.3477783 | R125: 796.4674072 | S125: 36.32614136 | T125: 24
B126: EM 2021 XXL | C126: but_showfaq | D126: 790.5 | E126: 428.25 | F126: 103.5 | G126: 20.25 | O126: Ergebnisse | P126: flag11 | Q126: 959.2174072 | R126: 796.4674072 | S126: 35.86952591 | T126: 24
B127: EM 2021 XXL | C127: but_delkompo | D127: 775.5 | E127: 456 | F127: 133.5 | G127: 28.5 | O127: Ergebnisse | P127: flag12 | Q127: 1203 | R127: 796.4674072 | S127: 36 | T127: 24
B128: QUALIFIKATION | C128: nav | D128: 3 | E128: 3 | F128: 12.84779549 | G128: 12.75 | O128: Ergebnisse | P128: flag13 | Q128: 656.6086426 | R128: 900.9130859 | S128: 54.48913574 | T128: 36
B129: Ergebnisse | C129: flag9 | D129: 467.4782715 | E129: 796.4674072 | F129: 36.32606125 | G129: 24 | O129: Ergebnisse | P129: flag14 | Q129: 996.5869141 | R129: 900.9130859 | S129: 54.16307068 | T129: 36
B130: Ergebnisse | C130: flag10 | D130: 713.3477783 | E130: 796.4674072 | F130: 36.32614136 | G130: 24 | O130: Ergebnisse | P130: flag1 | Q130: 413.7391357 | R130: 689.7717285 | S130: 30.32606316 | T130: 19.5
B131: Ergebnisse | C131: flag11 | D131: 959.2174072 | E131: 796.4674072 | F131: 35.86952591 | G131: 24 | O131: Ergebnisse | P131: flag2 | Q131: 527.2174072 | R131: 689.7717285 | S131: 30.32606316 | T131: 19.5
B132: Ergebnisse | C132: flag12 | D132: 1203 | E132: 796.4674072 | F132: 36 | G132: 24 | O132: Ergebnisse | P132: flag3 | Q132: 659.6086426 | R132: 689.7717285 | S132: 30.32614136 | T132: 19.5
B133: Ergebnisse | C133: flag13 | D133: 656.6086426 | E133: 900.9130859 | F133: 54.48913574 | G133: 36 | O133: Ergebnisse | P133: flag4 | Q133: 773.0869141 | R133: 689.7717285 | S133: 30.32614136 | T133: 19.5
B134: Ergebnisse | C134: flag14 | D134: 996.5869141 | E134: 900.9130859 | F134: 54.16307068 | G134: 36 | O134: Ergebnisse | P134: flag5 | Q134: 905.4782715 | R134: 689.7717285 | S134: 30.32606316 | T134: 19.5
B135: Ergebnisse | C135: flag1 | D135: 413.7391357 | E135: 689.7717285 | F135: 30.32606316 | G135: 19.5 | O135: Ergebnisse | P135: flag6 | Q135: 1018.402222 | R135: 689.7717285 | S135: 30.09779549 | T135: 19.5
B136: Ergebnisse | C136: flag2 | D136: 527.2174072 | E136: 689.7717285 | F136: 30.32606316 | G136: 19.5 | O136: Ergebnisse | P136: flag7 | Q136: 1149.75 | R136: 689.7717285 | S136: 30 | T136: 19.5
B137: Ergebnisse | C137: flag3 | D137: 659.6086426 | E137: 689.7717285 | F137: 30.32614136 | G137: 19.5 | O137: Ergebnisse | P137: flag8 | Q137: 1262.25 | R137: 689.7717285 | S137: 30 | T137: 19.5
B138: Ergebnisse | C138: flag4 | D138: 773.0869141 | E138: 689.7717285 | F138: 30.32614136 | G138: 19.5 | O138: Ergebnisse | P138: but_tabkorr | Q138: 872.9022217 | R138: 447.8151855 | S138: 114.6847229 | T138: 14.25
B139: Ergebnisse | C139: flag5 | D139: 905.4782715 | E139: 689.7717285 | F139: 30.32606316 | G139: 19.5 | O139: Ergebnisse | P139: kk_allg | Q139: 293.5108643 | R139: 23.11952782 | S139: 246.6196136 | T139: 17.25
B140: Ergebnisse | C140: flag6 | D140: 1018.402222 | E140: 689.7717285 | F140: 30.09779549 | G140: 19.5 | O140: Ergebnisse | P140: kk_akt | Q140: 539.3804932 | R140: 23.11952782 | S140: 331.2717285 | T140: 17.25
B141: Ergebnisse | C141: flag7 | D141: 1149.75 | E141: 689.7717285 | F141: 30 | G141: 19.5 | O141: Ergebnisse | P141: unlockerg | Q141: 874.5651855 | R141: 3.75 | S141: 146.9347992 | T141: 17.11952782
B142: Ergebnisse | C142: flag8 | D142: 1262.25 | E142: 689.7717285 | F142: 30 | G142: 19.5 | O142: Ergebnisse | P142: nav | Q142: 5.315196991 | R142: 4.5 | S142: 12.75 | T142: 12.75
B143: Ergebnisse | C143: but_tabkorr | D143: 872.9022217 | E143: 447.8151855 | F143: 114.6847229 | G143: 14.25 | O143: Tippstatistik | P143: nav | Q143: 12.06519699 | R143: 6.61952734 | S143: 12 | T143: 12
B144: Ergebnisse | C144: kk_allg | D144: 293.5108643 | E144: 23.11952782 | F144: 246.6196136 | G144: 17.25 | O144: Tippstatistik | P144: diatasp1 | Q144: 12.06519699 | R144: 358.0108643 | S144: 274.9239502 | T144: 172.8913422
B145: Ergebnisse | C145: kk_akt | D145: 539.3804932 | E145: 23.11952782 | F145: 331.2717285 | G145: 17.25 | O145: Tippstatistik | P145: diatages | Q145: 355.1413269 | R145: 355.7608643 | S145: 268.6629944 | T145: 172.8913422
B146: Ergebnisse | C146: unlockerg | D146: 874.5651855 | E146: 3.75 | F146: 146.9347992 | G146: 17.11952782 | O146: Tippstatistik | P146: diatasp2 | Q146: 683.706543 | R146: 355.7608643 | S146: 271.6629944 | T146: 172.8913422
B147: Ergebnisse | C147: nav | D147: 5.315196991 | E147: 4.5 | F147: 12.75 | G147: 12.75 | O147: Tippstatistik | P147: but_ausgdiakat | Q147: 876.7174072 | R147: 330.4891357 | S147: 82.4021225 | T147: 14.18480301
B148: Tippstatistik | C148: nav | D148: 12.06519699 | E148: 6.61952734 | F148: 12 | G148: 12 | O148: Tippstatistik | P148: tsbut5 | Q148: 663.456543 | R148: 591.3260498 | S148: 81.55432892 | T148: 15.19566917
B149: Tippstatistik | C149: diatasp1 | D149: 12.06519699 | E149: 358.0108643 | F149: 274.9239502 | G149: 172.8913422 | O149: Tippstatistik | P149: tsbut6 | Q149: 834.0651855 | R149: 591.3260498 | S149: 88.30432892 | T149: 15.19566917
B150: Tippstatistik | C150: diatages | D150: 355.1413269 | E150: 355.7608643 | F150: 268.6629944 | G150: 172.8913422 | O150: Tippstatistik | P150: dia_tippstats | Q150: 9.815196991 | R150: 726.8151855 | S150: 952.3043213 | T150: 319.9239502
B151: Tippstatistik | C151: diatasp2 | D151: 683.706543 | E151: 355.7608643 | F151: 271.6629944 | G151: 172.8913422 | O151: Tippstatistik | P151: CBox1 | Q151: 136.6304779 | R151: 1053.358643 | S151: 23.90212631 | T151: 17.25
B152: Tippstatistik | C152: but_ausgdiakat | D152: 876.7174072 | E152: 330.4891357 | F152: 82.4021225 | G152: 14.18480301 | O152: Tippstatistik | P152: CBox2 | Q152: 337.1413269 | R152: 1053.358643 | S152: 24 | T152: 17.25
B153: Tippstatistik | C153: tsbut5 | D153: 663.456543 | E153: 591.3260498 | F153: 81.55432892 | G153: 15.19566917 | O153: Tippstatistik | P153: CBox3 | Q153: 538.5 | R153: 1053.358643 | S153: 23.90220451 | T153: 17.25
B154: Tippstatistik | C154: tsbut6 | D154: 834.0651855 | E154: 591.3260498 | F154: 88.30432892 | G154: 15.19566917 | O154: Tippstatistik | P154: CBox4 | Q154: 738.2608643 | R154: 1053.358643 | S154: 24 | T154: 17.25
B155: Tippstatistik | C155: dia_tippstats | D155: 9.815196991 | E155: 726.8151855 | F155: 952.3043213 | G155: 319.9239502 | O155: Tippstatistik | P155: opbts1 | Q155: 212.1847992 | R155: 1077.228271 | S155: 70.30432892 | T155: 17.25
B156: Tippstatistik | C156: CBox1 | D156: 136.6304779 | E156: 1053.358643 | F156: 23.90212631 | G156: 17.25 | O156: Tippstatistik | P156: opbts2 | Q156: 108.1304703 | R156: 1077.228271 | S156: 83.80432892 | T156: 17.25
B157: Tippstatistik | C157: CBox2 | D157: 337.1413269 | E157: 1053.358643 | F157: 24 | G157: 17.25 | O157: Tippstatistik | P157: autotop5 | Q157: 356.6413269 | R157: 1077.228271 | S157: 142.9564514 | T157: 17.25
B158: Tippstatistik | C158: CBox3 | D158: 538.5 | E158: 1053.358643 | F158: 23.90220451 | G158: 17.25 | O158: Tippstatistik | P158: CBox5 | Q158: 938.8695068 | R158: 1053.358643 | S158: 24 | T158: 17.25
B159: Tippstatistik | C159: CBox4 | D159: 738.2608643 | E159: 1053.358643 | F159: 24 | G159: 17.25 | O159: Tippstatistik | P159: but_etdetails | Q159: 664.206543 | R159: 651.456543 | S159: 175.8586578 | T159: 14.83692932
B160: Tippstatistik | C160: opbts1 | D160: 212.1847992 | E160: 1077.228271 | F160: 70.30432892 | G160: 17.25 | O160: Tippstatistik | P160: but_matches | Q160: 781.0108643 | R160: 286.043457 | S160: 184.1086578 | T160: 14.93480301
B161: Tippstatistik | C161: opbts2 | D161: 108.1304703 | E161: 1077.228271 | F161: 83.80432892 | G161: 17.25 | O161: Tippstatistik | P161: but_close_stats | Q161: 948.6195068 | R161: 4.5 | S161: 17.90220451 | T161: 19.30433083
B162: Tippstatistik | C162: autotop5 | D162: 356.6413269 | E162: 1077.228271 | F162: 142.9564514 | G162: 17.25 | O162: Tippstatistik | P162: but_ausgdiaverl | Q162: 858.0651855 | R162: 1079.478271 | S162: 107.0543289 | T162: 13.95653534
B163: Tippstatistik | C163: CBox5 | D163: 938.8695068 | E163: 1053.358643 | F163: 24 | G163: 17.25 | O163: Tippstatistik | P163: ComboBox3 | Q163: 374.543457 | R163: 328.2391357 | S163: 229.7608643 | T163: 18
B164: Tippstatistik | C164: but_etdetails | D164: 664.206543 | E164: 651.456543 | F164: 175.8586578 | G164: 14.83692932 | O164: Tippstatistik | P164: cobox1 | Q164: 7.565196991 | R164: 1054.858643 | S164: 129.0652771 | T164: 18
B165: Tippstatistik | C165: but_matches | D165: 781.0108643 | E165: 286.043457 | F165: 184.1086578 | G165: 14.93480301 | O165: Tippstatistik | P165: cobox2 | Q165: 208.4347992 | R165: 1054.858643 | S165: 128.706543 | T165: 18
B166: Tippstatistik | C166: but_close_stats | D166: 948.6195068 | E166: 4.5 | F166: 17.90220451 | G166: 19.30433083 | O166: Tippstatistik | P166: cobox3 | Q166: 409.793457 | R166: 1054.858643 | S166: 128.706543 | T166: 18
B167: Tippstatistik | C167: but_ausgdiaverl | D167: 858.0651855 | E167: 1079.478271 | F167: 107.0543289 | G167: 13.95653534 | O167: Tippstatistik | P167: cobox4 | Q167: 610.3043213 | R167: 1054.858643 | S167: 128.706543 | T167: 18
B168: Tippstatistik | C168: ComboBox3 | D168: 374.543457 | E168: 328.2391357 | F168: 229.7608643 | G168: 18 | O168: Tippstatistik | P168: cobox5 | Q168: 811.6630859 | R168: 1054.858643 | S168: 128.7064514 | T168: 18
B169: Tippstatistik | C169: cobox1 | D169: 7.565196991 | E169: 1054.858643 | F169: 129.0652771 | G169: 18 | O169: Tippstatistik | P169: ComboBox1 | Q169: 47.31519699 | R169: 540.5869141 | S169: 192.5217285 | T169: 18
B170: Tippstatistik | C170: cobox2 | D170: 208.4347992 | E170: 1054.858643 | F170: 128.706543 | G170: 18 | O170: Tippstatistik | P170: ComboBox2 | Q170: 736.8586426 | R170: 539.0869141 | S170: 192.2608643 | T170: 18
B171: Tippstatistik | C171: cobox3 | D171: 409.793457 | E171: 1054.858643 | F171: 128.706543 | G171: 18 | O171: Tippstatistik | P171: but_rangli | Q171: 902.9674072 | R171: 6.61952734 | S171: 16.5 | T171: 17.18480301
B172: Tippstatistik | C172: cobox4 | D172: 610.3043213 | E172: 1054.858643 | F172: 128.706543 | G172: 18 | O172: Tippstatistik | P172: but_etrangl | Q172: 664.206543 | R172: 672.2282715 | S172: 175.8586578 | T172: 14.93480301
B173: Tippstatistik | C173: cobox5 | D173: 811.6630859 | E173: 1054.858643 | F173: 128.7064514 | G173: 18
B174: Tippstatistik | C174: ComboBox1 | D174: 47.31519699 | E174: 540.5869141 | F174: 192.5217285 | G174: 18
B175: Tippstatistik | C175: ComboBox2 | D175: 736.8586426 | E175: 539.0869141 | F175: 192.2608643 | G175: 18
B176: Tippstatistik | C176: but_rangli | D176: 902.9674072 | E176: 6.61952734 | F176: 16.5 | G176: 17.18480301
B177: Tippstatistik | C177: but_etrangl | D177: 664.206543 | E177: 672.2282715 | F177: 175.8586578 | G177: 14.93480301

Sheet tabber (hidden)
C1: Index= Eintrag in der Liste aller Teams (lfd. Nr.) | H1: EDIT
C2: Nr = Nummer in der Gruppe | H2: Resultat
A3: Tabber
A4: A | B4: Paarungen | G4: Resultat | K4: Punkte | Q4: =SUM(Q6:Q11) -> 6 | AA4: B | AB4: Paarungen | AG4: Resultat | AK4: Punkte | AQ4: =SUM(AQ6:AQ11) -> 6
A5: Nr | D5: HT | E5: AT | F5: HT2 | G5: ErgH | H5: ErgA | I5: ErgH2 | K5: PH | L5: PA | M5: DifH | N5: DifA | O5: WertH | P5: WertA | Q5: Spiele | S5: Resultat | AA5: Nr | AD5: HT | AE5: AT | AF5: HT2 | AG5: ErgH | AH5: ErgA | AI5: ErgH2 | AK5: PH | AL5: PA | AM5: DifH | AN5: DifA | AO5: WertH | AP5: WertA | AQ5: Spiele | AS5: Resultat
A6: 1 | B6: =D6&"#"&E6 -> 1#2 | C6: =E6&"#"&D6 -> 2#1 | D6: =VLOOKUP(J6,daten!$D$49:$J$84,6,FALSE) -> 1 | E6: =VLOOKUP(J6,daten!$D$49:$K$84,7,FALSE) -> 2 | F6: =D6 -> 1 | G6: =VLOOKUP(J6,ERGEBNISSE!$C$12:$F$47,3,FALSE) -> 0 | H6: =VLOOKUP(J6,ERGEBNISSE!$C$12:$F$47,4,FALSE) -> 3 | I6: =IF(LEN(G6)>0,G6,"") -> 0 | J6: =A4&A6 -> A1 | K6: =IF(COUNT(G6:H6)<>2,0,IF(G6>H6,3,IF(H6>G6,0,1))) -> 0 | L6: =IF(COUNT(G6:H6)<>2,0,IF(G6>H6,0,IF(H6>G6,3,1))) -> 3 | M6: =IF(COUNT(G6:H6)<>2,0,G6-H6) -> -3 | N6: =IF(COUNT(G6:H6)<>2,0,H6-I6) -> 3 | O6: =K6*1000+M6+IF(LEN(G6)=0,0,G6/1000) -> -3 | P6: 3003.003 | Q6: =IF(COUNT(G6:H6)=2,1,0) -> 1 | R6: =Q6 -> 1 | S6: =IF(Q6=0,"X",IF(K6=3,"S",IF(K6=0,"N","U")))&D6 -> N1 | T6: S2 | AA6: 1 | AB6: =AD6&"#"&AE6 -> 5#6 | AC6: =AE6&"#"&AD6 -> 6#5 | AD6: =VLOOKUP(AJ6,daten!$D$49:$J$84,6,FALSE) -> 5 | AE6: =VLOOKUP(AJ6,daten!$D$49:$K$84,7,FALSE) -> 6 | AF6: =AD6 -> 5 | AG6: =VLOOKUP(AJ6,ERGEBNISSE!$C$12:$F$47,3,FALSE) -> 0 | AH6: =VLOOKUP(AJ6,ERGEBNISSE!$C$12:$F$47,4,FALSE) -> 1 | AI6: =IF(LEN(AG6)>0,AG6,"") -> 0 | AJ6: =AA4&AA6 -> B1 | AK6: =IF(COUNT(AG6:AH6)<>2,0,IF(AG6>AH6,3,IF(AH6>AG6,0,1))) -> 0 | AL6: =IF(COUNT(AG6:AH6)<>2,0,IF(AG6>AH6,0,IF(AH6>AG6,3,1))) -> 3 | AM6: =IF(COUNT(AG6:AH6)<>2,0,AG6-AH6) -> -1 | AN6: =IF(COUNT(AG6:AH6)<>2,0,AH6-AI6) -> 1 | AO6: =AK6*1000+AM6+IF(LEN(AG6)=0,0,AG6/1000) -> -1 | AP6: 3001.001 | AQ6: =IF(COUNT(AG6:AH6)=2,1,0) -> 1 | AR6: =AQ6 -> 1 | AS6: =IF(AQ6=0,"X",IF(AK6=3,"S",IF(AK6=0,"N","U")))&AD6 -> N5 | AT6: S6
A7: 2 | B7: 3#4 | C7: 4#3 | D7: =VLOOKUP(J7,daten!$D$49:$J$84,6,FALSE) -> 3 | E7: =VLOOKUP(J7,daten!$D$49:$K$84,7,FALSE) -> 4 | F7: 3 | G7: =VLOOKUP(J7,ERGEBNISSE!$C$12:$F$47,3,FALSE) -> 1 | H7: =VLOOKUP(J7,ERGEBNISSE!$C$12:$F$47,4,FALSE) -> 1 | I7: 1 | J7: =A4&A7 -> A2 | K7: 1 | L7: 1 | M7: 0 | N7: 0 | O7: 1000.001 | P7: 1000.001 | Q7: 1 | R7: 1 | S7: U3 | T7: U4 | AA7: 2 | AB7: 7#8 | AC7: 8#7 | AD7: =VLOOKUP(AJ7,daten!$D$49:$J$84,6,FALSE) -> 7 | AE7: =VLOOKUP(AJ7,daten!$D$49:$K$84,7,FALSE) -> 8 | AF7: 7 | AG7: =VLOOKUP(AJ7,ERGEBNISSE!$C$12:$F$47,3,FALSE) -> 3 | AH7: =VLOOKUP(AJ7,ERGEBNISSE!$C$12:$F$47,4,FALSE) -> 0 | AI7: 3 | AJ7: =AA4&AA7 -> B2 | AK7: 3 | AL7: 0 | AM7: 3 | AN7: -3 | AO7: 3003.003 | AP7: -3 | AQ7: 1 | AR7: 1 | AS7: S7 | AT7: N8
A8: 3 | B8: 1#3 | C8: 3#1 | D8: =VLOOKUP(J8,daten!$D$49:$J$84,6,FALSE) -> 1 | E8: =VLOOKUP(J8,daten!$D$49:$K$84,7,FALSE) -> 3 | F8: 1 | G8: =VLOOKUP(J8,ERGEBNISSE!$C$12:$F$47,3,FALSE) -> 0 | H8: =VLOOKUP(J8,ERGEBNISSE!$C$12:$F$47,4,FALSE) -> 2 | I8: 0 | J8: =A4&A8 -> A3 | K8: 0 | L8: 3 | M8: -2 | N8: 2 | O8: -2 | P8: 3002.002 | Q8: 1 | R8: 1 | S8: N1 | T8: S3 | AA8: 3 | AB8: 6#8 | AC8: 8#6 | AD8: =VLOOKUP(AJ8,daten!$D$49:$J$84,6,FALSE) -> 6 | AE8: =VLOOKUP(AJ8,daten!$D$49:$K$84,7,FALSE) -> 8 | AF8: 6 | AG8: =VLOOKUP(AJ8,ERGEBNISSE!$C$12:$F$47,3,FALSE) -> 0 | AH8: =VLOOKUP(AJ8,ERGEBNISSE!$C$12:$F$47,4,FALSE) -> 1 | AI8: 0 | AJ8: =AA4&AA8 -> B3 | AK8: 0 | AL8: 3 | AM8: -1 | AN8: 1 | AO8: -1 | AP8: 3001.001 | AQ8: 1 | AR8: 1 | AS8: N6 | AT8: S8
A9: 4 | B9: 2#4 | C9: 4#2 | D9: =VLOOKUP(J9,daten!$D$49:$J$84,6,FALSE) -> 2 | E9: =VLOOKUP(J9,daten!$D$49:$K$84,7,FALSE) -> 4 | F9: 2 | G9: =VLOOKUP(J9,ERGEBNISSE!$C$12:$F$47,3,FALSE) -> 3 | H9: =VLOOKUP(J9,ERGEBNISSE!$C$12:$F$47,4,FALSE) -> 0 | I9: 3 | J9: =A4&A9 -> A4 | K9: 3 | L9: 0 | M9: 3 | N9: -3 | O9: 3003.003 | P9: -3 | Q9: 1 | R9: 1 | S9: S2 | T9: N4 | AA9: 4 | AB9: 5#7 | AC9: 7#5 | AD9: =VLOOKUP(AJ9,daten!$D$49:$J$84,6,FALSE) -> 5 | AE9: =VLOOKUP(AJ9,daten!$D$49:$K$84,7,FALSE) -> 7 | AF9: 5 | AG9: =VLOOKUP(AJ9,ERGEBNISSE!$C$12:$F$47,3,FALSE) -> 1 | AH9: =VLOOKUP(AJ9,ERGEBNISSE!$C$12:$F$47,4,FALSE) -> 2 | AI9: 1 | AJ9: =AA4&AA9 -> B4 | AK9: 0 | AL9: 3 | AM9: -1 | AN9: 1 | AO9: -0.999 | AP9: 3001.002 | AQ9: 1 | AR9: 1 | AS9: N5 | AT9: S7
A10: 5 | B10: 4#1 | C10: 1#4 | D10: =VLOOKUP(J10,daten!$D$49:$J$84,6,FALSE) -> 4 | E10: =VLOOKUP(J10,daten!$D$49:$K$84,7,FALSE) -> 1 | F10: 4 | G10: =VLOOKUP(J10,ERGEBNISSE!$C$12:$F$47,3,FALSE) -> 3 | H10: =VLOOKUP(J10,ERGEBNISSE!$C$12:$F$47,4,FALSE) -> 1 | I10: 3 | J10: =A4&A10 -> A5 | K10: 3 | L10: 0 | M10: 2 | N10: -2 | O10: 3002.003 | P10: -1.999 | Q10: 1 | R10: 1 | S10: S4 | T10: N1 | AA10: 5 | AB10: 8#5 | AC10: 5#8 | AD10: =VLOOKUP(AJ10,daten!$D$49:$J$84,6,FALSE) -> 8 | AE10: =VLOOKUP(AJ10,daten!$D$49:$K$84,7,FALSE) -> 5 | AF10: 8 | AG10: =VLOOKUP(AJ10,ERGEBNISSE!$C$12:$F$47,3,FALSE) -> 1 | AH10: =VLOOKUP(AJ10,ERGEBNISSE!$C$12:$F$47,4,FALSE) -> 4 | AI10: 1 | AJ10: =AA4&AA10 -> B5 | AK10: 0 | AL10: 3 | AM10: -3 | AN10: 3 | AO10: -2.999 | AP10: 3003.004 | AQ10: 1 | AR10: 1 | AS10: N8 | AT10: S5
A11: 6 | B11: 2#3 | C11: 3#2 | D11: =VLOOKUP(J11,daten!$D$49:$J$84,6,FALSE) -> 2 | E11: =VLOOKUP(J11,daten!$D$49:$K$84,7,FALSE) -> 3 | F11: 2 | G11: =VLOOKUP(J11,ERGEBNISSE!$C$12:$F$47,3,FALSE) -> 1 | H11: =VLOOKUP(J11,ERGEBNISSE!$C$12:$F$47,4,FALSE) -> 0 | I11: 1 | J11: =A4&A11 -> A6 | K11: 3 | L11: 0 | M11: 1 | N11: -1 | O11: 3001.001 | P11: -1 | Q11: 1 | R11: 1 | S11: S2 | T11: N3 | AA11: 6 | AB11: 6#7 | AC11: 7#6 | AD11: =VLOOKUP(AJ11,daten!$D$49:$J$84,6,FALSE) -> 6 | AE11: =VLOOKUP(AJ11,daten!$D$49:$K$84,7,FALSE) -> 7 | AF11: 6 | AG11: =VLOOKUP(AJ11,ERGEBNISSE!$C$12:$F$47,3,FALSE) -> 0 | AH11: =VLOOKUP(AJ11,ERGEBNISSE!$C$12:$F$47,4,FALSE) -> 2 | AI11: 0 | AJ11: =AA4&AA11 -> B6 | AK11: 0 | AL11: 3 | AM11: -2 | AN11: 2 | AO11: -2 | AP11: 3002.002 | AQ11: 1 | AR11: 1 | AS11: N6 | AT11: S7
N13: besserer Rang = mehr Punkte
A14: Modus | C14: TeamIdx | D14: P | E14: Treffer | F14: GTo | G14: Dif | H14: Team | I14: RangPkt | K14: Koeff | M14: Rang | N14: RangPkt | AA14: Modus | AC14: TeamIdx | AD14: P | AE14: Treffer | AF14: GTo | AG14: Dif | AH14: Team | AI14: RangPkt | AK14: Koeff | AM14: Rang | AN14: RangPkt
A15: 1 | C15: 1 | D15: =SUMIF($D$6:$E$11,"="&C15,$K$6:$L$11) -> 0 | E15: =SUMIF($D$6:$E$11,"="&$C15,$G$6:$H$11) -> 1 | F15: =E15-G15 -> 8 | G15: =SUMIF($D$6:$E$11,"="&$C15,$G$6:$H$11)-SUMIF($D$6:$E$11,"="&$C15,$H$6:$I$11) -> -7 | H15: =INDEX(teams_k,C15) -> TUR | I15: =RANK(D15,$D$15:$D$18,1) -> 1 | L15: 1 | M15: =INDEX(daten!$CM$147:$CM$170,C15) -> 14 | N15: =RANK(M15,$M$15:$M$18) -> 4 | AA15: 1 | AC15: 5 | AD15: =SUMIF($AD$6:$AE$11,"="&AC15,$AK$6:$AL$11) -> 3 | AE15: =SUMIF($AD$6:$AE$11,"="&$AC15,$AG$6:$AH$11) -> 5 | AF15: =AE15-AG15 -> 4 | AG15: =SUMIF($AD$6:$AE$11,"="&$AC15,$AG$6:$AH$11)-SUMIF($AD$6:$AE$11,"="&$AC15,$AH$6:$AI$11) -> 1 | AH15: =INDEX(teams_k,AC15) -> DEN | AI15: =RANK(AD15,$AD$15:$AD$18,1) -> 1 | AL15: 1 | AM15: =INDEX(daten!$CM$147:$CM$170,AC15) -> 6 | AN15: =RANK(AM15,$AM$15:$AM$18) -> 1
C16: 2 | D16: =SUMIF($D$6:$E$11,"="&C16,$K$6:$L$11) -> 9 | E16: =SUMIF($D$6:$E$11,"="&$C16,$G$6:$H$11) -> 7 | F16: =E16-G16 -> 0 | G16: =SUMIF($D$6:$E$11,"="&$C16,$G$6:$H$11)-SUMIF($D$6:$E$11,"="&$C16,$H$6:$I$11) -> 7 | H16: =INDEX(teams_k,C16) -> ITA | I16: =RANK(D16,$D$15:$D$18,1) -> 4 | L16: 2 | M16: =INDEX(daten!$CM$147:$CM$170,C16) -> 22 | N16: =RANK(M16,$M$15:$M$18) -> 3 | AC16: 6 | AD16: =SUMIF($AD$6:$AE$11,"="&AC16,$AK$6:$AL$11) -> 3 | AE16: =SUMIF($AD$6:$AE$11,"="&$AC16,$AG$6:$AH$11) -> 1 | AF16: =AE16-AG16 -> 3 | AG16: =SUMIF($AD$6:$AE$11,"="&$AC16,$AG$6:$AH$11)-SUMIF($AD$6:$AE$11,"="&$AC16,$AH$6:$AI$11) -> -2 | AH16: =INDEX(teams_k,AC16) -> FIN | AI16: =RANK(AD16,$AD$15:$AD$18,1) -> 1 | AL16: 2 | AM16: =INDEX(daten!$CM$147:$CM$170,AC16) -> 2 | AN16: =RANK(AM16,$AM$15:$AM$18) -> 3
C17: 3 | D17: =SUMIF($D$6:$E$11,"="&C17,$K$6:$L$11) -> 4 | E17: =SUMIF($D$6:$E$11,"="&$C17,$G$6:$H$11) -> 3 | F17: =E17-G17 -> 2 | G17: =SUMIF($D$6:$E$11,"="&$C17,$G$6:$H$11)-SUMIF($D$6:$E$11,"="&$C17,$H$6:$I$11) -> 1 | H17: =INDEX(teams_k,C17) -> WAL | I17: =RANK(D17,$D$15:$D$18,1) -> 2 | L17: 3 | M17: =INDEX(daten!$CM$147:$CM$170,C17) -> 24 | N17: =RANK(M17,$M$15:$M$18) -> 1 | AC17: 7 | AD17: =SUMIF($AD$6:$AE$11,"="&AC17,$AK$6:$AL$11) -> 9 | AE17: =SUMIF($AD$6:$AE$11,"="&$AC17,$AG$6:$AH$11) -> 7 | AF17: =AE17-AG17 -> 1 | AG17: =SUMIF($AD$6:$AE$11,"="&$AC17,$AG$6:$AH$11)-SUMIF($AD$6:$AE$11,"="&$AC17,$AH$6:$AI$11) -> 6 | AH17: =INDEX(teams_k,AC17) -> BEL | AI17: =RANK(AD17,$AD$15:$AD$18,1) -> 4 | AL17: 3 | AM17: =INDEX(daten!$CM$147:$CM$170,AC17) -> 2 | AN17: =RANK(AM17,$AM$15:$AM$18) -> 3
C18: 4 | D18: =SUMIF($D$6:$E$11,"="&C18,$K$6:$L$11) -> 4 | E18: =SUMIF($D$6:$E$11,"="&$C18,$G$6:$H$11) -> 4 | F18: =E18-G18 -> 5 | G18: =SUMIF($D$6:$E$11,"="&$C18,$G$6:$H$11)-SUMIF($D$6:$E$11,"="&$C18,$H$6:$I$11) -> -1 | H18: =INDEX(teams_k,C18) -> SUI | I18: =RANK(D18,$D$15:$D$18,1) -> 2 | L18: 4 | M18: =INDEX(daten!$CM$147:$CM$170,C18) -> 23 | N18: =RANK(M18,$M$15:$M$18) -> 2 | AC18: 8 | AD18: =SUMIF($AD$6:$AE$11,"="&AC18,$AK$6:$AL$11) -> 3 | AE18: =SUMIF($AD$6:$AE$11,"="&$AC18,$AG$6:$AH$11) -> 2 | AF18: =AE18-AG18 -> 7 | AG18: =SUMIF($AD$6:$AE$11,"="&$AC18,$AG$6:$AH$11)-SUMIF($AD$6:$AE$11,"="&$AC18,$AH$6:$AI$11) -> -5 | AH18: =INDEX(teams_k,AC18) -> RUS | AI18: =RANK(AD18,$AD$15:$AD$18,1) -> 1 | AL18: 4 | AM18: =INDEX(daten!$CM$147:$CM$170,AC18) -> 6 | AN18: =RANK(AM18,$AM$15:$AM$18) -> 1
B20: DV1 | D20: =B22 -> 1 | E20: =B23 -> 2 | F20: =B24 -> 3 | G20: =B25 -> 4 | AB20: DV1 | AD20: =AB22 -> 5 | AE20: =AB23 -> 6 | AF20: =AB24 -> 7 | AG20: =AB25 -> 8
B21: TeamIndex | C21: Nr | D21: =C22 -> 1 | E21: =C23 -> 2 | F21: =C24 -> 3 | G21: =C25 -> 4 | I21: RangPkt. | K21: Siege | AB21: TeamIndex | AC21: Nr | AD21: =AC22 -> 1 | AE21: =AC23 -> 2 | AF21: =AC24 -> 3 | AG21: =AC25 -> 4 | AI21: RangPkt. | AK21: Siege
B22: =INDEX($C$15:$C$18,C22) -> 1 | C22: 1 | D22: =IF(INDEX($I$15:$I$18,$C22)<>INDEX($I$15:$I$18,D$21),0,SUMIF($B$6:$C$11,"="&$B22&"#"&D$20,$O$6:$P$11)) -> 0 | E22: 0 | F22: 0 | G22: 0 | H22: =SUM(D22:G22) -> 0 | I22: =RANK(H22,$H$22:$H$25,1) -> 1 | K22: =COUNTIF(S6:T11,"S"&B22) -> 0 | AB22: =INDEX($AC$15:$AC$18,AC22) -> 5 | AC22: 1 | AD22: =IF(INDEX($AI$15:$AI$18,$AC22)<>INDEX($AI$15:$AI$18,AD$21),0,SUMIF($AB$6:$AC$11,"="&$AB22&"#"&AD$20,$AO$6:$AP$11)) -> 0 | AE22: -1 | AF22: 0 | AG22: 3003.004 | AH22: =SUM(AD22:AG22) -> 3002.004 | AI22: =RANK(AH22,$AH$22:$AH$25,1) -> 4 | AK22: =COUNTIF(AS6:AT11,"S"&AB22) -> 1
B23: =INDEX($C$15:$C$18,C23) -> 2 | C23: 2 | D23: 0 | E23: 0 | F23: 0 | G23: 0 | H23: =SUM(D23:G23) -> 0 | I23: =RANK(H23,$H$22:$H$25,1) -> 1 | K23: =COUNTIF(S6:T11,"S"&B23) -> 3 | AB23: =INDEX($AC$15:$AC$18,AC23) -> 6 | AC23: 2 | AD23: 3001.001 | AE23: 0 | AF23: 0 | AG23: -1 | AH23: =SUM(AD23:AG23) -> 3000.001 | AI23: =RANK(AH23,$AH$22:$AH$25,1) -> 3 | AK23: =COUNTIF(AS6:AT11,"S"&AB23) -> 1
B24: =INDEX($C$15:$C$18,C24) -> 3 | C24: 3 | D24: 0 | E24: 0 | F24: 0 | G24: 1000.001 | H24: =SUM(D24:G24) -> 1000.001 | I24: =RANK(H24,$H$22:$H$25,1) -> 3 | K24: =COUNTIF(S6:T11,"S"&B24) -> 1 | AB24: =INDEX($AC$15:$AC$18,AC24) -> 7 | AC24: 3 | AD24: 0 | AE24: 0 | AF24: 0 | AG24: 0 | AH24: =SUM(AD24:AG24) -> 0 | AI24: =RANK(AH24,$AH$22:$AH$25,1) -> 1 | AK24: =COUNTIF(AS6:AT11,"S"&AB24) -> 3
B25: =INDEX($C$15:$C$18,C25) -> 4 | C25: 4 | D25: 0 | E25: 0 | F25: 1000.001 | G25: 0 | H25: =SUM(D25:G25) -> 1000.001 | I25: =RANK(H25,$H$22:$H$25,1) -> 3 | K25: =COUNTIF(S6:T11,"S"&B25) -> 1 | AB25: =INDEX($AC$15:$AC$18,AC25) -> 8 | AC25: 4 | AD25: -2.999 | AE25: 3001.001 | AF25: 0 | AG25: 0 | AH25: =SUM(AD25:AG25) -> 2998.002 | AI25: =RANK(AH25,$AH$22:$AH$25,1) -> 2 | AK25: =COUNTIF(AS6:AT11,"S"&AB25) -> 1
B27: DV2 | C27: Nr | D27: =C28 -> 1 | E27: =C29 -> 2 | F27: =C30 -> 3 | G27: =C31 -> 4 | I27: RangPkt. | AB27: DV2 | AC27: Nr | AD27: =AC28 -> 1 | AE27: =AC29 -> 2 | AF27: =AC30 -> 3 | AG27: =AC31 -> 4 | AI27: RangPkt.
B28: =B22 -> 1 | C28: 1 | D28: =IF(D22=0,0,IF(INDEX($I$22:$I$25,$C22)<>INDEX($I$22:$I$25,D$21),0,SUMIF($B$6:$C$11,"="&$B22&"#"&D$20,$K$6:$L$11)*1000+SUMIF($B$6:$C$11,"="&$B22&"#"&D$20,$M$6:$N$11)+SUMIF($B$6:$C$11,"="&$B22&"#"&D$20,$G$6:$H$11)/1000)) -> 0 | E28: 0 | F28: 0 | G28: 0 | H28: =SUM(D28:G28) -> 0 | I28: =RANK(H28,$H$28:$H$31,1) -> 1 | AB28: =AB22 -> 5 | AC28: 1 | AD28: =IF(AD22=0,0,IF(INDEX($AI$22:$AI$25,$AC22)<>INDEX($AI$22:$AI$25,AD$21),0,SUMIF($AB$6:$AC$11,"="&$AB22&"#"&AD$20,$AK$6:$AL$11)*1000+SUMIF($AB$6:$AC$11,"="&$AB22&"#"&AD$20,$AM$6:$AN$11)+SUMIF($AB$6:$AC$11,"="&$AB22&"#"&AD$20,$AG$6:$AH$11)/1000)) -> 0 | AE28: 0 | AF28: 0 | AG28: 0 | AH28: =SUM(AD28:AG28) -> 0 | AI28: =RANK(AH28,$AH$28:$AH$31,1) -> 1
B29: =B23 -> 2 | C29: 2 | D29: 0 | E29: 0 | F29: 0 | G29: 0 | H29: =SUM(D29:G29) -> 0 | I29: =RANK(H29,$H$28:$H$31,1) -> 1 | AB29: =AB23 -> 6 | AC29: 2 | AD29: 0 | AE29: 0 | AF29: 0 | AG29: 0 | AH29: =SUM(AD29:AG29) -> 0 | AI29: =RANK(AH29,$AH$28:$AH$31,1) -> 1
B30: =B24 -> 3 | C30: 3 | D30: 0 | E30: 0 | F30: 0 | G30: 1000.001 | H30: =SUM(D30:G30) -> 1000.001 | I30: =RANK(H30,$H$28:$H$31,1) -> 3 | AB30: =AB24 -> 7 | AC30: 3 | AD30: 0 | AE30: 0 | AF30: 0 | AG30: 0 | AH30: =SUM(AD30:AG30) -> 0 | AI30: =RANK(AH30,$AH$28:$AH$31,1) -> 1
B31: =B25 -> 4 | C31: 4 | D31: 0 | E31: 0 | F31: 1000.001 | G31: 0 | H31: =SUM(D31:G31) -> 1000.001 | I31: =RANK(H31,$H$28:$H$31,1) -> 3 | AB31: =AB25 -> 8 | AC31: 4 | AD31: 0 | AE31: 0 | AF31: 0 | AG31: 0 | AH31: =SUM(AD31:AG31) -> 0 | AI31: =RANK(AH31,$AH$28:$AH$31,1) -> 1
C33: Nr | D33: RangPkt | H33: RangPkt | AC33: Nr | AD33: RangPkt | AH33: RangPkt
B34: Diff | C34: 1 | D34: =RANK(G15,$G$15:$G$18,1) -> 1 | F34: Tore | G34: 1 | H34: =RANK(E15,$E$15:$E$18,1) -> 1 | AB34: Diff | AC34: 1 | AD34: =RANK(AG15,$AG$15:$AG$18,1) -> 3 | AF34: Tore | AG34: 1 | AH34: =RANK(AE15,$AE$15:$AE$18,1) -> 3
C35: 2 | D35: =RANK(G16,$G$15:$G$18,1) -> 4 | G35: 2 | H35: =RANK(E16,$E$15:$E$18,1) -> 4 | AC35: 2 | AD35: =RANK(AG16,$AG$15:$AG$18,1) -> 2 | AG35: 2 | AH35: =RANK(AE16,$AE$15:$AE$18,1) -> 1
C36: 3 | D36: =RANK(G17,$G$15:$G$18,1) -> 3 | G36: 3 | H36: =RANK(E17,$E$15:$E$18,1) -> 2 | AC36: 3 | AD36: =RANK(AG17,$AG$15:$AG$18,1) -> 4 | AG36: 3 | AH36: =RANK(AE17,$AE$15:$AE$18,1) -> 4
C37: 4 | D37: =RANK(G18,$G$15:$G$18,1) -> 2 | G37: 4 | H37: =RANK(E18,$E$15:$E$18,1) -> 3 | AC37: 4 | AD37: =RANK(AG18,$AG$15:$AG$18,1) -> 1 | AG37: 4 | AH37: =RANK(AE18,$AE$15:$AE$18,1) -> 2
I39: Modus | AI39: Modus
C40: Nr | E40: RangPkt | F40: Rang | H40: Wertigkeit | I40: 1 | J40: 2 | K40: Faktor | M40: Faktoren | AC40: Nr | AE40: RangPkt | AF40: Rang | AH40: Wertigkeit | AI40: 1 | AJ40: 2 | AK40: Faktor | AM40: Faktoren
B41: Wert | C41: 1 | D41: =I15*$K$41+I22*$K$42+I28*$K$43+D34*$K$44+H34*$K$45 -> 10101010100 | E41: =RANK(D41,$D$41:$D$44,1) -> 1 | F41: =RANK(D41,$D$41:$D$44) -> 4 | H41: Punkte | I41: 1 | J41: 1 | K41: =INDEX(N41:N48,INDEX(I41:J41,A15)) -> 10000000000 | M41: 1 | N41: 10000000000 | AB41: Wert | AC41: 1 | AD41: =AI15*$AK$41+AI22*$AK$42+AI28*$AK$43+AD34*$AK$44+AH34*$AK$45 -> 10401030300 | AE41: =RANK(AD41,$AD$41:$AD$44,1) -> 3 | AF41: =RANK(AD41,$AD$41:$AD$44) -> 2 | AH41: Punkte | AI41: 1 | AJ41: 1 | AK41: =INDEX(AN41:AN48,INDEX(AI41:AJ41,AA15)) -> 10000000000 | AM41: 1 | AN41: 10000000000
C42: 2 | D42: =I16*$K$41+I23*$K$42+I29*$K$43+D35*$K$44+H35*$K$45 -> 40101040400 | E42: =RANK(D42,$D$41:$D$44,1) -> 4 | F42: =RANK(D42,$D$41:$D$44) -> 1 | H42: DV1 | I42: 2 | J42: 4 | K42: =INDEX(N41:N48,INDEX(I42:J42,A15)) -> 100000000 | M42: 2 | N42: 100000000 | AC42: 2 | AD42: =AI16*$AK$41+AI23*$AK$42+AI29*$AK$43+AD35*$AK$44+AH35*$AK$45 -> 10301020100 | AE42: =RANK(AD42,$AD$41:$AD$44,1) -> 2 | AF42: =RANK(AD42,$AD$41:$AD$44) -> 3 | AH42: DV1 | AI42: 2 | AJ42: 4 | AK42: =INDEX(AN41:AN48,INDEX(AI42:AJ42,AA15)) -> 100000000 | AM42: 2 | AN42: 100000000
C43: 3 | D43: =I17*$K$41+I24*$K$42+I30*$K$43+D36*$K$44+H36*$K$45 -> 20303030200 | E43: =RANK(D43,$D$41:$D$44,1) -> 3 | F43: =RANK(D43,$D$41:$D$44) -> 2 | H43: DV2 | I43: 3 | J43: 5 | K43: =INDEX(N41:N48,INDEX(I43:J43,A15)) -> 1000000 | M43: 3 | N43: 1000000 | AC43: 3 | AD43: =AI17*$AK$41+AI24*$AK$42+AI30*$AK$43+AD36*$AK$44+AH36*$AK$45 -> 40101040400 | AE43: =RANK(AD43,$AD$41:$AD$44,1) -> 4 | AF43: =RANK(AD43,$AD$41:$AD$44) -> 1 | AH43: DV2 | AI43: 3 | AJ43: 5 | AK43: =INDEX(AN41:AN48,INDEX(AI43:AJ43,AA15)) -> 1000000 | AM43: 3 | AN43: 1000000
C44: 4 | D44: =I18*$K$41+I25*$K$42+I31*$K$43+D37*$K$44+H37*$K$45 -> 20303020300 | E44: =RANK(D44,$D$41:$D$44,1) -> 2 | F44: =RANK(D44,$D$41:$D$44) -> 3 | H44: TD alle | I44: 4 | J44: 2 | K44: =INDEX(N41:N48,INDEX(I44:J44,A15)) -> 10000 | M44: 4 | N44: 10000 | AC44: 4 | AD44: =AI18*$AK$41+AI25*$AK$42+AI31*$AK$43+AD37*$AK$44+AH37*$AK$45 -> 10201010200 | AE44: =RANK(AD44,$AD$41:$AD$44,1) -> 1 | AF44: =RANK(AD44,$AD$41:$AD$44) -> 4 | AH44: TD alle | AI44: 4 | AJ44: 2 | AK44: =INDEX(AN41:AN48,INDEX(AI44:AJ44,AA15)) -> 10000 | AM44: 4 | AN44: 10000
H45: Tore alle | I45: 5 | J45: 3 | K45: =INDEX(N41:N48,INDEX(I45:J45,A15)) -> 100 | M45: 5 | N45: 100 | AH45: Tore alle | AI45: 5 | AJ45: 3 | AK45: =INDEX(AN41:AN48,INDEX(AI45:AJ45,AA15)) -> 100 | AM45: 5 | AN45: 100
H46: EMS | I46: 6 | J46: 6 | K46: =INDEX(N41:N48,INDEX(I46:J46,A15)) -> 1 | M46: 6 | N46: 1 | AH46: EMS | AI46: 6 | AJ46: 6 | AK46: =INDEX(AN41:AN48,INDEX(AI46:AJ46,AA15)) -> 1 | AM46: 6 | AN46: 1
H47: FP | I47: 8 | J47: 7 | K47: =INDEX(N41:N48,INDEX(I47:J47,A15)) -> 0.0001 | M47: 7 | N47: =1/100 -> 0.01 | AH47: FP | AI47: 8 | AJ47: 7 | AK47: =INDEX(AN41:AN48,INDEX(AI47:AJ47,AA15)) -> 0.0001 | AM47: 7 | AN47: =1/100 -> 0.01
H48: Anzahl Siege Alle | I48: 7 | J48: 8 | K48: =INDEX(N41:N48,INDEX(I48:J48,A15)) -> 0.01 | M48: 8 | N48: =1/10000 -> 0.0001 | AH48: Anzahl Siege Alle | AI48: 7 | AJ48: 8 | AK48: =INDEX(AN41:AN48,INDEX(AI48:AJ48,AA15)) -> 0.01 | AM48: 8 | AN48: =1/10000 -> 0.0001
C64: Rangpkt inkl. EMS und Koeff | AC64: Rangpkt inkl. EMS und Koeff
C65: Nr. | D65: RangPkt | E65: Rang | F65: Rang korr | AC65: Nr. | AD65: RangPkt | AE65: Rang | AF65: Rang korr
B66: Wert | C66: 1 | D66: =E41*1000+SUMIF($D$266:$E$277,"="&C15,$P$266:$Q$277)*$K$46+N15*$K$47+K22*$K$48 -> 1000.0004 | E66: =RANK(D66,$D$66:$D$69) -> 4 | F66: =E66+COUNTIF(E$65:E65,"="&E66) -> 4 | AB66: Wert | AC66: 1 | AD66: =AE41*1000+SUMIF($D$266:$E$277,"="&AC15,$P$266:$Q$277)*$K$46+AN15*$K$47+AK22*$K$48 -> 3000.0101 | AE66: =RANK(AD66,$AD$66:$AD$69) -> 2 | AF66: =AE66+COUNTIF(AE$65:AE65,"="&AE66) -> 2
C67: 2 | D67: =E42*1000+SUMIF($D$266:$E$277,"="&C16,$P$266:$Q$277)*$K$46+N16*$K$47+K23*$K$48 -> 4000.0303 | E67: =RANK(D67,$D$66:$D$69) -> 1 | F67: =E67+COUNTIF(E$65:E66,"="&E67) -> 1 | AC67: 2 | AD67: =AE42*1000+SUMIF($D$266:$E$277,"="&AC16,$P$266:$Q$277)*$K$46+AN16*$K$47+AK23*$K$48 -> 2000.0103 | AE67: =RANK(AD67,$AD$66:$AD$69) -> 3 | AF67: =AE67+COUNTIF(AE$65:AE66,"="&AE67) -> 3
C68: 3 | D68: =E43*1000+SUMIF($D$266:$E$277,"="&C17,$P$266:$Q$277)*$K$46+N17*$K$47+K24*$K$48 -> 3000.0101 | E68: =RANK(D68,$D$66:$D$69) -> 2 | F68: =E68+COUNTIF(E$65:E67,"="&E68) -> 2 | AC68: 3 | AD68: =AE43*1000+SUMIF($D$266:$E$277,"="&AC17,$P$266:$Q$277)*$K$46+AN17*$K$47+AK24*$K$48 -> 4000.0303 | AE68: =RANK(AD68,$AD$66:$AD$69) -> 1 | AF68: =AE68+COUNTIF(AE$65:AE67,"="&AE68) -> 1
C69: 4 | D69: =E44*1000+SUMIF($D$266:$E$277,"="&C18,$P$266:$Q$277)*$K$46+N18*$K$47+K25*$K$48 -> 2000.0102 | E69: =RANK(D69,$D$66:$D$69) -> 3 | F69: =E69+COUNTIF(E$65:E68,"="&E69) -> 3 | AC69: 4 | AD69: =AE44*1000+SUMIF($D$266:$E$277,"="&AC18,$P$266:$Q$277)*$K$46+AN18*$K$47+AK25*$K$48 -> 1000.0101 | AE69: =RANK(AD69,$AD$66:$AD$69) -> 4 | AF69: =AE69+COUNTIF(AE$65:AE68,"="&AE69) -> 4
J70: berechnete oder manuelle Tabelle | AJ70: berechnete oder manuelle Tabelle
B71: Tabelle | C71: Rang | D71: Nr | E71: Rang Eff | F71: Manuell | G71: =VLOOKUP(A4,ERGEBNISSE!$BQ$38:$BR$47,2,FALSE) -> FALSE | H71: Nr | J71: Nr korr | AB71: Tabelle | AC71: Rang | AD71: Nr | AE71: Rang Eff | AF71: Manuell | AG71: =VLOOKUP(AA4,ERGEBNISSE!$BQ$38:$BR$47,2,FALSE) -> FALSE | AH71: Nr | AJ71: Nr korr
B72: =INDEX(teams,INDEX(C15:C18,D72)) -> Italien | C72: 1 | D72: =MATCH(C72,$F$66:$F$69,0) -> 2 | E72: =IF(G71,C72,INDEX(E66:E69,D72)) -> 1 | F72: 1 | G72: 1 | H72: =IF(G71,VLOOKUP(A79,ERGEBNISSE!$BR$12:$BT$35,3,FALSE),D72) -> 2 | J72: =IF($G$71,H72,D72) -> 2 | AB72: =INDEX(teams,INDEX(AC15:AC18,AD72)) -> Belgien | AC72: 1 | AD72: =MATCH(AC72,$AF$66:$AF$69,0) -> 3 | AE72: =IF(AG71,AC72,INDEX(AE66:AE69,AD72)) -> 1 | AF72: 1 | AG72: 1 | AH72: =IF(AG71,VLOOKUP(AA79,ERGEBNISSE!$BR$12:$BT$35,3,FALSE),AD72) -> 3 | AJ72: =IF($AG$71,AH72,AD72) -> 3
B73: =INDEX(teams,INDEX(C15:C18,D73)) -> Wales | C73: 2 | D73: =MATCH(C73,$F$66:$F$69,0) -> 3 | E73: =IF(G71,C73,INDEX(E66:E69,D73)) -> 2 | G73: 2 | H73: =IF(G71,VLOOKUP(A80,ERGEBNISSE!$BR$12:$BT$35,3,FALSE),D73) -> 3 | J73: =IF($G$71,H73,D73) -> 3 | AB73: =INDEX(teams,INDEX(AC15:AC18,AD73)) -> Dänemark | AC73: 2 | AD73: =MATCH(AC73,$AF$66:$AF$69,0) -> 1 | AE73: =IF(AG71,AC73,INDEX(AE66:AE69,AD73)) -> 2 | AG73: 2 | AH73: =IF(AG71,VLOOKUP(AA80,ERGEBNISSE!$BR$12:$BT$35,3,FALSE),AD73) -> 1 | AJ73: =IF($AG$71,AH73,AD73) -> 1
B74: =INDEX(teams,INDEX(C15:C18,D74)) -> Schweiz | C74: 3 | D74: =MATCH(C74,$F$66:$F$69,0) -> 4 | E74: =IF(G71,C74,INDEX(E66:E69,D74)) -> 3 | G74: 3 | H74: =IF(G71,VLOOKUP(A81,ERGEBNISSE!$BR$12:$BT$35,3,FALSE),D74) -> 4 | J74: =IF($G$71,H74,D74) -> 4 | AB74: =INDEX(teams,INDEX(AC15:AC18,AD74)) -> Finnland | AC74: 3 | AD74: =MATCH(AC74,$AF$66:$AF$69,0) -> 2 | AE74: =IF(AG71,AC74,INDEX(AE66:AE69,AD74)) -> 3 | AG74: 3 | AH74: =IF(AG71,VLOOKUP(AA81,ERGEBNISSE!$BR$12:$BT$35,3,FALSE),AD74) -> 2 | AJ74: =IF($AG$71,AH74,AD74) -> 2
B75: =INDEX(teams,INDEX(C15:C18,D75)) -> Türkei | C75: 4 | D75: =MATCH(C75,$F$66:$F$69,0) -> 1 | E75: =IF(G71,C75,INDEX(E66:E69,D75)) -> 4 | G75: 4 | H75: =IF(G71,VLOOKUP(A82,ERGEBNISSE!$BR$12:$BT$35,3,FALSE),D75) -> 1 | J75: =IF($G$71,H75,D75) -> 1 | AB75: =INDEX(teams,INDEX(AC15:AC18,AD75)) -> Russland | AC75: 4 | AD75: =MATCH(AC75,$AF$66:$AF$69,0) -> 4 | AE75: =IF(AG71,AC75,INDEX(AE66:AE69,AD75)) -> 4 | AG75: 4 | AH75: =IF(AG71,VLOOKUP(AA82,ERGEBNISSE!$BR$12:$BT$35,3,FALSE),AD75) -> 4 | AJ75: =IF($AG$71,AH75,AD75) -> 4
B78: Tabelle | C78: TeamIndex | D78: Nr | E78: Team | F78: Sp | G78: P | H78: T+ | I78: T- | J78: Diff | K78: S | L78: U | M78: N | AB78: Tabelle | AC78: TeamIndex | AD78: Nr | AE78: Team | AF78: Sp | AG78: P | AH78: T+ | AI78: T- | AJ78: Diff | AK78: S | AL78: U | AM78: N
A79: ="S"&A4 -> SA | B79: 1 | C79: =INDEX($C$15:$C$18,J72) -> 2 | D79: =J72 -> 2 | E79: =INDEX($H$15:$H$18,J72) -> ITA | F79: =SUMIF($D$6:$E$11,"="&$C79,$Q$6:$R$11) -> 3 | G79: =INDEX($D$15:$D$18,$J72) -> 9 | H79: =INDEX($E$15:$E$18,$J72) -> 7 | I79: =INDEX($F$15:$F$18,$J72) -> 0 | J79: =INDEX($G$15:$G$18,$J72) -> 7 | K79: =COUNTIF($S$6:$T$11,"="&K$78&$C79) -> 3 | L79: 0 | M79: 0 | AA79: ="S"&AA4 -> SB | AB79: 1 | AC79: =INDEX($AC$15:$AC$18,AJ72) -> 7 | AD79: =AJ72 -> 3 | AE79: =INDEX($AH$15:$AH$18,AJ72) -> BEL | AF79: =SUMIF($AD$6:$AE$11,"="&$AC79,$AQ$6:$AR$11) -> 3 | AG79: =INDEX($AD$15:$AD$18,$AJ72) -> 9 | AH79: =INDEX($AE$15:$AE$18,$AJ72) -> 7 | AI79: =INDEX($AF$15:$AF$18,$AJ72) -> 1 | AJ79: =INDEX($AG$15:$AG$18,$AJ72) -> 6 | AK79: =COUNTIF($AS$6:$AT$11,"="&AK$78&$AC79) -> 3 | AL79: 0 | AM79: 0
A80: ="Z"&A4 -> ZA | B80: 2 | C80: =INDEX($C$15:$C$18,J73) -> 3 | D80: =J73 -> 3 | E80: =INDEX($H$15:$H$18,J73) -> WAL | F80: =SUMIF($D$6:$E$11,"="&$C80,$Q$6:$R$11) -> 3 | G80: =INDEX($D$15:$D$18,$J73) -> 4 | H80: =INDEX($E$15:$E$18,$J73) -> 3 | I80: =INDEX($F$15:$F$18,$J73) -> 2 | J80: =INDEX($G$15:$G$18,$J73) -> 1 | K80: 1 | L80: 1 | M80: 1 | AA80: ="Z"&AA4 -> ZB | AB80: 2 | AC80: =INDEX($AC$15:$AC$18,AJ73) -> 5 | AD80: =AJ73 -> 1 | AE80: =INDEX($AH$15:$AH$18,AJ73) -> DEN | AF80: =SUMIF($AD$6:$AE$11,"="&$AC80,$AQ$6:$AR$11) -> 3 | AG80: =INDEX($AD$15:$AD$18,$AJ73) -> 3 | AH80: =INDEX($AE$15:$AE$18,$AJ73) -> 5 | AI80: =INDEX($AF$15:$AF$18,$AJ73) -> 4 | AJ80: =INDEX($AG$15:$AG$18,$AJ73) -> 1 | AK80: 1 | AL80: 0 | AM80: 2
A81: ="D"&A4 -> DA | B81: 3 | C81: =INDEX($C$15:$C$18,J74) -> 4 | D81: =J74 -> 4 | E81: =INDEX($H$15:$H$18,J74) -> SUI | F81: =SUMIF($D$6:$E$11,"="&$C81,$Q$6:$R$11) -> 3 | G81: =INDEX($D$15:$D$18,$J74) -> 4 | H81: =INDEX($E$15:$E$18,$J74) -> 4 | I81: =INDEX($F$15:$F$18,$J74) -> 5 | J81: =INDEX($G$15:$G$18,$J74) -> -1 | K81: 1 | L81: 1 | M81: 1 | AA81: ="D"&AA4 -> DB | AB81: 3 | AC81: =INDEX($AC$15:$AC$18,AJ74) -> 6 | AD81: =AJ74 -> 2 | AE81: =INDEX($AH$15:$AH$18,AJ74) -> FIN | AF81: =SUMIF($AD$6:$AE$11,"="&$AC81,$AQ$6:$AR$11) -> 3 | AG81: =INDEX($AD$15:$AD$18,$AJ74) -> 3 | AH81: =INDEX($AE$15:$AE$18,$AJ74) -> 1 | AI81: =INDEX($AF$15:$AF$18,$AJ74) -> 3 | AJ81: =INDEX($AG$15:$AG$18,$AJ74) -> -2 | AK81: 1 | AL81: 0 | AM81: 2
A82: ="V"&A4 -> VA | B82: 4 | C82: =INDEX($C$15:$C$18,J75) -> 1 | D82: =J75 -> 1 | E82: =INDEX($H$15:$H$18,J75) -> TUR | F82: =SUMIF($D$6:$E$11,"="&$C82,$Q$6:$R$11) -> 3 | G82: =INDEX($D$15:$D$18,$J75) -> 0 | H82: =INDEX($E$15:$E$18,$J75) -> 1 | I82: =INDEX($F$15:$F$18,$J75) -> 8 | J82: =INDEX($G$15:$G$18,$J75) -> -7 | K82: 0 | L82: 0 | M82: 3 | AA82: ="V"&AA4 -> VB | AB82: 4 | AC82: =INDEX($AC$15:$AC$18,AJ75) -> 8 | AD82: =AJ75 -> 4 | AE82: =INDEX($AH$15:$AH$18,AJ75) -> RUS | AF82: =SUMIF($AD$6:$AE$11,"="&$AC82,$AQ$6:$AR$11) -> 3 | AG82: =INDEX($AD$15:$AD$18,$AJ75) -> 3 | AH82: =INDEX($AE$15:$AE$18,$AJ75) -> 2 | AI82: =INDEX($AF$15:$AF$18,$AJ75) -> 7 | AJ82: =INDEX($AG$15:$AG$18,$AJ75) -> -5 | AK82: 1 | AL82: 0 | AM82: 2
A86: C | B86: Paarungen | G86: Resultat | K86: Punkte | Q86: =SUM(Q88:Q93) -> 6 | AA86: D | AB86: Paarungen | AG86: Resultat | AK86: Punkte | AQ86: =SUM(AQ88:AQ93) -> 6
A87: Nr | D87: HT | E87: AT | F87: HT2 | G87: ErgH | H87: ErgA | I87: ErgH2 | K87: PH | L87: PA | M87: DifH | N87: DifA | O87: WertH | P87: WertA | Q87: Spiele | S87: Resultat | AA87: Nr | AD87: HT | AE87: AT | AF87: HT2 | AG87: ErgH | AH87: ErgA | AI87: ErgH2 | AK87: PH | AL87: PA | AM87: DifH | AN87: DifA | AO87: WertH | AP87: WertA | AQ87: Spiele | AS87: Resultat
A88: 1 | B88: =D88&"#"&E88 -> 11#12 | C88: =E88&"#"&D88 -> 12#11 | D88: =VLOOKUP(J88,daten!$D$49:$J$84,6,FALSE) -> 11 | E88: =VLOOKUP(J88,daten!$D$49:$K$84,7,FALSE) -> 12 | F88: =D88 -> 11 | G88: =VLOOKUP(J88,ERGEBNISSE!$C$12:$F$47,3,FALSE) -> 3 | H88: =VLOOKUP(J88,ERGEBNISSE!$C$12:$F$47,4,FALSE) -> 1 | I88: =IF(LEN(G88)>0,G88,"") -> 3 | J88: =A86&A88 -> C1 | K88: =IF(COUNT(G88:H88)<>2,0,IF(G88>H88,3,IF(H88>G88,0,1))) -> 3 | L88: =IF(COUNT(G88:H88)<>2,0,IF(G88>H88,0,IF(H88>G88,3,1))) -> 0 | M88: =IF(COUNT(G88:H88)<>2,0,G88-H88) -> 2 | N88: =IF(COUNT(G88:H88)<>2,0,H88-I88) -> -2 | O88: =K88*1000+M88+IF(LEN(G88)=0,0,G88/1000) -> 3002.003 | P88: -1.999 | Q88: =IF(COUNT(G88:H88)=2,1,0) -> 1 | R88: =Q88 -> 1 | S88: =IF(Q88=0,"X",IF(K88=3,"S",IF(K88=0,"N","U")))&D88 -> S11 | T88: N12 | AA88: 1 | AB88: =AD88&"#"&AE88 -> 13#14 | AC88: =AE88&"#"&AD88 -> 14#13 | AD88: =VLOOKUP(AJ88,daten!$D$49:$J$84,6,FALSE) -> 13 | AE88: =VLOOKUP(AJ88,daten!$D$49:$K$84,7,FALSE) -> 14 | AF88: =AD88 -> 13 | AG88: =VLOOKUP(AJ88,ERGEBNISSE!$C$12:$F$47,3,FALSE) -> 1 | AH88: =VLOOKUP(AJ88,ERGEBNISSE!$C$12:$F$47,4,FALSE) -> 0 | AI88: =IF(LEN(AG88)>0,AG88,"") -> 1 | AJ88: =AA86&AA88 -> D1 | AK88: =IF(COUNT(AG88:AH88)<>2,0,IF(AG88>AH88,3,IF(AH88>AG88,0,1))) -> 3 | AL88: =IF(COUNT(AG88:AH88)<>2,0,IF(AG88>AH88,0,IF(AH88>AG88,3,1))) -> 0 | AM88: =IF(COUNT(AG88:AH88)<>2,0,AG88-AH88) -> 1 | AN88: =IF(COUNT(AG88:AH88)<>2,0,AH88-AI88) -> -1 | AO88: =AK88*1000+AM88+IF(LEN(AG88)=0,0,AG88/1000) -> 3001.001 | AP88: -1 | AQ88: =IF(COUNT(AG88:AH88)=2,1,0) -> 1 | AR88: =AQ88 -> 1 | AS88: =IF(AQ88=0,"X",IF(AK88=3,"S",IF(AK88=0,"N","U")))&AD88 -> S13 | AT88: N14
A89: 2 | B89: 9#10 | C89: 10#9 | D89: =VLOOKUP(J89,daten!$D$49:$J$84,6,FALSE) -> 9 | E89: =VLOOKUP(J89,daten!$D$49:$K$84,7,FALSE) -> 10 | F89: 9 | G89: =VLOOKUP(J89,ERGEBNISSE!$C$12:$F$47,3,FALSE) -> 3 | H89: =VLOOKUP(J89,ERGEBNISSE!$C$12:$F$47,4,FALSE) -> 2 | I89: 3 | J89: =A86&A89 -> C2 | K89: 3 | L89: 0 | M89: 1 | N89: -1 | O89: 3001.003 | P89: -0.998 | Q89: 1 | R89: 1 | S89: S9 | T89: N10 | AA89: 2 | AB89: 15#16 | AC89: 16#15 | AD89: =VLOOKUP(AJ89,daten!$D$49:$J$84,6,FALSE) -> 15 | AE89: =VLOOKUP(AJ89,daten!$D$49:$K$84,7,FALSE) -> 16 | AF89: 15 | AG89: =VLOOKUP(AJ89,ERGEBNISSE!$C$12:$F$47,3,FALSE) -> 0 | AH89: =VLOOKUP(AJ89,ERGEBNISSE!$C$12:$F$47,4,FALSE) -> 2 | AI89: 0 | AJ89: =AA86&AA89 -> D2 | AK89: 0 | AL89: 3 | AM89: -2 | AN89: 2 | AO89: -2 | AP89: 3002.002 | AQ89: 1 | AR89: 1 | AS89: N15 | AT89: S16
A90: 3 | B90: 10#12 | C90: 12#10 | D90: =VLOOKUP(J90,daten!$D$49:$J$84,6,FALSE) -> 10 | E90: =VLOOKUP(J90,daten!$D$49:$K$84,7,FALSE) -> 12 | F90: 10 | G90: =VLOOKUP(J90,ERGEBNISSE!$C$12:$F$47,3,FALSE) -> 2 | H90: =VLOOKUP(J90,ERGEBNISSE!$C$12:$F$47,4,FALSE) -> 1 | I90: 2 | J90: =A86&A90 -> C3 | K90: 3 | L90: 0 | M90: 1 | N90: -1 | O90: 3001.002 | P90: -0.999 | Q90: 1 | R90: 1 | S90: S10 | T90: N12 | AA90: 3 | AB90: 14#16 | AC90: 16#14 | AD90: =VLOOKUP(AJ90,daten!$D$49:$J$84,6,FALSE) -> 14 | AE90: =VLOOKUP(AJ90,daten!$D$49:$K$84,7,FALSE) -> 16 | AF90: 14 | AG90: =VLOOKUP(AJ90,ERGEBNISSE!$C$12:$F$47,3,FALSE) -> 1 | AH90: =VLOOKUP(AJ90,ERGEBNISSE!$C$12:$F$47,4,FALSE) -> 1 | AI90: 1 | AJ90: =AA86&AA90 -> D3 | AK90: 1 | AL90: 1 | AM90: 0 | AN90: 0 | AO90: 1000.001 | AP90: 1000.001 | AQ90: 1 | AR90: 1 | AS90: U14 | AT90: U16
A91: 4 | B91: 9#11 | C91: 11#9 | D91: =VLOOKUP(J91,daten!$D$49:$J$84,6,FALSE) -> 9 | E91: =VLOOKUP(J91,daten!$D$49:$K$84,7,FALSE) -> 11 | F91: 9 | G91: =VLOOKUP(J91,ERGEBNISSE!$C$12:$F$47,3,FALSE) -> 2 | H91: =VLOOKUP(J91,ERGEBNISSE!$C$12:$F$47,4,FALSE) -> 0 | I91: 2 | J91: =A86&A91 -> C4 | K91: 3 | L91: 0 | M91: 2 | N91: -2 | O91: 3002.002 | P91: -2 | Q91: 1 | R91: 1 | S91: S9 | T91: N11 | AA91: 4 | AB91: 13#15 | AC91: 15#13 | AD91: =VLOOKUP(AJ91,daten!$D$49:$J$84,6,FALSE) -> 13 | AE91: =VLOOKUP(AJ91,daten!$D$49:$K$84,7,FALSE) -> 15 | AF91: 13 | AG91: =VLOOKUP(AJ91,ERGEBNISSE!$C$12:$F$47,3,FALSE) -> 0 | AH91: =VLOOKUP(AJ91,ERGEBNISSE!$C$12:$F$47,4,FALSE) -> 0 | AI91: 0 | AJ91: =AA86&AA91 -> D4 | AK91: 1 | AL91: 1 | AM91: 0 | AN91: 0 | AO91: 1000 | AP91: 1000 | AQ91: 1 | AR91: 1 | AS91: U13 | AT91: U15
A92: 5 | B92: 12#9 | C92: 9#12 | D92: =VLOOKUP(J92,daten!$D$49:$J$84,6,FALSE) -> 12 | E92: =VLOOKUP(J92,daten!$D$49:$K$84,7,FALSE) -> 9 | F92: 12 | G92: =VLOOKUP(J92,ERGEBNISSE!$C$12:$F$47,3,FALSE) -> 0 | H92: =VLOOKUP(J92,ERGEBNISSE!$C$12:$F$47,4,FALSE) -> 3 | I92: 0 | J92: =A86&A92 -> C5 | K92: 0 | L92: 3 | M92: -3 | N92: 3 | O92: -3 | P92: 3003.003 | Q92: 1 | R92: 1 | S92: N12 | T92: S9 | AA92: 5 | AB92: 14#15 | AC92: 15#14 | AD92: =VLOOKUP(AJ92,daten!$D$49:$J$84,6,FALSE) -> 14 | AE92: =VLOOKUP(AJ92,daten!$D$49:$K$84,7,FALSE) -> 15 | AF92: 14 | AG92: =VLOOKUP(AJ92,ERGEBNISSE!$C$12:$F$47,3,FALSE) -> 3 | AH92: =VLOOKUP(AJ92,ERGEBNISSE!$C$12:$F$47,4,FALSE) -> 1 | AI92: 3 | AJ92: =AA86&AA92 -> D5 | AK92: 3 | AL92: 0 | AM92: 2 | AN92: -2 | AO92: 3002.003 | AP92: -1.999 | AQ92: 1 | AR92: 1 | AS92: S14 | AT92: N15
A93: 6 | B93: 10#11 | C93: 11#10 | D93: =VLOOKUP(J93,daten!$D$49:$J$84,6,FALSE) -> 10 | E93: =VLOOKUP(J93,daten!$D$49:$K$84,7,FALSE) -> 11 | F93: 10 | G93: =VLOOKUP(J93,ERGEBNISSE!$C$12:$F$47,3,FALSE) -> 0 | H93: =VLOOKUP(J93,ERGEBNISSE!$C$12:$F$47,4,FALSE) -> 1 | I93: 0 | J93: =A86&A93 -> C6 | K93: 0 | L93: 3 | M93: -1 | N93: 1 | O93: -1 | P93: 3001.001 | Q93: 1 | R93: 1 | S93: N10 | T93: S11 | AA93: 6 | AB93: 16#13 | AC93: 13#16 | AD93: =VLOOKUP(AJ93,daten!$D$49:$J$84,6,FALSE) -> 16 | AE93: =VLOOKUP(AJ93,daten!$D$49:$K$84,7,FALSE) -> 13 | AF93: 16 | AG93: =VLOOKUP(AJ93,ERGEBNISSE!$C$12:$F$47,3,FALSE) -> 0 | AH93: =VLOOKUP(AJ93,ERGEBNISSE!$C$12:$F$47,4,FALSE) -> 1 | AI93: 0 | AJ93: =AA86&AA93 -> D6 | AK93: 0 | AL93: 3 | AM93: -1 | AN93: 1 | AO93: -1 | AP93: 3001.001 | AQ93: 1 | AR93: 1 | AS93: N16 | AT93: S13
A96: Modus | C96: TeamIdx | D96: P | E96: Treffer | F96: GTo | G96: Dif | H96: Team | I96: RangPkt | K96: Koeff | M96: Rang | N96: RangPkt | AA96: Modus | AC96: TeamIdx | AD96: P | AE96: Treffer | AF96: GTo | AG96: Dif | AH96: Team | AI96: RangPkt | AK96: Koeff | AM96: Rang | AN96: RangPkt
A97: 1 | C97: 9 | D97: =SUMIF($D$88:$E$93,"="&C97,$K$88:$L$93) -> 9 | E97: =SUMIF($D$88:$E$93,"="&$C97,$G$88:$H$93) -> 8 | F97: =E97-G97 -> 2 | G97: =SUMIF($D$88:$E$93,"="&$C97,$G$88:$H$93)-SUMIF($D$88:$E$93,"="&$C97,$H$88:$I$93) -> 6 | H97: =INDEX(teams_k,C97) -> NED | I97: =RANK(D97,$D$97:$D$100,1) -> 4 | L97: 1 | M97: =INDEX(daten!$CM$147:$CM$170,C97) -> 8 | N97: =RANK(M97,$M$97:$M$100) -> 2 | AA97: 1 | AC97: 13 | AD97: =SUMIF($AD$88:$AE$93,"="&AC97,$AK$88:$AL$93) -> 7 | AE97: =SUMIF($AD$88:$AE$93,"="&$AC97,$AG$88:$AH$93) -> 2 | AF97: =AE97-AG97 -> 0 | AG97: =SUMIF($AD$88:$AE$93,"="&$AC97,$AG$88:$AH$93)-SUMIF($AD$88:$AE$93,"="&$AC97,$AH$88:$AI$93) -> 2 | AH97: =INDEX(teams_k,AC97) -> ENG | AI97: =RANK(AD97,$AD$97:$AD$100,1) -> 4 | AL97: 1 | AM97: =INDEX(daten!$CM$147:$CM$170,AC97) -> 8 | AN97: =RANK(AM97,$AM$97:$AM$100) -> 3
C98: 10 | D98: =SUMIF($D$88:$E$93,"="&C98,$K$88:$L$93) -> 3 | E98: =SUMIF($D$88:$E$93,"="&$C98,$G$88:$H$93) -> 4 | F98: =E98-G98 -> 5 | G98: =SUMIF($D$88:$E$93,"="&$C98,$G$88:$H$93)-SUMIF($D$88:$E$93,"="&$C98,$H$88:$I$93) -> -1 | H98: =INDEX(teams_k,C98) -> UKR | I98: =RANK(D98,$D$97:$D$100,1) -> 2 | L98: 2 | M98: =INDEX(daten!$CM$147:$CM$170,C98) -> 2 | N98: =RANK(M98,$M$97:$M$100) -> 4 | AC98: 14 | AD98: =SUMIF($AD$88:$AE$93,"="&AC98,$AK$88:$AL$93) -> 4 | AE98: =SUMIF($AD$88:$AE$93,"="&$AC98,$AG$88:$AH$93) -> 4 | AF98: =AE98-AG98 -> 3 | AG98: =SUMIF($AD$88:$AE$93,"="&$AC98,$AG$88:$AH$93)-SUMIF($AD$88:$AE$93,"="&$AC98,$AH$88:$AI$93) -> 1 | AH98: =INDEX(teams_k,AC98) -> CRO | AI98: =RANK(AD98,$AD$97:$AD$100,1) -> 2 | AL98: 2 | AM98: =INDEX(daten!$CM$147:$CM$170,AC98) -> 14 | AN98: =RANK(AM98,$AM$97:$AM$100) -> 1
C99: 11 | D99: =SUMIF($D$88:$E$93,"="&C99,$K$88:$L$93) -> 6 | E99: =SUMIF($D$88:$E$93,"="&$C99,$G$88:$H$93) -> 4 | F99: =E99-G99 -> 3 | G99: =SUMIF($D$88:$E$93,"="&$C99,$G$88:$H$93)-SUMIF($D$88:$E$93,"="&$C99,$H$88:$I$93) -> 1 | H99: =INDEX(teams_k,C99) -> AUT | I99: =RANK(D99,$D$97:$D$100,1) -> 3 | L99: 3 | M99: =INDEX(daten!$CM$147:$CM$170,C99) -> 8 | N99: =RANK(M99,$M$97:$M$100) -> 2 | AC99: 15 | AD99: =SUMIF($AD$88:$AE$93,"="&AC99,$AK$88:$AL$93) -> 1 | AE99: =SUMIF($AD$88:$AE$93,"="&$AC99,$AG$88:$AH$93) -> 1 | AF99: =AE99-AG99 -> 5 | AG99: =SUMIF($AD$88:$AE$93,"="&$AC99,$AG$88:$AH$93)-SUMIF($AD$88:$AE$93,"="&$AC99,$AH$88:$AI$93) -> -4 | AH99: =INDEX(teams_k,AC99) -> SCO | AI99: =RANK(AD99,$AD$97:$AD$100,1) -> 1 | AL99: 3 | AM99: =INDEX(daten!$CM$147:$CM$170,AC99) -> 1 | AN99: =RANK(AM99,$AM$97:$AM$100) -> 4
C100: 12 | D100: =SUMIF($D$88:$E$93,"="&C100,$K$88:$L$93) -> 0 | E100: =SUMIF($D$88:$E$93,"="&$C100,$G$88:$H$93) -> 2 | F100: =E100-G100 -> 8 | G100: =SUMIF($D$88:$E$93,"="&$C100,$G$88:$H$93)-SUMIF($D$88:$E$93,"="&$C100,$H$88:$I$93) -> -6 | H100: =INDEX(teams_k,C100) -> MKD | I100: =RANK(D100,$D$97:$D$100,1) -> 1 | L100: 4 | M100: =INDEX(daten!$CM$147:$CM$170,C100) -> 18 | N100: =RANK(M100,$M$97:$M$100) -> 1 | AC100: 16 | AD100: =SUMIF($AD$88:$AE$93,"="&AC100,$AK$88:$AL$93) -> 4 | AE100: =SUMIF($AD$88:$AE$93,"="&$AC100,$AG$88:$AH$93) -> 3 | AF100: =AE100-AG100 -> 2 | AG100: =SUMIF($AD$88:$AE$93,"="&$AC100,$AG$88:$AH$93)-SUMIF($AD$88:$AE$93,"="&$AC100,$AH$88:$AI$93) -> 1 | AH100: =INDEX(teams_k,AC100) -> CZE | AI100: =RANK(AD100,$AD$97:$AD$100,1) -> 2 | AL100: 4 | AM100: =INDEX(daten!$CM$147:$CM$170,AC100) -> 14 | AN100: =RANK(AM100,$AM$97:$AM$100) -> 1
B102: DV1 | D102: =B104 -> 9 | E102: =B105 -> 10 | F102: =B106 -> 11 | G102: =B107 -> 12 | AB102: DV1 | AD102: =AB104 -> 13 | AE102: =AB105 -> 14 | AF102: =AB106 -> 15 | AG102: =AB107 -> 16
B103: TeamIndex | C103: Nr | D103: =C104 -> 1 | E103: =C105 -> 2 | F103: =C106 -> 3 | G103: =C107 -> 4 | I103: RangPkt. | K103: Siege | AB103: TeamIndex | AC103: Nr | AD103: =AC104 -> 1 | AE103: =AC105 -> 2 | AF103: =AC106 -> 3 | AG103: =AC107 -> 4 | AI103: RangPkt. | AK103: Siege
B104: =INDEX($C$97:$C$100,C104) -> 9 | C104: 1 | D104: =IF(INDEX($I$97:$I$100,$C104)<>INDEX($I$97:$I$100,D$103),0,SUMIF($B$88:$C$93,"="&$B104&"#"&D$102,$O$88:$P$93)) -> 0 | E104: 0 | F104: 0 | G104: 0 | H104: =SUM(D104:G104) -> 0 | I104: =RANK(H104,$H$104:$H$107,1) -> 1 | K104: =COUNTIF(S88:T93,"S"&B104) -> 3 | AB104: =INDEX($AC$97:$AC$100,AC104) -> 13 | AC104: 1 | AD104: =IF(INDEX($AI$97:$AI$100,$AC104)<>INDEX($AI$97:$AI$100,AD$103),0,SUMIF($AB$88:$AC$93,"="&$AB104&"#"&AD$102,$AO$88:$AP$93)) -> 0 | AE104: 0 | AF104: 0 | AG104: 0 | AH104: =SUM(AD104:AG104) -> 0 | AI104: =RANK(AH104,$AH$104:$AH$107,1) -> 1 | AK104: =COUNTIF(AS88:AT93,"S"&AB104) -> 2
B105: =INDEX($C$97:$C$100,C105) -> 10 | C105: 2 | D105: 0 | E105: 0 | F105: 0 | G105: 0 | H105: =SUM(D105:G105) -> 0 | I105: =RANK(H105,$H$104:$H$107,1) -> 1 | K105: =COUNTIF(S88:T93,"S"&B105) -> 1 | AB105: =INDEX($AC$97:$AC$100,AC105) -> 14 | AC105: 2 | AD105: 0 | AE105: 0 | AF105: 0 | AG105: 1000.001 | AH105: =SUM(AD105:AG105) -> 1000.001 | AI105: =RANK(AH105,$AH$104:$AH$107,1) -> 3 | AK105: =COUNTIF(AS88:AT93,"S"&AB105) -> 1
B106: =INDEX($C$97:$C$100,C106) -> 11 | C106: 3 | D106: 0 | E106: 0 | F106: 0 | G106: 0 | H106: =SUM(D106:G106) -> 0 | I106: =RANK(H106,$H$104:$H$107,1) -> 1 | K106: =COUNTIF(S88:T93,"S"&B106) -> 2 | AB106: =INDEX($AC$97:$AC$100,AC106) -> 15 | AC106: 3 | AD106: 0 | AE106: 0 | AF106: 0 | AG106: 0 | AH106: =SUM(AD106:AG106) -> 0 | AI106: =RANK(AH106,$AH$104:$AH$107,1) -> 1 | AK106: =COUNTIF(AS88:AT93,"S"&AB106) -> 0
B107: =INDEX($C$97:$C$100,C107) -> 12 | C107: 4 | D107: 0 | E107: 0 | F107: 0 | G107: 0 | H107: =SUM(D107:G107) -> 0 | I107: =RANK(H107,$H$104:$H$107,1) -> 1 | K107: =COUNTIF(S88:T93,"S"&B107) -> 0 | AB107: =INDEX($AC$97:$AC$100,AC107) -> 16 | AC107: 4 | AD107: 0 | AE107: 1000.001 | AF107: 0 | AG107: 0 | AH107: =SUM(AD107:AG107) -> 1000.001 | AI107: =RANK(AH107,$AH$104:$AH$107,1) -> 3 | AK107: =COUNTIF(AS88:AT93,"S"&AB107) -> 1
B109: DV2 | C109: Nr | D109: =C110 -> 1 | E109: =C111 -> 2 | F109: =C112 -> 3 | G109: =C113 -> 4 | I109: RangPkt. | AB109: DV2 | AC109: Nr | AD109: =AC110 -> 1 | AE109: =AC111 -> 2 | AF109: =AC112 -> 3 | AG109: =AC113 -> 4 | AI109: RangPkt.
B110: =B104 -> 9 | C110: 1 | D110: =IF(D104=0,0,IF(INDEX($I$104:$I$107,$C104)<>INDEX($I$104:$I$107,D$103),0,SUMIF($B$88:$C$93,"="&$B104&"#"&D$102,$K$88:$L$93)*1000+SUMIF($B$88:$C$93,"="&$B104&"#"&D$102,$M$88:$N$93)+SUMIF($B$88:$C$93,"="&$B104&"#"&D$102,$G$88:$H$93)/1000)) -> 0 | E110: 0 | F110: 0 | G110: 0 | H110: =SUM(D110:G110) -> 0 | I110: =RANK(H110,$H$110:$H$113,1) -> 1 | AB110: =AB104 -> 13 | AC110: 1 | AD110: =IF(AD104=0,0,IF(INDEX($AI$104:$AI$107,$AC104)<>INDEX($AI$104:$AI$107,AD$103),0,SUMIF($AB$88:$AC$93,"="&$AB104&"#"&AD$102,$AK$88:$AL$93)*1000+SUMIF($AB$88:$AC$93,"="&$AB104&"#"&AD$102,$AM$88:$AN$93)+SUMIF($AB$88:$AC$93,"="&$AB104&"#"&AD$102,$AG$88:$AH$93)/1000)) -> 0 | AE110: 0 | AF110: 0 | AG110: 0 | AH110: =SUM(AD110:AG110) -> 0 | AI110: =RANK(AH110,$AH$110:$AH$113,1) -> 1
B111: =B105 -> 10 | C111: 2 | D111: 0 | E111: 0 | F111: 0 | G111: 0 | H111: =SUM(D111:G111) -> 0 | I111: =RANK(H111,$H$110:$H$113,1) -> 1 | AB111: =AB105 -> 14 | AC111: 2 | AD111: 0 | AE111: 0 | AF111: 0 | AG111: 1000.001 | AH111: =SUM(AD111:AG111) -> 1000.001 | AI111: =RANK(AH111,$AH$110:$AH$113,1) -> 3
B112: =B106 -> 11 | C112: 3 | D112: 0 | E112: 0 | F112: 0 | G112: 0 | H112: =SUM(D112:G112) -> 0 | I112: =RANK(H112,$H$110:$H$113,1) -> 1 | AB112: =AB106 -> 15 | AC112: 3 | AD112: 0 | AE112: 0 | AF112: 0 | AG112: 0 | AH112: =SUM(AD112:AG112) -> 0 | AI112: =RANK(AH112,$AH$110:$AH$113,1) -> 1
B113: =B107 -> 12 | C113: 4 | D113: 0 | E113: 0 | F113: 0 | G113: 0 | H113: =SUM(D113:G113) -> 0 | I113: =RANK(H113,$H$110:$H$113,1) -> 1 | AB113: =AB107 -> 16 | AC113: 4 | AD113: 0 | AE113: 1000.001 | AF113: 0 | AG113: 0 | AH113: =SUM(AD113:AG113) -> 1000.001 | AI113: =RANK(AH113,$AH$110:$AH$113,1) -> 3
C115: Nr | D115: RangPkt | H115: RangPkt | AC115: Nr | AD115: RangPkt | AH115: RangPkt
B116: Diff | C116: 1 | D116: =RANK(G97,$G$97:$G$100,1) -> 4 | F116: Tore | G116: 1 | H116: =RANK(E97,$E$97:$E$100,1) -> 4 | AB116: Diff | AC116: 1 | AD116: =RANK(AG97,$AG$97:$AG$100,1) -> 4 | AF116: Tore | AG116: 1 | AH116: =RANK(AE97,$AE$97:$AE$100,1) -> 2
C117: 2 | D117: =RANK(G98,$G$97:$G$100,1) -> 2 | G117: 2 | H117: =RANK(E98,$E$97:$E$100,1) -> 2 | AC117: 2 | AD117: =RANK(AG98,$AG$97:$AG$100,1) -> 2 | AG117: 2 | AH117: =RANK(AE98,$AE$97:$AE$100,1) -> 4
C118: 3 | D118: =RANK(G99,$G$97:$G$100,1) -> 3 | G118: 3 | H118: =RANK(E99,$E$97:$E$100,1) -> 2 | AC118: 3 | AD118: =RANK(AG99,$AG$97:$AG$100,1) -> 1 | AG118: 3 | AH118: =RANK(AE99,$AE$97:$AE$100,1) -> 1
C119: 4 | D119: =RANK(G100,$G$97:$G$100,1) -> 1 | G119: 4 | H119: =RANK(E100,$E$97:$E$100,1) -> 1 | AC119: 4 | AD119: =RANK(AG100,$AG$97:$AG$100,1) -> 2 | AG119: 4 | AH119: =RANK(AE100,$AE$97:$AE$100,1) -> 3
I121: Modus | AI121: Modus
C122: Nr | E122: RangPkt | F122: Rang | H122: Wertigkeit | I122: 1 | J122: 2 | K122: Faktor | M122: Faktoren | AC122: Nr | AE122: RangPkt | AF122: Rang | AH122: Wertigkeit | AI122: 1 | AJ122: 2 | AK122: Faktor | AM122: Faktoren
B123: Wert | C123: 1 | D123: =I97*$K$123+I104*$K$124+I110*$K$125+D116*$K$126+H116*$K$127 -> 40101040400 | E123: =RANK(D123,$D$123:$D$126,1) -> 4 | F123: =RANK(D123,$D$123:$D$126) -> 1 | H123: Punkte | I123: 1 | J123: 1 | K123: =INDEX(N123:N130,INDEX(I123:J123,A97)) -> 10000000000 | M123: 1 | N123: 10000000000 | AB123: Wert | AC123: 1 | AD123: =AI97*$AK$123+AI104*$AK$124+AI110*$AK$125+AD116*$AK$126+AH116*$AK$127 -> 40101040200 | AE123: =RANK(AD123,$AD$123:$AD$126,1) -> 4 | AF123: =RANK(AD123,$AD$123:$AD$126) -> 1 | AH123: Punkte | AI123: 1 | AJ123: 1 | AK123: =INDEX(AN123:AN130,INDEX(AI123:AJ123,AA97)) -> 10000000000 | AM123: 1 | AN123: 10000000000
C124: 2 | D124: =I98*$K$123+I105*$K$124+I111*$K$125+D117*$K$126+H117*$K$127 -> 20101020200 | E124: =RANK(D124,$D$123:$D$126,1) -> 2 | F124: =RANK(D124,$D$123:$D$126) -> 3 | H124: DV1 | I124: 2 | J124: 4 | K124: =INDEX(N123:N130,INDEX(I124:J124,A97)) -> 100000000 | M124: 2 | N124: 100000000 | AC124: 2 | AD124: =AI98*$AK$123+AI105*$AK$124+AI111*$AK$125+AD117*$AK$126+AH117*$AK$127 -> 20303020400 | AE124: =RANK(AD124,$AD$123:$AD$126,1) -> 3 | AF124: =RANK(AD124,$AD$123:$AD$126) -> 2 | AH124: DV1 | AI124: 2 | AJ124: 4 | AK124: =INDEX(AN123:AN130,INDEX(AI124:AJ124,AA97)) -> 100000000 | AM124: 2 | AN124: 100000000
C125: 3 | D125: =I99*$K$123+I106*$K$124+I112*$K$125+D118*$K$126+H118*$K$127 -> 30101030200 | E125: =RANK(D125,$D$123:$D$126,1) -> 3 | F125: =RANK(D125,$D$123:$D$126) -> 2 | H125: DV2 | I125: 3 | J125: 5 | K125: =INDEX(N123:N130,INDEX(I125:J125,A97)) -> 1000000 | M125: 3 | N125: 1000000 | AC125: 3 | AD125: =AI99*$AK$123+AI106*$AK$124+AI112*$AK$125+AD118*$AK$126+AH118*$AK$127 -> 10101010100 | AE125: =RANK(AD125,$AD$123:$AD$126,1) -> 1 | AF125: =RANK(AD125,$AD$123:$AD$126) -> 4 | AH125: DV2 | AI125: 3 | AJ125: 5 | AK125: =INDEX(AN123:AN130,INDEX(AI125:AJ125,AA97)) -> 1000000 | AM125: 3 | AN125: 1000000
C126: 4 | D126: =I100*$K$123+I107*$K$124+I113*$K$125+D119*$K$126+H119*$K$127 -> 10101010100 | E126: =RANK(D126,$D$123:$D$126,1) -> 1 | F126: =RANK(D126,$D$123:$D$126) -> 4 | H126: TD alle | I126: 4 | J126: 2 | K126: =INDEX(N123:N130,INDEX(I126:J126,A97)) -> 10000 | M126: 4 | N126: 10000 | AC126: 4 | AD126: =AI100*$AK$123+AI107*$AK$124+AI113*$AK$125+AD119*$AK$126+AH119*$AK$127 -> 20303020300 | AE126: =RANK(AD126,$AD$123:$AD$126,1) -> 2 | AF126: =RANK(AD126,$AD$123:$AD$126) -> 3 | AH126: TD alle | AI126: 4 | AJ126: 2 | AK126: =INDEX(AN123:AN130,INDEX(AI126:AJ126,AA97)) -> 10000 | AM126: 4 | AN126: 10000
H127: Tore alle | I127: 5 | J127: 3 | K127: =INDEX(N123:N130,INDEX(I127:J127,A97)) -> 100 | M127: 5 | N127: 100 | AH127: Tore alle | AI127: 5 | AJ127: 3 | AK127: =INDEX(AN123:AN130,INDEX(AI127:AJ127,AA97)) -> 100 | AM127: 5 | AN127: 100
H128: EMS | I128: 6 | J128: 6 | K128: =INDEX(N123:N130,INDEX(I128:J128,A97)) -> 1 | M128: 6 | N128: 1 | AH128: EMS | AI128: 6 | AJ128: 6 | AK128: =INDEX(AN123:AN130,INDEX(AI128:AJ128,AA97)) -> 1 | AM128: 6 | AN128: 1
H129: FP | I129: 8 | J129: 7 | K129: =INDEX(N123:N130,INDEX(I129:J129,A97)) -> 0.0001 | M129: 7 | N129: =1/100 -> 0.01 | AH129: FP | AI129: 8 | AJ129: 7 | AK129: =INDEX(AN123:AN130,INDEX(AI129:AJ129,AA97)) -> 0.0001 | AM129: 7 | AN129: =1/100 -> 0.01
H130: Anzahl Siege Alle | I130: 7 | J130: 8 | K130: =INDEX(N123:N130,INDEX(I130:J130,A97)) -> 0.01 | M130: 8 | N130: =1/10000 -> 0.0001 | AH130: Anzahl Siege Alle | AI130: 7 | AJ130: 8 | AK130: =INDEX(AN123:AN130,INDEX(AI130:AJ130,AA97)) -> 0.01 | AM130: 8 | AN130: =1/10000 -> 0.0001
C146: Rangpkt inkl. EMS und Koeff | AC146: Rangpkt inkl. EMS und Koeff
C147: Nr. | D147: RangPkt | E147: Rang | F147: Rang korr | AC147: Nr. | AD147: RangPkt | AE147: Rang | AF147: Rang korr
B148: Wert | C148: 1 | D148: =E123*1000+SUMIF($D$266:$E$277,"="&C97,$P$266:$Q$277)*$K$46+N97*$K$47+K104*$K$48 -> 4000.0302 | E148: =RANK(D148,$D$148:$D$151) -> 1 | F148: =E148+COUNTIF(E$147:E147,"="&E148) -> 1 | AB148: Wert | AC148: 1 | AD148: =AE123*1000+SUMIF($D$266:$E$277,"="&AC97,$P$266:$Q$277)*$K$46+AN97*$K$47+AK104*$K$48 -> 4000.0203 | AE148: =RANK(AD148,$AD$148:$AD$151) -> 1 | AF148: =AE148+COUNTIF(AE$147:AE147,"="&AE148) -> 1
C149: 2 | D149: =E124*1000+SUMIF($D$266:$E$277,"="&C98,$P$266:$Q$277)*$K$46+N98*$K$47+K105*$K$48 -> 2000.0104 | E149: =RANK(D149,$D$148:$D$151) -> 3 | F149: =E149+COUNTIF(E$147:E148,"="&E149) -> 3 | AC149: 2 | AD149: =AE124*1000+SUMIF($D$266:$E$277,"="&AC98,$P$266:$Q$277)*$K$46+AN98*$K$47+AK105*$K$48 -> 3000.0101 | AE149: =RANK(AD149,$AD$148:$AD$151) -> 2 | AF149: =AE149+COUNTIF(AE$147:AE148,"="&AE149) -> 2
C150: 3 | D150: =E125*1000+SUMIF($D$266:$E$277,"="&C99,$P$266:$Q$277)*$K$46+N99*$K$47+K106*$K$48 -> 3000.0202 | E150: =RANK(D150,$D$148:$D$151) -> 2 | F150: =E150+COUNTIF(E$147:E149,"="&E150) -> 2 | AC150: 3 | AD150: =AE125*1000+SUMIF($D$266:$E$277,"="&AC99,$P$266:$Q$277)*$K$46+AN99*$K$47+AK106*$K$48 -> 1000.0004 | AE150: =RANK(AD150,$AD$148:$AD$151) -> 4 | AF150: =AE150+COUNTIF(AE$147:AE149,"="&AE150) -> 4
C151: 4 | D151: =E126*1000+SUMIF($D$266:$E$277,"="&C100,$P$266:$Q$277)*$K$46+N100*$K$47+K107*$K$48 -> 1000.0001 | E151: =RANK(D151,$D$148:$D$151) -> 4 | F151: =E151+COUNTIF(E$147:E150,"="&E151) -> 4 | AC151: 4 | AD151: =AE126*1000+SUMIF($D$266:$E$277,"="&AC100,$P$266:$Q$277)*$K$46+AN100*$K$47+AK107*$K$48 -> 2000.0101 | AE151: =RANK(AD151,$AD$148:$AD$151) -> 3 | AF151: =AE151+COUNTIF(AE$147:AE150,"="&AE151) -> 3
J152: berechnete oder manuelle Tabelle | AJ152: berechnete oder manuelle Tabelle
B153: Tabelle | C153: Rang | D153: Nr | E153: Rang Eff | F153: Manuell | G153: =VLOOKUP(A86,ERGEBNISSE!$BQ$38:$BR$47,2,FALSE) -> FALSE | H153: Nr | J153: Nr korr | AB153: Tabelle | AC153: Rang | AD153: Nr | AE153: Rang Eff | AF153: Manuell | AG153: =VLOOKUP(AA86,ERGEBNISSE!$BQ$38:$BR$47,2,FALSE) -> FALSE | AH153: Nr | AJ153: Nr korr
B154: =INDEX(teams,INDEX(C97:C100,D154)) -> Niederlande | C154: 1 | D154: =MATCH(C154,$F$148:$F$151,0) -> 1 | E154: =IF(G153,C154,INDEX(E148:E151,D154)) -> 1 | F154: 1 | G154: 1 | H154: =IF(G153,VLOOKUP(A161,ERGEBNISSE!$BR$12:$BT$35,3,FALSE),D154) -> 1 | J154: =IF($G$153,H154,D154) -> 1 | AB154: =INDEX(teams,INDEX(AC97:AC100,AD154)) -> England | AC154: 1 | AD154: =MATCH(AC154,$AF$148:$AF$151,0) -> 1 | AE154: =IF(AG153,AC154,INDEX(AE148:AE151,AD154)) -> 1 | AF154: 1 | AG154: 1 | AH154: =IF(AG153,VLOOKUP(AA161,ERGEBNISSE!$BR$12:$BT$35,3,FALSE),AD154) -> 1 | AJ154: =IF($AG$153,AH154,AD154) -> 1
B155: =INDEX(teams,INDEX(C97:C100,D155)) -> Österreich | C155: 2 | D155: =MATCH(C155,$F$148:$F$151,0) -> 3 | E155: =IF(G153,C155,INDEX(E148:E151,D155)) -> 2 | G155: 2 | H155: =IF(G153,VLOOKUP(A162,ERGEBNISSE!$BR$12:$BT$35,3,FALSE),D155) -> 3 | J155: =IF($G$153,H155,D155) -> 3 | AB155: =INDEX(teams,INDEX(AC97:AC100,AD155)) -> Kroatien | AC155: 2 | AD155: =MATCH(AC155,$AF$148:$AF$151,0) -> 2 | AE155: =IF(AG153,AC155,INDEX(AE148:AE151,AD155)) -> 2 | AG155: 2 | AH155: =IF(AG153,VLOOKUP(AA162,ERGEBNISSE!$BR$12:$BT$35,3,FALSE),AD155) -> 2 | AJ155: =IF($AG$153,AH155,AD155) -> 2
B156: =INDEX(teams,INDEX(C97:C100,D156)) -> Ukraine | C156: 3 | D156: =MATCH(C156,$F$148:$F$151,0) -> 2 | E156: =IF(G153,C156,INDEX(E148:E151,D156)) -> 3 | G156: 3 | H156: =IF(G153,VLOOKUP(A163,ERGEBNISSE!$BR$12:$BT$35,3,FALSE),D156) -> 2 | J156: =IF($G$153,H156,D156) -> 2 | AB156: =INDEX(teams,INDEX(AC97:AC100,AD156)) -> Tschechien | AC156: 3 | AD156: =MATCH(AC156,$AF$148:$AF$151,0) -> 4 | AE156: =IF(AG153,AC156,INDEX(AE148:AE151,AD156)) -> 3 | AG156: 3 | AH156: =IF(AG153,VLOOKUP(AA163,ERGEBNISSE!$BR$12:$BT$35,3,FALSE),AD156) -> 4 | AJ156: =IF($AG$153,AH156,AD156) -> 4
B157: =INDEX(teams,INDEX(C97:C100,D157)) -> Nordmazedonien | C157: 4 | D157: =MATCH(C157,$F$148:$F$151,0) -> 4 | E157: =IF(G153,C157,INDEX(E148:E151,D157)) -> 4 | G157: 4 | H157: =IF(G153,VLOOKUP(A164,ERGEBNISSE!$BR$12:$BT$35,3,FALSE),D157) -> 4 | J157: =IF($G$153,H157,D157) -> 4 | AB157: =INDEX(teams,INDEX(AC97:AC100,AD157)) -> Schottland | AC157: 4 | AD157: =MATCH(AC157,$AF$148:$AF$151,0) -> 3 | AE157: =IF(AG153,AC157,INDEX(AE148:AE151,AD157)) -> 4 | AG157: 4 | AH157: =IF(AG153,VLOOKUP(AA164,ERGEBNISSE!$BR$12:$BT$35,3,FALSE),AD157) -> 3 | AJ157: =IF($AG$153,AH157,AD157) -> 3
B160: Tabelle | C160: TeamIndex | D160: Nr | E160: Team | F160: Sp | G160: P | H160: T+ | I160: T- | J160: Diff | K160: S | L160: U | M160: N | AB160: Tabelle | AC160: TeamIndex | AD160: Nr | AE160: Team | AF160: Sp | AG160: P | AH160: T+ | AI160: T- | AJ160: Diff | AK160: S | AL160: U | AM160: N
A161: ="S"&A86 -> SC | B161: 1 | C161: =INDEX($C$97:$C$100,J154) -> 9 | D161: =J154 -> 1 | E161: =INDEX($H$97:$H$100,J154) -> NED | F161: =SUMIF($D$88:$E$93,"="&$C161,$Q$88:$R$93) -> 3 | G161: =INDEX($D$97:$D$100,$J154) -> 9 | H161: =INDEX($E$97:$E$100,$J154) -> 8 | I161: =INDEX($F$97:$F$100,$J154) -> 2 | J161: =INDEX($G$97:$G$100,$J154) -> 6 | K161: =COUNTIF($S$88:$T$93,"="&K$160&$C161) -> 3 | L161: 0 | M161: 0 | AA161: ="S"&AA86 -> SD | AB161: 1 | AC161: =INDEX($AC$97:$AC$100,AJ154) -> 13 | AD161: =AJ154 -> 1 | AE161: =INDEX($AH$97:$AH$100,AJ154) -> ENG | AF161: =SUMIF($AD$88:$AE$93,"="&$AC161,$AQ$88:$AR$93) -> 3 | AG161: =INDEX($AD$97:$AD$100,$AJ154) -> 7 | AH161: =INDEX($AE$97:$AE$100,$AJ154) -> 2 | AI161: =INDEX($AF$97:$AF$100,$AJ154) -> 0 | AJ161: =INDEX($AG$97:$AG$100,$AJ154) -> 2 | AK161: =COUNTIF($AS$88:$AT$93,"="&AK$160&$AC161) -> 2 | AL161: 1 | AM161: 0
A162: ="Z"&A86 -> ZC | B162: 2 | C162: =INDEX($C$97:$C$100,J155) -> 11 | D162: =J155 -> 3 | E162: =INDEX($H$97:$H$100,J155) -> AUT | F162: =SUMIF($D$88:$E$93,"="&$C162,$Q$88:$R$93) -> 3 | G162: =INDEX($D$97:$D$100,$J155) -> 6 | H162: =INDEX($E$97:$E$100,$J155) -> 4 | I162: =INDEX($F$97:$F$100,$J155) -> 3 | J162: =INDEX($G$97:$G$100,$J155) -> 1 | K162: 2 | L162: 0 | M162: 1 | AA162: ="Z"&AA86 -> ZD | AB162: 2 | AC162: =INDEX($AC$97:$AC$100,AJ155) -> 14 | AD162: =AJ155 -> 2 | AE162: =INDEX($AH$97:$AH$100,AJ155) -> CRO | AF162: =SUMIF($AD$88:$AE$93,"="&$AC162,$AQ$88:$AR$93) -> 3 | AG162: =INDEX($AD$97:$AD$100,$AJ155) -> 4 | AH162: =INDEX($AE$97:$AE$100,$AJ155) -> 4 | AI162: =INDEX($AF$97:$AF$100,$AJ155) -> 3 | AJ162: =INDEX($AG$97:$AG$100,$AJ155) -> 1 | AK162: 1 | AL162: 1 | AM162: 1
A163: ="D"&A86 -> DC | B163: 3 | C163: =INDEX($C$97:$C$100,J156) -> 10 | D163: =J156 -> 2 | E163: =INDEX($H$97:$H$100,J156) -> UKR | F163: =SUMIF($D$88:$E$93,"="&$C163,$Q$88:$R$93) -> 3 | G163: =INDEX($D$97:$D$100,$J156) -> 3 | H163: =INDEX($E$97:$E$100,$J156) -> 4 | I163: =INDEX($F$97:$F$100,$J156) -> 5 | J163: =INDEX($G$97:$G$100,$J156) -> -1 | K163: 1 | L163: 0 | M163: 2 | AA163: ="D"&AA86 -> DD | AB163: 3 | AC163: =INDEX($AC$97:$AC$100,AJ156) -> 16 | AD163: =AJ156 -> 4 | AE163: =INDEX($AH$97:$AH$100,AJ156) -> CZE | AF163: =SUMIF($AD$88:$AE$93,"="&$AC163,$AQ$88:$AR$93) -> 3 | AG163: =INDEX($AD$97:$AD$100,$AJ156) -> 4 | AH163: =INDEX($AE$97:$AE$100,$AJ156) -> 3 | AI163: =INDEX($AF$97:$AF$100,$AJ156) -> 2 | AJ163: =INDEX($AG$97:$AG$100,$AJ156) -> 1 | AK163: 1 | AL163: 1 | AM163: 1
A164: ="V"&A86 -> VC | B164: 4 | C164: =INDEX($C$97:$C$100,J157) -> 12 | D164: =J157 -> 4 | E164: =INDEX($H$97:$H$100,J157) -> MKD | F164: =SUMIF($D$88:$E$93,"="&$C164,$Q$88:$R$93) -> 3 | G164: =INDEX($D$97:$D$100,$J157) -> 0 | H164: =INDEX($E$97:$E$100,$J157) -> 2 | I164: =INDEX($F$97:$F$100,$J157) -> 8 | J164: =INDEX($G$97:$G$100,$J157) -> -6 | K164: 0 | L164: 0 | M164: 3 | AA164: ="V"&AA86 -> VD | AB164: 4 | AC164: =INDEX($AC$97:$AC$100,AJ157) -> 15 | AD164: =AJ157 -> 3 | AE164: =INDEX($AH$97:$AH$100,AJ157) -> SCO | AF164: =SUMIF($AD$88:$AE$93,"="&$AC164,$AQ$88:$AR$93) -> 3 | AG164: =INDEX($AD$97:$AD$100,$AJ157) -> 1 | AH164: =INDEX($AE$97:$AE$100,$AJ157) -> 1 | AI164: =INDEX($AF$97:$AF$100,$AJ157) -> 5 | AJ164: =INDEX($AG$97:$AG$100,$AJ157) -> -4 | AK164: 0 | AL164: 1 | AM164: 2
A168: E | B168: Paarungen | G168: Resultat | K168: Punkte | Q168: =SUM(Q170:Q175) -> 6 | AA168: F | AB168: Paarungen | AG168: Resultat | AK168: Punkte | AQ168: =SUM(AQ170:AQ175) -> 6
A169: Nr | D169: HT | E169: AT | F169: HT2 | G169: ErgH | H169: ErgA | I169: ErgH2 | K169: PH | L169: PA | M169: DifH | N169: DifA | O169: WertH | P169: WertA | Q169: Spiele | S169: Resultat | AA169: Nr | AD169: HT | AE169: AT | AF169: HT2 | AG169: ErgH | AH169: ErgA | AI169: ErgH2 | AK169: PH | AL169: PA | AM169: DifH | AN169: DifA | AO169: WertH | AP169: WertA | AQ169: Spiele | AS169: Resultat
A170: 1 | B170: =D170&"#"&E170 -> 19#20 | C170: =E170&"#"&D170 -> 20#19 | D170: =VLOOKUP(J170,daten!$D$49:$J$84,6,FALSE) -> 19 | E170: =VLOOKUP(J170,daten!$D$49:$K$84,7,FALSE) -> 20 | F170: =D170 -> 19 | G170: =VLOOKUP(J170,ERGEBNISSE!$C$12:$F$47,3,FALSE) -> 1 | H170: =VLOOKUP(J170,ERGEBNISSE!$C$12:$F$47,4,FALSE) -> 2 | I170: =IF(LEN(G170)>0,G170,"") -> 1 | J170: =A168&A170 -> E1 | K170: =IF(COUNT(G170:H170)<>2,0,IF(G170>H170,3,IF(H170>G170,0,1))) -> 0 | L170: =IF(COUNT(G170:H170)<>2,0,IF(G170>H170,0,IF(H170>G170,3,1))) -> 3 | M170: =IF(COUNT(G170:H170)<>2,0,G170-H170) -> -1 | N170: =IF(COUNT(G170:H170)<>2,0,H170-I170) -> 1 | O170: =K170*1000+M170+IF(LEN(G170)=0,0,G170/1000) -> -0.999 | P170: 3001.002 | Q170: =IF(COUNT(G170:H170)=2,1,0) -> 1 | R170: =Q170 -> 1 | S170: =IF(Q170=0,"X",IF(K170=3,"S",IF(K170=0,"N","U")))&D170 -> N19 | T170: S20 | AA170: 1 | AB170: =AD170&"#"&AE170 -> 21#22 | AC170: =AE170&"#"&AD170 -> 22#21 | AD170: =VLOOKUP(AJ170,daten!$D$49:$J$84,6,FALSE) -> 21 | AE170: =VLOOKUP(AJ170,daten!$D$49:$K$84,7,FALSE) -> 22 | AF170: =AD170 -> 21 | AG170: =VLOOKUP(AJ170,ERGEBNISSE!$C$12:$F$47,3,FALSE) -> 0 | AH170: =VLOOKUP(AJ170,ERGEBNISSE!$C$12:$F$47,4,FALSE) -> 3 | AI170: =IF(LEN(AG170)>0,AG170,"") -> 0 | AJ170: =AA168&AA170 -> F1 | AK170: =IF(COUNT(AG170:AH170)<>2,0,IF(AG170>AH170,3,IF(AH170>AG170,0,1))) -> 0 | AL170: =IF(COUNT(AG170:AH170)<>2,0,IF(AG170>AH170,0,IF(AH170>AG170,3,1))) -> 3 | AM170: =IF(COUNT(AG170:AH170)<>2,0,AG170-AH170) -> -3 | AN170: =IF(COUNT(AG170:AH170)<>2,0,AH170-AI170) -> 3 | AO170: =AK170*1000+AM170+IF(LEN(AG170)=0,0,AG170/1000) -> -3 | AP170: 3003.003 | AQ170: =IF(COUNT(AG170:AH170)=2,1,0) -> 1 | AR170: =AQ170 -> 1 | AS170: =IF(AQ170=0,"X",IF(AK170=3,"S",IF(AK170=0,"N","U")))&AD170 -> N21 | AT170: S22
A171: 2 | B171: 17#18 | C171: 18#17 | D171: =VLOOKUP(J171,daten!$D$49:$J$84,6,FALSE) -> 17 | E171: =VLOOKUP(J171,daten!$D$49:$K$84,7,FALSE) -> 18 | F171: 17 | G171: =VLOOKUP(J171,ERGEBNISSE!$C$12:$F$47,3,FALSE) -> 0 | H171: =VLOOKUP(J171,ERGEBNISSE!$C$12:$F$47,4,FALSE) -> 0 | I171: 0 | J171: =A168&A171 -> E2 | K171: 1 | L171: 1 | M171: 0 | N171: 0 | O171: 1000 | P171: 1000 | Q171: 1 | R171: 1 | S171: U17 | T171: U18 | AA171: 2 | AB171: 23#24 | AC171: 24#23 | AD171: =VLOOKUP(AJ171,daten!$D$49:$J$84,6,FALSE) -> 23 | AE171: =VLOOKUP(AJ171,daten!$D$49:$K$84,7,FALSE) -> 24 | AF171: 23 | AG171: =VLOOKUP(AJ171,ERGEBNISSE!$C$12:$F$47,3,FALSE) -> 1 | AH171: =VLOOKUP(AJ171,ERGEBNISSE!$C$12:$F$47,4,FALSE) -> 0 | AI171: 1 | AJ171: =AA168&AA171 -> F2 | AK171: 3 | AL171: 0 | AM171: 1 | AN171: -1 | AO171: 3001.001 | AP171: -1 | AQ171: 1 | AR171: 1 | AS171: S23 | AT171: N24
A172: 3 | B172: 18#20 | C172: 20#18 | D172: =VLOOKUP(J172,daten!$D$49:$J$84,6,FALSE) -> 18 | E172: =VLOOKUP(J172,daten!$D$49:$K$84,7,FALSE) -> 20 | F172: 18 | G172: =VLOOKUP(J172,ERGEBNISSE!$C$12:$F$47,3,FALSE) -> 1 | H172: =VLOOKUP(J172,ERGEBNISSE!$C$12:$F$47,4,FALSE) -> 0 | I172: 1 | J172: =A168&A172 -> E3 | K172: 3 | L172: 0 | M172: 1 | N172: -1 | O172: 3001.001 | P172: -1 | Q172: 1 | R172: 1 | S172: S18 | T172: N20 | AA172: 3 | AB172: 21#23 | AC172: 23#21 | AD172: =VLOOKUP(AJ172,daten!$D$49:$J$84,6,FALSE) -> 21 | AE172: =VLOOKUP(AJ172,daten!$D$49:$K$84,7,FALSE) -> 23 | AF172: 21 | AG172: =VLOOKUP(AJ172,ERGEBNISSE!$C$12:$F$47,3,FALSE) -> 1 | AH172: =VLOOKUP(AJ172,ERGEBNISSE!$C$12:$F$47,4,FALSE) -> 1 | AI172: 1 | AJ172: =AA168&AA172 -> F3 | AK172: 1 | AL172: 1 | AM172: 0 | AN172: 0 | AO172: 1000.001 | AP172: 1000.001 | AQ172: 1 | AR172: 1 | AS172: U21 | AT172: U23
A173: 4 | B173: 17#19 | C173: 19#17 | D173: =VLOOKUP(J173,daten!$D$49:$J$84,6,FALSE) -> 17 | E173: =VLOOKUP(J173,daten!$D$49:$K$84,7,FALSE) -> 19 | F173: 17 | G173: =VLOOKUP(J173,ERGEBNISSE!$C$12:$F$47,3,FALSE) -> 1 | H173: =VLOOKUP(J173,ERGEBNISSE!$C$12:$F$47,4,FALSE) -> 1 | I173: 1 | J173: =A168&A173 -> E4 | K173: 1 | L173: 1 | M173: 0 | N173: 0 | O173: 1000.001 | P173: 1000.001 | Q173: 1 | R173: 1 | S173: U17 | T173: U19 | AA173: 4 | AB173: 22#24 | AC173: 24#22 | AD173: =VLOOKUP(AJ173,daten!$D$49:$J$84,6,FALSE) -> 22 | AE173: =VLOOKUP(AJ173,daten!$D$49:$K$84,7,FALSE) -> 24 | AF173: 22 | AG173: =VLOOKUP(AJ173,ERGEBNISSE!$C$12:$F$47,3,FALSE) -> 2 | AH173: =VLOOKUP(AJ173,ERGEBNISSE!$C$12:$F$47,4,FALSE) -> 4 | AI173: 2 | AJ173: =AA168&AA173 -> F4 | AK173: 0 | AL173: 3 | AM173: -2 | AN173: 2 | AO173: -1.998 | AP173: 3002.004 | AQ173: 1 | AR173: 1 | AS173: N22 | AT173: S24
A174: 5 | B174: 20#17 | C174: 17#20 | D174: =VLOOKUP(J174,daten!$D$49:$J$84,6,FALSE) -> 20 | E174: =VLOOKUP(J174,daten!$D$49:$K$84,7,FALSE) -> 17 | F174: 20 | G174: =VLOOKUP(J174,ERGEBNISSE!$C$12:$F$47,3,FALSE) -> 0 | H174: =VLOOKUP(J174,ERGEBNISSE!$C$12:$F$47,4,FALSE) -> 5 | I174: 0 | J174: =A168&A174 -> E5 | K174: 0 | L174: 3 | M174: -5 | N174: 5 | O174: -5 | P174: 3005.005 | Q174: 1 | R174: 1 | S174: N20 | T174: S17 | AA174: 5 | AB174: 22#23 | AC174: 23#22 | AD174: =VLOOKUP(AJ174,daten!$D$49:$J$84,6,FALSE) -> 22 | AE174: =VLOOKUP(AJ174,daten!$D$49:$K$84,7,FALSE) -> 23 | AF174: 22 | AG174: =VLOOKUP(AJ174,ERGEBNISSE!$C$12:$F$47,3,FALSE) -> 2 | AH174: =VLOOKUP(AJ174,ERGEBNISSE!$C$12:$F$47,4,FALSE) -> 2 | AI174: 2 | AJ174: =AA168&AA174 -> F5 | AK174: 1 | AL174: 1 | AM174: 0 | AN174: 0 | AO174: 1000.002 | AP174: 1000.002 | AQ174: 1 | AR174: 1 | AS174: U22 | AT174: U23
A175: 6 | B175: 18#19 | C175: 19#18 | D175: =VLOOKUP(J175,daten!$D$49:$J$84,6,FALSE) -> 18 | E175: =VLOOKUP(J175,daten!$D$49:$K$84,7,FALSE) -> 19 | F175: 18 | G175: =VLOOKUP(J175,ERGEBNISSE!$C$12:$F$47,3,FALSE) -> 3 | H175: =VLOOKUP(J175,ERGEBNISSE!$C$12:$F$47,4,FALSE) -> 2 | I175: 3 | J175: =A168&A175 -> E6 | K175: 3 | L175: 0 | M175: 1 | N175: -1 | O175: 3001.003 | P175: -0.998 | Q175: 1 | R175: 1 | S175: S18 | T175: N19 | AA175: 6 | AB175: 24#21 | AC175: 21#24 | AD175: =VLOOKUP(AJ175,daten!$D$49:$J$84,6,FALSE) -> 24 | AE175: =VLOOKUP(AJ175,daten!$D$49:$K$84,7,FALSE) -> 21 | AF175: 24 | AG175: =VLOOKUP(AJ175,ERGEBNISSE!$C$12:$F$47,3,FALSE) -> 2 | AH175: =VLOOKUP(AJ175,ERGEBNISSE!$C$12:$F$47,4,FALSE) -> 2 | AI175: 2 | AJ175: =AA168&AA175 -> F6 | AK175: 1 | AL175: 1 | AM175: 0 | AN175: 0 | AO175: 1000.002 | AP175: 1000.002 | AQ175: 1 | AR175: 1 | AS175: U24 | AT175: U21
A178: Modus | C178: TeamIdx | D178: P | E178: Treffer | F178: GTo | G178: Dif | H178: Team | I178: RangPkt | K178: Koeff | M178: Rang | N178: RangPkt | AA178: Modus | AC178: TeamIdx | AD178: P | AE178: Treffer | AF178: GTo | AG178: Dif | AH178: Team | AI178: RangPkt | AK178: Koeff | AM178: Rang | AN178: RangPkt
A179: 1 | C179: 17 | D179: =SUMIF($D$170:$E$175,"="&C179,$K$170:$L$175) -> 5 | E179: =SUMIF($D$170:$E$175,"="&$C179,$G$170:$H$175) -> 6 | F179: =E179-G179 -> 1 | G179: =SUMIF($D$170:$E$175,"="&$C179,$G$170:$H$175)-SUMIF($D$170:$E$175,"="&$C179,$H$170:$I$175) -> 5 | H179: =INDEX(teams_k,C179) -> ESP | I179: =RANK(D179,$D$179:$D$182,1) -> 3 | L179: 1 | M179: =INDEX(daten!$CM$147:$CM$170,C179) -> 8 | N179: =RANK(M179,$M$179:$M$182) -> 3 | AA179: 1 | AC179: 21 | AD179: =SUMIF($AD$170:$AE$175,"="&AC179,$AK$170:$AL$175) -> 2 | AE179: =SUMIF($AD$170:$AE$175,"="&$AC179,$AG$170:$AH$175) -> 3 | AF179: =AE179-AG179 -> 6 | AG179: =SUMIF($AD$170:$AE$175,"="&$AC179,$AG$170:$AH$175)-SUMIF($AD$170:$AE$175,"="&$AC179,$AH$170:$AI$175) -> -3 | AH179: =INDEX(teams_k,AC179) -> HUN | AI179: =RANK(AD179,$AD$179:$AD$182,1) -> 1 | AL179: 1 | AM179: =INDEX(daten!$CM$147:$CM$170,AC179) -> 8 | AN179: =RANK(AM179,$AM$179:$AM$182) -> 3
C180: 18 | D180: =SUMIF($D$170:$E$175,"="&C180,$K$170:$L$175) -> 7 | E180: =SUMIF($D$170:$E$175,"="&$C180,$G$170:$H$175) -> 4 | F180: =E180-G180 -> 2 | G180: =SUMIF($D$170:$E$175,"="&$C180,$G$170:$H$175)-SUMIF($D$170:$E$175,"="&$C180,$H$170:$I$175) -> 2 | H180: =INDEX(teams_k,C180) -> SWE | I180: =RANK(D180,$D$179:$D$182,1) -> 4 | L180: 2 | M180: =INDEX(daten!$CM$147:$CM$170,C180) -> 18 | N180: =RANK(M180,$M$179:$M$182) -> 2 | AC180: 22 | AD180: =SUMIF($AD$170:$AE$175,"="&AC180,$AK$170:$AL$175) -> 4 | AE180: =SUMIF($AD$170:$AE$175,"="&$AC180,$AG$170:$AH$175) -> 7 | AF180: =AE180-AG180 -> 6 | AG180: =SUMIF($AD$170:$AE$175,"="&$AC180,$AG$170:$AH$175)-SUMIF($AD$170:$AE$175,"="&$AC180,$AH$170:$AI$175) -> 1 | AH180: =INDEX(teams_k,AC180) -> POR | AI180: =RANK(AD180,$AD$179:$AD$182,1) -> 2 | AL180: 2 | AM180: =INDEX(daten!$CM$147:$CM$170,AC180) -> 2 | AN180: =RANK(AM180,$AM$179:$AM$182) -> 4
C181: 19 | D181: =SUMIF($D$170:$E$175,"="&C181,$K$170:$L$175) -> 1 | E181: =SUMIF($D$170:$E$175,"="&$C181,$G$170:$H$175) -> 4 | F181: =E181-G181 -> 6 | G181: =SUMIF($D$170:$E$175,"="&$C181,$G$170:$H$175)-SUMIF($D$170:$E$175,"="&$C181,$H$170:$I$175) -> -2 | H181: =INDEX(teams_k,C181) -> POL | I181: =RANK(D181,$D$179:$D$182,1) -> 1 | L181: 3 | M181: =INDEX(daten!$CM$147:$CM$170,C181) -> 21 | N181: =RANK(M181,$M$179:$M$182) -> 1 | AC181: 23 | AD181: =SUMIF($AD$170:$AE$175,"="&AC181,$AK$170:$AL$175) -> 5 | AE181: =SUMIF($AD$170:$AE$175,"="&$AC181,$AG$170:$AH$175) -> 4 | AF181: =AE181-AG181 -> 3 | AG181: =SUMIF($AD$170:$AE$175,"="&$AC181,$AG$170:$AH$175)-SUMIF($AD$170:$AE$175,"="&$AC181,$AH$170:$AI$175) -> 1 | AH181: =INDEX(teams_k,AC181) -> FRA | AI181: =RANK(AD181,$AD$179:$AD$182,1) -> 4 | AL181: 3 | AM181: =INDEX(daten!$CM$147:$CM$170,AC181) -> 18 | AN181: =RANK(AM181,$AM$179:$AM$182) -> 1
C182: 20 | D182: =SUMIF($D$170:$E$175,"="&C182,$K$170:$L$175) -> 3 | E182: =SUMIF($D$170:$E$175,"="&$C182,$G$170:$H$175) -> 2 | F182: =E182-G182 -> 7 | G182: =SUMIF($D$170:$E$175,"="&$C182,$G$170:$H$175)-SUMIF($D$170:$E$175,"="&$C182,$H$170:$I$175) -> -5 | H182: =INDEX(teams_k,C182) -> SVK | I182: =RANK(D182,$D$179:$D$182,1) -> 2 | L182: 4 | M182: =INDEX(daten!$CM$147:$CM$170,C182) -> 8 | N182: =RANK(M182,$M$179:$M$182) -> 3 | AC182: 24 | AD182: =SUMIF($AD$170:$AE$175,"="&AC182,$AK$170:$AL$175) -> 4 | AE182: =SUMIF($AD$170:$AE$175,"="&$AC182,$AG$170:$AH$175) -> 6 | AF182: =AE182-AG182 -> 5 | AG182: =SUMIF($AD$170:$AE$175,"="&$AC182,$AG$170:$AH$175)-SUMIF($AD$170:$AE$175,"="&$AC182,$AH$170:$AI$175) -> 1 | AH182: =INDEX(teams_k,AC182) -> GER | AI182: =RANK(AD182,$AD$179:$AD$182,1) -> 2 | AL182: 4 | AM182: =INDEX(daten!$CM$147:$CM$170,AC182) -> 14 | AN182: =RANK(AM182,$AM$179:$AM$182) -> 2
B184: DV1 | D184: =B186 -> 17 | E184: =B187 -> 18 | F184: =B188 -> 19 | G184: =B189 -> 20 | AB184: DV1 | AD184: =AB186 -> 21 | AE184: =AB187 -> 22 | AF184: =AB188 -> 23 | AG184: =AB189 -> 24
B185: TeamIndex | C185: Nr | D185: =C186 -> 1 | E185: =C187 -> 2 | F185: =C188 -> 3 | G185: =C189 -> 4 | I185: RangPkt. | K185: Siege | AB185: TeamIndex | AC185: Nr | AD185: =AC186 -> 1 | AE185: =AC187 -> 2 | AF185: =AC188 -> 3 | AG185: =AC189 -> 4 | AI185: RangPkt. | AK185: Siege
B186: =INDEX($C$179:$C$182,C186) -> 17 | C186: 1 | D186: =IF(INDEX($I$179:$I$182,$C186)<>INDEX($I$179:$I$182,D$185),0,SUMIF($B$170:$C$175,"="&$B186&"#"&D$184,$O$170:$P$175)) -> 0 | E186: 0 | F186: 0 | G186: 0 | H186: =SUM(D186:G186) -> 0 | I186: =RANK(H186,$H$186:$H$189,1) -> 1 | K186: =COUNTIF(S170:T175,"S"&B186) -> 1 | AB186: =INDEX($AC$179:$AC$182,AC186) -> 21 | AC186: 1 | AD186: =IF(INDEX($AI$179:$AI$182,$AC186)<>INDEX($AI$179:$AI$182,AD$185),0,SUMIF($AB$170:$AC$175,"="&$AB186&"#"&AD$184,$AO$170:$AP$175)) -> 0 | AE186: 0 | AF186: 0 | AG186: 0 | AH186: =SUM(AD186:AG186) -> 0 | AI186: =RANK(AH186,$AH$186:$AH$189,1) -> 2 | AK186: =COUNTIF(AS170:AT175,"S"&AB186) -> 0
B187: =INDEX($C$179:$C$182,C187) -> 18 | C187: 2 | D187: 0 | E187: 0 | F187: 0 | G187: 0 | H187: =SUM(D187:G187) -> 0 | I187: =RANK(H187,$H$186:$H$189,1) -> 1 | K187: =COUNTIF(S170:T175,"S"&B187) -> 2 | AB187: =INDEX($AC$179:$AC$182,AC187) -> 22 | AC187: 2 | AD187: 0 | AE187: 0 | AF187: 0 | AG187: -1.998 | AH187: =SUM(AD187:AG187) -> -1.998 | AI187: =RANK(AH187,$AH$186:$AH$189,1) -> 1 | AK187: =COUNTIF(AS170:AT175,"S"&AB187) -> 1
B188: =INDEX($C$179:$C$182,C188) -> 19 | C188: 3 | D188: 0 | E188: 0 | F188: 0 | G188: 0 | H188: =SUM(D188:G188) -> 0 | I188: =RANK(H188,$H$186:$H$189,1) -> 1 | K188: =COUNTIF(S170:T175,"S"&B188) -> 0 | AB188: =INDEX($AC$179:$AC$182,AC188) -> 23 | AC188: 3 | AD188: 0 | AE188: 0 | AF188: 0 | AG188: 0 | AH188: =SUM(AD188:AG188) -> 0 | AI188: =RANK(AH188,$AH$186:$AH$189,1) -> 2 | AK188: =COUNTIF(AS170:AT175,"S"&AB188) -> 1
B189: =INDEX($C$179:$C$182,C189) -> 20 | C189: 4 | D189: 0 | E189: 0 | F189: 0 | G189: 0 | H189: =SUM(D189:G189) -> 0 | I189: =RANK(H189,$H$186:$H$189,1) -> 1 | K189: =COUNTIF(S170:T175,"S"&B189) -> 1 | AB189: =INDEX($AC$179:$AC$182,AC189) -> 24 | AC189: 4 | AD189: 0 | AE189: 3002.004 | AF189: 0 | AG189: 0 | AH189: =SUM(AD189:AG189) -> 3002.004 | AI189: =RANK(AH189,$AH$186:$AH$189,1) -> 4 | AK189: =COUNTIF(AS170:AT175,"S"&AB189) -> 1
B191: DV2 | C191: Nr | D191: =C192 -> 1 | E191: =C193 -> 2 | F191: =C194 -> 3 | G191: =C195 -> 4 | I191: RangPkt. | AB191: DV2 | AC191: Nr | AD191: =AC192 -> 1 | AE191: =AC193 -> 2 | AF191: =AC194 -> 3 | AG191: =AC195 -> 4 | AI191: RangPkt.
B192: =B186 -> 17 | C192: 1 | D192: =IF(D186=0,0,IF(INDEX($I$186:$I$189,$C186)<>INDEX($I$186:$I$189,D$185),0,SUMIF($B$170:$C$175,"="&$B186&"#"&D$184,$K$170:$L$175)*1000+SUMIF($B$170:$C$175,"="&$B186&"#"&D$184,$M$170:$N$175)+SUMIF($B$170:$C$175,"="&$B186&"#"&D$184,$G$170:$H$175)/1000)) -> 0 | E192: 0 | F192: 0 | G192: 0 | H192: =SUM(D192:G192) -> 0 | I192: =RANK(H192,$H$192:$H$195,1) -> 1 | AB192: =AB186 -> 21 | AC192: 1 | AD192: =IF(AD186=0,0,IF(INDEX($AI$186:$AI$189,$AC186)<>INDEX($AI$186:$AI$189,AD$185),0,SUMIF($AB$170:$AC$175,"="&$AB186&"#"&AD$184,$AK$170:$AL$175)*1000+SUMIF($AB$170:$AC$175,"="&$AB186&"#"&AD$184,$AM$170:$AN$175)+SUMIF($AB$170:$AC$175,"="&$AB186&"#"&AD$184,$AG$170:$AH$175)/1000)) -> 0 | AE192: 0 | AF192: 0 | AG192: 0 | AH192: =SUM(AD192:AG192) -> 0 | AI192: =RANK(AH192,$AH$192:$AH$195,1) -> 1
B193: =B187 -> 18 | C193: 2 | D193: 0 | E193: 0 | F193: 0 | G193: 0 | H193: =SUM(D193:G193) -> 0 | I193: =RANK(H193,$H$192:$H$195,1) -> 1 | AB193: =AB187 -> 22 | AC193: 2 | AD193: 0 | AE193: 0 | AF193: 0 | AG193: 0 | AH193: =SUM(AD193:AG193) -> 0 | AI193: =RANK(AH193,$AH$192:$AH$195,1) -> 1
B194: =B188 -> 19 | C194: 3 | D194: 0 | E194: 0 | F194: 0 | G194: 0 | H194: =SUM(D194:G194) -> 0 | I194: =RANK(H194,$H$192:$H$195,1) -> 1 | AB194: =AB188 -> 23 | AC194: 3 | AD194: 0 | AE194: 0 | AF194: 0 | AG194: 0 | AH194: =SUM(AD194:AG194) -> 0 | AI194: =RANK(AH194,$AH$192:$AH$195,1) -> 1
B195: =B189 -> 20 | C195: 4 | D195: 0 | E195: 0 | F195: 0 | G195: 0 | H195: =SUM(D195:G195) -> 0 | I195: =RANK(H195,$H$192:$H$195,1) -> 1 | AB195: =AB189 -> 24 | AC195: 4 | AD195: 0 | AE195: 0 | AF195: 0 | AG195: 0 | AH195: =SUM(AD195:AG195) -> 0 | AI195: =RANK(AH195,$AH$192:$AH$195,1) -> 1
C197: Nr | D197: RangPkt | H197: RangPkt | AC197: Nr | AD197: RangPkt | AH197: RangPkt
B198: Diff | C198: 1 | D198: =RANK(G179,$G$179:$G$182,1) -> 4 | F198: Tore | G198: 1 | H198: =RANK(E179,$E$179:$E$182,1) -> 4 | AB198: Diff | AC198: 1 | AD198: =RANK(AG179,$AG$179:$AG$182,1) -> 1 | AF198: Tore | AG198: 1 | AH198: =RANK(AE179,$AE$179:$AE$182,1) -> 1
C199: 2 | D199: =RANK(G180,$G$179:$G$182,1) -> 3 | G199: 2 | H199: =RANK(E180,$E$179:$E$182,1) -> 2 | AC199: 2 | AD199: =RANK(AG180,$AG$179:$AG$182,1) -> 2 | AG199: 2 | AH199: =RANK(AE180,$AE$179:$AE$182,1) -> 4
C200: 3 | D200: =RANK(G181,$G$179:$G$182,1) -> 2 | G200: 3 | H200: =RANK(E181,$E$179:$E$182,1) -> 2 | AC200: 3 | AD200: =RANK(AG181,$AG$179:$AG$182,1) -> 2 | AG200: 3 | AH200: =RANK(AE181,$AE$179:$AE$182,1) -> 2
C201: 4 | D201: =RANK(G182,$G$179:$G$182,1) -> 1 | G201: 4 | H201: =RANK(E182,$E$179:$E$182,1) -> 1 | AC201: 4 | AD201: =RANK(AG182,$AG$179:$AG$182,1) -> 2 | AG201: 4 | AH201: =RANK(AE182,$AE$179:$AE$182,1) -> 3
I203: Modus | AI203: Modus
C204: Nr | E204: RangPkt | F204: Rang | H204: Wertigkeit | I204: 1 | J204: 2 | K204: Faktor | M204: Faktoren | AC204: Nr | AE204: RangPkt | AF204: Rang | AH204: Wertigkeit | AI204: 1 | AJ204: 2 | AK204: Faktor | AM204: Faktoren
B205: Wert | C205: 1 | D205: =I179*$K$205+I186*$K$206+I192*$K$207+D198*$K$208+H198*$K$209 -> 30101040400 | E205: =RANK(D205,$D$205:$D$208,1) -> 3 | F205: =RANK(D205,$D$205:$D$208) -> 2 | H205: Punkte | I205: 1 | J205: 1 | K205: =INDEX(N205:N212,INDEX(I205:J205,A179)) -> 10000000000 | M205: 1 | N205: 10000000000 | AB205: Wert | AC205: 1 | AD205: =AI179*$AK$205+AI186*$AK$206+AI192*$AK$207+AD198*$AK$208+AH198*$AK$209 -> 10201010100 | AE205: =RANK(AD205,$AD$205:$AD$208,1) -> 1 | AF205: =RANK(AD205,$AD$205:$AD$208) -> 4 | AH205: Punkte | AI205: 1 | AJ205: 1 | AK205: =INDEX(AN205:AN212,INDEX(AI205:AJ205,AA179)) -> 10000000000 | AM205: 1 | AN205: 10000000000
C206: 2 | D206: =I180*$K$205+I187*$K$206+I193*$K$207+D199*$K$208+H199*$K$209 -> 40101030200 | E206: =RANK(D206,$D$205:$D$208,1) -> 4 | F206: =RANK(D206,$D$205:$D$208) -> 1 | H206: DV1 | I206: 2 | J206: 4 | K206: =INDEX(N205:N212,INDEX(I206:J206,A179)) -> 100000000 | M206: 2 | N206: 100000000 | AC206: 2 | AD206: =AI180*$AK$205+AI187*$AK$206+AI193*$AK$207+AD199*$AK$208+AH199*$AK$209 -> 20101020400 | AE206: =RANK(AD206,$AD$205:$AD$208,1) -> 2 | AF206: =RANK(AD206,$AD$205:$AD$208) -> 3 | AH206: DV1 | AI206: 2 | AJ206: 4 | AK206: =INDEX(AN205:AN212,INDEX(AI206:AJ206,AA179)) -> 100000000 | AM206: 2 | AN206: 100000000
C207: 3 | D207: =I181*$K$205+I188*$K$206+I194*$K$207+D200*$K$208+H200*$K$209 -> 10101020200 | E207: =RANK(D207,$D$205:$D$208,1) -> 1 | F207: =RANK(D207,$D$205:$D$208) -> 4 | H207: DV2 | I207: 3 | J207: 5 | K207: =INDEX(N205:N212,INDEX(I207:J207,A179)) -> 1000000 | M207: 3 | N207: 1000000 | AC207: 3 | AD207: =AI181*$AK$205+AI188*$AK$206+AI194*$AK$207+AD200*$AK$208+AH200*$AK$209 -> 40201020200 | AE207: =RANK(AD207,$AD$205:$AD$208,1) -> 4 | AF207: =RANK(AD207,$AD$205:$AD$208) -> 1 | AH207: DV2 | AI207: 3 | AJ207: 5 | AK207: =INDEX(AN205:AN212,INDEX(AI207:AJ207,AA179)) -> 1000000 | AM207: 3 | AN207: 1000000
C208: 4 | D208: =I182*$K$205+I189*$K$206+I195*$K$207+D201*$K$208+H201*$K$209 -> 20101010100 | E208: =RANK(D208,$D$205:$D$208,1) -> 2 | F208: =RANK(D208,$D$205:$D$208) -> 3 | H208: TD alle | I208: 4 | J208: 2 | K208: =INDEX(N205:N212,INDEX(I208:J208,A179)) -> 10000 | M208: 4 | N208: 10000 | AC208: 4 | AD208: =AI182*$AK$205+AI189*$AK$206+AI195*$AK$207+AD201*$AK$208+AH201*$AK$209 -> 20401020300 | AE208: =RANK(AD208,$AD$205:$AD$208,1) -> 3 | AF208: =RANK(AD208,$AD$205:$AD$208) -> 2 | AH208: TD alle | AI208: 4 | AJ208: 2 | AK208: =INDEX(AN205:AN212,INDEX(AI208:AJ208,AA179)) -> 10000 | AM208: 4 | AN208: 10000
H209: Tore alle | I209: 5 | J209: 3 | K209: =INDEX(N205:N212,INDEX(I209:J209,A179)) -> 100 | M209: 5 | N209: 100 | AH209: Tore alle | AI209: 5 | AJ209: 3 | AK209: =INDEX(AN205:AN212,INDEX(AI209:AJ209,AA179)) -> 100 | AM209: 5 | AN209: 100
H210: EMS | I210: 6 | J210: 6 | K210: =INDEX(N205:N212,INDEX(I210:J210,A179)) -> 1 | M210: 6 | N210: 1 | AH210: EMS | AI210: 6 | AJ210: 6 | AK210: =INDEX(AN205:AN212,INDEX(AI210:AJ210,AA179)) -> 1 | AM210: 6 | AN210: 1
H211: FP | I211: 8 | J211: 7 | K211: =INDEX(N205:N212,INDEX(I211:J211,A179)) -> 0.0001 | M211: 7 | N211: =1/100 -> 0.01 | AH211: FP | AI211: 8 | AJ211: 7 | AK211: =INDEX(AN205:AN212,INDEX(AI211:AJ211,AA179)) -> 0.0001 | AM211: 7 | AN211: =1/100 -> 0.01
H212: Anzahl Siege Alle | I212: 7 | J212: 8 | K212: =INDEX(N205:N212,INDEX(I212:J212,A179)) -> 0.01 | M212: 8 | N212: =1/10000 -> 0.0001 | AH212: Anzahl Siege Alle | AI212: 7 | AJ212: 8 | AK212: =INDEX(AN205:AN212,INDEX(AI212:AJ212,AA179)) -> 0.01 | AM212: 8 | AN212: =1/10000 -> 0.0001
C228: Rangpkt inkl. EMS und Koeff | AC228: Rangpkt inkl. EMS und Koeff
C229: Nr. | D229: RangPkt | E229: Rang | F229: Rang korr | AC229: Nr. | AD229: RangPkt | AE229: Rang | AF229: Rang korr
B230: Wert | C230: 1 | D230: =E205*1000+SUMIF($D$266:$E$277,"="&C179,$P$266:$Q$277)*$K$46+N179*$K$47+K186*$K$48 -> 3000.0103 | E230: =RANK(D230,$D$230:$D$233) -> 2 | F230: =E230+COUNTIF(E$229:E229,"="&E230) -> 2 | AB230: Wert | AC230: 1 | AD230: =AE205*1000+SUMIF($D$266:$E$277,"="&AC179,$P$266:$Q$277)*$K$46+AN179*$K$47+AK186*$K$48 -> 1000.0003 | AE230: =RANK(AD230,$AD$230:$AD$233) -> 4 | AF230: =AE230+COUNTIF(AE$229:AE229,"="&AE230) -> 4
C231: 2 | D231: =E206*1000+SUMIF($D$266:$E$277,"="&C180,$P$266:$Q$277)*$K$46+N180*$K$47+K187*$K$48 -> 4000.0202 | E231: =RANK(D231,$D$230:$D$233) -> 1 | F231: =E231+COUNTIF(E$229:E230,"="&E231) -> 1 | AC231: 2 | AD231: =AE206*1000+SUMIF($D$266:$E$277,"="&AC180,$P$266:$Q$277)*$K$46+AN180*$K$47+AK187*$K$48 -> 2000.0104 | AE231: =RANK(AD231,$AD$230:$AD$233) -> 3 | AF231: =AE231+COUNTIF(AE$229:AE230,"="&AE231) -> 3
C232: 3 | D232: =E207*1000+SUMIF($D$266:$E$277,"="&C181,$P$266:$Q$277)*$K$46+N181*$K$47+K188*$K$48 -> 1000.0001 | E232: =RANK(D232,$D$230:$D$233) -> 4 | F232: =E232+COUNTIF(E$229:E231,"="&E232) -> 4 | AC232: 3 | AD232: =AE207*1000+SUMIF($D$266:$E$277,"="&AC181,$P$266:$Q$277)*$K$46+AN181*$K$47+AK188*$K$48 -> 4000.0101 | AE232: =RANK(AD232,$AD$230:$AD$233) -> 1 | AF232: =AE232+COUNTIF(AE$229:AE231,"="&AE232) -> 1
C233: 4 | D233: =E208*1000+SUMIF($D$266:$E$277,"="&C182,$P$266:$Q$277)*$K$46+N182*$K$47+K189*$K$48 -> 2000.0103 | E233: =RANK(D233,$D$230:$D$233) -> 3 | F233: =E233+COUNTIF(E$229:E232,"="&E233) -> 3 | AC233: 4 | AD233: =AE208*1000+SUMIF($D$266:$E$277,"="&AC182,$P$266:$Q$277)*$K$46+AN182*$K$47+AK189*$K$48 -> 3000.0102 | AE233: =RANK(AD233,$AD$230:$AD$233) -> 2 | AF233: =AE233+COUNTIF(AE$229:AE232,"="&AE233) -> 2
J234: berechnete oder manuelle Tabelle | AJ234: berechnete oder manuelle Tabelle
B235: Tabelle | C235: Rang | D235: Nr | E235: Rang Eff | F235: Manuell | G235: =VLOOKUP(A168,ERGEBNISSE!$BQ$38:$BR$47,2,FALSE) -> FALSE | H235: Nr | J235: Nr korr | AB235: Tabelle | AC235: Rang | AD235: Nr | AE235: Rang Eff | AF235: Manuell | AG235: =VLOOKUP(AA168,ERGEBNISSE!$BQ$38:$BR$47,2,FALSE) -> FALSE | AH235: Nr | AJ235: Nr korr
B236: =INDEX(teams,INDEX(C179:C182,D236)) -> Schweden | C236: 1 | D236: =MATCH(C236,$F$230:$F$233,0) -> 2 | E236: =IF(G235,C236,INDEX(E230:E233,D236)) -> 1 | F236: 1 | G236: 1 | H236: =IF(G235,VLOOKUP(A243,ERGEBNISSE!$BR$12:$BT$35,3,FALSE),D236) -> 2 | J236: =IF($G$235,H236,D236) -> 2 | AB236: =INDEX(teams,INDEX(AC179:AC182,AD236)) -> Frankreich | AC236: 1 | AD236: =MATCH(AC236,$AF$230:$AF$233,0) -> 3 | AE236: =IF(AG235,AC236,INDEX(AE230:AE233,AD236)) -> 1 | AF236: 1 | AG236: 1 | AH236: =IF(AG235,VLOOKUP(AA243,ERGEBNISSE!$BR$12:$BT$35,3,FALSE),AD236) -> 3 | AJ236: =IF($AG$235,AH236,AD236) -> 3
B237: =INDEX(teams,INDEX(C179:C182,D237)) -> Spanien | C237: 2 | D237: =MATCH(C237,$F$230:$F$233,0) -> 1 | E237: =IF(G235,C237,INDEX(E230:E233,D237)) -> 2 | G237: 2 | H237: =IF(G235,VLOOKUP(A244,ERGEBNISSE!$BR$12:$BT$35,3,FALSE),D237) -> 1 | J237: =IF($G$235,H237,D237) -> 1 | AB237: =INDEX(teams,INDEX(AC179:AC182,AD237)) -> Deutschland | AC237: 2 | AD237: =MATCH(AC237,$AF$230:$AF$233,0) -> 4 | AE237: =IF(AG235,AC237,INDEX(AE230:AE233,AD237)) -> 2 | AG237: 2 | AH237: =IF(AG235,VLOOKUP(AA244,ERGEBNISSE!$BR$12:$BT$35,3,FALSE),AD237) -> 4 | AJ237: =IF($AG$235,AH237,AD237) -> 4
B238: =INDEX(teams,INDEX(C179:C182,D238)) -> Slowakei | C238: 3 | D238: =MATCH(C238,$F$230:$F$233,0) -> 4 | E238: =IF(G235,C238,INDEX(E230:E233,D238)) -> 3 | G238: 3 | H238: =IF(G235,VLOOKUP(A245,ERGEBNISSE!$BR$12:$BT$35,3,FALSE),D238) -> 4 | J238: =IF($G$235,H238,D238) -> 4 | AB238: =INDEX(teams,INDEX(AC179:AC182,AD238)) -> Portugal | AC238: 3 | AD238: =MATCH(AC238,$AF$230:$AF$233,0) -> 2 | AE238: =IF(AG235,AC238,INDEX(AE230:AE233,AD238)) -> 3 | AG238: 3 | AH238: =IF(AG235,VLOOKUP(AA245,ERGEBNISSE!$BR$12:$BT$35,3,FALSE),AD238) -> 2 | AJ238: =IF($AG$235,AH238,AD238) -> 2
B239: =INDEX(teams,INDEX(C179:C182,D239)) -> Polen | C239: 4 | D239: =MATCH(C239,$F$230:$F$233,0) -> 3 | E239: =IF(G235,C239,INDEX(E230:E233,D239)) -> 4 | G239: 4 | H239: =IF(G235,VLOOKUP(A246,ERGEBNISSE!$BR$12:$BT$35,3,FALSE),D239) -> 3 | J239: =IF($G$235,H239,D239) -> 3 | AB239: =INDEX(teams,INDEX(AC179:AC182,AD239)) -> Ungarn | AC239: 4 | AD239: =MATCH(AC239,$AF$230:$AF$233,0) -> 1 | AE239: =IF(AG235,AC239,INDEX(AE230:AE233,AD239)) -> 4 | AG239: 4 | AH239: =IF(AG235,VLOOKUP(AA246,ERGEBNISSE!$BR$12:$BT$35,3,FALSE),AD239) -> 1 | AJ239: =IF($AG$235,AH239,AD239) -> 1
B242: Tabelle | C242: TeamIndex | D242: Nr | E242: Team | F242: Sp | G242: P | H242: T+ | I242: T- | J242: Diff | K242: S | L242: U | M242: N | AB242: Tabelle | AC242: TeamIndex | AD242: Nr | AE242: Team | AF242: Sp | AG242: P | AH242: T+ | AI242: T- | AJ242: Diff | AK242: S | AL242: U | AM242: N
A243: ="S"&A168 -> SE | B243: 1 | C243: =INDEX($C$179:$C$182,J236) -> 18 | D243: =J236 -> 2 | E243: =INDEX($H$179:$H$182,J236) -> SWE | F243: =SUMIF($D$170:$E$175,"="&$C243,$Q$170:$R$175) -> 3 | G243: =INDEX($D$179:$D$182,$J236) -> 7 | H243: =INDEX($E$179:$E$182,$J236) -> 4 | I243: =INDEX($F$179:$F$182,$J236) -> 2 | J243: =INDEX($G$179:$G$182,$J236) -> 2 | K243: =COUNTIF($S$170:$T$175,"="&K$242&$C243) -> 2 | L243: 1 | M243: 0 | AA243: ="S"&AA168 -> SF | AB243: 1 | AC243: =INDEX($AC$179:$AC$182,AJ236) -> 23 | AD243: =AJ236 -> 3 | AE243: =INDEX($AH$179:$AH$182,AJ236) -> FRA | AF243: =SUMIF($AD$170:$AE$175,"="&$AC243,$AQ$170:$AR$175) -> 3 | AG243: =INDEX($AD$179:$AD$182,$AJ236) -> 5 | AH243: =INDEX($AE$179:$AE$182,$AJ236) -> 4 | AI243: =INDEX($AF$179:$AF$182,$AJ236) -> 3 | AJ243: =INDEX($AG$179:$AG$182,$AJ236) -> 1 | AK243: =COUNTIF($AS$170:$AT$175,"="&AK$242&$AC243) -> 1 | AL243: 2 | AM243: 0
A244: ="Z"&A168 -> ZE | B244: 2 | C244: =INDEX($C$179:$C$182,J237) -> 17 | D244: =J237 -> 1 | E244: =INDEX($H$179:$H$182,J237) -> ESP | F244: =SUMIF($D$170:$E$175,"="&$C244,$Q$170:$R$175) -> 3 | G244: =INDEX($D$179:$D$182,$J237) -> 5 | H244: =INDEX($E$179:$E$182,$J237) -> 6 | I244: =INDEX($F$179:$F$182,$J237) -> 1 | J244: =INDEX($G$179:$G$182,$J237) -> 5 | K244: 1 | L244: 2 | M244: 0 | AA244: ="Z"&AA168 -> ZF | AB244: 2 | AC244: =INDEX($AC$179:$AC$182,AJ237) -> 24 | AD244: =AJ237 -> 4 | AE244: =INDEX($AH$179:$AH$182,AJ237) -> GER | AF244: =SUMIF($AD$170:$AE$175,"="&$AC244,$AQ$170:$AR$175) -> 3 | AG244: =INDEX($AD$179:$AD$182,$AJ237) -> 4 | AH244: =INDEX($AE$179:$AE$182,$AJ237) -> 6 | AI244: =INDEX($AF$179:$AF$182,$AJ237) -> 5 | AJ244: =INDEX($AG$179:$AG$182,$AJ237) -> 1 | AK244: 1 | AL244: 1 | AM244: 1
A245: ="D"&A168 -> DE | B245: 3 | C245: =INDEX($C$179:$C$182,J238) -> 20 | D245: =J238 -> 4 | E245: =INDEX($H$179:$H$182,J238) -> SVK | F245: =SUMIF($D$170:$E$175,"="&$C245,$Q$170:$R$175) -> 3 | G245: =INDEX($D$179:$D$182,$J238) -> 3 | H245: =INDEX($E$179:$E$182,$J238) -> 2 | I245: =INDEX($F$179:$F$182,$J238) -> 7 | J245: =INDEX($G$179:$G$182,$J238) -> -5 | K245: 1 | L245: 0 | M245: 2 | AA245: ="D"&AA168 -> DF | AB245: 3 | AC245: =INDEX($AC$179:$AC$182,AJ238) -> 22 | AD245: =AJ238 -> 2 | AE245: =INDEX($AH$179:$AH$182,AJ238) -> POR | AF245: =SUMIF($AD$170:$AE$175,"="&$AC245,$AQ$170:$AR$175) -> 3 | AG245: =INDEX($AD$179:$AD$182,$AJ238) -> 4 | AH245: =INDEX($AE$179:$AE$182,$AJ238) -> 7 | AI245: =INDEX($AF$179:$AF$182,$AJ238) -> 6 | AJ245: =INDEX($AG$179:$AG$182,$AJ238) -> 1 | AK245: 1 | AL245: 1 | AM245: 1
A246: ="V"&A168 -> VE | B246: 4 | C246: =INDEX($C$179:$C$182,J239) -> 19 | D246: =J239 -> 3 | E246: =INDEX($H$179:$H$182,J239) -> POL | F246: =SUMIF($D$170:$E$175,"="&$C246,$Q$170:$R$175) -> 3 | G246: =INDEX($D$179:$D$182,$J239) -> 1 | H246: =INDEX($E$179:$E$182,$J239) -> 4 | I246: =INDEX($F$179:$F$182,$J239) -> 6 | J246: =INDEX($G$179:$G$182,$J239) -> -2 | K246: 0 | L246: 1 | M246: 2 | AA246: ="V"&AA168 -> VF | AB246: 4 | AC246: =INDEX($AC$179:$AC$182,AJ239) -> 21 | AD246: =AJ239 -> 1 | AE246: =INDEX($AH$179:$AH$182,AJ239) -> HUN | AF246: =SUMIF($AD$170:$AE$175,"="&$AC246,$AQ$170:$AR$175) -> 3 | AG246: =INDEX($AD$179:$AD$182,$AJ239) -> 2 | AH246: =INDEX($AE$179:$AE$182,$AJ239) -> 3 | AI246: =INDEX($AF$179:$AF$182,$AJ239) -> 6 | AJ246: =INDEX($AG$179:$AG$182,$AJ239) -> -3 | AK246: 0 | AL246: 2 | AM246: 1
A264: EMS GR | S264: Text Erg | U264: Text für Datenbank Turnierübersicht
A265: Spieltag 3 | B265: Gr. | C265: Spiele Gr. | D265: TIDXH | E265: TIDXA | F265: ErgH | G265: ErgA | H265: RangH | I265: RangA | J265: PH | K265: PA | L265: Hfgk. | M265: EMSOK | N265: Erg EMS | P265: PunkteEMS | R265: =SUM(R266:R277) -> 0
A266: =ERGEBNISSE!C36 -> A5 | B266: =CODE(LEFT(A266,1))-64 -> 1 | C266: =INDEX($E$281:$E$286,B266) -> 6 | D266: =daten!I73 -> 4 | E266: =daten!J73 -> 1 | F266: =ERGEBNISSE!E36 -> 3 | G266: =ERGEBNISSE!F36 -> 1 | H266: =INDEX($B$281:$B$304,D266) -> 3 | I266: =INDEX($B$281:$B$304,E266) -> 4 | J266: =INDEX($C$281:$C$304,D266) -> 4 | K266: =INDEX($C$281:$C$304,E266) -> 0 | L266: =SUM(IF($B$266:$B$277=B266,IF($J$266:$K$277=J266,1,0))) -> 2 | M266: =AND(C266=6,$A$15=1,COUNT(F266:G266)=2,H266=I266,L266=2) -> FALSE | N266: =IF(NOT(M266),"",IF(COUNT(ERGEBNISSE!AO36,ERGEBNISSE!AQ36)<>2,"",ERGEBNISSE!AO36)) ->  | O266: =IF(NOT(M266),"",IF(COUNT(ERGEBNISSE!AO36,ERGEBNISSE!AQ36)<>2,"",ERGEBNISSE!AQ36)) ->  | P266: =IF(COUNT(N266:O266)<>2,0,IF(N266>O266,1,0)) -> 0 | Q266: =IF(COUNT(N266:O266)<>2,0,IF(N266<O266,1,0)) -> 0 | R266: =IF(M266,1,0) -> 0 | S266: =IF(COUNT(N266:O266)<>2,"",N266&":"&O266 &" i.E.") ->  | U266: A5 | V266: =VLOOKUP(U266,$A$266:$M$277,13,FALSE) -> FALSE | W266: =IF(V266,VLOOKUP(U266,$A$266:$S$277,19,FALSE),"" ) -> 
A267: =ERGEBNISSE!C37 -> A6 | B267: 1 | C267: 6 | D267: =daten!I74 -> 2 | E267: =daten!J74 -> 3 | F267: =ERGEBNISSE!E37 -> 1 | G267: =ERGEBNISSE!F37 -> 0 | H267: 1 | I267: 2 | J267: 9 | K267: 4 | L267: =SUM(IF($B$266:$B$277=B267,IF($J$266:$K$277=J267,1,0))) -> 1 | M267: FALSE | N267: =IF(NOT(M267),"",IF(COUNT(ERGEBNISSE!AO37,ERGEBNISSE!AQ37)<>2,"",ERGEBNISSE!AO37)) ->  | O267: =IF(NOT(M267),"",IF(COUNT(ERGEBNISSE!AO37,ERGEBNISSE!AQ37)<>2,"",ERGEBNISSE!AQ37)) ->  | P267: 0 | Q267: 0 | R267: 0 | U267: A6 | V267: FALSE
A268: =ERGEBNISSE!C38 -> C5 | B268: 3 | C268: 6 | D268: =daten!I75 -> 12 | E268: =daten!J75 -> 9 | F268: =ERGEBNISSE!E38 -> 0 | G268: =ERGEBNISSE!F38 -> 3 | H268: 4 | I268: 1 | J268: 0 | K268: 9 | L268: =SUM(IF($B$266:$B$277=B268,IF($J$266:$K$277=J268,1,0))) -> 1 | M268: FALSE | N268: =IF(NOT(M268),"",IF(COUNT(ERGEBNISSE!AO38,ERGEBNISSE!AQ38)<>2,"",ERGEBNISSE!AO38)) ->  | O268: =IF(NOT(M268),"",IF(COUNT(ERGEBNISSE!AO38,ERGEBNISSE!AQ38)<>2,"",ERGEBNISSE!AQ38)) ->  | P268: 0 | Q268: 0 | R268: 0 | U268: B5 | V268: FALSE
A269: =ERGEBNISSE!C39 -> C6 | B269: 3 | C269: 6 | D269: =daten!I76 -> 10 | E269: =daten!J76 -> 11 | F269: =ERGEBNISSE!E39 -> 0 | G269: =ERGEBNISSE!F39 -> 1 | H269: 3 | I269: 2 | J269: 3 | K269: 6 | L269: =SUM(IF($B$266:$B$277=B269,IF($J$266:$K$277=J269,1,0))) -> 1 | M269: FALSE | N269: =IF(NOT(M269),"",IF(COUNT(ERGEBNISSE!AO39,ERGEBNISSE!AQ39)<>2,"",ERGEBNISSE!AO39)) ->  | O269: =IF(NOT(M269),"",IF(COUNT(ERGEBNISSE!AO39,ERGEBNISSE!AQ39)<>2,"",ERGEBNISSE!AQ39)) ->  | P269: 0 | Q269: 0 | R269: 0 | U269: B6 | V269: FALSE
A270: =ERGEBNISSE!C40 -> B5 | B270: 2 | C270: 6 | D270: =daten!I77 -> 8 | E270: =daten!J77 -> 5 | F270: =ERGEBNISSE!E40 -> 1 | G270: =ERGEBNISSE!F40 -> 4 | H270: 4 | I270: 2 | J270: 3 | K270: 3 | L270: =SUM(IF($B$266:$B$277=B270,IF($J$266:$K$277=J270,1,0))) -> 3 | M270: FALSE | N270: =IF(NOT(M270),"",IF(COUNT(ERGEBNISSE!AO40,ERGEBNISSE!AQ40)<>2,"",ERGEBNISSE!AO40)) ->  | O270: =IF(NOT(M270),"",IF(COUNT(ERGEBNISSE!AO40,ERGEBNISSE!AQ40)<>2,"",ERGEBNISSE!AQ40)) ->  | P270: 0 | Q270: 0 | R270: 0 | U270: C5 | V270: FALSE
A271: =ERGEBNISSE!C41 -> B6 | B271: 2 | C271: 6 | D271: =daten!I78 -> 6 | E271: =daten!J78 -> 7 | F271: =ERGEBNISSE!E41 -> 0 | G271: =ERGEBNISSE!F41 -> 2 | H271: 3 | I271: 1 | J271: 3 | K271: 9 | L271: =SUM(IF($B$266:$B$277=B271,IF($J$266:$K$277=J271,1,0))) -> 3 | M271: FALSE | N271: =IF(NOT(M271),"",IF(COUNT(ERGEBNISSE!AO41,ERGEBNISSE!AQ41)<>2,"",ERGEBNISSE!AO41)) ->  | O271: =IF(NOT(M271),"",IF(COUNT(ERGEBNISSE!AO41,ERGEBNISSE!AQ41)<>2,"",ERGEBNISSE!AQ41)) ->  | P271: 0 | Q271: 0 | R271: 0 | U271: C6 | V271: FALSE
A272: =ERGEBNISSE!C42 -> D5 | B272: 4 | C272: 6 | D272: =daten!I79 -> 14 | E272: =daten!J79 -> 15 | F272: =ERGEBNISSE!E42 -> 3 | G272: =ERGEBNISSE!F42 -> 1 | H272: 2 | I272: 4 | J272: 4 | K272: 1 | L272: =SUM(IF($B$266:$B$277=B272,IF($J$266:$K$277=J272,1,0))) -> 2 | M272: FALSE | N272: =IF(NOT(M272),"",IF(COUNT(ERGEBNISSE!AO42,ERGEBNISSE!AQ42)<>2,"",ERGEBNISSE!AO42)) ->  | O272: =IF(NOT(M272),"",IF(COUNT(ERGEBNISSE!AO42,ERGEBNISSE!AQ42)<>2,"",ERGEBNISSE!AQ42)) ->  | P272: 0 | Q272: 0 | R272: 0 | U272: D5 | V272: FALSE
A273: =ERGEBNISSE!C43 -> D6 | B273: 4 | C273: 6 | D273: =daten!I80 -> 16 | E273: =daten!J80 -> 13 | F273: =ERGEBNISSE!E43 -> 0 | G273: =ERGEBNISSE!F43 -> 1 | H273: 3 | I273: 1 | J273: 4 | K273: 7 | L273: =SUM(IF($B$266:$B$277=B273,IF($J$266:$K$277=J273,1,0))) -> 2 | M273: FALSE | N273: =IF(NOT(M273),"",IF(COUNT(ERGEBNISSE!AO43,ERGEBNISSE!AQ43)<>2,"",ERGEBNISSE!AO43)) ->  | O273: =IF(NOT(M273),"",IF(COUNT(ERGEBNISSE!AO43,ERGEBNISSE!AQ43)<>2,"",ERGEBNISSE!AQ43)) ->  | P273: 0 | Q273: 0 | R273: 0 | U273: D6 | V273: FALSE
A274: =ERGEBNISSE!C44 -> E5 | B274: 5 | C274: 6 | D274: =daten!I81 -> 20 | E274: =daten!J81 -> 17 | F274: =ERGEBNISSE!E44 -> 0 | G274: =ERGEBNISSE!F44 -> 5 | H274: 3 | I274: 2 | J274: 3 | K274: 5 | L274: =SUM(IF($B$266:$B$277=B274,IF($J$266:$K$277=J274,1,0))) -> 1 | M274: FALSE | N274: =IF(NOT(M274),"",IF(COUNT(ERGEBNISSE!AO44,ERGEBNISSE!AQ44)<>2,"",ERGEBNISSE!AO44)) ->  | O274: =IF(NOT(M274),"",IF(COUNT(ERGEBNISSE!AO44,ERGEBNISSE!AQ44)<>2,"",ERGEBNISSE!AQ44)) ->  | P274: 0 | Q274: 0 | R274: 0 | U274: E5 | V274: FALSE
A275: =ERGEBNISSE!C45 -> E6 | B275: 5 | C275: 6 | D275: =daten!I82 -> 18 | E275: =daten!J82 -> 19 | F275: =ERGEBNISSE!E45 -> 3 | G275: =ERGEBNISSE!F45 -> 2 | H275: 1 | I275: 4 | J275: 7 | K275: 1 | L275: =SUM(IF($B$266:$B$277=B275,IF($J$266:$K$277=J275,1,0))) -> 1 | M275: FALSE | N275: =IF(NOT(M275),"",IF(COUNT(ERGEBNISSE!AO45,ERGEBNISSE!AQ45)<>2,"",ERGEBNISSE!AO45)) ->  | O275: =IF(NOT(M275),"",IF(COUNT(ERGEBNISSE!AO45,ERGEBNISSE!AQ45)<>2,"",ERGEBNISSE!AQ45)) ->  | P275: 0 | Q275: 0 | R275: 0 | U275: E6 | V275: FALSE
A276: =ERGEBNISSE!C46 -> F5 | B276: 6 | C276: 6 | D276: =daten!I83 -> 22 | E276: =daten!J83 -> 23 | F276: =ERGEBNISSE!E46 -> 2 | G276: =ERGEBNISSE!F46 -> 2 | H276: 3 | I276: 1 | J276: 4 | K276: 5 | L276: =SUM(IF($B$266:$B$277=B276,IF($J$266:$K$277=J276,1,0))) -> 2 | M276: FALSE | N276: =IF(NOT(M276),"",IF(COUNT(ERGEBNISSE!AO46,ERGEBNISSE!AQ46)<>2,"",ERGEBNISSE!AO46)) ->  | O276: =IF(NOT(M276),"",IF(COUNT(ERGEBNISSE!AO46,ERGEBNISSE!AQ46)<>2,"",ERGEBNISSE!AQ46)) ->  | P276: 0 | Q276: 0 | R276: 0 | U276: F5 | V276: FALSE
A277: =ERGEBNISSE!C47 -> F6 | B277: 6 | C277: 6 | D277: =daten!I84 -> 24 | E277: =daten!J84 -> 21 | F277: =ERGEBNISSE!E47 -> 2 | G277: =ERGEBNISSE!F47 -> 2 | H277: 2 | I277: 4 | J277: 4 | K277: 2 | L277: =SUM(IF($B$266:$B$277=B277,IF($J$266:$K$277=J277,1,0))) -> 2 | M277: FALSE | N277: =IF(NOT(M277),"",IF(COUNT(ERGEBNISSE!AO47,ERGEBNISSE!AQ47)<>2,"",ERGEBNISSE!AO47)) ->  | O277: =IF(NOT(M277),"",IF(COUNT(ERGEBNISSE!AO47,ERGEBNISSE!AQ47)<>2,"",ERGEBNISSE!AQ47)) ->  | P277: 0 | Q277: 0 | R277: 0 | U277: F6 | V277: FALSE
A280: P-DV1-DV2-Dif-T | B280: Rang | C280: P | E280: Spiele Gr
A281: 1 | B281: =F41 -> 4 | C281: =D15 -> 0 | E281: =$Q$4 -> 6
A282: 2 | B282: =F42 -> 1 | C282: =D16 -> 9 | E282: =$AQ$4 -> 6
A283: 3 | B283: =F43 -> 2 | C283: =D17 -> 4 | E283: =$Q$86 -> 6
A284: 4 | B284: =F44 -> 3 | C284: =D18 -> 4 | E284: =$AQ$86 -> 6
A285: 5 | B285: =AF41 -> 2 | C285: =AD15 -> 3 | E285: =$Q$168 -> 6
A286: 6 | B286: =AF42 -> 3 | C286: =AD16 -> 3 | E286: =$AQ$168 -> 6
A287: 7 | B287: =AF43 -> 1 | C287: =AD17 -> 9
A288: 8 | B288: =AF44 -> 4 | C288: =AD18 -> 3
A289: 9 | B289: =F123 -> 1 | C289: =D97 -> 9
A290: 10 | B290: =F124 -> 3 | C290: =D98 -> 3
A291: 11 | B291: =F125 -> 2 | C291: =D99 -> 6
A292: 12 | B292: =F126 -> 4 | C292: =D100 -> 0
A293: 13 | B293: =AF123 -> 1 | C293: =AD97 -> 7
... 142 more rows

Sheet tabbermsp (hidden)
C1: Index= Eintrag in der Liste aller Teams (lfd. Nr.) | H1: EDIT
C2: Nr = Nummer in der Gruppe | H2: Resultat
A3: Tabber
A4: A | B4: Paarungen | G4: Resultat | K4: Punkte | AA4: B | AB4: Paarungen | AG4: Resultat | AK4: Punkte
A5: Nr | D5: HT | E5: AT | F5: HT2 | G5: ErgH | H5: ErgA | I5: ErgH2 | K5: PH | L5: PA | M5: DifH | N5: DifA | O5: WertH | P5: WertA | Q5: Spiele | S5: Resultat | AA5: Nr | AD5: HT | AE5: AT | AF5: HT2 | AG5: ErgH | AH5: ErgA | AI5: ErgH2 | AK5: PH | AL5: PA | AM5: DifH | AN5: DifA | AO5: WertH | AP5: WertA | AQ5: Spiele | AS5: Resultat
A6: 1 | B6: =D6&"#"&E6 -> 1#2 | C6: =E6&"#"&D6 -> 2#1 | D6: =VLOOKUP(J6,daten!$D$49:$J$84,6,FALSE) -> 1 | E6: =VLOOKUP(J6,daten!$D$49:$K$84,7,FALSE) -> 2 | F6: =D6 -> 1 | G6: =VLOOKUP(J6,TIPPABGABE!$CU$40:$DE$75,10,FALSE) -> 1 | H6: =VLOOKUP(J6,TIPPABGABE!$CU$40:$DE$75,11,FALSE) -> 1 | I6: =IF(LEN(G6)>0,G6,"") -> 1 | J6: =A4&A6 -> A1 | K6: =IF(COUNT(G6:H6)<>2,0,IF(G6>H6,3,IF(H6>G6,0,1))) -> 1 | L6: =IF(COUNT(G6:H6)<>2,0,IF(G6>H6,0,IF(H6>G6,3,1))) -> 1 | M6: =IF(COUNT(G6:H6)<>2,0,G6-H6) -> 0 | N6: =IF(COUNT(G6:H6)<>2,0,H6-I6) -> 0 | O6: =K6*1000+M6+IF(LEN(G6)=0,0,G6/1000) -> 1000.001 | P6: 1000.001 | Q6: =IF(COUNT(G6:H6)=2,1,0) -> 1 | R6: =Q6 -> 1 | S6: =IF(Q6=0,"X",IF(K6=3,"S",IF(K6=0,"N","U")))&D6 -> U1 | T6: U2 | AA6: 1 | AB6: =AD6&"#"&AE6 -> 5#6 | AC6: =AE6&"#"&AD6 -> 6#5 | AD6: =VLOOKUP(AJ6,daten!$D$49:$J$84,6,FALSE) -> 5 | AE6: =VLOOKUP(AJ6,daten!$D$49:$K$84,7,FALSE) -> 6 | AF6: =AD6 -> 5 | AG6: =VLOOKUP(AJ6,TIPPABGABE!$CU$40:$DE$75,10,FALSE) -> 2 | AH6: =VLOOKUP(AJ6,TIPPABGABE!$CU$40:$DE$75,11,FALSE) -> 1 | AI6: =IF(LEN(AG6)>0,AG6,"") -> 2 | AJ6: =AA4&AA6 -> B1 | AK6: =IF(COUNT(AG6:AH6)<>2,0,IF(AG6>AH6,3,IF(AH6>AG6,0,1))) -> 3 | AL6: =IF(COUNT(AG6:AH6)<>2,0,IF(AG6>AH6,0,IF(AH6>AG6,3,1))) -> 0 | AM6: =IF(COUNT(AG6:AH6)<>2,0,AG6-AH6) -> 1 | AN6: =IF(COUNT(AG6:AH6)<>2,0,AH6-AI6) -> -1 | AO6: =AK6*1000+AM6+IF(LEN(AG6)=0,0,AG6/1000) -> 3001.002 | AP6: -0.999 | AQ6: =IF(COUNT(AG6:AH6)=2,1,0) -> 1 | AR6: =AQ6 -> 1 | AS6: =IF(AQ6=0,"X",IF(AK6=3,"S",IF(AK6=0,"N","U")))&AD6 -> S5 | AT6: N6
A7: 2 | B7: 3#4 | C7: 4#3 | D7: =VLOOKUP(J7,daten!$D$49:$J$84,6,FALSE) -> 3 | E7: =VLOOKUP(J7,daten!$D$49:$K$84,7,FALSE) -> 4 | F7: 3 | G7: =VLOOKUP(J7,TIPPABGABE!$CU$40:$DE$75,10,FALSE) -> 0 | H7: =VLOOKUP(J7,TIPPABGABE!$CU$40:$DE$75,11,FALSE) -> 2 | I7: 0 | J7: =A4&A7 -> A2 | K7: 0 | L7: 3 | M7: -2 | N7: 2 | O7: -2 | P7: 3002.002 | Q7: 1 | R7: 1 | S7: N3 | T7: S4 | AA7: 2 | AB7: 7#8 | AC7: 8#7 | AD7: =VLOOKUP(AJ7,daten!$D$49:$J$84,6,FALSE) -> 7 | AE7: =VLOOKUP(AJ7,daten!$D$49:$K$84,7,FALSE) -> 8 | AF7: 7 | AG7: =VLOOKUP(AJ7,TIPPABGABE!$CU$40:$DE$75,10,FALSE) -> 2 | AH7: =VLOOKUP(AJ7,TIPPABGABE!$CU$40:$DE$75,11,FALSE) -> 0 | AI7: 2 | AJ7: =AA4&AA7 -> B2 | AK7: 3 | AL7: 0 | AM7: 2 | AN7: -2 | AO7: 3002.002 | AP7: -2 | AQ7: 1 | AR7: 1 | AS7: S7 | AT7: N8
A8: 3 | B8: 1#3 | C8: 3#1 | D8: =VLOOKUP(J8,daten!$D$49:$J$84,6,FALSE) -> 1 | E8: =VLOOKUP(J8,daten!$D$49:$K$84,7,FALSE) -> 3 | F8: 1 | G8: =VLOOKUP(J8,TIPPABGABE!$CU$40:$DE$75,10,FALSE) -> 0 | H8: =VLOOKUP(J8,TIPPABGABE!$CU$40:$DE$75,11,FALSE) -> 0 | I8: 0 | J8: =A4&A8 -> A3 | K8: 1 | L8: 1 | M8: 0 | N8: 0 | O8: 1000 | P8: 1000 | Q8: 1 | R8: 1 | S8: U1 | T8: U3 | AA8: 3 | AB8: 6#8 | AC8: 8#6 | AD8: =VLOOKUP(AJ8,daten!$D$49:$J$84,6,FALSE) -> 6 | AE8: =VLOOKUP(AJ8,daten!$D$49:$K$84,7,FALSE) -> 8 | AF8: 6 | AG8: =VLOOKUP(AJ8,TIPPABGABE!$CU$40:$DE$75,10,FALSE) -> 2 | AH8: =VLOOKUP(AJ8,TIPPABGABE!$CU$40:$DE$75,11,FALSE) -> 2 | AI8: 2 | AJ8: =AA4&AA8 -> B3 | AK8: 1 | AL8: 1 | AM8: 0 | AN8: 0 | AO8: 1000.002 | AP8: 1000.002 | AQ8: 1 | AR8: 1 | AS8: U6 | AT8: U8
A9: 4 | B9: 2#4 | C9: 4#2 | D9: =VLOOKUP(J9,daten!$D$49:$J$84,6,FALSE) -> 2 | E9: =VLOOKUP(J9,daten!$D$49:$K$84,7,FALSE) -> 4 | F9: 2 | G9: =VLOOKUP(J9,TIPPABGABE!$CU$40:$DE$75,10,FALSE) -> 2 | H9: =VLOOKUP(J9,TIPPABGABE!$CU$40:$DE$75,11,FALSE) -> 2 | I9: 2 | J9: =A4&A9 -> A4 | K9: 1 | L9: 1 | M9: 0 | N9: 0 | O9: 1000.002 | P9: 1000.002 | Q9: 1 | R9: 1 | S9: U2 | T9: U4 | AA9: 4 | AB9: 5#7 | AC9: 7#5 | AD9: =VLOOKUP(AJ9,daten!$D$49:$J$84,6,FALSE) -> 5 | AE9: =VLOOKUP(AJ9,daten!$D$49:$K$84,7,FALSE) -> 7 | AF9: 5 | AG9: =VLOOKUP(AJ9,TIPPABGABE!$CU$40:$DE$75,10,FALSE) -> 2 | AH9: =VLOOKUP(AJ9,TIPPABGABE!$CU$40:$DE$75,11,FALSE) -> 2 | AI9: 2 | AJ9: =AA4&AA9 -> B4 | AK9: 1 | AL9: 1 | AM9: 0 | AN9: 0 | AO9: 1000.002 | AP9: 1000.002 | AQ9: 1 | AR9: 1 | AS9: U5 | AT9: U7
A10: 5 | B10: 4#1 | C10: 1#4 | D10: =VLOOKUP(J10,daten!$D$49:$J$84,6,FALSE) -> 4 | E10: =VLOOKUP(J10,daten!$D$49:$K$84,7,FALSE) -> 1 | F10: 4 | G10: =VLOOKUP(J10,TIPPABGABE!$CU$40:$DE$75,10,FALSE) -> 2 | H10: =VLOOKUP(J10,TIPPABGABE!$CU$40:$DE$75,11,FALSE) -> 0 | I10: 2 | J10: =A4&A10 -> A5 | K10: 3 | L10: 0 | M10: 2 | N10: -2 | O10: 3002.002 | P10: -2 | Q10: 1 | R10: 1 | S10: S4 | T10: N1 | AA10: 5 | AB10: 8#5 | AC10: 5#8 | AD10: =VLOOKUP(AJ10,daten!$D$49:$J$84,6,FALSE) -> 8 | AE10: =VLOOKUP(AJ10,daten!$D$49:$K$84,7,FALSE) -> 5 | AF10: 8 | AG10: =VLOOKUP(AJ10,TIPPABGABE!$CU$40:$DE$75,10,FALSE) -> 1 | AH10: =VLOOKUP(AJ10,TIPPABGABE!$CU$40:$DE$75,11,FALSE) -> 2 | AI10: 1 | AJ10: =AA4&AA10 -> B5 | AK10: 0 | AL10: 3 | AM10: -1 | AN10: 1 | AO10: -0.999 | AP10: 3001.002 | AQ10: 1 | AR10: 1 | AS10: N8 | AT10: S5
A11: 6 | B11: 2#3 | C11: 3#2 | D11: =VLOOKUP(J11,daten!$D$49:$J$84,6,FALSE) -> 2 | E11: =VLOOKUP(J11,daten!$D$49:$K$84,7,FALSE) -> 3 | F11: 2 | G11: =VLOOKUP(J11,TIPPABGABE!$CU$40:$DE$75,10,FALSE) -> 3 | H11: =VLOOKUP(J11,TIPPABGABE!$CU$40:$DE$75,11,FALSE) -> 0 | I11: 3 | J11: =A4&A11 -> A6 | K11: 3 | L11: 0 | M11: 3 | N11: -3 | O11: 3003.003 | P11: -3 | Q11: 1 | R11: 1 | S11: S2 | T11: N3 | AA11: 6 | AB11: 6#7 | AC11: 7#6 | AD11: =VLOOKUP(AJ11,daten!$D$49:$J$84,6,FALSE) -> 6 | AE11: =VLOOKUP(AJ11,daten!$D$49:$K$84,7,FALSE) -> 7 | AF11: 6 | AG11: =VLOOKUP(AJ11,TIPPABGABE!$CU$40:$DE$75,10,FALSE) -> 2 | AH11: =VLOOKUP(AJ11,TIPPABGABE!$CU$40:$DE$75,11,FALSE) -> 2 | AI11: 2 | AJ11: =AA4&AA11 -> B6 | AK11: 1 | AL11: 1 | AM11: 0 | AN11: 0 | AO11: 1000.002 | AP11: 1000.002 | AQ11: 1 | AR11: 1 | AS11: U6 | AT11: U7
A14: Modus | C14: TeamIdx | D14: P | E14: Treffer | F14: GTo | G14: Dif | H14: Team | I14: RangPkt | K14: Koeff | M14: Rang | N14: RangPkt | AA14: Modus | AC14: TeamIdx | AD14: P | AE14: Treffer | AF14: GTo | AG14: Dif | AH14: Team | AI14: RangPkt | AK14: Koeff | AM14: Rang | AN14: RangPkt
A15: 1 | C15: 1 | D15: =SUMIF($D$6:$E$11,"="&C15,$K$6:$L$11) -> 2 | E15: =SUMIF($D$6:$E$11,"="&$C15,$G$6:$H$11) -> 1 | F15: =E15-G15 -> 3 | G15: =SUMIF($D$6:$E$11,"="&$C15,$G$6:$H$11)-SUMIF($D$6:$E$11,"="&$C15,$H$6:$I$11) -> -2 | H15: =INDEX(teams_k,C15) -> TUR | I15: =RANK(D15,$D$15:$D$18,1) -> 2 | L15: 1 | M15: 1 | N15: =RANK(M15,$M$15:$M$18) -> 1 | AA15: 1 | AC15: 5 | AD15: =SUMIF($AD$6:$AE$11,"="&AC15,$AK$6:$AL$11) -> 7 | AE15: =SUMIF($AD$6:$AE$11,"="&$AC15,$AG$6:$AH$11) -> 6 | AF15: =AE15-AG15 -> 4 | AG15: =SUMIF($AD$6:$AE$11,"="&$AC15,$AG$6:$AH$11)-SUMIF($AD$6:$AE$11,"="&$AC15,$AH$6:$AI$11) -> 2 | AH15: =INDEX(teams_k,AC15) -> DEN | AI15: =RANK(AD15,$AD$15:$AD$18,1) -> 4 | AL15: 1 | AM15: 1 | AN15: =RANK(AM15,$AM$15:$AM$18) -> 1
C16: 2 | D16: =SUMIF($D$6:$E$11,"="&C16,$K$6:$L$11) -> 5 | E16: =SUMIF($D$6:$E$11,"="&$C16,$G$6:$H$11) -> 6 | F16: =E16-G16 -> 3 | G16: =SUMIF($D$6:$E$11,"="&$C16,$G$6:$H$11)-SUMIF($D$6:$E$11,"="&$C16,$H$6:$I$11) -> 3 | H16: =INDEX(teams_k,C16) -> ITA | I16: =RANK(D16,$D$15:$D$18,1) -> 3 | L16: 2 | M16: 1 | N16: =RANK(M16,$M$15:$M$18) -> 1 | AC16: 6 | AD16: =SUMIF($AD$6:$AE$11,"="&AC16,$AK$6:$AL$11) -> 2 | AE16: =SUMIF($AD$6:$AE$11,"="&$AC16,$AG$6:$AH$11) -> 5 | AF16: =AE16-AG16 -> 6 | AG16: =SUMIF($AD$6:$AE$11,"="&$AC16,$AG$6:$AH$11)-SUMIF($AD$6:$AE$11,"="&$AC16,$AH$6:$AI$11) -> -1 | AH16: =INDEX(teams_k,AC16) -> FIN | AI16: =RANK(AD16,$AD$15:$AD$18,1) -> 2 | AL16: 2 | AM16: 1 | AN16: =RANK(AM16,$AM$15:$AM$18) -> 1
C17: 3 | D17: =SUMIF($D$6:$E$11,"="&C17,$K$6:$L$11) -> 1 | E17: =SUMIF($D$6:$E$11,"="&$C17,$G$6:$H$11) -> 0 | F17: =E17-G17 -> 5 | G17: =SUMIF($D$6:$E$11,"="&$C17,$G$6:$H$11)-SUMIF($D$6:$E$11,"="&$C17,$H$6:$I$11) -> -5 | H17: =INDEX(teams_k,C17) -> WAL | I17: =RANK(D17,$D$15:$D$18,1) -> 1 | L17: 3 | M17: 1 | N17: =RANK(M17,$M$15:$M$18) -> 1 | AC17: 7 | AD17: =SUMIF($AD$6:$AE$11,"="&AC17,$AK$6:$AL$11) -> 5 | AE17: =SUMIF($AD$6:$AE$11,"="&$AC17,$AG$6:$AH$11) -> 6 | AF17: =AE17-AG17 -> 4 | AG17: =SUMIF($AD$6:$AE$11,"="&$AC17,$AG$6:$AH$11)-SUMIF($AD$6:$AE$11,"="&$AC17,$AH$6:$AI$11) -> 2 | AH17: =INDEX(teams_k,AC17) -> BEL | AI17: =RANK(AD17,$AD$15:$AD$18,1) -> 3 | AL17: 3 | AM17: 1 | AN17: =RANK(AM17,$AM$15:$AM$18) -> 1
C18: 4 | D18: =SUMIF($D$6:$E$11,"="&C18,$K$6:$L$11) -> 7 | E18: =SUMIF($D$6:$E$11,"="&$C18,$G$6:$H$11) -> 6 | F18: =E18-G18 -> 2 | G18: =SUMIF($D$6:$E$11,"="&$C18,$G$6:$H$11)-SUMIF($D$6:$E$11,"="&$C18,$H$6:$I$11) -> 4 | H18: =INDEX(teams_k,C18) -> SUI | I18: =RANK(D18,$D$15:$D$18,1) -> 4 | L18: 4 | M18: 1 | N18: =RANK(M18,$M$15:$M$18) -> 1 | AC18: 8 | AD18: =SUMIF($AD$6:$AE$11,"="&AC18,$AK$6:$AL$11) -> 1 | AE18: =SUMIF($AD$6:$AE$11,"="&$AC18,$AG$6:$AH$11) -> 3 | AF18: =AE18-AG18 -> 6 | AG18: =SUMIF($AD$6:$AE$11,"="&$AC18,$AG$6:$AH$11)-SUMIF($AD$6:$AE$11,"="&$AC18,$AH$6:$AI$11) -> -3 | AH18: =INDEX(teams_k,AC18) -> RUS | AI18: =RANK(AD18,$AD$15:$AD$18,1) -> 1 | AL18: 4 | AM18: 1 | AN18: =RANK(AM18,$AM$15:$AM$18) -> 1
B20: DV1 | D20: =B22 -> 1 | E20: =B23 -> 2 | F20: =B24 -> 3 | G20: =B25 -> 4 | AB20: DV1 | AD20: =AB22 -> 5 | AE20: =AB23 -> 6 | AF20: =AB24 -> 7 | AG20: =AB25 -> 8
B21: TeamIndex | C21: Nr | D21: =C22 -> 1 | E21: =C23 -> 2 | F21: =C24 -> 3 | G21: =C25 -> 4 | I21: RangPkt. | AB21: TeamIndex | AC21: Nr | AD21: =AC22 -> 1 | AE21: =AC23 -> 2 | AF21: =AC24 -> 3 | AG21: =AC25 -> 4 | AI21: RangPkt.
B22: =INDEX($C$15:$C$18,C22) -> 1 | C22: 1 | D22: =IF(INDEX($I$15:$I$18,$C22)<>INDEX($I$15:$I$18,D$21),0,SUMIF($B$6:$C$11,"="&$B22&"#"&D$20,$O$6:$P$11)) -> 0 | E22: 0 | F22: 0 | G22: 0 | H22: =SUM(D22:G22) -> 0 | I22: =RANK(H22,$H$22:$H$25,1) -> 1 | AB22: =INDEX($AC$15:$AC$18,AC22) -> 5 | AC22: 1 | AD22: =IF(INDEX($AI$15:$AI$18,$AC22)<>INDEX($AI$15:$AI$18,AD$21),0,SUMIF($AB$6:$AC$11,"="&$AB22&"#"&AD$20,$AO$6:$AP$11)) -> 0 | AE22: 0 | AF22: 0 | AG22: 0 | AH22: =SUM(AD22:AG22) -> 0 | AI22: =RANK(AH22,$AH$22:$AH$25,1) -> 1
B23: =INDEX($C$15:$C$18,C23) -> 2 | C23: 2 | D23: 0 | E23: 0 | F23: 0 | G23: 0 | H23: =SUM(D23:G23) -> 0 | I23: =RANK(H23,$H$22:$H$25,1) -> 1 | AB23: =INDEX($AC$15:$AC$18,AC23) -> 6 | AC23: 2 | AD23: 0 | AE23: 0 | AF23: 0 | AG23: 0 | AH23: =SUM(AD23:AG23) -> 0 | AI23: =RANK(AH23,$AH$22:$AH$25,1) -> 1
B24: =INDEX($C$15:$C$18,C24) -> 3 | C24: 3 | D24: 0 | E24: 0 | F24: 0 | G24: 0 | H24: =SUM(D24:G24) -> 0 | I24: =RANK(H24,$H$22:$H$25,1) -> 1 | AB24: =INDEX($AC$15:$AC$18,AC24) -> 7 | AC24: 3 | AD24: 0 | AE24: 0 | AF24: 0 | AG24: 0 | AH24: =SUM(AD24:AG24) -> 0 | AI24: =RANK(AH24,$AH$22:$AH$25,1) -> 1
B25: =INDEX($C$15:$C$18,C25) -> 4 | C25: 4 | D25: 0 | E25: 0 | F25: 0 | G25: 0 | H25: =SUM(D25:G25) -> 0 | I25: =RANK(H25,$H$22:$H$25,1) -> 1 | AB25: =INDEX($AC$15:$AC$18,AC25) -> 8 | AC25: 4 | AD25: 0 | AE25: 0 | AF25: 0 | AG25: 0 | AH25: =SUM(AD25:AG25) -> 0 | AI25: =RANK(AH25,$AH$22:$AH$25,1) -> 1
B27: DV2 | C27: Nr | D27: =C28 -> 1 | E27: =C29 -> 2 | F27: =C30 -> 3 | G27: =C31 -> 4 | I27: RangPkt. | AB27: DV2 | AC27: Nr | AD27: =AC28 -> 1 | AE27: =AC29 -> 2 | AF27: =AC30 -> 3 | AG27: =AC31 -> 4 | AI27: RangPkt.
B28: =B22 -> 1 | C28: 1 | D28: =IF(D22=0,0,IF(INDEX($I$22:$I$25,$C22)<>INDEX($I$22:$I$25,D$21),0,SUMIF($B$6:$C$11,"="&$B22&"#"&D$20,$K$6:$L$11)*1000+SUMIF($B$6:$C$11,"="&$B22&"#"&D$20,$M$6:$N$11)+SUMIF($B$6:$C$11,"="&$B22&"#"&D$20,$G$6:$H$11)/1000)) -> 0 | E28: 0 | F28: 0 | G28: 0 | H28: =SUM(D28:G28) -> 0 | I28: =RANK(H28,$H$28:$H$31,1) -> 1 | AB28: =AB22 -> 5 | AC28: 1 | AD28: =IF(AD22=0,0,IF(INDEX($AI$22:$AI$25,$AC22)<>INDEX($AI$22:$AI$25,AD$21),0,SUMIF($AB$6:$AC$11,"="&$AB22&"#"&AD$20,$AK$6:$AL$11)*1000+SUMIF($AB$6:$AC$11,"="&$AB22&"#"&AD$20,$AM$6:$AN$11)+SUMIF($AB$6:$AC$11,"="&$AB22&"#"&AD$20,$AG$6:$AH$11)/1000)) -> 0 | AE28: 0 | AF28: 0 | AG28: 0 | AH28: =SUM(AD28:AG28) -> 0 | AI28: =RANK(AH28,$AH$28:$AH$31,1) -> 1
B29: =B23 -> 2 | C29: 2 | D29: 0 | E29: 0 | F29: 0 | G29: 0 | H29: =SUM(D29:G29) -> 0 | I29: =RANK(H29,$H$28:$H$31,1) -> 1 | AB29: =AB23 -> 6 | AC29: 2 | AD29: 0 | AE29: 0 | AF29: 0 | AG29: 0 | AH29: =SUM(AD29:AG29) -> 0 | AI29: =RANK(AH29,$AH$28:$AH$31,1) -> 1
B30: =B24 -> 3 | C30: 3 | D30: 0 | E30: 0 | F30: 0 | G30: 0 | H30: =SUM(D30:G30) -> 0 | I30: =RANK(H30,$H$28:$H$31,1) -> 1 | AB30: =AB24 -> 7 | AC30: 3 | AD30: 0 | AE30: 0 | AF30: 0 | AG30: 0 | AH30: =SUM(AD30:AG30) -> 0 | AI30: =RANK(AH30,$AH$28:$AH$31,1) -> 1
B31: =B25 -> 4 | C31: 4 | D31: 0 | E31: 0 | F31: 0 | G31: 0 | H31: =SUM(D31:G31) -> 0 | I31: =RANK(H31,$H$28:$H$31,1) -> 1 | AB31: =AB25 -> 8 | AC31: 4 | AD31: 0 | AE31: 0 | AF31: 0 | AG31: 0 | AH31: =SUM(AD31:AG31) -> 0 | AI31: =RANK(AH31,$AH$28:$AH$31,1) -> 1
C33: Nr | D33: RangPkt | H33: RangPkt | AC33: Nr | AD33: RangPkt | AH33: RangPkt
B34: Diff | C34: 1 | D34: =RANK(G15,$G$15:$G$18,1) -> 2 | F34: Tore | G34: 1 | H34: =RANK(E15,$E$15:$E$18,1) -> 2 | AB34: Diff | AC34: 1 | AD34: =RANK(AG15,$AG$15:$AG$18,1) -> 3 | AF34: Tore | AG34: 1 | AH34: =RANK(AE15,$AE$15:$AE$18,1) -> 3
C35: 2 | D35: =RANK(G16,$G$15:$G$18,1) -> 3 | G35: 2 | H35: =RANK(E16,$E$15:$E$18,1) -> 3 | AC35: 2 | AD35: =RANK(AG16,$AG$15:$AG$18,1) -> 2 | AG35: 2 | AH35: =RANK(AE16,$AE$15:$AE$18,1) -> 2
C36: 3 | D36: =RANK(G17,$G$15:$G$18,1) -> 1 | G36: 3 | H36: =RANK(E17,$E$15:$E$18,1) -> 1 | AC36: 3 | AD36: =RANK(AG17,$AG$15:$AG$18,1) -> 3 | AG36: 3 | AH36: =RANK(AE17,$AE$15:$AE$18,1) -> 3
C37: 4 | D37: =RANK(G18,$G$15:$G$18,1) -> 4 | G37: 4 | H37: =RANK(E18,$E$15:$E$18,1) -> 3 | AC37: 4 | AD37: =RANK(AG18,$AG$15:$AG$18,1) -> 1 | AG37: 4 | AH37: =RANK(AE18,$AE$15:$AE$18,1) -> 1
I39: Modus | AI39: Modus
C40: Nr | E40: RangPkt | F40: Rang | H40: Wertigkeit | I40: 1 | J40: 2 | K40: Faktor | M40: Faktoren | AC40: Nr | AE40: RangPkt | AF40: Rang | AH40: Wertigkeit | AI40: 1 | AJ40: 2 | AK40: Faktor | AM40: Faktoren
B41: Wert | C41: 1 | D41: =I15*$K$41+I22*$K$42+I28*$K$43+D34*$K$44+H34*$K$45 -> 2010102.02 | E41: =RANK(D41,$D$41:$D$44,1) -> 2 | F41: =RANK(D41,$D$41:$D$44) -> 3 | H41: Punkte | I41: 1 | J41: 1 | K41: =INDEX($N$41:$N$45,INDEX(I41:J41,$A$15)) -> 1000000 | M41: 1 | N41: 1000000 | AB41: Wert | AC41: 1 | AD41: =AI15*$AK$41+AI22*$AK$42+AI28*$AK$43+AD34*$AK$44+AH34*$AK$45 -> 4010103.03 | AE41: =RANK(AD41,$AD$41:$AD$44,1) -> 4 | AF41: =RANK(AD41,$AD$41:$AD$44) -> 1 | AH41: Punkte | AI41: 1 | AJ41: 1 | AK41: =INDEX($AN$41:$AN$45,INDEX(AI41:AJ41,$AA$15)) -> 1000000 | AM41: 1 | AN41: 1000000
C42: 2 | D42: =I16*$K$41+I23*$K$42+I29*$K$43+D35*$K$44+H35*$K$45 -> 3010103.03 | E42: =RANK(D42,$D$41:$D$44,1) -> 3 | F42: =RANK(D42,$D$41:$D$44) -> 2 | H42: DV1 | I42: 2 | J42: 4 | K42: =INDEX($N$41:$N$45,INDEX(I42:J42,$A$15)) -> 10000 | M42: 2 | N42: 10000 | AC42: 2 | AD42: =AI16*$AK$41+AI23*$AK$42+AI29*$AK$43+AD35*$AK$44+AH35*$AK$45 -> 2010102.02 | AE42: =RANK(AD42,$AD$41:$AD$44,1) -> 2 | AF42: =RANK(AD42,$AD$41:$AD$44) -> 3 | AH42: DV1 | AI42: 2 | AJ42: 4 | AK42: =INDEX($AN$41:$AN$45,INDEX(AI42:AJ42,$AA$15)) -> 10000 | AM42: 2 | AN42: 10000
C43: 3 | D43: =I17*$K$41+I24*$K$42+I30*$K$43+D36*$K$44+H36*$K$45 -> 1010101.01 | E43: =RANK(D43,$D$41:$D$44,1) -> 1 | F43: =RANK(D43,$D$41:$D$44) -> 4 | H43: DV2 | I43: 3 | J43: 5 | K43: =INDEX($N$41:$N$45,INDEX(I43:J43,$A$15)) -> 100 | M43: 3 | N43: 100 | AC43: 3 | AD43: =AI17*$AK$41+AI24*$AK$42+AI30*$AK$43+AD36*$AK$44+AH36*$AK$45 -> 3010103.03 | AE43: =RANK(AD43,$AD$41:$AD$44,1) -> 3 | AF43: =RANK(AD43,$AD$41:$AD$44) -> 2 | AH43: DV2 | AI43: 3 | AJ43: 5 | AK43: =INDEX($AN$41:$AN$45,INDEX(AI43:AJ43,$AA$15)) -> 100 | AM43: 3 | AN43: 100
C44: 4 | D44: =I18*$K$41+I25*$K$42+I31*$K$43+D37*$K$44+H37*$K$45 -> 4010104.03 | E44: =RANK(D44,$D$41:$D$44,1) -> 4 | F44: =RANK(D44,$D$41:$D$44) -> 1 | H44: TD alle | I44: 4 | J44: 2 | K44: =INDEX($N$41:$N$45,INDEX(I44:J44,$A$15)) -> 1 | M44: 4 | N44: 1 | AC44: 4 | AD44: =AI18*$AK$41+AI25*$AK$42+AI31*$AK$43+AD37*$AK$44+AH37*$AK$45 -> 1010101.01 | AE44: =RANK(AD44,$AD$41:$AD$44,1) -> 1 | AF44: =RANK(AD44,$AD$41:$AD$44) -> 4 | AH44: TD alle | AI44: 4 | AJ44: 2 | AK44: =INDEX($AN$41:$AN$45,INDEX(AI44:AJ44,$AA$15)) -> 1 | AM44: 4 | AN44: 1
H45: Tore alle | I45: 5 | J45: 3 | K45: =INDEX($N$41:$N$45,INDEX(I45:J45,$A$15)) -> 0.01 | M45: 5 | N45: =1/100 -> 0.01 | AH45: Tore alle | AI45: 5 | AJ45: 3 | AK45: =INDEX($AN$41:$AN$45,INDEX(AI45:AJ45,$AA$15)) -> 0.01 | AM45: 5 | AN45: =1/100 -> 0.01
H46: EMS | I46: 6 | J46: 6 | AH46: EMS | AI46: 6 | AJ46: 6
B47: EMS | C47: =A15=1 -> TRUE | D47: WAHR/FALSCH für EMS AN/AUS | H47: Koeff | I47: 7 | J47: 7 | AB47: EMS | AC47: =AA15=1 -> TRUE | AD47: WAHR/FALSCH für EMS AN/AUS | AH47: Koeff | AI47: 7 | AJ47: 7
C48: um Platz1 | D48: um Platz2 | E48: um Platz 3 | AC48: um Platz1 | AD48: um Platz2 | AE48: um Platz 3
B49: Anz. Teams | C49: =COUNTIF($F$41:$F$44,"=1") -> 1 | D49: =COUNTIF($F$41:$F$44,"=2") -> 1 | E49: =COUNTIF($F$41:$F$44,"=3") -> 1 | AB49: Anz. Teams | AC49: =COUNTIF($AF$41:$AF$44,"=1") -> 1 | AD49: =COUNTIF($AF$41:$AF$44,"=2") -> 1 | AE49: =COUNTIF($AF$41:$AF$44,"=3") -> 1
B51: Rang | C51: =IF(NOT(C47),0,IF(C49=2,1,IF(D49=2,2,IF(E49=2,3,0)))) -> 0 | E51: Teams | F51: =MIN(IF($F$41:$F$44=$C$51,$C$15:$C$18)) -> 0 | G51: =MAX(IF($F$41:$F$44=C51,$C$15:$C$18)) -> 0 | I51: Paarung | J51: =IF(ISERROR(F53),G53,F53) ->  | AB51: Rang | AC51: =IF(NOT(AC47),0,IF(AC49=2,1,IF(AD49=2,2,IF(AE49=2,3,0)))) -> 0 | AE51: Teams | AF51: =MIN(IF($AF$41:$AF$44=$AC$51,$AC$15:$AC$18)) -> 0 | AG51: =MAX(IF($AF$41:$AF$44=AC51,$AC$15:$AC$18)) -> 0 | AI51: Paarung | AJ51: =IF(ISERROR(AF53),AG53,AF53) -> 
F52: =F51&"#"&G51 -> 0#0 | G52: =G51&"#"&F51 -> 0#0 | AF52: =AF51&"#"&AG51 -> 0#0 | AG52: =AG51&"#"&AF51 -> 0#0
F53: =MATCH(F52,$B$6:$B$11,0) ->  | G53: =MATCH(G52,$B$6:$B$11,0) ->  | AF53: =MATCH(AF52,$AB$6:$AB$11,0) ->  | AG53: =MATCH(AG52,$AB$6:$AB$11,0) -> 
B56: TeamIdx | C56: =INDEX(D6:D11,J51) ->  | D56: =INDEX(E6:E11,J51) ->  | E56: Häufigkeit | F56: Remis | G56: EMS OK | I56: Text | J56: =IF(G57=0,"","EMS um Rang " &C51) ->  | AB56: TeamIdx | AC56: =INDEX(AD6:AD11,AJ51) ->  | AD56: =INDEX(AE6:AE11,AJ51) ->  | AE56: Häufigkeit | AF56: Remis | AG56: EMS OK | AI56: Text | AJ56: =IF(AG57=0,"","EMS um Rang " &AC51) -> 
B57: Punkte | C57: =VLOOKUP(C56,$C$15:$D$18,2,FALSE) ->  | D57: =VLOOKUP(D56,$C$15:$D$18,2,FALSE) ->  | E57: =COUNTIF($D$15:$D$18,"="&D57) -> 0 | F57: =INDEX(K6:K11,J51)=1 ->  | G57: =IF(C51=0,0,IF(J51<5,0,IF(E57<>2,0,IF(C57<>D57,0,IF(NOT(F57),0,1))))) -> 0 | AB57: Punkte | AC57: =VLOOKUP(AC56,$AC$15:$AD$18,2,FALSE) ->  | AD57: =VLOOKUP(AD56,$AC$15:$AD$18,2,FALSE) ->  | AE57: =COUNTIF($AD$15:$AD$18,"="&AD57) -> 0 | AF57: =INDEX(AK6:AK11,AJ51)=1 ->  | AG57: =IF(AC51=0,0,IF(AJ51<5,0,IF(AE57<>2,0,IF(AC57<>AD57,0,IF(NOT(AF57),0,1))))) -> 0
E59: Ergebnis EMS | AE59: Ergebnis EMS
B60: Teams | C60: =VLOOKUP(C56,$C$15:$H$18,6,FALSE) ->  | D60: =VLOOKUP(D56,$C$15:$H$18,6,FALSE) ->  | AB60: Teams | AC60: =VLOOKUP(AC56,$AC$15:$AH$18,6,FALSE) ->  | AD60: =VLOOKUP(AD56,$AC$15:$AH$18,6,FALSE) -> 
B61: Nr | C61: =MATCH(C56,$C$15:$C$18,0) ->  | D61: =MATCH(D56,$C$15:$C$18,0) ->  | E61: =IF(COUNT(E60:F60)<>2,0,IF(E60>F60,1,0)) -> 0 | F61: =IF(COUNT(E60:F60)<>2,0,IF(E60<F60,1,0)) -> 0 | G61: EMS-Pkt | AB61: Nr | AC61: =MATCH(AC56,$AC$15:$AC$18,0) ->  | AD61: =MATCH(AD56,$AC$15:$AC$18,0) ->  | AE61: =IF(COUNT(AE60:AF60)<>2,0,IF(AE60>AF60,1,0)) -> 0 | AF61: =IF(COUNT(AE60:AF60)<>2,0,IF(AE60<AF60,1,0)) -> 0 | AG61: EMS-Pkt
C64: Rangpkt inkl. EMS und Koeff | AC64: Rangpkt inkl. EMS und Koeff
C65: Nr. | D65: RangPkt | E65: Rang | F65: Rang korr | AC65: Nr. | AD65: RangPkt | AE65: Rang | AF65: Rang korr
B66: Wert | C66: 1 | D66: =E41+IF($G$57=0,0,SUMIF($C$61:$D$61,"="&C66,$E$61:$F$61)/100)+N15/10000 -> 2.0001 | E66: =RANK(D66,$D$66:$D$69) -> 3 | F66: =E66+COUNTIF(E$65:E65,"="&E66) -> 3 | AB66: Wert | AC66: 1 | AD66: =AE41+IF($AG$57=0,0,SUMIF($AC$61:$AD$61,"="&AC66,$AE$61:$AF$61)/100)+AN15/10000 -> 4.0001 | AE66: =RANK(AD66,$AD$66:$AD$69) -> 1 | AF66: =AE66+COUNTIF(AE$65:AE65,"="&AE66) -> 1
C67: 2 | D67: =E42+IF($G$57=0,0,SUMIF($C$61:$D$61,"="&C67,$E$61:$F$61)/100)+N16/10000 -> 3.0001 | E67: =RANK(D67,$D$66:$D$69) -> 2 | F67: =E67+COUNTIF(E$65:E66,"="&E67) -> 2 | AC67: 2 | AD67: =AE42+IF($AG$57=0,0,SUMIF($AC$61:$AD$61,"="&AC67,$AE$61:$AF$61)/100)+AN16/10000 -> 2.0001 | AE67: =RANK(AD67,$AD$66:$AD$69) -> 3 | AF67: =AE67+COUNTIF(AE$65:AE66,"="&AE67) -> 3
C68: 3 | D68: =E43+IF($G$57=0,0,SUMIF($C$61:$D$61,"="&C68,$E$61:$F$61)/100)+N17/10000 -> 1.0001 | E68: =RANK(D68,$D$66:$D$69) -> 4 | F68: =E68+COUNTIF(E$65:E67,"="&E68) -> 4 | AC68: 3 | AD68: =AE43+IF($AG$57=0,0,SUMIF($AC$61:$AD$61,"="&AC68,$AE$61:$AF$61)/100)+AN17/10000 -> 3.0001 | AE68: =RANK(AD68,$AD$66:$AD$69) -> 2 | AF68: =AE68+COUNTIF(AE$65:AE67,"="&AE68) -> 2
C69: 4 | D69: =E44+IF($G$57=0,0,SUMIF($C$61:$D$61,"="&C69,$E$61:$F$61)/100)+N18/10000 -> 4.0001 | E69: =RANK(D69,$D$66:$D$69) -> 1 | F69: =E69+COUNTIF(E$65:E68,"="&E69) -> 1 | AC69: 4 | AD69: =AE44+IF($AG$57=0,0,SUMIF($AC$61:$AD$61,"="&AC69,$AE$61:$AF$61)/100)+AN18/10000 -> 1.0001 | AE69: =RANK(AD69,$AD$66:$AD$69) -> 4 | AF69: =AE69+COUNTIF(AE$65:AE68,"="&AE69) -> 4
J70: berechnete oder manuelle Tabelle | AJ70: berechnete oder manuelle Tabelle
B71: Tabelle | C71: Rang | D71: Nr | E71: Rang Eff | F71: Manuell | G71: =VLOOKUP(A4,TIPPABGABE!$CQ$69:$CR$75,2,FALSE) -> FALSE | H71: Nr | J71: Nr korr | AB71: Tabelle | AC71: Rang | AD71: Nr | AE71: Rang Eff | AF71: Manuell | AG71: =VLOOKUP(AA4,TIPPABGABE!$CQ$69:$CR$75,2,FALSE) -> FALSE | AH71: Nr | AJ71: Nr korr
B72: =INDEX(teams,INDEX(C15:C18,D72)) -> Schweiz | C72: 1 | D72: =MATCH(C72,$F$66:$F$69,0) -> 4 | E72: =IF(G71,C72,INDEX(E66:E69,D72)) -> 1 | G72: 1 | H72: =IF(G71,VLOOKUP(A79,TIPPABGABE!$CQ$40:$CS$67,3,FALSE),D72) -> 4 | J72: =IF(AND(G71,TIPPABGABE!$DA$35=1,TIPPABGABE!$AN$8=TIPPABGABE!$AN$4),H72,D72) -> 4 | AB72: =INDEX(teams,INDEX(AC15:AC18,AD72)) -> Dänemark | AC72: 1 | AD72: =MATCH(AC72,$AF$66:$AF$69,0) -> 1 | AE72: =IF(AG71,AC72,INDEX(AE66:AE69,AD72)) -> 1 | AG72: 1 | AH72: =IF(AG71,VLOOKUP(AA79,TIPPABGABE!$CQ$40:$CS$67,3,FALSE),AD72) -> 1 | AJ72: =IF(AND(AG71,TIPPABGABE!$DA$35=1,TIPPABGABE!$AN$8=TIPPABGABE!$AN$4),AH72,AD72) -> 1
B73: =INDEX(teams,INDEX(C15:C18,D73)) -> Italien | C73: 2 | D73: =MATCH(C73,$F$66:$F$69,0) -> 2 | E73: =IF(G71,C73,INDEX(E66:E69,D73)) -> 2 | G73: 2 | H73: =IF(G71,VLOOKUP(A80,TIPPABGABE!$CQ$40:$CS$67,3,FALSE),D73) -> 2 | J73: =IF(AND(G71,TIPPABGABE!$DA$35=1,TIPPABGABE!$AN$8=TIPPABGABE!$AN$4),H73,D73) -> 2 | AB73: =INDEX(teams,INDEX(AC15:AC18,AD73)) -> Belgien | AC73: 2 | AD73: =MATCH(AC73,$AF$66:$AF$69,0) -> 3 | AE73: =IF(AG71,AC73,INDEX(AE66:AE69,AD73)) -> 2 | AG73: 2 | AH73: =IF(AG71,VLOOKUP(AA80,TIPPABGABE!$CQ$40:$CS$67,3,FALSE),AD73) -> 3 | AJ73: =IF(AND(AG71,TIPPABGABE!$DA$35=1,TIPPABGABE!$AN$8=TIPPABGABE!$AN$4),AH73,AD73) -> 3
B74: =INDEX(teams,INDEX(C15:C18,D74)) -> Türkei | C74: 3 | D74: =MATCH(C74,$F$66:$F$69,0) -> 1 | E74: =IF(G71,C74,INDEX(E66:E69,D74)) -> 3 | G74: 3 | H74: =IF(G71,VLOOKUP(A81,TIPPABGABE!$CQ$40:$CS$67,3,FALSE),D74) -> 1 | J74: =IF(AND(G71,TIPPABGABE!$DA$35=1,TIPPABGABE!$AN$8=TIPPABGABE!$AN$4),H74,D74) -> 1 | AB74: =INDEX(teams,INDEX(AC15:AC18,AD74)) -> Finnland | AC74: 3 | AD74: =MATCH(AC74,$AF$66:$AF$69,0) -> 2 | AE74: =IF(AG71,AC74,INDEX(AE66:AE69,AD74)) -> 3 | AG74: 3 | AH74: =IF(AG71,VLOOKUP(AA81,TIPPABGABE!$CQ$40:$CS$67,3,FALSE),AD74) -> 2 | AJ74: =IF(AND(AG71,TIPPABGABE!$DA$35=1,TIPPABGABE!$AN$8=TIPPABGABE!$AN$4),AH74,AD74) -> 2
B75: =INDEX(teams,INDEX(C15:C18,D75)) -> Wales | C75: 4 | D75: =MATCH(C75,$F$66:$F$69,0) -> 3 | E75: =IF(G71,C75,INDEX(E66:E69,D75)) -> 4 | G75: 4 | H75: =IF(G71,VLOOKUP(A82,TIPPABGABE!$CQ$40:$CS$67,3,FALSE),D75) -> 3 | J75: =IF(AND(G71,TIPPABGABE!$DA$35=1,TIPPABGABE!$AN$8=TIPPABGABE!$AN$4),H75,D75) -> 3 | AB75: =INDEX(teams,INDEX(AC15:AC18,AD75)) -> Russland | AC75: 4 | AD75: =MATCH(AC75,$AF$66:$AF$69,0) -> 4 | AE75: =IF(AG71,AC75,INDEX(AE66:AE69,AD75)) -> 4 | AG75: 4 | AH75: =IF(AG71,VLOOKUP(AA82,TIPPABGABE!$CQ$40:$CS$67,3,FALSE),AD75) -> 4 | AJ75: =IF(AND(AG71,TIPPABGABE!$DA$35=1,TIPPABGABE!$AN$8=TIPPABGABE!$AN$4),AH75,AD75) -> 4
B78: Tabelle | C78: TeamIndex | D78: Nr | E78: Team | F78: Sp | G78: P | H78: T+ | I78: T- | J78: Diff | K78: S | L78: U | M78: N | AB78: Tabelle | AC78: TeamIndex | AD78: Nr | AE78: Team | AF78: Sp | AG78: P | AH78: T+ | AI78: T- | AJ78: Diff | AK78: S | AL78: U | AM78: N
A79: ="S"&A4 -> SA | B79: 1 | C79: =INDEX($C$15:$C$18,J72) -> 4 | D79: =J72 -> 4 | E79: =INDEX($H$15:$H$18,J72) -> SUI | F79: =SUMIF($D$6:$E$11,"="&$C79,$Q$6:$R$11) -> 3 | G79: =INDEX($D$15:$D$18,$J72) -> 7 | H79: =INDEX($E$15:$E$18,$J72) -> 6 | I79: =INDEX($F$15:$F$18,$J72) -> 2 | J79: =INDEX($G$15:$G$18,$J72) -> 4 | K79: =COUNTIF($S$6:$T$11,"="&K$78&$C79) -> 2 | L79: 1 | M79: 0 | AA79: ="S"&AA4 -> SB | AB79: 1 | AC79: =INDEX($AC$15:$AC$18,AJ72) -> 5 | AD79: =AJ72 -> 1 | AE79: =INDEX($AH$15:$AH$18,AJ72) -> DEN | AF79: =SUMIF($AD$6:$AE$11,"="&$AC79,$AQ$6:$AR$11) -> 3 | AG79: =INDEX($AD$15:$AD$18,$AJ72) -> 7 | AH79: =INDEX($AE$15:$AE$18,$AJ72) -> 6 | AI79: =INDEX($AF$15:$AF$18,$AJ72) -> 4 | AJ79: =INDEX($AG$15:$AG$18,$AJ72) -> 2 | AK79: =COUNTIF($AS$6:$AT$11,"="&AK$78&$AC79) -> 2 | AL79: 1 | AM79: 0
A80: ="Z"&A4 -> ZA | B80: 2 | C80: =INDEX($C$15:$C$18,J73) -> 2 | D80: =J73 -> 2 | E80: =INDEX($H$15:$H$18,J73) -> ITA | F80: =SUMIF($D$6:$E$11,"="&$C80,$Q$6:$R$11) -> 3 | G80: =INDEX($D$15:$D$18,$J73) -> 5 | H80: =INDEX($E$15:$E$18,$J73) -> 6 | I80: =INDEX($F$15:$F$18,$J73) -> 3 | J80: =INDEX($G$15:$G$18,$J73) -> 3 | K80: 1 | L80: 2 | M80: 0 | AA80: ="Z"&AA4 -> ZB | AB80: 2 | AC80: =INDEX($AC$15:$AC$18,AJ73) -> 7 | AD80: =AJ73 -> 3 | AE80: =INDEX($AH$15:$AH$18,AJ73) -> BEL | AF80: =SUMIF($AD$6:$AE$11,"="&$AC80,$AQ$6:$AR$11) -> 3 | AG80: =INDEX($AD$15:$AD$18,$AJ73) -> 5 | AH80: =INDEX($AE$15:$AE$18,$AJ73) -> 6 | AI80: =INDEX($AF$15:$AF$18,$AJ73) -> 4 | AJ80: =INDEX($AG$15:$AG$18,$AJ73) -> 2 | AK80: 1 | AL80: 2 | AM80: 0
A81: ="D"&A4 -> DA | B81: 3 | C81: =INDEX($C$15:$C$18,J74) -> 1 | D81: =J74 -> 1 | E81: =INDEX($H$15:$H$18,J74) -> TUR | F81: =SUMIF($D$6:$E$11,"="&$C81,$Q$6:$R$11) -> 3 | G81: =INDEX($D$15:$D$18,$J74) -> 2 | H81: =INDEX($E$15:$E$18,$J74) -> 1 | I81: =INDEX($F$15:$F$18,$J74) -> 3 | J81: =INDEX($G$15:$G$18,$J74) -> -2 | K81: 0 | L81: 2 | M81: 1 | AA81: ="D"&AA4 -> DB | AB81: 3 | AC81: =INDEX($AC$15:$AC$18,AJ74) -> 6 | AD81: =AJ74 -> 2 | AE81: =INDEX($AH$15:$AH$18,AJ74) -> FIN | AF81: =SUMIF($AD$6:$AE$11,"="&$AC81,$AQ$6:$AR$11) -> 3 | AG81: =INDEX($AD$15:$AD$18,$AJ74) -> 2 | AH81: =INDEX($AE$15:$AE$18,$AJ74) -> 5 | AI81: =INDEX($AF$15:$AF$18,$AJ74) -> 6 | AJ81: =INDEX($AG$15:$AG$18,$AJ74) -> -1 | AK81: 0 | AL81: 2 | AM81: 1
A82: ="V"&A4 -> VA | B82: 4 | C82: =INDEX($C$15:$C$18,J75) -> 3 | D82: =J75 -> 3 | E82: =INDEX($H$15:$H$18,J75) -> WAL | F82: =SUMIF($D$6:$E$11,"="&$C82,$Q$6:$R$11) -> 3 | G82: =INDEX($D$15:$D$18,$J75) -> 1 | H82: =INDEX($E$15:$E$18,$J75) -> 0 | I82: =INDEX($F$15:$F$18,$J75) -> 5 | J82: =INDEX($G$15:$G$18,$J75) -> -5 | K82: 0 | L82: 1 | M82: 2 | AA82: ="V"&AA4 -> VB | AB82: 4 | AC82: =INDEX($AC$15:$AC$18,AJ75) -> 8 | AD82: =AJ75 -> 4 | AE82: =INDEX($AH$15:$AH$18,AJ75) -> RUS | AF82: =SUMIF($AD$6:$AE$11,"="&$AC82,$AQ$6:$AR$11) -> 3 | AG82: =INDEX($AD$15:$AD$18,$AJ75) -> 1 | AH82: =INDEX($AE$15:$AE$18,$AJ75) -> 3 | AI82: =INDEX($AF$15:$AF$18,$AJ75) -> 6 | AJ82: =INDEX($AG$15:$AG$18,$AJ75) -> -3 | AK82: 0 | AL82: 1 | AM82: 2
A86: C | B86: Paarungen | G86: Resultat | K86: Punkte | AA86: D | AB86: Paarungen | AG86: Resultat | AK86: Punkte
A87: Nr | D87: HT | E87: AT | F87: HT2 | G87: ErgH | H87: ErgA | I87: ErgH2 | K87: PH | L87: PA | M87: DifH | N87: DifA | O87: WertH | P87: WertA | Q87: Spiele | S87: Resultat | AA87: Nr | AD87: HT | AE87: AT | AF87: HT2 | AG87: ErgH | AH87: ErgA | AI87: ErgH2 | AK87: PH | AL87: PA | AM87: DifH | AN87: DifA | AO87: WertH | AP87: WertA | AQ87: Spiele | AS87: Resultat
A88: 1 | B88: =D88&"#"&E88 -> 11#12 | C88: =E88&"#"&D88 -> 12#11 | D88: =VLOOKUP(J88,daten!$D$49:$J$84,6,FALSE) -> 11 | E88: =VLOOKUP(J88,daten!$D$49:$K$84,7,FALSE) -> 12 | F88: =D88 -> 11 | G88: =VLOOKUP(J88,TIPPABGABE!$CU$40:$DE$75,10,FALSE) -> 1 | H88: =VLOOKUP(J88,TIPPABGABE!$CU$40:$DE$75,11,FALSE) -> 1 | I88: =IF(LEN(G88)>0,G88,"") -> 1 | J88: =A86&A88 -> C1 | K88: =IF(COUNT(G88:H88)<>2,0,IF(G88>H88,3,IF(H88>G88,0,1))) -> 1 | L88: =IF(COUNT(G88:H88)<>2,0,IF(G88>H88,0,IF(H88>G88,3,1))) -> 1 | M88: =IF(COUNT(G88:H88)<>2,0,G88-H88) -> 0 | N88: =IF(COUNT(G88:H88)<>2,0,H88-I88) -> 0 | O88: =K88*1000+M88+IF(LEN(G88)=0,0,G88/1000) -> 1000.001 | P88: 1000.001 | Q88: =IF(COUNT(G88:H88)=2,1,0) -> 1 | R88: =Q88 -> 1 | S88: =IF(Q88=0,"X",IF(K88=3,"S",IF(K88=0,"N","U")))&D88 -> U11 | T88: U12 | AA88: 1 | AB88: =AD88&"#"&AE88 -> 13#14 | AC88: =AE88&"#"&AD88 -> 14#13 | AD88: =VLOOKUP(AJ88,daten!$D$49:$J$84,6,FALSE) -> 13 | AE88: =VLOOKUP(AJ88,daten!$D$49:$K$84,7,FALSE) -> 14 | AF88: =AD88 -> 13 | AG88: =VLOOKUP(AJ88,TIPPABGABE!$CU$40:$DE$75,10,FALSE) -> 3 | AH88: =VLOOKUP(AJ88,TIPPABGABE!$CU$40:$DE$75,11,FALSE) -> 1 | AI88: =IF(LEN(AG88)>0,AG88,"") -> 3 | AJ88: =AA86&AA88 -> D1 | AK88: =IF(COUNT(AG88:AH88)<>2,0,IF(AG88>AH88,3,IF(AH88>AG88,0,1))) -> 3 | AL88: =IF(COUNT(AG88:AH88)<>2,0,IF(AG88>AH88,0,IF(AH88>AG88,3,1))) -> 0 | AM88: =IF(COUNT(AG88:AH88)<>2,0,AG88-AH88) -> 2 | AN88: =IF(COUNT(AG88:AH88)<>2,0,AH88-AI88) -> -2 | AO88: =AK88*1000+AM88+IF(LEN(AG88)=0,0,AG88/1000) -> 3002.003 | AP88: -1.999 | AQ88: =IF(COUNT(AG88:AH88)=2,1,0) -> 1 | AR88: =AQ88 -> 1 | AS88: =IF(AQ88=0,"X",IF(AK88=3,"S",IF(AK88=0,"N","U")))&AD88 -> S13 | AT88: N14
A89: 2 | B89: 9#10 | C89: 10#9 | D89: =VLOOKUP(J89,daten!$D$49:$J$84,6,FALSE) -> 9 | E89: =VLOOKUP(J89,daten!$D$49:$K$84,7,FALSE) -> 10 | F89: 9 | G89: =VLOOKUP(J89,TIPPABGABE!$CU$40:$DE$75,10,FALSE) -> 2 | H89: =VLOOKUP(J89,TIPPABGABE!$CU$40:$DE$75,11,FALSE) -> 0 | I89: 2 | J89: =A86&A89 -> C2 | K89: 3 | L89: 0 | M89: 2 | N89: -2 | O89: 3002.002 | P89: -2 | Q89: 1 | R89: 1 | S89: S9 | T89: N10 | AA89: 2 | AB89: 15#16 | AC89: 16#15 | AD89: =VLOOKUP(AJ89,daten!$D$49:$J$84,6,FALSE) -> 15 | AE89: =VLOOKUP(AJ89,daten!$D$49:$K$84,7,FALSE) -> 16 | AF89: 15 | AG89: =VLOOKUP(AJ89,TIPPABGABE!$CU$40:$DE$75,10,FALSE) -> 2 | AH89: =VLOOKUP(AJ89,TIPPABGABE!$CU$40:$DE$75,11,FALSE) -> 2 | AI89: 2 | AJ89: =AA86&AA89 -> D2 | AK89: 1 | AL89: 1 | AM89: 0 | AN89: 0 | AO89: 1000.002 | AP89: 1000.002 | AQ89: 1 | AR89: 1 | AS89: U15 | AT89: U16
A90: 3 | B90: 10#12 | C90: 12#10 | D90: =VLOOKUP(J90,daten!$D$49:$J$84,6,FALSE) -> 10 | E90: =VLOOKUP(J90,daten!$D$49:$K$84,7,FALSE) -> 12 | F90: 10 | G90: =VLOOKUP(J90,TIPPABGABE!$CU$40:$DE$75,10,FALSE) -> 1 | H90: =VLOOKUP(J90,TIPPABGABE!$CU$40:$DE$75,11,FALSE) -> 1 | I90: 1 | J90: =A86&A90 -> C3 | K90: 1 | L90: 1 | M90: 0 | N90: 0 | O90: 1000.001 | P90: 1000.001 | Q90: 1 | R90: 1 | S90: U10 | T90: U12 | AA90: 3 | AB90: 14#16 | AC90: 16#14 | AD90: =VLOOKUP(AJ90,daten!$D$49:$J$84,6,FALSE) -> 14 | AE90: =VLOOKUP(AJ90,daten!$D$49:$K$84,7,FALSE) -> 16 | AF90: 14 | AG90: =VLOOKUP(AJ90,TIPPABGABE!$CU$40:$DE$75,10,FALSE) -> 1 | AH90: =VLOOKUP(AJ90,TIPPABGABE!$CU$40:$DE$75,11,FALSE) -> 1 | AI90: 1 | AJ90: =AA86&AA90 -> D3 | AK90: 1 | AL90: 1 | AM90: 0 | AN90: 0 | AO90: 1000.001 | AP90: 1000.001 | AQ90: 1 | AR90: 1 | AS90: U14 | AT90: U16
A91: 4 | B91: 9#11 | C91: 11#9 | D91: =VLOOKUP(J91,daten!$D$49:$J$84,6,FALSE) -> 9 | E91: =VLOOKUP(J91,daten!$D$49:$K$84,7,FALSE) -> 11 | F91: 9 | G91: =VLOOKUP(J91,TIPPABGABE!$CU$40:$DE$75,10,FALSE) -> 3 | H91: =VLOOKUP(J91,TIPPABGABE!$CU$40:$DE$75,11,FALSE) -> 0 | I91: 3 | J91: =A86&A91 -> C4 | K91: 3 | L91: 0 | M91: 3 | N91: -3 | O91: 3003.003 | P91: -3 | Q91: 1 | R91: 1 | S91: S9 | T91: N11 | AA91: 4 | AB91: 13#15 | AC91: 15#13 | AD91: =VLOOKUP(AJ91,daten!$D$49:$J$84,6,FALSE) -> 13 | AE91: =VLOOKUP(AJ91,daten!$D$49:$K$84,7,FALSE) -> 15 | AF91: 13 | AG91: =VLOOKUP(AJ91,TIPPABGABE!$CU$40:$DE$75,10,FALSE) -> 2 | AH91: =VLOOKUP(AJ91,TIPPABGABE!$CU$40:$DE$75,11,FALSE) -> 2 | AI91: 2 | AJ91: =AA86&AA91 -> D4 | AK91: 1 | AL91: 1 | AM91: 0 | AN91: 0 | AO91: 1000.002 | AP91: 1000.002 | AQ91: 1 | AR91: 1 | AS91: U13 | AT91: U15
A92: 5 | B92: 12#9 | C92: 9#12 | D92: =VLOOKUP(J92,daten!$D$49:$J$84,6,FALSE) -> 12 | E92: =VLOOKUP(J92,daten!$D$49:$K$84,7,FALSE) -> 9 | F92: 12 | G92: =VLOOKUP(J92,TIPPABGABE!$CU$40:$DE$75,10,FALSE) -> 0 | H92: =VLOOKUP(J92,TIPPABGABE!$CU$40:$DE$75,11,FALSE) -> 3 | I92: 0 | J92: =A86&A92 -> C5 | K92: 0 | L92: 3 | M92: -3 | N92: 3 | O92: -3 | P92: 3003.003 | Q92: 1 | R92: 1 | S92: N12 | T92: S9 | AA92: 5 | AB92: 14#15 | AC92: 15#14 | AD92: =VLOOKUP(AJ92,daten!$D$49:$J$84,6,FALSE) -> 14 | AE92: =VLOOKUP(AJ92,daten!$D$49:$K$84,7,FALSE) -> 15 | AF92: 14 | AG92: =VLOOKUP(AJ92,TIPPABGABE!$CU$40:$DE$75,10,FALSE) -> 0 | AH92: =VLOOKUP(AJ92,TIPPABGABE!$CU$40:$DE$75,11,FALSE) -> 3 | AI92: 0 | AJ92: =AA86&AA92 -> D5 | AK92: 0 | AL92: 3 | AM92: -3 | AN92: 3 | AO92: -3 | AP92: 3003.003 | AQ92: 1 | AR92: 1 | AS92: N14 | AT92: S15
A93: 6 | B93: 10#11 | C93: 11#10 | D93: =VLOOKUP(J93,daten!$D$49:$J$84,6,FALSE) -> 10 | E93: =VLOOKUP(J93,daten!$D$49:$K$84,7,FALSE) -> 11 | F93: 10 | G93: =VLOOKUP(J93,TIPPABGABE!$CU$40:$DE$75,10,FALSE) -> 1 | H93: =VLOOKUP(J93,TIPPABGABE!$CU$40:$DE$75,11,FALSE) -> 1 | I93: 1 | J93: =A86&A93 -> C6 | K93: 1 | L93: 1 | M93: 0 | N93: 0 | O93: 1000.001 | P93: 1000.001 | Q93: 1 | R93: 1 | S93: U10 | T93: U11 | AA93: 6 | AB93: 16#13 | AC93: 13#16 | AD93: =VLOOKUP(AJ93,daten!$D$49:$J$84,6,FALSE) -> 16 | AE93: =VLOOKUP(AJ93,daten!$D$49:$K$84,7,FALSE) -> 13 | AF93: 16 | AG93: =VLOOKUP(AJ93,TIPPABGABE!$CU$40:$DE$75,10,FALSE) -> 0 | AH93: =VLOOKUP(AJ93,TIPPABGABE!$CU$40:$DE$75,11,FALSE) -> 3 | AI93: 0 | AJ93: =AA86&AA93 -> D6 | AK93: 0 | AL93: 3 | AM93: -3 | AN93: 3 | AO93: -3 | AP93: 3003.003 | AQ93: 1 | AR93: 1 | AS93: N16 | AT93: S13
A96: Modus | C96: TeamIdx | D96: P | E96: Treffer | F96: GTo | G96: Dif | H96: Team | I96: RangPkt | K96: Koeff | M96: Rang | N96: RangPkt | AA96: Modus | AC96: TeamIdx | AD96: P | AE96: Treffer | AF96: GTo | AG96: Dif | AH96: Team | AI96: RangPkt | AK96: Koeff | AM96: Rang | AN96: RangPkt
A97: 1 | C97: 9 | D97: =SUMIF($D$88:$E$93,"="&C97,$K$88:$L$93) -> 9 | E97: =SUMIF($D$88:$E$93,"="&$C97,$G$88:$H$93) -> 8 | F97: =E97-G97 -> 0 | G97: =SUMIF($D$88:$E$93,"="&$C97,$G$88:$H$93)-SUMIF($D$88:$E$93,"="&$C97,$H$88:$I$93) -> 8 | H97: =INDEX(teams_k,C97) -> NED | I97: =RANK(D97,$D$97:$D$100,1) -> 4 | L97: 1 | M97: 1 | N97: =RANK(M97,$M$97:$M$100) -> 1 | AA97: 1 | AC97: 13 | AD97: =SUMIF($AD$88:$AE$93,"="&AC97,$AK$88:$AL$93) -> 7 | AE97: =SUMIF($AD$88:$AE$93,"="&$AC97,$AG$88:$AH$93) -> 8 | AF97: =AE97-AG97 -> 3 | AG97: =SUMIF($AD$88:$AE$93,"="&$AC97,$AG$88:$AH$93)-SUMIF($AD$88:$AE$93,"="&$AC97,$AH$88:$AI$93) -> 5 | AH97: =INDEX(teams_k,AC97) -> ENG | AI97: =RANK(AD97,$AD$97:$AD$100,1) -> 4 | AL97: 1 | AM97: 1 | AN97: =RANK(AM97,$AM$97:$AM$100) -> 1
C98: 10 | D98: =SUMIF($D$88:$E$93,"="&C98,$K$88:$L$93) -> 2 | E98: =SUMIF($D$88:$E$93,"="&$C98,$G$88:$H$93) -> 2 | F98: =E98-G98 -> 4 | G98: =SUMIF($D$88:$E$93,"="&$C98,$G$88:$H$93)-SUMIF($D$88:$E$93,"="&$C98,$H$88:$I$93) -> -2 | H98: =INDEX(teams_k,C98) -> UKR | I98: =RANK(D98,$D$97:$D$100,1) -> 1 | L98: 2 | M98: 1 | N98: =RANK(M98,$M$97:$M$100) -> 1 | AC98: 14 | AD98: =SUMIF($AD$88:$AE$93,"="&AC98,$AK$88:$AL$93) -> 1 | AE98: =SUMIF($AD$88:$AE$93,"="&$AC98,$AG$88:$AH$93) -> 2 | AF98: =AE98-AG98 -> 7 | AG98: =SUMIF($AD$88:$AE$93,"="&$AC98,$AG$88:$AH$93)-SUMIF($AD$88:$AE$93,"="&$AC98,$AH$88:$AI$93) -> -5 | AH98: =INDEX(teams_k,AC98) -> CRO | AI98: =RANK(AD98,$AD$97:$AD$100,1) -> 1 | AL98: 2 | AM98: 1 | AN98: =RANK(AM98,$AM$97:$AM$100) -> 1
C99: 11 | D99: =SUMIF($D$88:$E$93,"="&C99,$K$88:$L$93) -> 2 | E99: =SUMIF($D$88:$E$93,"="&$C99,$G$88:$H$93) -> 2 | F99: =E99-G99 -> 5 | G99: =SUMIF($D$88:$E$93,"="&$C99,$G$88:$H$93)-SUMIF($D$88:$E$93,"="&$C99,$H$88:$I$93) -> -3 | H99: =INDEX(teams_k,C99) -> AUT | I99: =RANK(D99,$D$97:$D$100,1) -> 1 | L99: 3 | M99: 1 | N99: =RANK(M99,$M$97:$M$100) -> 1 | AC99: 15 | AD99: =SUMIF($AD$88:$AE$93,"="&AC99,$AK$88:$AL$93) -> 5 | AE99: =SUMIF($AD$88:$AE$93,"="&$AC99,$AG$88:$AH$93) -> 7 | AF99: =AE99-AG99 -> 4 | AG99: =SUMIF($AD$88:$AE$93,"="&$AC99,$AG$88:$AH$93)-SUMIF($AD$88:$AE$93,"="&$AC99,$AH$88:$AI$93) -> 3 | AH99: =INDEX(teams_k,AC99) -> SCO | AI99: =RANK(AD99,$AD$97:$AD$100,1) -> 3 | AL99: 3 | AM99: 1 | AN99: =RANK(AM99,$AM$97:$AM$100) -> 1
C100: 12 | D100: =SUMIF($D$88:$E$93,"="&C100,$K$88:$L$93) -> 2 | E100: =SUMIF($D$88:$E$93,"="&$C100,$G$88:$H$93) -> 2 | F100: =E100-G100 -> 5 | G100: =SUMIF($D$88:$E$93,"="&$C100,$G$88:$H$93)-SUMIF($D$88:$E$93,"="&$C100,$H$88:$I$93) -> -3 | H100: =INDEX(teams_k,C100) -> MKD | I100: =RANK(D100,$D$97:$D$100,1) -> 1 | L100: 4 | M100: 1 | N100: =RANK(M100,$M$97:$M$100) -> 1 | AC100: 16 | AD100: =SUMIF($AD$88:$AE$93,"="&AC100,$AK$88:$AL$93) -> 2 | AE100: =SUMIF($AD$88:$AE$93,"="&$AC100,$AG$88:$AH$93) -> 3 | AF100: =AE100-AG100 -> 6 | AG100: =SUMIF($AD$88:$AE$93,"="&$AC100,$AG$88:$AH$93)-SUMIF($AD$88:$AE$93,"="&$AC100,$AH$88:$AI$93) -> -3 | AH100: =INDEX(teams_k,AC100) -> CZE | AI100: =RANK(AD100,$AD$97:$AD$100,1) -> 2 | AL100: 4 | AM100: 1 | AN100: =RANK(AM100,$AM$97:$AM$100) -> 1
B102: DV1 | D102: =B104 -> 9 | E102: =B105 -> 10 | F102: =B106 -> 11 | G102: =B107 -> 12 | AB102: DV1 | AD102: =AB104 -> 13 | AE102: =AB105 -> 14 | AF102: =AB106 -> 15 | AG102: =AB107 -> 16
B103: TeamIndex | C103: Nr | D103: =C104 -> 1 | E103: =C105 -> 2 | F103: =C106 -> 3 | G103: =C107 -> 4 | I103: RangPkt. | AB103: TeamIndex | AC103: Nr | AD103: =AC104 -> 1 | AE103: =AC105 -> 2 | AF103: =AC106 -> 3 | AG103: =AC107 -> 4 | AI103: RangPkt.
B104: =INDEX($C$97:$C$100,C104) -> 9 | C104: 1 | D104: =IF(INDEX($I$97:$I$100,$C104)<>INDEX($I$97:$I$100,D$103),0,SUMIF($B$88:$C$93,"="&$B104&"#"&D$102,$O$88:$P$93)) -> 0 | E104: 0 | F104: 0 | G104: 0 | H104: =SUM(D104:G104) -> 0 | I104: =RANK(H104,$H$104:$H$107,1) -> 1 | AB104: =INDEX($AC$97:$AC$100,AC104) -> 13 | AC104: 1 | AD104: =IF(INDEX($AI$97:$AI$100,$AC104)<>INDEX($AI$97:$AI$100,AD$103),0,SUMIF($AB$88:$AC$93,"="&$AB104&"#"&AD$102,$AO$88:$AP$93)) -> 0 | AE104: 0 | AF104: 0 | AG104: 0 | AH104: =SUM(AD104:AG104) -> 0 | AI104: =RANK(AH104,$AH$104:$AH$107,1) -> 1
B105: =INDEX($C$97:$C$100,C105) -> 10 | C105: 2 | D105: 0 | E105: 0 | F105: 1000.001 | G105: 1000.001 | H105: =SUM(D105:G105) -> 2000.002 | I105: =RANK(H105,$H$104:$H$107,1) -> 2 | AB105: =INDEX($AC$97:$AC$100,AC105) -> 14 | AC105: 2 | AD105: 0 | AE105: 0 | AF105: 0 | AG105: 0 | AH105: =SUM(AD105:AG105) -> 0 | AI105: =RANK(AH105,$AH$104:$AH$107,1) -> 1
B106: =INDEX($C$97:$C$100,C106) -> 11 | C106: 3 | D106: 0 | E106: 1000.001 | F106: 0 | G106: 1000.001 | H106: =SUM(D106:G106) -> 2000.002 | I106: =RANK(H106,$H$104:$H$107,1) -> 2 | AB106: =INDEX($AC$97:$AC$100,AC106) -> 15 | AC106: 3 | AD106: 0 | AE106: 0 | AF106: 0 | AG106: 0 | AH106: =SUM(AD106:AG106) -> 0 | AI106: =RANK(AH106,$AH$104:$AH$107,1) -> 1
B107: =INDEX($C$97:$C$100,C107) -> 12 | C107: 4 | D107: 0 | E107: 1000.001 | F107: 1000.001 | G107: 0 | H107: =SUM(D107:G107) -> 2000.002 | I107: =RANK(H107,$H$104:$H$107,1) -> 2 | AB107: =INDEX($AC$97:$AC$100,AC107) -> 16 | AC107: 4 | AD107: 0 | AE107: 0 | AF107: 0 | AG107: 0 | AH107: =SUM(AD107:AG107) -> 0 | AI107: =RANK(AH107,$AH$104:$AH$107,1) -> 1
B109: DV2 | C109: Nr | D109: =C110 -> 1 | E109: =C111 -> 2 | F109: =C112 -> 3 | G109: =C113 -> 4 | I109: RangPkt. | AB109: DV2 | AC109: Nr | AD109: =AC110 -> 1 | AE109: =AC111 -> 2 | AF109: =AC112 -> 3 | AG109: =AC113 -> 4 | AI109: RangPkt.
B110: =B104 -> 9 | C110: 1 | D110: =IF(D104=0,0,IF(INDEX($I$104:$I$107,$C104)<>INDEX($I$104:$I$107,D$103),0,SUMIF($B$88:$C$93,"="&$B104&"#"&D$102,$K$88:$L$93)*1000+SUMIF($B$88:$C$93,"="&$B104&"#"&D$102,$M$88:$N$93)+SUMIF($B$88:$C$93,"="&$B104&"#"&D$102,$G$88:$H$93)/1000)) -> 0 | E110: 0 | F110: 0 | G110: 0 | H110: =SUM(D110:G110) -> 0 | I110: =RANK(H110,$H$110:$H$113,1) -> 1 | AB110: =AB104 -> 13 | AC110: 1 | AD110: =IF(AD104=0,0,IF(INDEX($AI$104:$AI$107,$AC104)<>INDEX($AI$104:$AI$107,AD$103),0,SUMIF($AB$88:$AC$93,"="&$AB104&"#"&AD$102,$AK$88:$AL$93)*1000+SUMIF($AB$88:$AC$93,"="&$AB104&"#"&AD$102,$AM$88:$AN$93)+SUMIF($AB$88:$AC$93,"="&$AB104&"#"&AD$102,$AG$88:$AH$93)/1000)) -> 0 | AE110: 0 | AF110: 0 | AG110: 0 | AH110: =SUM(AD110:AG110) -> 0 | AI110: =RANK(AH110,$AH$110:$AH$113,1) -> 1
B111: =B105 -> 10 | C111: 2 | D111: 0 | E111: 0 | F111: 1000.001 | G111: 1000.001 | H111: =SUM(D111:G111) -> 2000.002 | I111: =RANK(H111,$H$110:$H$113,1) -> 2 | AB111: =AB105 -> 14 | AC111: 2 | AD111: 0 | AE111: 0 | AF111: 0 | AG111: 0 | AH111: =SUM(AD111:AG111) -> 0 | AI111: =RANK(AH111,$AH$110:$AH$113,1) -> 1
B112: =B106 -> 11 | C112: 3 | D112: 0 | E112: 1000.001 | F112: 0 | G112: 1000.001 | H112: =SUM(D112:G112) -> 2000.002 | I112: =RANK(H112,$H$110:$H$113,1) -> 2 | AB112: =AB106 -> 15 | AC112: 3 | AD112: 0 | AE112: 0 | AF112: 0 | AG112: 0 | AH112: =SUM(AD112:AG112) -> 0 | AI112: =RANK(AH112,$AH$110:$AH$113,1) -> 1
B113: =B107 -> 12 | C113: 4 | D113: 0 | E113: 1000.001 | F113: 1000.001 | G113: 0 | H113: =SUM(D113:G113) -> 2000.002 | I113: =RANK(H113,$H$110:$H$113,1) -> 2 | AB113: =AB107 -> 16 | AC113: 4 | AD113: 0 | AE113: 0 | AF113: 0 | AG113: 0 | AH113: =SUM(AD113:AG113) -> 0 | AI113: =RANK(AH113,$AH$110:$AH$113,1) -> 1
C115: Nr | D115: RangPkt | H115: RangPkt | AC115: Nr | AD115: RangPkt | AH115: RangPkt
B116: Diff | C116: 1 | D116: =RANK(G97,$G$97:$G$100,1) -> 4 | F116: Tore | G116: 1 | H116: =RANK(E97,$E$97:$E$100,1) -> 4 | AB116: Diff | AC116: 1 | AD116: =RANK(AG97,$AG$97:$AG$100,1) -> 4 | AF116: Tore | AG116: 1 | AH116: =RANK(AE97,$AE$97:$AE$100,1) -> 4
C117: 2 | D117: =RANK(G98,$G$97:$G$100,1) -> 3 | G117: 2 | H117: =RANK(E98,$E$97:$E$100,1) -> 1 | AC117: 2 | AD117: =RANK(AG98,$AG$97:$AG$100,1) -> 1 | AG117: 2 | AH117: =RANK(AE98,$AE$97:$AE$100,1) -> 1
C118: 3 | D118: =RANK(G99,$G$97:$G$100,1) -> 1 | G118: 3 | H118: =RANK(E99,$E$97:$E$100,1) -> 1 | AC118: 3 | AD118: =RANK(AG99,$AG$97:$AG$100,1) -> 3 | AG118: 3 | AH118: =RANK(AE99,$AE$97:$AE$100,1) -> 3
C119: 4 | D119: =RANK(G100,$G$97:$G$100,1) -> 1 | G119: 4 | H119: =RANK(E100,$E$97:$E$100,1) -> 1 | AC119: 4 | AD119: =RANK(AG100,$AG$97:$AG$100,1) -> 2 | AG119: 4 | AH119: =RANK(AE100,$AE$97:$AE$100,1) -> 2
I121: Modus | AI121: Modus
C122: Nr | E122: RangPkt | F122: Rang | H122: Wertigkeit | I122: 1 | J122: 2 | K122: Faktor | M122: Faktoren | AC122: Nr | AE122: RangPkt | AF122: Rang | AH122: Wertigkeit | AI122: 1 | AJ122: 2 | AK122: Faktor | AM122: Faktoren
B123: Wert | C123: 1 | D123: =I97*$K$123+I104*$K$124+I110*$K$125+D116*$K$126+H116*$K$127 -> 4010104.04 | E123: =RANK(D123,$D$123:$D$126,1) -> 4 | F123: =RANK(D123,$D$123:$D$126) -> 1 | H123: Punkte | I123: 1 | J123: 1 | K123: =INDEX($N$123:$N$127,INDEX(I123:J123,$A$97)) -> 1000000 | M123: 1 | N123: 1000000 | AB123: Wert | AC123: 1 | AD123: =AI97*$AK$123+AI104*$AK$124+AI110*$AK$125+AD116*$AK$126+AH116*$AK$127 -> 4010104.04 | AE123: =RANK(AD123,$AD$123:$AD$126,1) -> 4 | AF123: =RANK(AD123,$AD$123:$AD$126) -> 1 | AH123: Punkte | AI123: 1 | AJ123: 1 | AK123: =INDEX($AN$123:$AN$127,INDEX(AI123:AJ123,$AA$97)) -> 1000000 | AM123: 1 | AN123: 1000000
C124: 2 | D124: =I98*$K$123+I105*$K$124+I111*$K$125+D117*$K$126+H117*$K$127 -> 1020203.01 | E124: =RANK(D124,$D$123:$D$126,1) -> 3 | F124: =RANK(D124,$D$123:$D$126) -> 2 | H124: DV1 | I124: 2 | J124: 4 | K124: =INDEX($N$123:$N$127,INDEX(I124:J124,$A$97)) -> 10000 | M124: 2 | N124: 10000 | AC124: 2 | AD124: =AI98*$AK$123+AI105*$AK$124+AI111*$AK$125+AD117*$AK$126+AH117*$AK$127 -> 1010101.01 | AE124: =RANK(AD124,$AD$123:$AD$126,1) -> 1 | AF124: =RANK(AD124,$AD$123:$AD$126) -> 4 | AH124: DV1 | AI124: 2 | AJ124: 4 | AK124: =INDEX($AN$123:$AN$127,INDEX(AI124:AJ124,$AA$97)) -> 10000 | AM124: 2 | AN124: 10000
C125: 3 | D125: =I99*$K$123+I106*$K$124+I112*$K$125+D118*$K$126+H118*$K$127 -> 1020201.01 | E125: =RANK(D125,$D$123:$D$126,1) -> 1 | F125: =RANK(D125,$D$123:$D$126) -> 3 | H125: DV2 | I125: 3 | J125: 5 | K125: =INDEX($N$123:$N$127,INDEX(I125:J125,$A$97)) -> 100 | M125: 3 | N125: 100 | AC125: 3 | AD125: =AI99*$AK$123+AI106*$AK$124+AI112*$AK$125+AD118*$AK$126+AH118*$AK$127 -> 3010103.03 | AE125: =RANK(AD125,$AD$123:$AD$126,1) -> 3 | AF125: =RANK(AD125,$AD$123:$AD$126) -> 2 | AH125: DV2 | AI125: 3 | AJ125: 5 | AK125: =INDEX($AN$123:$AN$127,INDEX(AI125:AJ125,$AA$97)) -> 100 | AM125: 3 | AN125: 100
C126: 4 | D126: =I100*$K$123+I107*$K$124+I113*$K$125+D119*$K$126+H119*$K$127 -> 1020201.01 | E126: =RANK(D126,$D$123:$D$126,1) -> 1 | F126: =RANK(D126,$D$123:$D$126) -> 3 | H126: TD alle | I126: 4 | J126: 2 | K126: =INDEX($N$123:$N$127,INDEX(I126:J126,$A$97)) -> 1 | M126: 4 | N126: 1 | AC126: 4 | AD126: =AI100*$AK$123+AI107*$AK$124+AI113*$AK$125+AD119*$AK$126+AH119*$AK$127 -> 2010102.02 | AE126: =RANK(AD126,$AD$123:$AD$126,1) -> 2 | AF126: =RANK(AD126,$AD$123:$AD$126) -> 3 | AH126: TD alle | AI126: 4 | AJ126: 2 | AK126: =INDEX($AN$123:$AN$127,INDEX(AI126:AJ126,$AA$97)) -> 1 | AM126: 4 | AN126: 1
H127: Tore alle | I127: 5 | J127: 3 | K127: =INDEX($N$123:$N$127,INDEX(I127:J127,$A$97)) -> 0.01 | M127: 5 | N127: =1/100 -> 0.01 | AH127: Tore alle | AI127: 5 | AJ127: 3 | AK127: =INDEX($AN$123:$AN$127,INDEX(AI127:AJ127,$AA$97)) -> 0.01 | AM127: 5 | AN127: =1/100 -> 0.01
H128: EMS | I128: 6 | J128: 6 | AH128: EMS | AI128: 6 | AJ128: 6
B129: EMS | C129: =A97=1 -> TRUE | D129: WAHR/FALSCH für EMS AN/AUS | H129: Koeff | I129: 7 | J129: 7 | AB129: EMS | AC129: =AA97=1 -> TRUE | AD129: WAHR/FALSCH für EMS AN/AUS | AH129: Koeff | AI129: 7 | AJ129: 7
C130: um Platz1 | D130: um Platz2 | E130: um Platz 3 | AC130: um Platz1 | AD130: um Platz2 | AE130: um Platz 3
B131: Anz. Teams | C131: =COUNTIF($F$123:$F$126,"=1") -> 1 | D131: =COUNTIF($F$123:$F$126,"=2") -> 1 | E131: =COUNTIF($F$123:$F$126,"=3") -> 2 | AB131: Anz. Teams | AC131: =COUNTIF($AF$123:$AF$126,"=1") -> 1 | AD131: =COUNTIF($AF$123:$AF$126,"=2") -> 1 | AE131: =COUNTIF($AF$123:$AF$126,"=3") -> 1
B133: Rang | C133: =IF(NOT(C129),0,IF(C131=2,1,IF(D131=2,2,IF(E131=2,3,0)))) -> 3 | E133: Teams | F133: =MIN(IF($F$123:$F$126=$C$133,$C$97:$C$100)) -> 11 | G133: =MAX(IF($F$123:$F$126=C133,$C$97:$C$100)) -> 12 | I133: Paarung | J133: =IF(ISERROR(F135),G135,F135) -> 1 | AB133: Rang | AC133: =IF(NOT(AC129),0,IF(AC131=2,1,IF(AD131=2,2,IF(AE131=2,3,0)))) -> 0 | AE133: Teams | AF133: =MIN(IF($AF$123:$AF$126=$AC$133,$AC$97:$AC$100)) -> 0 | AG133: =MAX(IF($AF$123:$AF$126=AC133,$AC$97:$AC$100)) -> 0 | AI133: Paarung | AJ133: =IF(ISERROR(AF135),AG135,AF135) -> 
F134: =F133&"#"&G133 -> 11#12 | G134: =G133&"#"&F133 -> 12#11 | AF134: =AF133&"#"&AG133 -> 0#0 | AG134: =AG133&"#"&AF133 -> 0#0
F135: =MATCH(F134,$B$88:$B$93,0) -> 1 | G135: =MATCH(G134,$B$88:$B$93,0) ->  | AF135: =MATCH(AF134,$AB$88:$AB$93,0) ->  | AG135: =MATCH(AG134,$AB$88:$AB$93,0) -> 
B138: TeamIdx | C138: =INDEX(D88:D93,J133) -> 11 | D138: =INDEX(E88:E93,J133) -> 12 | E138: Häufigkeit | F138: Remis | G138: EMS OK | I138: Text | J138: =IF(G139=0,"","EMS um Rang " &C133) ->  | AB138: TeamIdx | AC138: =INDEX(AD88:AD93,AJ133) ->  | AD138: =INDEX(AE88:AE93,AJ133) ->  | AE138: Häufigkeit | AF138: Remis | AG138: EMS OK | AI138: Text | AJ138: =IF(AG139=0,"","EMS um Rang " &AC133) -> 
B139: Punkte | C139: =VLOOKUP(C138,$C$97:$D$100,2,FALSE) -> 2 | D139: =VLOOKUP(D138,$C$97:$D$100,2,FALSE) -> 2 | E139: =COUNTIF($D$97:$D$100,"="&D139) -> 3 | F139: =INDEX(K88:K93,J133)=1 -> TRUE | G139: =IF(C133=0,0,IF(J133<5,0,IF(E139<>2,0,IF(C139<>D139,0,IF(NOT(F139),0,1))))) -> 0 | AB139: Punkte | AC139: =VLOOKUP(AC138,$AC$97:$AD$100,2,FALSE) ->  | AD139: =VLOOKUP(AD138,$AC$97:$AD$100,2,FALSE) ->  | AE139: =COUNTIF($AD$97:$AD$100,"="&AD139) -> 0 | AF139: =INDEX(AK88:AK93,AJ133)=1 ->  | AG139: =IF(AC133=0,0,IF(AJ133<5,0,IF(AE139<>2,0,IF(AC139<>AD139,0,IF(NOT(AF139),0,1))))) -> 0
E141: Ergebnis EMS | AE141: Ergebnis EMS
B142: Teams | C142: =VLOOKUP(C138,$C$97:$H$100,6,FALSE) -> AUT | D142: =VLOOKUP(D138,$C$97:$H$100,6,FALSE) -> MKD | AB142: Teams | AC142: =VLOOKUP(AC138,$AC$97:$AH$100,6,FALSE) ->  | AD142: =VLOOKUP(AD138,$AC$97:$AH$100,6,FALSE) -> 
B143: Nr | C143: =MATCH(C138,$C$97:$C$100,0) -> 3 | D143: =MATCH(D138,$C$97:$C$100,0) -> 4 | E143: =IF(COUNT(E142:F142)<>2,0,IF(E142>F142,1,0)) -> 0 | F143: =IF(COUNT(E142:F142)<>2,0,IF(E142<F142,1,0)) -> 0 | G143: EMS-Pkt | AB143: Nr | AC143: =MATCH(AC138,$AC$97:$AC$100,0) ->  | AD143: =MATCH(AD138,$AC$97:$AC$100,0) ->  | AE143: =IF(COUNT(AE142:AF142)<>2,0,IF(AE142>AF142,1,0)) -> 0 | AF143: =IF(COUNT(AE142:AF142)<>2,0,IF(AE142<AF142,1,0)) -> 0 | AG143: EMS-Pkt
C146: Rangpkt inkl. EMS und Koeff | AC146: Rangpkt inkl. EMS und Koeff
C147: Nr. | D147: RangPkt | E147: Rang | F147: Rang korr | AC147: Nr. | AD147: RangPkt | AE147: Rang | AF147: Rang korr
B148: Wert | C148: 1 | D148: =E123+IF($G$139=0,0,SUMIF($C$143:$D$143,"="&C148,$E$143:$F$143)/100)+N97/10000 -> 4.0001 | E148: =RANK(D148,$D$148:$D$151) -> 1 | F148: =E148+COUNTIF(E$147:E147,"="&E148) -> 1 | AB148: Wert | AC148: 1 | AD148: =AE123+IF($AG$139=0,0,SUMIF($AC$143:$AD$143,"="&AC148,$AE$143:$AF$143)/100)+AN97/10000 -> 4.0001 | AE148: =RANK(AD148,$AD$148:$AD$151) -> 1 | AF148: =AE148+COUNTIF(AE$147:AE147,"="&AE148) -> 1
C149: 2 | D149: =E124+IF($G$139=0,0,SUMIF($C$143:$D$143,"="&C149,$E$143:$F$143)/100)+N98/10000 -> 3.0001 | E149: =RANK(D149,$D$148:$D$151) -> 2 | F149: =E149+COUNTIF(E$147:E148,"="&E149) -> 2 | AC149: 2 | AD149: =AE124+IF($AG$139=0,0,SUMIF($AC$143:$AD$143,"="&AC149,$AE$143:$AF$143)/100)+AN98/10000 -> 1.0001 | AE149: =RANK(AD149,$AD$148:$AD$151) -> 4 | AF149: =AE149+COUNTIF(AE$147:AE148,"="&AE149) -> 4
C150: 3 | D150: =E125+IF($G$139=0,0,SUMIF($C$143:$D$143,"="&C150,$E$143:$F$143)/100)+N99/10000 -> 1.0001 | E150: =RANK(D150,$D$148:$D$151) -> 3 | F150: =E150+COUNTIF(E$147:E149,"="&E150) -> 3 | AC150: 3 | AD150: =AE125+IF($AG$139=0,0,SUMIF($AC$143:$AD$143,"="&AC150,$AE$143:$AF$143)/100)+AN99/10000 -> 3.0001 | AE150: =RANK(AD150,$AD$148:$AD$151) -> 2 | AF150: =AE150+COUNTIF(AE$147:AE149,"="&AE150) -> 2
C151: 4 | D151: =E126+IF($G$139=0,0,SUMIF($C$143:$D$143,"="&C151,$E$143:$F$143)/100)+N100/10000 -> 1.0001 | E151: =RANK(D151,$D$148:$D$151) -> 3 | F151: =E151+COUNTIF(E$147:E150,"="&E151) -> 4 | AC151: 4 | AD151: =AE126+IF($AG$139=0,0,SUMIF($AC$143:$AD$143,"="&AC151,$AE$143:$AF$143)/100)+AN100/10000 -> 2.0001 | AE151: =RANK(AD151,$AD$148:$AD$151) -> 3 | AF151: =AE151+COUNTIF(AE$147:AE150,"="&AE151) -> 3
J152: berechnete oder manuelle Tabelle | AJ152: berechnete oder manuelle Tabelle
B153: Tabelle | C153: Rang | D153: Nr | E153: Rang Eff | F153: Manuell | G153: =VLOOKUP(A86,TIPPABGABE!$CQ$69:$CR$75,2,FALSE) -> FALSE | H153: Nr | J153: Nr korr | AB153: Tabelle | AC153: Rang | AD153: Nr | AE153: Rang Eff | AF153: Manuell | AG153: =VLOOKUP(AA86,TIPPABGABE!$CQ$69:$CR$75,2,FALSE) -> FALSE | AH153: Nr | AJ153: Nr korr
B154: =INDEX(teams,INDEX(C97:C100,D154)) -> Niederlande | C154: 1 | D154: =MATCH(C154,$F$148:$F$151,0) -> 1 | E154: =IF(G153,C154,INDEX(E148:E151,D154)) -> 1 | G154: 1 | H154: =IF(G153,VLOOKUP(A161,TIPPABGABE!$CQ$40:$CS$67,3,FALSE),D154) -> 1 | J154: =IF(AND(G153,TIPPABGABE!$DA$35=1,TIPPABGABE!$AN$8=TIPPABGABE!$AN$4),H154,D154) -> 1 | AB154: =INDEX(teams,INDEX(AC97:AC100,AD154)) -> England | AC154: 1 | AD154: =MATCH(AC154,$AF$148:$AF$151,0) -> 1 | AE154: =IF(AG153,AC154,INDEX(AE148:AE151,AD154)) -> 1 | AG154: 1 | AH154: =IF(AG153,VLOOKUP(AA161,TIPPABGABE!$CQ$40:$CS$67,3,FALSE),AD154) -> 1 | AJ154: =IF(AND(AG153,TIPPABGABE!$DA$35=1,TIPPABGABE!$AN$8=TIPPABGABE!$AN$4),AH154,AD154) -> 1
B155: =INDEX(teams,INDEX(C97:C100,D155)) -> Ukraine | C155: 2 | D155: =MATCH(C155,$F$148:$F$151,0) -> 2 | E155: =IF(G153,C155,INDEX(E148:E151,D155)) -> 2 | G155: 2 | H155: =IF(G153,VLOOKUP(A162,TIPPABGABE!$CQ$40:$CS$67,3,FALSE),D155) -> 2 | J155: =IF(AND(G153,TIPPABGABE!$DA$35=1,TIPPABGABE!$AN$8=TIPPABGABE!$AN$4),H155,D155) -> 2 | AB155: =INDEX(teams,INDEX(AC97:AC100,AD155)) -> Schottland | AC155: 2 | AD155: =MATCH(AC155,$AF$148:$AF$151,0) -> 3 | AE155: =IF(AG153,AC155,INDEX(AE148:AE151,AD155)) -> 2 | AG155: 2 | AH155: =IF(AG153,VLOOKUP(AA162,TIPPABGABE!$CQ$40:$CS$67,3,FALSE),AD155) -> 3 | AJ155: =IF(AND(AG153,TIPPABGABE!$DA$35=1,TIPPABGABE!$AN$8=TIPPABGABE!$AN$4),AH155,AD155) -> 3
B156: =INDEX(teams,INDEX(C97:C100,D156)) -> Österreich | C156: 3 | D156: =MATCH(C156,$F$148:$F$151,0) -> 3 | E156: =IF(G153,C156,INDEX(E148:E151,D156)) -> 3 | G156: 3 | H156: =IF(G153,VLOOKUP(A163,TIPPABGABE!$CQ$40:$CS$67,3,FALSE),D156) -> 3 | J156: =IF(AND(G153,TIPPABGABE!$DA$35=1,TIPPABGABE!$AN$8=TIPPABGABE!$AN$4),H156,D156) -> 3 | AB156: =INDEX(teams,INDEX(AC97:AC100,AD156)) -> Tschechien | AC156: 3 | AD156: =MATCH(AC156,$AF$148:$AF$151,0) -> 4 | AE156: =IF(AG153,AC156,INDEX(AE148:AE151,AD156)) -> 3 | AG156: 3 | AH156: =IF(AG153,VLOOKUP(AA163,TIPPABGABE!$CQ$40:$CS$67,3,FALSE),AD156) -> 4 | AJ156: =IF(AND(AG153,TIPPABGABE!$DA$35=1,TIPPABGABE!$AN$8=TIPPABGABE!$AN$4),AH156,AD156) -> 4
B157: =INDEX(teams,INDEX(C97:C100,D157)) -> Nordmazedonien | C157: 4 | D157: =MATCH(C157,$F$148:$F$151,0) -> 4 | E157: =IF(G153,C157,INDEX(E148:E151,D157)) -> 3 | G157: 4 | H157: =IF(G153,VLOOKUP(A164,TIPPABGABE!$CQ$40:$CS$67,3,FALSE),D157) -> 4 | J157: =IF(AND(G153,TIPPABGABE!$DA$35=1,TIPPABGABE!$AN$8=TIPPABGABE!$AN$4),H157,D157) -> 4 | AB157: =INDEX(teams,INDEX(AC97:AC100,AD157)) -> Kroatien | AC157: 4 | AD157: =MATCH(AC157,$AF$148:$AF$151,0) -> 2 | AE157: =IF(AG153,AC157,INDEX(AE148:AE151,AD157)) -> 4 | AG157: 4 | AH157: =IF(AG153,VLOOKUP(AA164,TIPPABGABE!$CQ$40:$CS$67,3,FALSE),AD157) -> 2 | AJ157: =IF(AND(AG153,TIPPABGABE!$DA$35=1,TIPPABGABE!$AN$8=TIPPABGABE!$AN$4),AH157,AD157) -> 2
B160: Tabelle | C160: TeamIndex | D160: Nr | E160: Team | F160: Sp | G160: P | H160: T+ | I160: T- | J160: Diff | K160: S | L160: U | M160: N | AB160: Tabelle | AC160: TeamIndex | AD160: Nr | AE160: Team | AF160: Sp | AG160: P | AH160: T+ | AI160: T- | AJ160: Diff | AK160: S | AL160: U | AM160: N
A161: ="S"&A86 -> SC | B161: 1 | C161: =INDEX($C$97:$C$100,J154) -> 9 | D161: =J154 -> 1 | E161: =INDEX($H$97:$H$100,J154) -> NED | F161: =SUMIF($D$88:$E$93,"="&$C161,$Q$88:$R$93) -> 3 | G161: =INDEX($D$97:$D$100,$J154) -> 9 | H161: =INDEX($E$97:$E$100,$J154) -> 8 | I161: =INDEX($F$97:$F$100,$J154) -> 0 | J161: =INDEX($G$97:$G$100,$J154) -> 8 | K161: =COUNTIF($S$88:$T$93,"="&K$160&$C161) -> 3 | L161: 0 | M161: 0 | AA161: ="S"&AA86 -> SD | AB161: 1 | AC161: =INDEX($AC$97:$AC$100,AJ154) -> 13 | AD161: =AJ154 -> 1 | AE161: =INDEX($AH$97:$AH$100,AJ154) -> ENG | AF161: =SUMIF($AD$88:$AE$93,"="&$AC161,$AQ$88:$AR$93) -> 3 | AG161: =INDEX($AD$97:$AD$100,$AJ154) -> 7 | AH161: =INDEX($AE$97:$AE$100,$AJ154) -> 8 | AI161: =INDEX($AF$97:$AF$100,$AJ154) -> 3 | AJ161: =INDEX($AG$97:$AG$100,$AJ154) -> 5 | AK161: =COUNTIF($AS$88:$AT$93,"="&AK$160&$AC161) -> 2 | AL161: 1 | AM161: 0
A162: ="Z"&A86 -> ZC | B162: 2 | C162: =INDEX($C$97:$C$100,J155) -> 10 | D162: =J155 -> 2 | E162: =INDEX($H$97:$H$100,J155) -> UKR | F162: =SUMIF($D$88:$E$93,"="&$C162,$Q$88:$R$93) -> 3 | G162: =INDEX($D$97:$D$100,$J155) -> 2 | H162: =INDEX($E$97:$E$100,$J155) -> 2 | I162: =INDEX($F$97:$F$100,$J155) -> 4 | J162: =INDEX($G$97:$G$100,$J155) -> -2 | K162: 0 | L162: 2 | M162: 1 | AA162: ="Z"&AA86 -> ZD | AB162: 2 | AC162: =INDEX($AC$97:$AC$100,AJ155) -> 15 | AD162: =AJ155 -> 3 | AE162: =INDEX($AH$97:$AH$100,AJ155) -> SCO | AF162: =SUMIF($AD$88:$AE$93,"="&$AC162,$AQ$88:$AR$93) -> 3 | AG162: =INDEX($AD$97:$AD$100,$AJ155) -> 5 | AH162: =INDEX($AE$97:$AE$100,$AJ155) -> 7 | AI162: =INDEX($AF$97:$AF$100,$AJ155) -> 4 | AJ162: =INDEX($AG$97:$AG$100,$AJ155) -> 3 | AK162: 1 | AL162: 2 | AM162: 0
A163: ="D"&A86 -> DC | B163: 3 | C163: =INDEX($C$97:$C$100,J156) -> 11 | D163: =J156 -> 3 | E163: =INDEX($H$97:$H$100,J156) -> AUT | F163: =SUMIF($D$88:$E$93,"="&$C163,$Q$88:$R$93) -> 3 | G163: =INDEX($D$97:$D$100,$J156) -> 2 | H163: =INDEX($E$97:$E$100,$J156) -> 2 | I163: =INDEX($F$97:$F$100,$J156) -> 5 | J163: =INDEX($G$97:$G$100,$J156) -> -3 | K163: 0 | L163: 2 | M163: 1 | AA163: ="D"&AA86 -> DD | AB163: 3 | AC163: =INDEX($AC$97:$AC$100,AJ156) -> 16 | AD163: =AJ156 -> 4 | AE163: =INDEX($AH$97:$AH$100,AJ156) -> CZE | AF163: =SUMIF($AD$88:$AE$93,"="&$AC163,$AQ$88:$AR$93) -> 3 | AG163: =INDEX($AD$97:$AD$100,$AJ156) -> 2 | AH163: =INDEX($AE$97:$AE$100,$AJ156) -> 3 | AI163: =INDEX($AF$97:$AF$100,$AJ156) -> 6 | AJ163: =INDEX($AG$97:$AG$100,$AJ156) -> -3 | AK163: 0 | AL163: 2 | AM163: 1
A164: ="V"&A86 -> VC | B164: 4 | C164: =INDEX($C$97:$C$100,J157) -> 12 | D164: =J157 -> 4 | E164: =INDEX($H$97:$H$100,J157) -> MKD | F164: =SUMIF($D$88:$E$93,"="&$C164,$Q$88:$R$93) -> 3 | G164: =INDEX($D$97:$D$100,$J157) -> 2 | H164: =INDEX($E$97:$E$100,$J157) -> 2 | I164: =INDEX($F$97:$F$100,$J157) -> 5 | J164: =INDEX($G$97:$G$100,$J157) -> -3 | K164: 0 | L164: 2 | M164: 1 | AA164: ="V"&AA86 -> VD | AB164: 4 | AC164: =INDEX($AC$97:$AC$100,AJ157) -> 14 | AD164: =AJ157 -> 2 | AE164: =INDEX($AH$97:$AH$100,AJ157) -> CRO | AF164: =SUMIF($AD$88:$AE$93,"="&$AC164,$AQ$88:$AR$93) -> 3 | AG164: =INDEX($AD$97:$AD$100,$AJ157) -> 1 | AH164: =INDEX($AE$97:$AE$100,$AJ157) -> 2 | AI164: =INDEX($AF$97:$AF$100,$AJ157) -> 7 | AJ164: =INDEX($AG$97:$AG$100,$AJ157) -> -5 | AK164: 0 | AL164: 1 | AM164: 2
A168: E | B168: Paarungen | G168: Resultat | K168: Punkte | AA168: F | AB168: Paarungen | AG168: Resultat | AK168: Punkte
A169: Nr | D169: HT | E169: AT | F169: HT2 | G169: ErgH | H169: ErgA | I169: ErgH2 | K169: PH | L169: PA | M169: DifH | N169: DifA | O169: WertH | P169: WertA | Q169: Spiele | S169: Resultat | AA169: Nr | AD169: HT | AE169: AT | AF169: HT2 | AG169: ErgH | AH169: ErgA | AI169: ErgH2 | AK169: PH | AL169: PA | AM169: DifH | AN169: DifA | AO169: WertH | AP169: WertA | AQ169: Spiele | AS169: Resultat
A170: 1 | B170: =D170&"#"&E170 -> 19#20 | C170: =E170&"#"&D170 -> 20#19 | D170: =VLOOKUP(J170,daten!$D$49:$J$84,6,FALSE) -> 19 | E170: =VLOOKUP(J170,daten!$D$49:$K$84,7,FALSE) -> 20 | F170: =D170 -> 19 | G170: =VLOOKUP(J170,TIPPABGABE!$CU$40:$DE$75,10,FALSE) -> 1 | H170: =VLOOKUP(J170,TIPPABGABE!$CU$40:$DE$75,11,FALSE) -> 2 | I170: =IF(LEN(G170)>0,G170,"") -> 1 | J170: =A168&A170 -> E1 | K170: =IF(COUNT(G170:H170)<>2,0,IF(G170>H170,3,IF(H170>G170,0,1))) -> 0 | L170: =IF(COUNT(G170:H170)<>2,0,IF(G170>H170,0,IF(H170>G170,3,1))) -> 3 | M170: =IF(COUNT(G170:H170)<>2,0,G170-H170) -> -1 | N170: =IF(COUNT(G170:H170)<>2,0,H170-I170) -> 1 | O170: =K170*1000+M170+IF(LEN(G170)=0,0,G170/1000) -> -0.999 | P170: 3001.002 | Q170: =IF(COUNT(G170:H170)=2,1,0) -> 1 | R170: =Q170 -> 1 | S170: =IF(Q170=0,"X",IF(K170=3,"S",IF(K170=0,"N","U")))&D170 -> N19 | T170: S20 | AA170: 1 | AB170: =AD170&"#"&AE170 -> 21#22 | AC170: =AE170&"#"&AD170 -> 22#21 | AD170: =VLOOKUP(AJ170,daten!$D$49:$J$84,6,FALSE) -> 21 | AE170: =VLOOKUP(AJ170,daten!$D$49:$K$84,7,FALSE) -> 22 | AF170: =AD170 -> 21 | AG170: =VLOOKUP(AJ170,TIPPABGABE!$CU$40:$DE$75,10,FALSE) -> 1 | AH170: =VLOOKUP(AJ170,TIPPABGABE!$CU$40:$DE$75,11,FALSE) -> 3 | AI170: =IF(LEN(AG170)>0,AG170,"") -> 1 | AJ170: =AA168&AA170 -> F1 | AK170: =IF(COUNT(AG170:AH170)<>2,0,IF(AG170>AH170,3,IF(AH170>AG170,0,1))) -> 0 | AL170: =IF(COUNT(AG170:AH170)<>2,0,IF(AG170>AH170,0,IF(AH170>AG170,3,1))) -> 3 | AM170: =IF(COUNT(AG170:AH170)<>2,0,AG170-AH170) -> -2 | AN170: =IF(COUNT(AG170:AH170)<>2,0,AH170-AI170) -> 2 | AO170: =AK170*1000+AM170+IF(LEN(AG170)=0,0,AG170/1000) -> -1.999 | AP170: 3002.003 | AQ170: =IF(COUNT(AG170:AH170)=2,1,0) -> 1 | AR170: =AQ170 -> 1 | AS170: =IF(AQ170=0,"X",IF(AK170=3,"S",IF(AK170=0,"N","U")))&AD170 -> N21 | AT170: S22
A171: 2 | B171: 17#18 | C171: 18#17 | D171: =VLOOKUP(J171,daten!$D$49:$J$84,6,FALSE) -> 17 | E171: =VLOOKUP(J171,daten!$D$49:$K$84,7,FALSE) -> 18 | F171: 17 | G171: =VLOOKUP(J171,TIPPABGABE!$CU$40:$DE$75,10,FALSE) -> 0 | H171: =VLOOKUP(J171,TIPPABGABE!$CU$40:$DE$75,11,FALSE) -> 0 | I171: 0 | J171: =A168&A171 -> E2 | K171: 1 | L171: 1 | M171: 0 | N171: 0 | O171: 1000 | P171: 1000 | Q171: 1 | R171: 1 | S171: U17 | T171: U18 | AA171: 2 | AB171: 23#24 | AC171: 24#23 | AD171: =VLOOKUP(AJ171,daten!$D$49:$J$84,6,FALSE) -> 23 | AE171: =VLOOKUP(AJ171,daten!$D$49:$K$84,7,FALSE) -> 24 | AF171: 23 | AG171: =VLOOKUP(AJ171,TIPPABGABE!$CU$40:$DE$75,10,FALSE) -> 2 | AH171: =VLOOKUP(AJ171,TIPPABGABE!$CU$40:$DE$75,11,FALSE) -> 1 | AI171: 2 | AJ171: =AA168&AA171 -> F2 | AK171: 3 | AL171: 0 | AM171: 1 | AN171: -1 | AO171: 3001.002 | AP171: -0.999 | AQ171: 1 | AR171: 1 | AS171: S23 | AT171: N24
A172: 3 | B172: 18#20 | C172: 20#18 | D172: =VLOOKUP(J172,daten!$D$49:$J$84,6,FALSE) -> 18 | E172: =VLOOKUP(J172,daten!$D$49:$K$84,7,FALSE) -> 20 | F172: 18 | G172: =VLOOKUP(J172,TIPPABGABE!$CU$40:$DE$75,10,FALSE) -> 2 | H172: =VLOOKUP(J172,TIPPABGABE!$CU$40:$DE$75,11,FALSE) -> 0 | I172: 2 | J172: =A168&A172 -> E3 | K172: 3 | L172: 0 | M172: 2 | N172: -2 | O172: 3002.002 | P172: -2 | Q172: 1 | R172: 1 | S172: S18 | T172: N20 | AA172: 3 | AB172: 21#23 | AC172: 23#21 | AD172: =VLOOKUP(AJ172,daten!$D$49:$J$84,6,FALSE) -> 21 | AE172: =VLOOKUP(AJ172,daten!$D$49:$K$84,7,FALSE) -> 23 | AF172: 21 | AG172: =VLOOKUP(AJ172,TIPPABGABE!$CU$40:$DE$75,10,FALSE) -> 0 | AH172: =VLOOKUP(AJ172,TIPPABGABE!$CU$40:$DE$75,11,FALSE) -> 2 | AI172: 0 | AJ172: =AA168&AA172 -> F3 | AK172: 0 | AL172: 3 | AM172: -2 | AN172: 2 | AO172: -2 | AP172: 3002.002 | AQ172: 1 | AR172: 1 | AS172: N21 | AT172: S23
A173: 4 | B173: 17#19 | C173: 19#17 | D173: =VLOOKUP(J173,daten!$D$49:$J$84,6,FALSE) -> 17 | E173: =VLOOKUP(J173,daten!$D$49:$K$84,7,FALSE) -> 19 | F173: 17 | G173: =VLOOKUP(J173,TIPPABGABE!$CU$40:$DE$75,10,FALSE) -> 3 | H173: =VLOOKUP(J173,TIPPABGABE!$CU$40:$DE$75,11,FALSE) -> 0 | I173: 3 | J173: =A168&A173 -> E4 | K173: 3 | L173: 0 | M173: 3 | N173: -3 | O173: 3003.003 | P173: -3 | Q173: 1 | R173: 1 | S173: S17 | T173: N19 | AA173: 4 | AB173: 22#24 | AC173: 24#22 | AD173: =VLOOKUP(AJ173,daten!$D$49:$J$84,6,FALSE) -> 22 | AE173: =VLOOKUP(AJ173,daten!$D$49:$K$84,7,FALSE) -> 24 | AF173: 22 | AG173: =VLOOKUP(AJ173,TIPPABGABE!$CU$40:$DE$75,10,FALSE) -> 1 | AH173: =VLOOKUP(AJ173,TIPPABGABE!$CU$40:$DE$75,11,FALSE) -> 1 | AI173: 1 | AJ173: =AA168&AA173 -> F4 | AK173: 1 | AL173: 1 | AM173: 0 | AN173: 0 | AO173: 1000.001 | AP173: 1000.001 | AQ173: 1 | AR173: 1 | AS173: U22 | AT173: U24
A174: 5 | B174: 20#17 | C174: 17#20 | D174: =VLOOKUP(J174,daten!$D$49:$J$84,6,FALSE) -> 20 | E174: =VLOOKUP(J174,daten!$D$49:$K$84,7,FALSE) -> 17 | F174: 20 | G174: =VLOOKUP(J174,TIPPABGABE!$CU$40:$DE$75,10,FALSE) -> 1 | H174: =VLOOKUP(J174,TIPPABGABE!$CU$40:$DE$75,11,FALSE) -> 3 | I174: 1 | J174: =A168&A174 -> E5 | K174: 0 | L174: 3 | M174: -2 | N174: 2 | O174: -1.999 | P174: 3002.003 | Q174: 1 | R174: 1 | S174: N20 | T174: S17 | AA174: 5 | AB174: 22#23 | AC174: 23#22 | AD174: =VLOOKUP(AJ174,daten!$D$49:$J$84,6,FALSE) -> 22 | AE174: =VLOOKUP(AJ174,daten!$D$49:$K$84,7,FALSE) -> 23 | AF174: 22 | AG174: =VLOOKUP(AJ174,TIPPABGABE!$CU$40:$DE$75,10,FALSE) -> 2 | AH174: =VLOOKUP(AJ174,TIPPABGABE!$CU$40:$DE$75,11,FALSE) -> 2 | AI174: 2 | AJ174: =AA168&AA174 -> F5 | AK174: 1 | AL174: 1 | AM174: 0 | AN174: 0 | AO174: 1000.002 | AP174: 1000.002 | AQ174: 1 | AR174: 1 | AS174: U22 | AT174: U23
A175: 6 | B175: 18#19 | C175: 19#18 | D175: =VLOOKUP(J175,daten!$D$49:$J$84,6,FALSE) -> 18 | E175: =VLOOKUP(J175,daten!$D$49:$K$84,7,FALSE) -> 19 | F175: 18 | G175: =VLOOKUP(J175,TIPPABGABE!$CU$40:$DE$75,10,FALSE) -> 3 | H175: =VLOOKUP(J175,TIPPABGABE!$CU$40:$DE$75,11,FALSE) -> 1 | I175: 3 | J175: =A168&A175 -> E6 | K175: 3 | L175: 0 | M175: 2 | N175: -2 | O175: 3002.003 | P175: -1.999 | Q175: 1 | R175: 1 | S175: S18 | T175: N19 | AA175: 6 | AB175: 24#21 | AC175: 21#24 | AD175: =VLOOKUP(AJ175,daten!$D$49:$J$84,6,FALSE) -> 24 | AE175: =VLOOKUP(AJ175,daten!$D$49:$K$84,7,FALSE) -> 21 | AF175: 24 | AG175: =VLOOKUP(AJ175,TIPPABGABE!$CU$40:$DE$75,10,FALSE) -> 1 | AH175: =VLOOKUP(AJ175,TIPPABGABE!$CU$40:$DE$75,11,FALSE) -> 1 | AI175: 1 | AJ175: =AA168&AA175 -> F6 | AK175: 1 | AL175: 1 | AM175: 0 | AN175: 0 | AO175: 1000.001 | AP175: 1000.001 | AQ175: 1 | AR175: 1 | AS175: U24 | AT175: U21
A178: Modus | C178: TeamIdx | D178: P | E178: Treffer | F178: GTo | G178: Dif | H178: Team | I178: RangPkt | K178: Koeff | M178: Rang | N178: RangPkt | AA178: Modus | AC178: TeamIdx | AD178: P | AE178: Treffer | AF178: GTo | AG178: Dif | AH178: Team | AI178: RangPkt | AK178: Koeff | AM178: Rang | AN178: RangPkt
A179: 1 | C179: 17 | D179: =SUMIF($D$170:$E$175,"="&C179,$K$170:$L$175) -> 7 | E179: =SUMIF($D$170:$E$175,"="&$C179,$G$170:$H$175) -> 6 | F179: =E179-G179 -> 1 | G179: =SUMIF($D$170:$E$175,"="&$C179,$G$170:$H$175)-SUMIF($D$170:$E$175,"="&$C179,$H$170:$I$175) -> 5 | H179: =INDEX(teams_k,C179) -> ESP | I179: =RANK(D179,$D$179:$D$182,1) -> 3 | L179: 1 | M179: 1 | N179: =RANK(M179,$M$179:$M$182) -> 1 | AA179: 1 | AC179: 21 | AD179: =SUMIF($AD$170:$AE$175,"="&AC179,$AK$170:$AL$175) -> 1 | AE179: =SUMIF($AD$170:$AE$175,"="&$AC179,$AG$170:$AH$175) -> 2 | AF179: =AE179-AG179 -> 6 | AG179: =SUMIF($AD$170:$AE$175,"="&$AC179,$AG$170:$AH$175)-SUMIF($AD$170:$AE$175,"="&$AC179,$AH$170:$AI$175) -> -4 | AH179: =INDEX(teams_k,AC179) -> HUN | AI179: =RANK(AD179,$AD$179:$AD$182,1) -> 1 | AL179: 1 | AM179: 1 | AN179: =RANK(AM179,$AM$179:$AM$182) -> 1
C180: 18 | D180: =SUMIF($D$170:$E$175,"="&C180,$K$170:$L$175) -> 7 | E180: =SUMIF($D$170:$E$175,"="&$C180,$G$170:$H$175) -> 5 | F180: =E180-G180 -> 1 | G180: =SUMIF($D$170:$E$175,"="&$C180,$G$170:$H$175)-SUMIF($D$170:$E$175,"="&$C180,$H$170:$I$175) -> 4 | H180: =INDEX(teams_k,C180) -> SWE | I180: =RANK(D180,$D$179:$D$182,1) -> 3 | L180: 2 | M180: 1 | N180: =RANK(M180,$M$179:$M$182) -> 1 | AC180: 22 | AD180: =SUMIF($AD$170:$AE$175,"="&AC180,$AK$170:$AL$175) -> 5 | AE180: =SUMIF($AD$170:$AE$175,"="&$AC180,$AG$170:$AH$175) -> 6 | AF180: =AE180-AG180 -> 4 | AG180: =SUMIF($AD$170:$AE$175,"="&$AC180,$AG$170:$AH$175)-SUMIF($AD$170:$AE$175,"="&$AC180,$AH$170:$AI$175) -> 2 | AH180: =INDEX(teams_k,AC180) -> POR | AI180: =RANK(AD180,$AD$179:$AD$182,1) -> 3 | AL180: 2 | AM180: 1 | AN180: =RANK(AM180,$AM$179:$AM$182) -> 1
C181: 19 | D181: =SUMIF($D$170:$E$175,"="&C181,$K$170:$L$175) -> 0 | E181: =SUMIF($D$170:$E$175,"="&$C181,$G$170:$H$175) -> 2 | F181: =E181-G181 -> 8 | G181: =SUMIF($D$170:$E$175,"="&$C181,$G$170:$H$175)-SUMIF($D$170:$E$175,"="&$C181,$H$170:$I$175) -> -6 | H181: =INDEX(teams_k,C181) -> POL | I181: =RANK(D181,$D$179:$D$182,1) -> 1 | L181: 3 | M181: 1 | N181: =RANK(M181,$M$179:$M$182) -> 1 | AC181: 23 | AD181: =SUMIF($AD$170:$AE$175,"="&AC181,$AK$170:$AL$175) -> 7 | AE181: =SUMIF($AD$170:$AE$175,"="&$AC181,$AG$170:$AH$175) -> 6 | AF181: =AE181-AG181 -> 3 | AG181: =SUMIF($AD$170:$AE$175,"="&$AC181,$AG$170:$AH$175)-SUMIF($AD$170:$AE$175,"="&$AC181,$AH$170:$AI$175) -> 3 | AH181: =INDEX(teams_k,AC181) -> FRA | AI181: =RANK(AD181,$AD$179:$AD$182,1) -> 4 | AL181: 3 | AM181: 1 | AN181: =RANK(AM181,$AM$179:$AM$182) -> 1
C182: 20 | D182: =SUMIF($D$170:$E$175,"="&C182,$K$170:$L$175) -> 3 | E182: =SUMIF($D$170:$E$175,"="&$C182,$G$170:$H$175) -> 3 | F182: =E182-G182 -> 6 | G182: =SUMIF($D$170:$E$175,"="&$C182,$G$170:$H$175)-SUMIF($D$170:$E$175,"="&$C182,$H$170:$I$175) -> -3 | H182: =INDEX(teams_k,C182) -> SVK | I182: =RANK(D182,$D$179:$D$182,1) -> 2 | L182: 4 | M182: 1 | N182: =RANK(M182,$M$179:$M$182) -> 1 | AC182: 24 | AD182: =SUMIF($AD$170:$AE$175,"="&AC182,$AK$170:$AL$175) -> 2 | AE182: =SUMIF($AD$170:$AE$175,"="&$AC182,$AG$170:$AH$175) -> 3 | AF182: =AE182-AG182 -> 4 | AG182: =SUMIF($AD$170:$AE$175,"="&$AC182,$AG$170:$AH$175)-SUMIF($AD$170:$AE$175,"="&$AC182,$AH$170:$AI$175) -> -1 | AH182: =INDEX(teams_k,AC182) -> GER | AI182: =RANK(AD182,$AD$179:$AD$182,1) -> 2 | AL182: 4 | AM182: 1 | AN182: =RANK(AM182,$AM$179:$AM$182) -> 1
B184: DV1 | D184: =B186 -> 17 | E184: =B187 -> 18 | F184: =B188 -> 19 | G184: =B189 -> 20 | AB184: DV1 | AD184: =AB186 -> 21 | AE184: =AB187 -> 22 | AF184: =AB188 -> 23 | AG184: =AB189 -> 24
B185: TeamIndex | C185: Nr | D185: =C186 -> 1 | E185: =C187 -> 2 | F185: =C188 -> 3 | G185: =C189 -> 4 | I185: RangPkt. | AB185: TeamIndex | AC185: Nr | AD185: =AC186 -> 1 | AE185: =AC187 -> 2 | AF185: =AC188 -> 3 | AG185: =AC189 -> 4 | AI185: RangPkt.
B186: =INDEX($C$179:$C$182,C186) -> 17 | C186: 1 | D186: =IF(INDEX($I$179:$I$182,$C186)<>INDEX($I$179:$I$182,D$185),0,SUMIF($B$170:$C$175,"="&$B186&"#"&D$184,$O$170:$P$175)) -> 0 | E186: 1000 | F186: 0 | G186: 0 | H186: =SUM(D186:G186) -> 1000 | I186: =RANK(H186,$H$186:$H$189,1) -> 3 | AB186: =INDEX($AC$179:$AC$182,AC186) -> 21 | AC186: 1 | AD186: =IF(INDEX($AI$179:$AI$182,$AC186)<>INDEX($AI$179:$AI$182,AD$185),0,SUMIF($AB$170:$AC$175,"="&$AB186&"#"&AD$184,$AO$170:$AP$175)) -> 0 | AE186: 0 | AF186: 0 | AG186: 0 | AH186: =SUM(AD186:AG186) -> 0 | AI186: =RANK(AH186,$AH$186:$AH$189,1) -> 1
B187: =INDEX($C$179:$C$182,C187) -> 18 | C187: 2 | D187: 1000 | E187: 0 | F187: 0 | G187: 0 | H187: =SUM(D187:G187) -> 1000 | I187: =RANK(H187,$H$186:$H$189,1) -> 3 | AB187: =INDEX($AC$179:$AC$182,AC187) -> 22 | AC187: 2 | AD187: 0 | AE187: 0 | AF187: 0 | AG187: 0 | AH187: =SUM(AD187:AG187) -> 0 | AI187: =RANK(AH187,$AH$186:$AH$189,1) -> 1
B188: =INDEX($C$179:$C$182,C188) -> 19 | C188: 3 | D188: 0 | E188: 0 | F188: 0 | G188: 0 | H188: =SUM(D188:G188) -> 0 | I188: =RANK(H188,$H$186:$H$189,1) -> 1 | AB188: =INDEX($AC$179:$AC$182,AC188) -> 23 | AC188: 3 | AD188: 0 | AE188: 0 | AF188: 0 | AG188: 0 | AH188: =SUM(AD188:AG188) -> 0 | AI188: =RANK(AH188,$AH$186:$AH$189,1) -> 1
B189: =INDEX($C$179:$C$182,C189) -> 20 | C189: 4 | D189: 0 | E189: 0 | F189: 0 | G189: 0 | H189: =SUM(D189:G189) -> 0 | I189: =RANK(H189,$H$186:$H$189,1) -> 1 | AB189: =INDEX($AC$179:$AC$182,AC189) -> 24 | AC189: 4 | AD189: 0 | AE189: 0 | AF189: 0 | AG189: 0 | AH189: =SUM(AD189:AG189) -> 0 | AI189: =RANK(AH189,$AH$186:$AH$189,1) -> 1
B191: DV2 | C191: Nr | D191: =C192 -> 1 | E191: =C193 -> 2 | F191: =C194 -> 3 | G191: =C195 -> 4 | I191: RangPkt. | AB191: DV2 | AC191: Nr | AD191: =AC192 -> 1 | AE191: =AC193 -> 2 | AF191: =AC194 -> 3 | AG191: =AC195 -> 4 | AI191: RangPkt.
B192: =B186 -> 17 | C192: 1 | D192: =IF(D186=0,0,IF(INDEX($I$186:$I$189,$C186)<>INDEX($I$186:$I$189,D$185),0,SUMIF($B$170:$C$175,"="&$B186&"#"&D$184,$K$170:$L$175)*1000+SUMIF($B$170:$C$175,"="&$B186&"#"&D$184,$M$170:$N$175)+SUMIF($B$170:$C$175,"="&$B186&"#"&D$184,$G$170:$H$175)/1000)) -> 0 | E192: 1000 | F192: 0 | G192: 0 | H192: =SUM(D192:G192) -> 1000 | I192: =RANK(H192,$H$192:$H$195,1) -> 3 | AB192: =AB186 -> 21 | AC192: 1 | AD192: =IF(AD186=0,0,IF(INDEX($AI$186:$AI$189,$AC186)<>INDEX($AI$186:$AI$189,AD$185),0,SUMIF($AB$170:$AC$175,"="&$AB186&"#"&AD$184,$AK$170:$AL$175)*1000+SUMIF($AB$170:$AC$175,"="&$AB186&"#"&AD$184,$AM$170:$AN$175)+SUMIF($AB$170:$AC$175,"="&$AB186&"#"&AD$184,$AG$170:$AH$175)/1000)) -> 0 | AE192: 0 | AF192: 0 | AG192: 0 | AH192: =SUM(AD192:AG192) -> 0 | AI192: =RANK(AH192,$AH$192:$AH$195,1) -> 1
B193: =B187 -> 18 | C193: 2 | D193: 1000 | E193: 0 | F193: 0 | G193: 0 | H193: =SUM(D193:G193) -> 1000 | I193: =RANK(H193,$H$192:$H$195,1) -> 3 | AB193: =AB187 -> 22 | AC193: 2 | AD193: 0 | AE193: 0 | AF193: 0 | AG193: 0 | AH193: =SUM(AD193:AG193) -> 0 | AI193: =RANK(AH193,$AH$192:$AH$195,1) -> 1
B194: =B188 -> 19 | C194: 3 | D194: 0 | E194: 0 | F194: 0 | G194: 0 | H194: =SUM(D194:G194) -> 0 | I194: =RANK(H194,$H$192:$H$195,1) -> 1 | AB194: =AB188 -> 23 | AC194: 3 | AD194: 0 | AE194: 0 | AF194: 0 | AG194: 0 | AH194: =SUM(AD194:AG194) -> 0 | AI194: =RANK(AH194,$AH$192:$AH$195,1) -> 1
B195: =B189 -> 20 | C195: 4 | D195: 0 | E195: 0 | F195: 0 | G195: 0 | H195: =SUM(D195:G195) -> 0 | I195: =RANK(H195,$H$192:$H$195,1) -> 1 | AB195: =AB189 -> 24 | AC195: 4 | AD195: 0 | AE195: 0 | AF195: 0 | AG195: 0 | AH195: =SUM(AD195:AG195) -> 0 | AI195: =RANK(AH195,$AH$192:$AH$195,1) -> 1
C197: Nr | D197: RangPkt | H197: RangPkt | AC197: Nr | AD197: RangPkt | AH197: RangPkt
B198: Diff | C198: 1 | D198: =RANK(G179,$G$179:$G$182,1) -> 4 | F198: Tore | G198: 1 | H198: =RANK(E179,$E$179:$E$182,1) -> 4 | AB198: Diff | AC198: 1 | AD198: =RANK(AG179,$AG$179:$AG$182,1) -> 1 | AF198: Tore | AG198: 1 | AH198: =RANK(AE179,$AE$179:$AE$182,1) -> 1
C199: 2 | D199: =RANK(G180,$G$179:$G$182,1) -> 3 | G199: 2 | H199: =RANK(E180,$E$179:$E$182,1) -> 3 | AC199: 2 | AD199: =RANK(AG180,$AG$179:$AG$182,1) -> 3 | AG199: 2 | AH199: =RANK(AE180,$AE$179:$AE$182,1) -> 3
C200: 3 | D200: =RANK(G181,$G$179:$G$182,1) -> 1 | G200: 3 | H200: =RANK(E181,$E$179:$E$182,1) -> 1 | AC200: 3 | AD200: =RANK(AG181,$AG$179:$AG$182,1) -> 4 | AG200: 3 | AH200: =RANK(AE181,$AE$179:$AE$182,1) -> 3
C201: 4 | D201: =RANK(G182,$G$179:$G$182,1) -> 2 | G201: 4 | H201: =RANK(E182,$E$179:$E$182,1) -> 2 | AC201: 4 | AD201: =RANK(AG182,$AG$179:$AG$182,1) -> 2 | AG201: 4 | AH201: =RANK(AE182,$AE$179:$AE$182,1) -> 2
I203: Modus | AI203: Modus
C204: Nr | E204: RangPkt | F204: Rang | H204: Wertigkeit | I204: 1 | J204: 2 | K204: Faktor | M204: Faktoren | AC204: Nr | AE204: RangPkt | AF204: Rang | AH204: Wertigkeit | AI204: 1 | AJ204: 2 | AK204: Faktor | AM204: Faktoren
B205: Wert | C205: 1 | D205: =I179*$K$205+I186*$K$206+I192*$K$207+D198*$K$208+H198*$K$209 -> 3030304.04 | E205: =RANK(D205,$D$205:$D$208,1) -> 4 | F205: =RANK(D205,$D$205:$D$208) -> 1 | H205: Punkte | I205: 1 | J205: 1 | K205: =INDEX($N$205:$N$209,INDEX(I205:J205,$A$179)) -> 1000000 | M205: 1 | N205: 1000000 | AB205: Wert | AC205: 1 | AD205: =AI179*$AK$205+AI186*$AK$206+AI192*$AK$207+AD198*$AK$208+AH198*$AK$209 -> 1010101.01 | AE205: =RANK(AD205,$AD$205:$AD$208,1) -> 1 | AF205: =RANK(AD205,$AD$205:$AD$208) -> 4 | AH205: Punkte | AI205: 1 | AJ205: 1 | AK205: =INDEX($AN$205:$AN$209,INDEX(AI205:AJ205,$AA$179)) -> 1000000 | AM205: 1 | AN205: 1000000
C206: 2 | D206: =I180*$K$205+I187*$K$206+I193*$K$207+D199*$K$208+H199*$K$209 -> 3030303.03 | E206: =RANK(D206,$D$205:$D$208,1) -> 3 | F206: =RANK(D206,$D$205:$D$208) -> 2 | H206: DV1 | I206: 2 | J206: 4 | K206: =INDEX($N$205:$N$209,INDEX(I206:J206,$A$179)) -> 10000 | M206: 2 | N206: 10000 | AC206: 2 | AD206: =AI180*$AK$205+AI187*$AK$206+AI193*$AK$207+AD199*$AK$208+AH199*$AK$209 -> 3010103.03 | AE206: =RANK(AD206,$AD$205:$AD$208,1) -> 3 | AF206: =RANK(AD206,$AD$205:$AD$208) -> 2 | AH206: DV1 | AI206: 2 | AJ206: 4 | AK206: =INDEX($AN$205:$AN$209,INDEX(AI206:AJ206,$AA$179)) -> 10000 | AM206: 2 | AN206: 10000
C207: 3 | D207: =I181*$K$205+I188*$K$206+I194*$K$207+D200*$K$208+H200*$K$209 -> 1010101.01 | E207: =RANK(D207,$D$205:$D$208,1) -> 1 | F207: =RANK(D207,$D$205:$D$208) -> 4 | H207: DV2 | I207: 3 | J207: 5 | K207: =INDEX($N$205:$N$209,INDEX(I207:J207,$A$179)) -> 100 | M207: 3 | N207: 100 | AC207: 3 | AD207: =AI181*$AK$205+AI188*$AK$206+AI194*$AK$207+AD200*$AK$208+AH200*$AK$209 -> 4010104.03 | AE207: =RANK(AD207,$AD$205:$AD$208,1) -> 4 | AF207: =RANK(AD207,$AD$205:$AD$208) -> 1 | AH207: DV2 | AI207: 3 | AJ207: 5 | AK207: =INDEX($AN$205:$AN$209,INDEX(AI207:AJ207,$AA$179)) -> 100 | AM207: 3 | AN207: 100
C208: 4 | D208: =I182*$K$205+I189*$K$206+I195*$K$207+D201*$K$208+H201*$K$209 -> 2010102.02 | E208: =RANK(D208,$D$205:$D$208,1) -> 2 | F208: =RANK(D208,$D$205:$D$208) -> 3 | H208: TD alle | I208: 4 | J208: 2 | K208: =INDEX($N$205:$N$209,INDEX(I208:J208,$A$179)) -> 1 | M208: 4 | N208: 1 | AC208: 4 | AD208: =AI182*$AK$205+AI189*$AK$206+AI195*$AK$207+AD201*$AK$208+AH201*$AK$209 -> 2010102.02 | AE208: =RANK(AD208,$AD$205:$AD$208,1) -> 2 | AF208: =RANK(AD208,$AD$205:$AD$208) -> 3 | AH208: TD alle | AI208: 4 | AJ208: 2 | AK208: =INDEX($AN$205:$AN$209,INDEX(AI208:AJ208,$AA$179)) -> 1 | AM208: 4 | AN208: 1
H209: Tore alle | I209: 5 | J209: 3 | K209: =INDEX($N$205:$N$209,INDEX(I209:J209,$A$179)) -> 0.01 | M209: 5 | N209: =1/100 -> 0.01 | AH209: Tore alle | AI209: 5 | AJ209: 3 | AK209: =INDEX($AN$205:$AN$209,INDEX(AI209:AJ209,$AA$179)) -> 0.01 | AM209: 5 | AN209: =1/100 -> 0.01
H210: EMS | I210: 6 | J210: 6 | AH210: EMS | AI210: 6 | AJ210: 6
B211: EMS | C211: =A179=1 -> TRUE | D211: WAHR/FALSCH für EMS AN/AUS | H211: Koeff | I211: 7 | J211: 7 | AB211: EMS | AC211: =AA179=1 -> TRUE | AD211: WAHR/FALSCH für EMS AN/AUS | AH211: Koeff | AI211: 7 | AJ211: 7
C212: um Platz1 | D212: um Platz2 | E212: um Platz 3 | AC212: um Platz1 | AD212: um Platz2 | AE212: um Platz 3
B213: Anz. Teams | C213: =COUNTIF($F$205:$F$208,"=1") -> 1 | D213: =COUNTIF($F$205:$F$208,"=2") -> 1 | E213: =COUNTIF($F$205:$F$208,"=3") -> 1 | AB213: Anz. Teams | AC213: =COUNTIF($AF$205:$AF$208,"=1") -> 1 | AD213: =COUNTIF($AF$205:$AF$208,"=2") -> 1 | AE213: =COUNTIF($AF$205:$AF$208,"=3") -> 1
B215: Rang | C215: =IF(NOT(C211),0,IF(C213=2,1,IF(D213=2,2,IF(E213=2,3,0)))) -> 0 | E215: Teams | F215: =MIN(IF($F$205:$F$208=$C$215,$C$179:$C$182)) -> 0 | G215: =MAX(IF($F$205:$F$208=C215,$C$179:$C$182)) -> 0 | I215: Paarung | J215: =IF(ISERROR(F217),G217,F217) ->  | AB215: Rang | AC215: =IF(NOT(AC211),0,IF(AC213=2,1,IF(AD213=2,2,IF(AE213=2,3,0)))) -> 0 | AE215: Teams | AF215: =MIN(IF($AF$205:$AF$208=$AC$215,$AC$179:$AC$182)) -> 0 | AG215: =MAX(IF($AF$205:$AF$208=AC215,$AC$179:$AC$182)) -> 0 | AI215: Paarung | AJ215: =IF(ISERROR(AF217),AG217,AF217) -> 
F216: =F215&"#"&G215 -> 0#0 | G216: =G215&"#"&F215 -> 0#0 | AF216: =AF215&"#"&AG215 -> 0#0 | AG216: =AG215&"#"&AF215 -> 0#0
F217: =MATCH(F216,$B$170:$B$175,0) ->  | G217: =MATCH(G216,$B$170:$B$175,0) ->  | AF217: =MATCH(AF216,$AB$170:$AB$175,0) ->  | AG217: =MATCH(AG216,$AB$170:$AB$175,0) -> 
B220: TeamIdx | C220: =INDEX(D170:D175,J215) ->  | D220: =INDEX(E170:E175,J215) ->  | E220: Häufigkeit | F220: Remis | G220: EMS OK | I220: Text | J220: =IF(G221=0,"","EMS um Rang " &C215) ->  | AB220: TeamIdx | AC220: =INDEX(AD170:AD175,AJ215) ->  | AD220: =INDEX(AE170:AE175,AJ215) ->  | AE220: Häufigkeit | AF220: Remis | AG220: EMS OK | AI220: Text | AJ220: =IF(AG221=0,"","EMS um Rang " &AC215) -> 
B221: Punkte | C221: =VLOOKUP(C220,$C$179:$D$182,2,FALSE) ->  | D221: =VLOOKUP(D220,$C$179:$D$182,2,FALSE) ->  | E221: =COUNTIF($D$179:$D$182,"="&D221) -> 0 | F221: =INDEX(K170:K175,J215)=1 ->  | G221: =IF(C215=0,0,IF(J215<5,0,IF(E221<>2,0,IF(C221<>D221,0,IF(NOT(F221),0,1))))) -> 0 | AB221: Punkte | AC221: =VLOOKUP(AC220,$AC$179:$AD$182,2,FALSE) ->  | AD221: =VLOOKUP(AD220,$AC$179:$AD$182,2,FALSE) ->  | AE221: =COUNTIF($AD$179:$AD$182,"="&AD221) -> 0 | AF221: =INDEX(AK170:AK175,AJ215)=1 ->  | AG221: =IF(AC215=0,0,IF(AJ215<5,0,IF(AE221<>2,0,IF(AC221<>AD221,0,IF(NOT(AF221),0,1))))) -> 0
E223: Ergebnis EMS | AE223: Ergebnis EMS
B224: Teams | C224: =VLOOKUP(C220,$C$179:$H$182,6,FALSE) ->  | D224: =VLOOKUP(D220,$C$179:$H$182,6,FALSE) ->  | AB224: Teams | AC224: =VLOOKUP(AC220,$AC$179:$AH$182,6,FALSE) ->  | AD224: =VLOOKUP(AD220,$AC$179:$AH$182,6,FALSE) -> 
B225: Nr | C225: =MATCH(C220,$C$179:$C$182,0) ->  | D225: =MATCH(D220,$C$179:$C$182,0) ->  | E225: =IF(COUNT(E224:F224)<>2,0,IF(E224>F224,1,0)) -> 0 | F225: =IF(COUNT(E224:F224)<>2,0,IF(E224<F224,1,0)) -> 0 | G225: EMS-Pkt | AB225: Nr | AC225: =MATCH(AC220,$AC$179:$AC$182,0) ->  | AD225: =MATCH(AD220,$AC$179:$AC$182,0) ->  | AE225: =IF(COUNT(AE224:AF224)<>2,0,IF(AE224>AF224,1,0)) -> 0 | AF225: =IF(COUNT(AE224:AF224)<>2,0,IF(AE224<AF224,1,0)) -> 0 | AG225: EMS-Pkt
C228: Rangpkt inkl. EMS und Koeff | AC228: Rangpkt inkl. EMS und Koeff
C229: Nr. | D229: RangPkt | E229: Rang | F229: Rang korr | AC229: Nr. | AD229: RangPkt | AE229: Rang | AF229: Rang korr
B230: Wert | C230: 1 | D230: =E205+IF($G$221=0,0,SUMIF($C$225:$D$225,"="&C230,$E$225:$F$225)/100)+N179/10000 -> 4.0001 | E230: =RANK(D230,$D$230:$D$233) -> 1 | F230: =E230+COUNTIF(E$229:E229,"="&E230) -> 1 | AB230: Wert | AC230: 1 | AD230: =AE205+IF($AG$221=0,0,SUMIF($AC$225:$AD$225,"="&AC230,$AE$225:$AF$225)/100)+AN179/10000 -> 1.0001 | AE230: =RANK(AD230,$AD$230:$AD$233) -> 4 | AF230: =AE230+COUNTIF(AE$229:AE229,"="&AE230) -> 4
C231: 2 | D231: =E206+IF($G$221=0,0,SUMIF($C$225:$D$225,"="&C231,$E$225:$F$225)/100)+N180/10000 -> 3.0001 | E231: =RANK(D231,$D$230:$D$233) -> 2 | F231: =E231+COUNTIF(E$229:E230,"="&E231) -> 2 | AC231: 2 | AD231: =AE206+IF($AG$221=0,0,SUMIF($AC$225:$AD$225,"="&AC231,$AE$225:$AF$225)/100)+AN180/10000 -> 3.0001 | AE231: =RANK(AD231,$AD$230:$AD$233) -> 2 | AF231: =AE231+COUNTIF(AE$229:AE230,"="&AE231) -> 2
C232: 3 | D232: =E207+IF($G$221=0,0,SUMIF($C$225:$D$225,"="&C232,$E$225:$F$225)/100)+N181/10000 -> 1.0001 | E232: =RANK(D232,$D$230:$D$233) -> 4 | F232: =E232+COUNTIF(E$229:E231,"="&E232) -> 4 | AC232: 3 | AD232: =AE207+IF($AG$221=0,0,SUMIF($AC$225:$AD$225,"="&AC232,$AE$225:$AF$225)/100)+AN181/10000 -> 4.0001 | AE232: =RANK(AD232,$AD$230:$AD$233) -> 1 | AF232: =AE232+COUNTIF(AE$229:AE231,"="&AE232) -> 1
C233: 4 | D233: =E208+IF($G$221=0,0,SUMIF($C$225:$D$225,"="&C233,$E$225:$F$225)/100)+N182/10000 -> 2.0001 | E233: =RANK(D233,$D$230:$D$233) -> 3 | F233: =E233+COUNTIF(E$229:E232,"="&E233) -> 3 | AC233: 4 | AD233: =AE208+IF($AG$221=0,0,SUMIF($AC$225:$AD$225,"="&AC233,$AE$225:$AF$225)/100)+AN182/10000 -> 2.0001 | AE233: =RANK(AD233,$AD$230:$AD$233) -> 3 | AF233: =AE233+COUNTIF(AE$229:AE232,"="&AE233) -> 3
J234: berechnete oder manuelle Tabelle | AJ234: berechnete oder manuelle Tabelle
B235: Tabelle | C235: Rang | D235: Nr | E235: Rang Eff | F235: Manuell | G235: =VLOOKUP(A168,TIPPABGABE!$CQ$69:$CR$75,2,FALSE) -> FALSE | H235: Nr | J235: Nr korr | AB235: Tabelle | AC235: Rang | AD235: Nr | AE235: Rang Eff | AF235: Manuell | AG235: =VLOOKUP(AA168,TIPPABGABE!$CQ$69:$CR$75,2,FALSE) -> FALSE | AH235: Nr | AJ235: Nr korr
B236: =INDEX(teams,INDEX(C179:C182,D236)) -> Spanien | C236: 1 | D236: =MATCH(C236,$F$230:$F$233,0) -> 1 | E236: =IF(G235,C236,INDEX(E230:E233,D236)) -> 1 | G236: 1 | H236: =IF(G235,VLOOKUP(A243,TIPPABGABE!$CQ$40:$CS$67,3,FALSE),D236) -> 1 | J236: =IF(AND(G235,TIPPABGABE!$DA$35=1,TIPPABGABE!$AN$8=TIPPABGABE!$AN$4),H236,D236) -> 1 | AB236: =INDEX(teams,INDEX(AC179:AC182,AD236)) -> Frankreich | AC236: 1 | AD236: =MATCH(AC236,$AF$230:$AF$233,0) -> 3 | AE236: =IF(AG235,AC236,INDEX(AE230:AE233,AD236)) -> 1 | AG236: 1 | AH236: =IF(AG235,VLOOKUP(AA243,TIPPABGABE!$CQ$40:$CS$67,3,FALSE),AD236) -> 3 | AJ236: =IF(AND(AG235,TIPPABGABE!$DA$35=1,TIPPABGABE!$AN$8=TIPPABGABE!$AN$4),AH236,AD236) -> 3
B237: =INDEX(teams,INDEX(C179:C182,D237)) -> Schweden | C237: 2 | D237: =MATCH(C237,$F$230:$F$233,0) -> 2 | E237: =IF(G235,C237,INDEX(E230:E233,D237)) -> 2 | G237: 2 | H237: =IF(G235,VLOOKUP(A244,TIPPABGABE!$CQ$40:$CS$67,3,FALSE),D237) -> 2 | J237: =IF(AND(G235,TIPPABGABE!$DA$35=1,TIPPABGABE!$AN$8=TIPPABGABE!$AN$4),H237,D237) -> 2 | AB237: =INDEX(teams,INDEX(AC179:AC182,AD237)) -> Portugal | AC237: 2 | AD237: =MATCH(AC237,$AF$230:$AF$233,0) -> 2 | AE237: =IF(AG235,AC237,INDEX(AE230:AE233,AD237)) -> 2 | AG237: 2 | AH237: =IF(AG235,VLOOKUP(AA244,TIPPABGABE!$CQ$40:$CS$67,3,FALSE),AD237) -> 2 | AJ237: =IF(AND(AG235,TIPPABGABE!$DA$35=1,TIPPABGABE!$AN$8=TIPPABGABE!$AN$4),AH237,AD237) -> 2
B238: =INDEX(teams,INDEX(C179:C182,D238)) -> Slowakei | C238: 3 | D238: =MATCH(C238,$F$230:$F$233,0) -> 4 | E238: =IF(G235,C238,INDEX(E230:E233,D238)) -> 3 | G238: 3 | H238: =IF(G235,VLOOKUP(A245,TIPPABGABE!$CQ$40:$CS$67,3,FALSE),D238) -> 4 | J238: =IF(AND(G235,TIPPABGABE!$DA$35=1,TIPPABGABE!$AN$8=TIPPABGABE!$AN$4),H238,D238) -> 4 | AB238: =INDEX(teams,INDEX(AC179:AC182,AD238)) -> Deutschland | AC238: 3 | AD238: =MATCH(AC238,$AF$230:$AF$233,0) -> 4 | AE238: =IF(AG235,AC238,INDEX(AE230:AE233,AD238)) -> 3 | AG238: 3 | AH238: =IF(AG235,VLOOKUP(AA245,TIPPABGABE!$CQ$40:$CS$67,3,FALSE),AD238) -> 4 | AJ238: =IF(AND(AG235,TIPPABGABE!$DA$35=1,TIPPABGABE!$AN$8=TIPPABGABE!$AN$4),AH238,AD238) -> 4
B239: =INDEX(teams,INDEX(C179:C182,D239)) -> Polen | C239: 4 | D239: =MATCH(C239,$F$230:$F$233,0) -> 3 | E239: =IF(G235,C239,INDEX(E230:E233,D239)) -> 4 | G239: 4 | H239: =IF(G235,VLOOKUP(A246,TIPPABGABE!$CQ$40:$CS$67,3,FALSE),D239) -> 3 | J239: =IF(AND(G235,TIPPABGABE!$DA$35=1,TIPPABGABE!$AN$8=TIPPABGABE!$AN$4),H239,D239) -> 3 | AB239: =INDEX(teams,INDEX(AC179:AC182,AD239)) -> Ungarn | AC239: 4 | AD239: =MATCH(AC239,$AF$230:$AF$233,0) -> 1 | AE239: =IF(AG235,AC239,INDEX(AE230:AE233,AD239)) -> 4 | AG239: 4 | AH239: =IF(AG235,VLOOKUP(AA246,TIPPABGABE!$CQ$40:$CS$67,3,FALSE),AD239) -> 1 | AJ239: =IF(AND(AG235,TIPPABGABE!$DA$35=1,TIPPABGABE!$AN$8=TIPPABGABE!$AN$4),AH239,AD239) -> 1
B242: Tabelle | C242: TeamIndex | D242: Nr | E242: Team | F242: Sp | G242: P | H242: T+ | I242: T- | J242: Diff | K242: S | L242: U | M242: N | AB242: Tabelle | AC242: TeamIndex | AD242: Nr | AE242: Team | AF242: Sp | AG242: P | AH242: T+ | AI242: T- | AJ242: Diff | AK242: S | AL242: U | AM242: N
A243: ="S"&A168 -> SE | B243: 1 | C243: =INDEX($C$179:$C$182,J236) -> 17 | D243: =J236 -> 1 | E243: =INDEX($H$179:$H$182,J236) -> ESP | F243: =SUMIF($D$170:$E$175,"="&$C243,$Q$170:$R$175) -> 3 | G243: =INDEX($D$179:$D$182,$J236) -> 7 | H243: =INDEX($E$179:$E$182,$J236) -> 6 | I243: =INDEX($F$179:$F$182,$J236) -> 1 | J243: =INDEX($G$179:$G$182,$J236) -> 5 | K243: =COUNTIF($S$170:$T$175,"="&K$242&$C243) -> 2 | L243: 1 | M243: 0 | AA243: ="S"&AA168 -> SF | AB243: 1 | AC243: =INDEX($AC$179:$AC$182,AJ236) -> 23 | AD243: =AJ236 -> 3 | AE243: =INDEX($AH$179:$AH$182,AJ236) -> FRA | AF243: =SUMIF($AD$170:$AE$175,"="&$AC243,$AQ$170:$AR$175) -> 3 | AG243: =INDEX($AD$179:$AD$182,$AJ236) -> 7 | AH243: =INDEX($AE$179:$AE$182,$AJ236) -> 6 | AI243: =INDEX($AF$179:$AF$182,$AJ236) -> 3 | AJ243: =INDEX($AG$179:$AG$182,$AJ236) -> 3 | AK243: =COUNTIF($AS$170:$AT$175,"="&AK$242&$AC243) -> 2 | AL243: 1 | AM243: 0
A244: ="Z"&A168 -> ZE | B244: 2 | C244: =INDEX($C$179:$C$182,J237) -> 18 | D244: =J237 -> 2 | E244: =INDEX($H$179:$H$182,J237) -> SWE | F244: =SUMIF($D$170:$E$175,"="&$C244,$Q$170:$R$175) -> 3 | G244: =INDEX($D$179:$D$182,$J237) -> 7 | H244: =INDEX($E$179:$E$182,$J237) -> 5 | I244: =INDEX($F$179:$F$182,$J237) -> 1 | J244: =INDEX($G$179:$G$182,$J237) -> 4 | K244: 2 | L244: 1 | M244: 0 | AA244: ="Z"&AA168 -> ZF | AB244: 2 | AC244: =INDEX($AC$179:$AC$182,AJ237) -> 22 | AD244: =AJ237 -> 2 | AE244: =INDEX($AH$179:$AH$182,AJ237) -> POR | AF244: =SUMIF($AD$170:$AE$175,"="&$AC244,$AQ$170:$AR$175) -> 3 | AG244: =INDEX($AD$179:$AD$182,$AJ237) -> 5 | AH244: =INDEX($AE$179:$AE$182,$AJ237) -> 6 | AI244: =INDEX($AF$179:$AF$182,$AJ237) -> 4 | AJ244: =INDEX($AG$179:$AG$182,$AJ237) -> 2 | AK244: 1 | AL244: 2 | AM244: 0
A245: ="D"&A168 -> DE | B245: 3 | C245: =INDEX($C$179:$C$182,J238) -> 20 | D245: =J238 -> 4 | E245: =INDEX($H$179:$H$182,J238) -> SVK | F245: =SUMIF($D$170:$E$175,"="&$C245,$Q$170:$R$175) -> 3 | G245: =INDEX($D$179:$D$182,$J238) -> 3 | H245: =INDEX($E$179:$E$182,$J238) -> 3 | I245: =INDEX($F$179:$F$182,$J238) -> 6 | J245: =INDEX($G$179:$G$182,$J238) -> -3 | K245: 1 | L245: 0 | M245: 2 | AA245: ="D"&AA168 -> DF | AB245: 3 | AC245: =INDEX($AC$179:$AC$182,AJ238) -> 24 | AD245: =AJ238 -> 4 | AE245: =INDEX($AH$179:$AH$182,AJ238) -> GER | AF245: =SUMIF($AD$170:$AE$175,"="&$AC245,$AQ$170:$AR$175) -> 3 | AG245: =INDEX($AD$179:$AD$182,$AJ238) -> 2 | AH245: =INDEX($AE$179:$AE$182,$AJ238) -> 3 | AI245: =INDEX($AF$179:$AF$182,$AJ238) -> 4 | AJ245: =INDEX($AG$179:$AG$182,$AJ238) -> -1 | AK245: 0 | AL245: 2 | AM245: 1
A246: ="V"&A168 -> VE | B246: 4 | C246: =INDEX($C$179:$C$182,J239) -> 19 | D246: =J239 -> 3 | E246: =INDEX($H$179:$H$182,J239) -> POL | F246: =SUMIF($D$170:$E$175,"="&$C246,$Q$170:$R$175) -> 3 | G246: =INDEX($D$179:$D$182,$J239) -> 0 | H246: =INDEX($E$179:$E$182,$J239) -> 2 | I246: =INDEX($F$179:$F$182,$J239) -> 8 | J246: =INDEX($G$179:$G$182,$J239) -> -6 | K246: 0 | L246: 0 | M246: 3 | AA246: ="V"&AA168 -> VF | AB246: 4 | AC246: =INDEX($AC$179:$AC$182,AJ239) -> 21 | AD246: =AJ239 -> 1 | AE246: =INDEX($AH$179:$AH$182,AJ239) -> HUN | AF246: =SUMIF($AD$170:$AE$175,"="&$AC246,$AQ$170:$AR$175) -> 3 | AG246: =INDEX($AD$179:$AD$182,$AJ239) -> 1 | AH246: =INDEX($AE$179:$AE$182,$AJ239) -> 2 | AI246: =INDEX($AF$179:$AF$182,$AJ239) -> 6 | AJ246: =INDEX($AG$179:$AG$182,$AJ239) -> -4 | AK246: 0 | AL246: 1 | AM246: 2
A334: Rang Eff | C334: =C78 -> TeamIndex | D334: Nr | E334: Team | F334: Sp | G334: P | H334: T+ | I334: T- | J334: Diff | K334: S | L334: U | M334: N | O334: Rang Eff | Q334: Tore KO | R334: Tore GES
A335: =$E$72 -> 1 | B335: SA | C335: =C79 -> 4 | D335: 4 | E335: SUI | F335: 3 | G335: 7 | H335: 6 | I335: 2 | J335: 4 | K335: 2 | L335: 1 | M335: 0 | N335: 1 | O335: =A335 -> 1 | P335: =INDEX(teams,C335) -> Schweiz | Q335: =SUMIF($L$407:$M$422,"="&C335,$S$407:$T$422) -> 6 | R335: =H335+Q335 -> 12
... 127 more rows

Sheet EM 2021 XXL
F3: UEFA FUSSBALL-EUROPAMEISTERSCHAFTTM 2021 | J3: V 21.0614 vom 14.06.2021 | N3: Verantwortlich: Thomas Günther, Kassel Kontakt: hexceler@gmx.de Web: http://www.hexceler.de
F4: Kostenlose Turnierverwaltung für die UEFA Fußball-EM 2021 mit Tippspiel für bis zu 500 Mitspieler. Für MS Excel ab Version 2000.
E7: Diese Datei enthält Makros, die beim Öffnen zu aktivieren sind. Alle Makros dienen ausschließlich der Funktionalität der Datei und stellen keine Gefahr für das System dar.
F9: Hinweise für das Aktivieren von Makros können Sie der diesem Programm beiliegenden Anleitung (Word- und PDF-Format) entnehmen. Wegen der enthaltenen Makros kann diese Datei leider nicht mit OpenOffice, StarOffice, Office für Mac oder anderen alternativen Officeprogrammen verwendet werden . Nuzter dieser Software können jedoch über Tippformulare am Tippspiel teilnehmen. Falls die Startleiste von Windows die Blattregister dieser Arbeitsmappe verdecken sollte, kann der Wechsel zwischen den einzelnen Tabellenblättern über die Navigationsbox erfolgen, die auf jedem Blatt oben links zu finden ist. Die Navigationsbox enthält zudem Funktionen für die Ausgabe von Daten (Druck, HTM-Export) sowie zum Speichern und Schließen der Datei.
D16: Wenn Ihnen diese Datei gefällt und Sie den Arbeitsaufwand für dieses Projekt honorieren möchten, können Sie sich erkenntlich zeigen durch eine Überweisung auf das Konto von:
D17: Thomas Günther BIC: GENODE51KS1 IBAN: DE03 5209 0000 0114 5469 09 (Volksbank Kassel Göttingen. Bankleitzahl: 52090000, Kontonummer: 0114546909).
D18: Als Alternative zur Banküberweisung können Sie eine Zahlung über die Funktion "Geld senden" von PayPal an die Adresse hexceler@gmx.de vornehmen.
D19: Bitte honorieren Sie den Arbeitsaufwand durch eine Spende über PayPal oder eine Überweisung auf das angegebene Konto. Vielen Dank, für jede Fairplay-Spende.
D23: =IF(daten!AH45>0,"AKTUELLER "&UPPER(daten!AI45),"DATENSTAND: NOCH KEINE ERGEBNISSE") -> AKTUELLER STAND: 11.07. (SPIEL #51 VON 51)
E25: Die Ergebnisse der Spiele können eigenständig auf dem Tabellenblatt "Ergebnisse" eingegeben werden. KO-Spiele werden vom Programm ermittelt. Das Editieren zusätzlicher Daten (Aufstellung, Torschützen, verteilte Karten ...) ist über den Spieldateneditor möglich. Sie können Resultate und Spieldaten aber auch über eine 'Aktualisierungsdatei' in diese EM-Datei importieren. Eine Aktualisierungsdatei wird nach jedem Spieltag unter http://www.hexceler.de zum kostenlosen Download bereitgestellt werden. Nach dem Extrahieren der geladenen ZIP-Datei können Sie die darin enthaltenen Daten über "Ergebnis-Update durchführen" übertragen. Über "Aktualisierungsdatei erstellen" werden alle Ergebnisse und Spieldaten in eine separate Datei exportiert. Die so erstellte Datei kann für das Importieren dieser Daten in andere Hauptprogrammdateien genutzt werden. Tippspieldaten werden über die Import- und Exportfunktion des Tippspiels übertragen. | Q25: AKTUALISIERUNGSDATEI LADEN
A36: =settings!C114 -> TRUE | G36: Beim Öffnen der Datei den Vollbildmodus aktivieren | M36: =IF(ISERROR(NOT(A36)),"Deaktiviert",IF(NOT(A36),"Deaktiviert","Aktiviert")) -> Aktiviert
A37: =IF(NOT(A36),"nicht verfügbar",settings!C113) -> TRUE | G37: Zoom der Tabellenblätter automatisch anpassen | M37: =IF(settings!C122,"Pers. Zoom ("&INT(settings!C123*100+0.5)&"%)",IF(ISERROR(NOT(A37)),A37,IF(NOT(A37),"Deaktiviert","Aktiviert ("&INT(settings!C111*100+0.5)&"%)"))) -> Aktiviert (138%)
A38: =IF(OR(settings!C122,NOT(settings!C114),NOT(settings!C113)),"nicht verfügbar",settings!C112) -> FALSE | G38: Bei 4:3-Bildschirmen Blatt-Zoom auf verfügbare HÖHE ausrichten | M38: =IF(ISERROR(NOT(A38)),A38,IF(NOT(A38),"Deaktiviert","Aktiviert")) -> Deaktiviert
A40: =settings!C115 -> FALSE | G40: Statuszeile beim Öffnen ausblenden | M40: =IF(ISERROR(NOT(A40)),A40,IF(NOT(settings!C115),"Deaktiviert","Aktiviert")) -> Deaktiviert
A41: =settings!C116 -> FALSE | G41: Bearbeitungsleiste beim Öffnen ausblenden | M41: =IF(ISERROR(NOT(A41)),A41,IF(NOT(settings!C116),"Deaktiviert","Aktiviert")) -> Deaktiviert | Q41: ANLEITUNG ANZEIGEN
A43: =settings!C117 -> TRUE | F43: Warnen, wenn eine XLS-Datei im Kompatibilitätsmodus geöffnet wird (Excel ab Version 2007) | M43: =IF(ISERROR(NOT(A43)),A43,IF(NOT(A43),"Deaktiviert","Aktiviert")) -> Aktiviert
A45: =AND(anzmsp>0,settings!C118) -> FALSE | G45: Nach Änderungen automatisch ein OneClick-Web für das Tippspiel generieren | M45: =IF(ISERROR(NOT(A45)),A45,IF(NOT(A45),"Deaktiviert","Aktiviert")) -> Deaktiviert | Q45: HÄUFIGE FRAGEN…
A47: =settings!C119 -> TRUE | G47: Modulfenster vergrößert darstellen | M47: =IF(ISERROR(NOT(A47)),A47,IF(NOT(A47),"Deaktiviert","Aktiviert (" & INT(settings!C126*100+0.5)&"%)")) -> Aktiviert (115%)
F49: Zeitverschiebung ihres Aufenthaltsortes zur MESZ (Time difference between your local time and CEST) | M49: =INDEX(settings!$W$104:$W$201,settings!X102) -> ± 0:00
J50: =IF(A44,"(das OCW wird beim Aktivieren des Blattes 'Tippspiel' erstellt)","") -> 
F51: Beim Speichern der EM-Datei automatisch eine UPDATEDATEI des Tippspiels erstellen | M51: =IF(settings!C132,"Aktiviert","Deaktiviert") -> Deaktiviert

Sheet ERGEBNISSE
B6: $AB$92 | H6: Spieldaten und Halbzeitresultate editieren: RECHTSKLICK auf Termin. Paarungsbilanz: RECHTSKLICK auf Paarung. EM-Teambilanz: RECHTSKLICK in die Gruppentabelle.
B7: Zeige allgemeine Angaben | D7: TRUE | E7: Spiele GR | F7: =SUM(tabber!F335:F358)/2 -> 36
B8: AF aktueller Stand | D8: FALSE | H8: ="UEFA EM 2021 - "&daten!$P$105 -> UEFA EM 2021 - Fr.., 11.06. bis So.., 11.07.2021
B10: Spiel Nr. nach TA | C10: Spiel WERTE | D10: TANr2Chrono | E10: ErgH | F10: ErgA | H10: Gruppenrunde | N10: Die Gruppenersten und -zweiten sowie die vier besten Drittplatzierten erreichen das Achtelfinale. | AS10: =IF(F7<36,"Aktuelle Tabellen","Tabellen") -> Tabellen | AY10: ="Stand: "&F7 &" von 36 Spielen" -> Stand: 36 von 36 Spielen | BI10: ? | BQ10: Manuell | BS10: TIDX | BT10: GrIDX | BV10: Sortierspalte Wappen | BW10: akt | BX10: alt | BY10: test | BZ10: =SUM(BY12:BY46) -> 0
B12: 1 | C12: A1 | D12: =MATCH(C12,daten!$D$49:$D$84,0) -> 1 | E12: =IF(COUNT(AI12,AK12)=2,AI12,"") -> 0 | F12: =IF(COUNT(AI12,AK12)=2,AK12,"") -> 3 | H12: =INDEX(daten!$L$106:$L$157,D12) -> 11.06. | K12: =INDEX(daten!$K$106:$K$157,D12) -> 21:00 | N12: =INDEX(daten!$B$106:$B$141,D12) -> Rom | T12: =INDEX(daten!$C$49:$C$100,D12) -> A | V12: =INDEX(daten!$K$49:$K$84,D12)&" ("&INDEX(daten!$M$49:$M$84,D12)&")" -> Türkei (TUR) | AB12: : | AC12: =INDEX(daten!$L$49:$L$84,D12)&" ("&INDEX(daten!$N$49:$N$84,D12)&")" -> Italien (ITA) | AI12: 0 | AJ12: : | AK12: 3 | AL12: =INDEX(daten!$AD$49:$AD$100,D12) -> (0 : 0) | AR12: A | AS12: Rom & Baku | AZ12: Tore | BB12: Diff. | BD12: P | BE12: S | U | N | BK12: Sp | BL12: Rang Eff | BM12: TIDX | BO12: Dritte | BQ12: A | BR12: SA | BT12: =IF(LEN(BS12)=0,0,SUMIF(daten!$B$6:$B$29,"="&BS12,daten!$J$6:$J$29)) -> 0 | BV12: A | BW12: =IF(LEN(BJ12)=0,ROW(),MATCH(BJ12,$BM$12:$BM$46,0)+11) -> 12 | BX12: 12 | BY12: =IF(BW12=BX12,0,1) -> 0
B13: 2 | C13: A2 | D13: =MATCH(C13,daten!$D$49:$D$84,0) -> 2 | E13: 1 | F13: 1 | H13: =INDEX(daten!$L$106:$L$157,D13) -> 12.06. | K13: =INDEX(daten!$K$106:$K$157,D13) -> 15:00 | N13: =INDEX(daten!$B$106:$B$141,D13) -> Baku | T13: =INDEX(daten!$C$49:$C$100,D13) -> A | V13: =INDEX(daten!$K$49:$K$84,D13)&" ("&INDEX(daten!$M$49:$M$84,D13)&")" -> Wales (WAL) | AB13: : | AC13: =INDEX(daten!$L$49:$L$84,D13)&" ("&INDEX(daten!$N$49:$N$84,D13)&")" -> Schweiz (SUI) | AI13: 1 | AJ13: : | AK13: 1 | AL13: =INDEX(daten!$AD$49:$AD$100,D13) -> (0 : 0) | AS13: =IF(SUM(BD13:BD16)=0,"",IF(BL13=BL12,"",BL13)) -> 1 | AT13: =UPPER(INDEX(tabber!$P$335:$P$358,BJ13)) -> ITALIEN | AZ13: =INDEX(tabber!$E$335:$M$358,BJ13,4)&" : "&INDEX(tabber!$E$335:$M$358,BJ13,5) -> 7 : 0 | BB13: =INDEX(tabber!$E$335:$M$358,BJ13,6) -> 7 | BD13: =INDEX(tabber!$E$335:$M$358,BJ13,3) -> 9 | BE13: =INDEX(tabber!$E$335:$M$358,BJ13,7) &" | " &INDEX(tabber!$E$335:$M$358,BJ13,8)&" | " &INDEX(tabber!$E$335:$M$358,BJ13,9) -> 3 | 0 | 0 | BJ13: 1 | BL13: =INDEX(tabber!$A$335:$A$358,BJ13) -> 1 | BM13: =MATCH(AT13,teams,0) -> 2 | BO13: =tabber!$H$392 -> POR | BP13: =tabber!$H$393 -> Portugal | BQ13: A | BR13: ZA | BT13: =IF(LEN(BS13)=0,0,SUMIF(daten!$B$6:$B$29,"="&BS13,daten!$J$6:$J$29)) -> 0 | BW13: 16 | BX13: 16 | BY13: 0
B14: 3 | C14: B1 | D14: =MATCH(C14,daten!$D$49:$D$84,0) -> 3 | E14: 0 | F14: 1 | H14: =INDEX(daten!$L$106:$L$157,D14) -> 12.06. | K14: =INDEX(daten!$K$106:$K$157,D14) -> 18:00 | N14: =INDEX(daten!$B$106:$B$141,D14) -> Kopenhagen | T14: =INDEX(daten!$C$49:$C$100,D14) -> B | V14: =INDEX(daten!$K$49:$K$84,D14)&" ("&INDEX(daten!$M$49:$M$84,D14)&")" -> Dänemark (DEN) | AB14: : | AC14: =INDEX(daten!$L$49:$L$84,D14)&" ("&INDEX(daten!$N$49:$N$84,D14)&")" -> Finnland (FIN) | AI14: 0 | AJ14: : | AK14: 1 | AL14: =INDEX(daten!$AD$49:$AD$100,D14) -> (0 : 0) | AS14: =IF(SUM(BD13:BD16)=0,"",IF(BL14=BL13,"",BL14)) -> 2 | AT14: =UPPER(INDEX(tabber!$P$335:$P$358,BJ14)) -> WALES | AZ14: =INDEX(tabber!$E$335:$M$358,BJ14,4)&" : "&INDEX(tabber!$E$335:$M$358,BJ14,5) -> 3 : 2 | BB14: =INDEX(tabber!$E$335:$M$358,BJ14,6) -> 1 | BD14: =INDEX(tabber!$E$335:$M$358,BJ14,3) -> 4 | BE14: =INDEX(tabber!$E$335:$M$358,BJ14,7) &" | " &INDEX(tabber!$E$335:$M$358,BJ14,8)&" | " &INDEX(tabber!$E$335:$M$358,BJ14,9) -> 1 | 1 | 1 | BJ14: 2 | BL14: =INDEX(tabber!$A$335:$A$358,BJ14) -> 2 | BM14: =MATCH(AT14,teams,0) -> 3 | BO14: =tabber!$I$392 -> CZE | BP14: =tabber!$I$393 -> Tschechien | BQ14: A | BR14: DA | BT14: =IF(LEN(BS14)=0,0,SUMIF(daten!$B$6:$B$29,"="&BS14,daten!$J$6:$J$29)) -> 0 | BW14: 13 | BX14: 13 | BY14: 0
B15: 4 | C15: B2 | D15: =MATCH(C15,daten!$D$49:$D$84,0) -> 4 | E15: 3 | F15: 0 | H15: =INDEX(daten!$L$106:$L$157,D15) -> 12.06. | K15: =INDEX(daten!$K$106:$K$157,D15) -> 21:00 | N15: =INDEX(daten!$B$106:$B$141,D15) -> St. Petersburg | T15: =INDEX(daten!$C$49:$C$100,D15) -> B | V15: =INDEX(daten!$K$49:$K$84,D15)&" ("&INDEX(daten!$M$49:$M$84,D15)&")" -> Belgien (BEL) | AB15: : | AC15: =INDEX(daten!$L$49:$L$84,D15)&" ("&INDEX(daten!$N$49:$N$84,D15)&")" -> Russland (RUS) | AI15: 3 | AJ15: : | AK15: 0 | AL15: =INDEX(daten!$AD$49:$AD$100,D15) -> (2 : 0) | AS15: =IF(SUM(BD13:BD16)=0,"",IF(BL15=BL14,"",BL15)) -> 3 | AT15: =UPPER(INDEX(tabber!$P$335:$P$358,BJ15)) -> SCHWEIZ | AZ15: =INDEX(tabber!$E$335:$M$358,BJ15,4)&" : "&INDEX(tabber!$E$335:$M$358,BJ15,5) -> 4 : 5 | BB15: =INDEX(tabber!$E$335:$M$358,BJ15,6) -> -1 | BD15: =INDEX(tabber!$E$335:$M$358,BJ15,3) -> 4 | BE15: =INDEX(tabber!$E$335:$M$358,BJ15,7) &" | " &INDEX(tabber!$E$335:$M$358,BJ15,8)&" | " &INDEX(tabber!$E$335:$M$358,BJ15,9) -> 1 | 1 | 1 | BJ15: 3 | BL15: =INDEX(tabber!$A$335:$A$358,BJ15) -> 3 | BM15: =MATCH(AT15,teams,0) -> 4 | BO15: =tabber!$J$392 -> UKR | BP15: =tabber!$J$393 -> Ukraine | BQ15: A | BR15: VA | BT15: =IF(LEN(BS15)=0,0,SUMIF(daten!$B$6:$B$29,"="&BS15,daten!$J$6:$J$29)) -> 0 | BW15: 14 | BX15: 14 | BY15: 0
B16: 5 | C16: D1 | D16: =MATCH(C16,daten!$D$49:$D$84,0) -> 5 | E16: 1 | F16: 0 | H16: =INDEX(daten!$L$106:$L$157,D16) -> 13.06. | K16: =INDEX(daten!$K$106:$K$157,D16) -> 15:00 | N16: =INDEX(daten!$B$106:$B$141,D16) -> London | T16: =INDEX(daten!$C$49:$C$100,D16) -> D | V16: =INDEX(daten!$K$49:$K$84,D16)&" ("&INDEX(daten!$M$49:$M$84,D16)&")" -> England (ENG) | AB16: : | AC16: =INDEX(daten!$L$49:$L$84,D16)&" ("&INDEX(daten!$N$49:$N$84,D16)&")" -> Kroatien (CRO) | AI16: 1 | AJ16: : | AK16: 0 | AL16: =INDEX(daten!$AD$49:$AD$100,D16) -> (0 : 0) | AS16: =IF(SUM(BD13:BD16)=0,"",IF(BL16=BL15,"",BL16)) -> 4 | AT16: =UPPER(INDEX(tabber!$P$335:$P$358,BJ16)) -> TÜRKEI | AZ16: =INDEX(tabber!$E$335:$M$358,BJ16,4)&" : "&INDEX(tabber!$E$335:$M$358,BJ16,5) -> 1 : 8 | BB16: =INDEX(tabber!$E$335:$M$358,BJ16,6) -> -7 | BD16: =INDEX(tabber!$E$335:$M$358,BJ16,3) -> 0 | BE16: =INDEX(tabber!$E$335:$M$358,BJ16,7) &" | " &INDEX(tabber!$E$335:$M$358,BJ16,8)&" | " &INDEX(tabber!$E$335:$M$358,BJ16,9) -> 0 | 0 | 3 | BJ16: 4 | BL16: =INDEX(tabber!$A$335:$A$358,BJ16) -> 4 | BM16: =MATCH(AT16,teams,0) -> 1 | BO16: =tabber!$K$392 -> SUI | BP16: =tabber!$K$393 -> Schweiz | BQ16: B | BR16: SB | BT16: =IF(LEN(BS16)=0,0,SUMIF(daten!$B$6:$B$29,"="&BS16,daten!$J$6:$J$29)) -> 0 | BW16: 15 | BX16: 15 | BY16: 0
B17: 6 | C17: C1 | D17: =MATCH(C17,daten!$D$49:$D$84,0) -> 6 | E17: 3 | F17: 1 | H17: =INDEX(daten!$L$106:$L$157,D17) -> 13.06. | K17: =INDEX(daten!$K$106:$K$157,D17) -> 18:00 | N17: =INDEX(daten!$B$106:$B$141,D17) -> Bukarest | T17: =INDEX(daten!$C$49:$C$100,D17) -> C | V17: =INDEX(daten!$K$49:$K$84,D17)&" ("&INDEX(daten!$M$49:$M$84,D17)&")" -> Österreich (AUT) | AB17: : | AC17: =INDEX(daten!$L$49:$L$84,D17)&" ("&INDEX(daten!$N$49:$N$84,D17)&")" -> Nordmazedonien (MKD) | AI17: 3 | AJ17: : | AK17: 1 | AL17: =INDEX(daten!$AD$49:$AD$100,D17) -> (1 : 1) | BQ17: B | BR17: ZB | BT17: =IF(LEN(BS17)=0,0,SUMIF(daten!$B$6:$B$29,"="&BS17,daten!$J$6:$J$29)) -> 0 | BV17: B | BW17: 17 | BX17: 17 | BY17: 0
B18: 7 | C18: C2 | D18: =MATCH(C18,daten!$D$49:$D$84,0) -> 7 | E18: 3 | F18: 2 | H18: =INDEX(daten!$L$106:$L$157,D18) -> 13.06. | K18: =INDEX(daten!$K$106:$K$157,D18) -> 21:00 | N18: =INDEX(daten!$B$106:$B$141,D18) -> Amsterdam | T18: =INDEX(daten!$C$49:$C$100,D18) -> C | V18: =INDEX(daten!$K$49:$K$84,D18)&" ("&INDEX(daten!$M$49:$M$84,D18)&")" -> Niederlande (NED) | AB18: : | AC18: =INDEX(daten!$L$49:$L$84,D18)&" ("&INDEX(daten!$N$49:$N$84,D18)&")" -> Ukraine (UKR) | AI18: 3 | AJ18: : | AK18: 2 | AL18: =INDEX(daten!$AD$49:$AD$100,D18) -> (0 : 0) | AR18: B | AS18: St. Petersburg & Kopenhagen | AZ18: Tore | BB18: Diff. | BD18: P | BE18: S | U | N | BQ18: B | BR18: DB | BT18: =IF(LEN(BS18)=0,0,SUMIF(daten!$B$6:$B$29,"="&BS18,daten!$J$6:$J$29)) -> 0 | BV18: B | BW18: 18 | BX18: 18 | BY18: 0
B19: 8 | C19: D2 | D19: =MATCH(C19,daten!$D$49:$D$84,0) -> 8 | E19: 0 | F19: 2 | H19: =INDEX(daten!$L$106:$L$157,D19) -> 14.06. | K19: =INDEX(daten!$K$106:$K$157,D19) -> 15:00 | N19: =INDEX(daten!$B$106:$B$141,D19) -> Glasgow | T19: =INDEX(daten!$C$49:$C$100,D19) -> D | V19: =INDEX(daten!$K$49:$K$84,D19)&" ("&INDEX(daten!$M$49:$M$84,D19)&")" -> Schottland (SCO) | AB19: : | AC19: =INDEX(daten!$L$49:$L$84,D19)&" ("&INDEX(daten!$N$49:$N$84,D19)&")" -> Tschechien (CZE) | AI19: 0 | AJ19: : | AK19: 2 | AL19: =INDEX(daten!$AD$49:$AD$100,D19) -> (0 : 1) | AS19: =IF(SUM(BD19:BD22)=0,"",IF(BL19=BL18,"",BL19)) -> 1 | AT19: =UPPER(INDEX(tabber!$P$335:$P$358,BJ19)) -> BELGIEN | AZ19: =INDEX(tabber!$E$335:$M$358,BJ19,4)&" : "&INDEX(tabber!$E$335:$M$358,BJ19,5) -> 7 : 1 | BB19: =INDEX(tabber!$E$335:$M$358,BJ19,6) -> 6 | BD19: =INDEX(tabber!$E$335:$M$358,BJ19,3) -> 9 | BE19: =INDEX(tabber!$E$335:$M$358,BJ19,7) &" | " &INDEX(tabber!$E$335:$M$358,BJ19,8)&" | " &INDEX(tabber!$E$335:$M$358,BJ19,9) -> 3 | 0 | 0 | BJ19: 5 | BL19: =INDEX(tabber!$A$335:$A$358,BJ19) -> 1 | BM19: =MATCH(AT19,teams,0) -> 7 | BQ19: B | BR19: VB | BT19: =IF(LEN(BS19)=0,0,SUMIF(daten!$B$6:$B$29,"="&BS19,daten!$J$6:$J$29)) -> 0 | BW19: 20 | BX19: 20 | BY19: 0
B20: 9 | C20: E1 | D20: =MATCH(C20,daten!$D$49:$D$84,0) -> 9 | E20: 1 | F20: 2 | H20: =INDEX(daten!$L$106:$L$157,D20) -> 14.06. | K20: =INDEX(daten!$K$106:$K$157,D20) -> 18:00 | N20: =INDEX(daten!$B$106:$B$141,D20) -> St. Petersburg | T20: =INDEX(daten!$C$49:$C$100,D20) -> E | V20: =INDEX(daten!$K$49:$K$84,D20)&" ("&INDEX(daten!$M$49:$M$84,D20)&")" -> Polen (POL) | AB20: : | AC20: =INDEX(daten!$L$49:$L$84,D20)&" ("&INDEX(daten!$N$49:$N$84,D20)&")" -> Slowakei (SVK) | AI20: 1 | AJ20: : | AK20: 2 | AL20: =INDEX(daten!$AD$49:$AD$100,D20) -> (0 : 1) | AS20: =IF(SUM(BD19:BD22)=0,"",IF(BL20=BL19,"",BL20)) -> 2 | AT20: =UPPER(INDEX(tabber!$P$335:$P$358,BJ20)) -> DÄNEMARK | AZ20: =INDEX(tabber!$E$335:$M$358,BJ20,4)&" : "&INDEX(tabber!$E$335:$M$358,BJ20,5) -> 5 : 4 | BB20: =INDEX(tabber!$E$335:$M$358,BJ20,6) -> 1 | BD20: =INDEX(tabber!$E$335:$M$358,BJ20,3) -> 3 | BE20: =INDEX(tabber!$E$335:$M$358,BJ20,7) &" | " &INDEX(tabber!$E$335:$M$358,BJ20,8)&" | " &INDEX(tabber!$E$335:$M$358,BJ20,9) -> 1 | 0 | 2 | BJ20: 6 | BL20: =INDEX(tabber!$A$335:$A$358,BJ20) -> 2 | BM20: =MATCH(AT20,teams,0) -> 5 | BQ20: C | BR20: SC | BT20: =IF(LEN(BS20)=0,0,SUMIF(daten!$B$6:$B$29,"="&BS20,daten!$J$6:$J$29)) -> 0 | BW20: 21 | BX20: 21 | BY20: 0
B21: 10 | C21: E2 | D21: =MATCH(C21,daten!$D$49:$D$84,0) -> 10 | E21: 0 | F21: 0 | H21: =INDEX(daten!$L$106:$L$157,D21) -> 14.06. | K21: =INDEX(daten!$K$106:$K$157,D21) -> 21:00 | N21: =INDEX(daten!$B$106:$B$141,D21) -> Sevilla | T21: =INDEX(daten!$C$49:$C$100,D21) -> E | V21: =INDEX(daten!$K$49:$K$84,D21)&" ("&INDEX(daten!$M$49:$M$84,D21)&")" -> Spanien (ESP) | AB21: : | AC21: =INDEX(daten!$L$49:$L$84,D21)&" ("&INDEX(daten!$N$49:$N$84,D21)&")" -> Schweden (SWE) | AI21: 0 | AJ21: : | AK21: 0 | AL21: =INDEX(daten!$AD$49:$AD$100,D21) -> (0 : 0) | AS21: =IF(SUM(BD19:BD22)=0,"",IF(BL21=BL20,"",BL21)) -> 3 | AT21: =UPPER(INDEX(tabber!$P$335:$P$358,BJ21)) -> FINNLAND | AZ21: =INDEX(tabber!$E$335:$M$358,BJ21,4)&" : "&INDEX(tabber!$E$335:$M$358,BJ21,5) -> 1 : 3 | BB21: =INDEX(tabber!$E$335:$M$358,BJ21,6) -> -2 | BD21: =INDEX(tabber!$E$335:$M$358,BJ21,3) -> 3 | BE21: =INDEX(tabber!$E$335:$M$358,BJ21,7) &" | " &INDEX(tabber!$E$335:$M$358,BJ21,8)&" | " &INDEX(tabber!$E$335:$M$358,BJ21,9) -> 1 | 0 | 2 | BJ21: 7 | BL21: =INDEX(tabber!$A$335:$A$358,BJ21) -> 3 | BM21: =MATCH(AT21,teams,0) -> 6 | BQ21: C | BR21: ZC | BT21: =IF(LEN(BS21)=0,0,SUMIF(daten!$B$6:$B$29,"="&BS21,daten!$J$6:$J$29)) -> 0 | BW21: 19 | BX21: 19 | BY21: 0
B22: 11 | C22: F1 | D22: =MATCH(C22,daten!$D$49:$D$84,0) -> 11 | E22: 0 | F22: 3 | H22: =INDEX(daten!$L$106:$L$157,D22) -> 15.06. | K22: =INDEX(daten!$K$106:$K$157,D22) -> 18:00 | N22: =INDEX(daten!$B$106:$B$141,D22) -> Budapest | T22: =INDEX(daten!$C$49:$C$100,D22) -> F | V22: =INDEX(daten!$K$49:$K$84,D22)&" ("&INDEX(daten!$M$49:$M$84,D22)&")" -> Ungarn (HUN) | AB22: : | AC22: =INDEX(daten!$L$49:$L$84,D22)&" ("&INDEX(daten!$N$49:$N$84,D22)&")" -> Portugal (POR) | AI22: 0 | AJ22: : | AK22: 3 | AL22: =INDEX(daten!$AD$49:$AD$100,D22) -> (0 : 0) | AS22: =IF(SUM(BD19:BD22)=0,"",IF(BL22=BL21,"",BL22)) -> 4 | AT22: =UPPER(INDEX(tabber!$P$335:$P$358,BJ22)) -> RUSSLAND | AZ22: =INDEX(tabber!$E$335:$M$358,BJ22,4)&" : "&INDEX(tabber!$E$335:$M$358,BJ22,5) -> 2 : 7 | BB22: =INDEX(tabber!$E$335:$M$358,BJ22,6) -> -5 | BD22: =INDEX(tabber!$E$335:$M$358,BJ22,3) -> 3 | BE22: =INDEX(tabber!$E$335:$M$358,BJ22,7) &" | " &INDEX(tabber!$E$335:$M$358,BJ22,8)&" | " &INDEX(tabber!$E$335:$M$358,BJ22,9) -> 1 | 0 | 2 | BJ22: 8 | BL22: =INDEX(tabber!$A$335:$A$358,BJ22) -> 4 | BM22: =MATCH(AT22,teams,0) -> 8 | BQ22: C | BR22: DC | BT22: =IF(LEN(BS22)=0,0,SUMIF(daten!$B$6:$B$29,"="&BS22,daten!$J$6:$J$29)) -> 0 | BW22: 22 | BX22: 22 | BY22: 0
B23: 12 | C23: F2 | D23: =MATCH(C23,daten!$D$49:$D$84,0) -> 12 | E23: 1 | F23: 0 | H23: =INDEX(daten!$L$106:$L$157,D23) -> 15.06. | K23: =INDEX(daten!$K$106:$K$157,D23) -> 21:00 | N23: =INDEX(daten!$B$106:$B$141,D23) -> München | T23: =INDEX(daten!$C$49:$C$100,D23) -> F | V23: =INDEX(daten!$K$49:$K$84,D23)&" ("&INDEX(daten!$M$49:$M$84,D23)&")" -> Frankreich (FRA) | AB23: : | AC23: =INDEX(daten!$L$49:$L$84,D23)&" ("&INDEX(daten!$N$49:$N$84,D23)&")" -> Deutschland (GER) | AI23: 1 | AJ23: : | AK23: 0 | AL23: =INDEX(daten!$AD$49:$AD$100,D23) -> (1 : 0) | BQ23: C | BR23: VC | BT23: =IF(LEN(BS23)=0,0,SUMIF(daten!$B$6:$B$29,"="&BS23,daten!$J$6:$J$29)) -> 0 | BV23: C | BW23: 23 | BX23: 23 | BY23: 0
B24: 13 | C24: B3 | D24: =MATCH(C24,daten!$D$49:$D$84,0) -> 13 | E24: 0 | F24: 1 | H24: =INDEX(daten!$L$106:$L$157,D24) -> 16.06. | K24: =INDEX(daten!$K$106:$K$157,D24) -> 15:00 | N24: =INDEX(daten!$B$106:$B$141,D24) -> St. Petersburg | T24: =INDEX(daten!$C$49:$C$100,D24) -> B | V24: =INDEX(daten!$K$49:$K$84,D24)&" ("&INDEX(daten!$M$49:$M$84,D24)&")" -> Finnland (FIN) | AB24: : | AC24: =INDEX(daten!$L$49:$L$84,D24)&" ("&INDEX(daten!$N$49:$N$84,D24)&")" -> Russland (RUS) | AI24: 0 | AJ24: : | AK24: 1 | AL24: =INDEX(daten!$AD$49:$AD$100,D24) -> (0 : 1) | AR24: C | AS24: Amsterdam & Bukarest | AZ24: Tore | BB24: Diff. | BD24: P | BE24: S | U | N | BQ24: D | BR24: SD | BT24: =IF(LEN(BS24)=0,0,SUMIF(daten!$B$6:$B$29,"="&BS24,daten!$J$6:$J$29)) -> 0 | BV24: C | BW24: 24 | BX24: 24 | BY24: 0
B25: 14 | C25: A3 | D25: =MATCH(C25,daten!$D$49:$D$84,0) -> 14 | E25: 0 | F25: 2 | H25: =INDEX(daten!$L$106:$L$157,D25) -> 16.06. | K25: =INDEX(daten!$K$106:$K$157,D25) -> 18:00 | N25: =INDEX(daten!$B$106:$B$141,D25) -> Baku | T25: =INDEX(daten!$C$49:$C$100,D25) -> A | V25: =INDEX(daten!$K$49:$K$84,D25)&" ("&INDEX(daten!$M$49:$M$84,D25)&")" -> Türkei (TUR) | AB25: : | AC25: =INDEX(daten!$L$49:$L$84,D25)&" ("&INDEX(daten!$N$49:$N$84,D25)&")" -> Wales (WAL) | AI25: 0 | AJ25: : | AK25: 2 | AL25: =INDEX(daten!$AD$49:$AD$100,D25) -> (0 : 1) | AS25: =IF(SUM(BD25:BD28)=0,"",IF(BL25=BL24,"",BL25)) -> 1 | AT25: =UPPER(INDEX(tabber!$P$335:$P$358,BJ25)) -> NIEDERLANDE | AZ25: =INDEX(tabber!$E$335:$M$358,BJ25,4)&" : "&INDEX(tabber!$E$335:$M$358,BJ25,5) -> 8 : 2 | BB25: =INDEX(tabber!$E$335:$M$358,BJ25,6) -> 6 | BD25: =INDEX(tabber!$E$335:$M$358,BJ25,3) -> 9 | BE25: =INDEX(tabber!$E$335:$M$358,BJ25,7) &" | " &INDEX(tabber!$E$335:$M$358,BJ25,8)&" | " &INDEX(tabber!$E$335:$M$358,BJ25,9) -> 3 | 0 | 0 | BJ25: 9 | BL25: =INDEX(tabber!$A$335:$A$358,BJ25) -> 1 | BM25: =MATCH(AT25,teams,0) -> 9 | BQ25: D | BR25: ZD | BT25: =IF(LEN(BS25)=0,0,SUMIF(daten!$B$6:$B$29,"="&BS25,daten!$J$6:$J$29)) -> 0 | BW25: 25 | BX25: 25 | BY25: 0
B26: 15 | C26: A4 | D26: =MATCH(C26,daten!$D$49:$D$84,0) -> 15 | E26: 3 | F26: 0 | H26: =INDEX(daten!$L$106:$L$157,D26) -> 16.06. | K26: =INDEX(daten!$K$106:$K$157,D26) -> 21:00 | N26: =INDEX(daten!$B$106:$B$141,D26) -> Rom | T26: =INDEX(daten!$C$49:$C$100,D26) -> A | V26: =INDEX(daten!$K$49:$K$84,D26)&" ("&INDEX(daten!$M$49:$M$84,D26)&")" -> Italien (ITA) | AB26: : | AC26: =INDEX(daten!$L$49:$L$84,D26)&" ("&INDEX(daten!$N$49:$N$84,D26)&")" -> Schweiz (SUI) | AI26: 3 | AJ26: : | AK26: 0 | AL26: =INDEX(daten!$AD$49:$AD$100,D26) -> (1 : 0) | AS26: =IF(SUM(BD25:BD28)=0,"",IF(BL26=BL25,"",BL26)) -> 2 | AT26: =UPPER(INDEX(tabber!$P$335:$P$358,BJ26)) -> ÖSTERREICH | AZ26: =INDEX(tabber!$E$335:$M$358,BJ26,4)&" : "&INDEX(tabber!$E$335:$M$358,BJ26,5) -> 4 : 3 | BB26: =INDEX(tabber!$E$335:$M$358,BJ26,6) -> 1 | BD26: =INDEX(tabber!$E$335:$M$358,BJ26,3) -> 6 | BE26: =INDEX(tabber!$E$335:$M$358,BJ26,7) &" | " &INDEX(tabber!$E$335:$M$358,BJ26,8)&" | " &INDEX(tabber!$E$335:$M$358,BJ26,9) -> 2 | 0 | 1 | BJ26: 10 | BL26: =INDEX(tabber!$A$335:$A$358,BJ26) -> 2 | BM26: =MATCH(AT26,teams,0) -> 11 | BQ26: D | BR26: DD | BT26: =IF(LEN(BS26)=0,0,SUMIF(daten!$B$6:$B$29,"="&BS26,daten!$J$6:$J$29)) -> 0 | BW26: 27 | BX26: 27 | BY26: 0
B27: 16 | C27: C3 | D27: =MATCH(C27,daten!$D$49:$D$84,0) -> 16 | E27: 2 | F27: 1 | H27: =INDEX(daten!$L$106:$L$157,D27) -> 17.06. | K27: =INDEX(daten!$K$106:$K$157,D27) -> 15:00 | N27: =INDEX(daten!$B$106:$B$141,D27) -> Bukarest | T27: =INDEX(daten!$C$49:$C$100,D27) -> C | V27: =INDEX(daten!$K$49:$K$84,D27)&" ("&INDEX(daten!$M$49:$M$84,D27)&")" -> Ukraine (UKR) | AB27: : | AC27: =INDEX(daten!$L$49:$L$84,D27)&" ("&INDEX(daten!$N$49:$N$84,D27)&")" -> Nordmazedonien (MKD) | AI27: 2 | AJ27: : | AK27: 1 | AL27: =INDEX(daten!$AD$49:$AD$100,D27) -> (2 : 0) | AS27: =IF(SUM(BD25:BD28)=0,"",IF(BL27=BL26,"",BL27)) -> 3 | AT27: =UPPER(INDEX(tabber!$P$335:$P$358,BJ27)) -> UKRAINE | AZ27: =INDEX(tabber!$E$335:$M$358,BJ27,4)&" : "&INDEX(tabber!$E$335:$M$358,BJ27,5) -> 4 : 5 | BB27: =INDEX(tabber!$E$335:$M$358,BJ27,6) -> -1 | BD27: =INDEX(tabber!$E$335:$M$358,BJ27,3) -> 3 | BE27: =INDEX(tabber!$E$335:$M$358,BJ27,7) &" | " &INDEX(tabber!$E$335:$M$358,BJ27,8)&" | " &INDEX(tabber!$E$335:$M$358,BJ27,9) -> 1 | 0 | 2 | BJ27: 11 | BL27: =INDEX(tabber!$A$335:$A$358,BJ27) -> 3 | BM27: =MATCH(AT27,teams,0) -> 10 | BQ27: D | BR27: VD | BT27: =IF(LEN(BS27)=0,0,SUMIF(daten!$B$6:$B$29,"="&BS27,daten!$J$6:$J$29)) -> 0 | BW27: 26 | BX27: 26 | BY27: 0
B28: 17 | C28: B4 | D28: =MATCH(C28,daten!$D$49:$D$84,0) -> 17 | E28: 1 | F28: 2 | H28: =INDEX(daten!$L$106:$L$157,D28) -> 17.06. | K28: =INDEX(daten!$K$106:$K$157,D28) -> 18:00 | N28: =INDEX(daten!$B$106:$B$141,D28) -> Kopenhagen | T28: =INDEX(daten!$C$49:$C$100,D28) -> B | V28: =INDEX(daten!$K$49:$K$84,D28)&" ("&INDEX(daten!$M$49:$M$84,D28)&")" -> Dänemark (DEN) | AB28: : | AC28: =INDEX(daten!$L$49:$L$84,D28)&" ("&INDEX(daten!$N$49:$N$84,D28)&")" -> Belgien (BEL) | AI28: 1 | AJ28: : | AK28: 2 | AL28: =INDEX(daten!$AD$49:$AD$100,D28) -> (1 : 0) | AS28: =IF(SUM(BD25:BD28)=0,"",IF(BL28=BL27,"",BL28)) -> 4 | AT28: =UPPER(INDEX(tabber!$P$335:$P$358,BJ28)) -> NORDMAZEDONIEN | AZ28: =INDEX(tabber!$E$335:$M$358,BJ28,4)&" : "&INDEX(tabber!$E$335:$M$358,BJ28,5) -> 2 : 8 | BB28: =INDEX(tabber!$E$335:$M$358,BJ28,6) -> -6 | BD28: =INDEX(tabber!$E$335:$M$358,BJ28,3) -> 0 | BE28: =INDEX(tabber!$E$335:$M$358,BJ28,7) &" | " &INDEX(tabber!$E$335:$M$358,BJ28,8)&" | " &INDEX(tabber!$E$335:$M$358,BJ28,9) -> 0 | 0 | 3 | BJ28: 12 | BL28: =INDEX(tabber!$A$335:$A$358,BJ28) -> 4 | BM28: =MATCH(AT28,teams,0) -> 12 | BQ28: E | BR28: SE | BT28: =IF(LEN(BS28)=0,0,SUMIF(daten!$B$6:$B$29,"="&BS28,daten!$J$6:$J$29)) -> 0 | BW28: 28 | BX28: 28 | BY28: 0
B29: 18 | C29: C4 | D29: =MATCH(C29,daten!$D$49:$D$84,0) -> 18 | E29: 2 | F29: 0 | H29: =INDEX(daten!$L$106:$L$157,D29) -> 17.06. | K29: =INDEX(daten!$K$106:$K$157,D29) -> 21:00 | N29: =INDEX(daten!$B$106:$B$141,D29) -> Amsterdam | T29: =INDEX(daten!$C$49:$C$100,D29) -> C | V29: =INDEX(daten!$K$49:$K$84,D29)&" ("&INDEX(daten!$M$49:$M$84,D29)&")" -> Niederlande (NED) | AB29: : | AC29: =INDEX(daten!$L$49:$L$84,D29)&" ("&INDEX(daten!$N$49:$N$84,D29)&")" -> Österreich (AUT) | AI29: 2 | AJ29: : | AK29: 0 | AL29: =INDEX(daten!$AD$49:$AD$100,D29) -> (1 : 0) | BQ29: E | BR29: ZE | BT29: =IF(LEN(BS29)=0,0,SUMIF(daten!$B$6:$B$29,"="&BS29,daten!$J$6:$J$29)) -> 0 | BV29: D | BW29: 29 | BX29: 29 | BY29: 0
B30: 19 | C30: E3 | D30: =MATCH(C30,daten!$D$49:$D$84,0) -> 19 | E30: 1 | F30: 0 | H30: =INDEX(daten!$L$106:$L$157,D30) -> 18.06. | K30: =INDEX(daten!$K$106:$K$157,D30) -> 15:00 | N30: =INDEX(daten!$B$106:$B$141,D30) -> St. Petersburg | T30: =INDEX(daten!$C$49:$C$100,D30) -> E | V30: =INDEX(daten!$K$49:$K$84,D30)&" ("&INDEX(daten!$M$49:$M$84,D30)&")" -> Schweden (SWE) | AB30: : | AC30: =INDEX(daten!$L$49:$L$84,D30)&" ("&INDEX(daten!$N$49:$N$84,D30)&")" -> Slowakei (SVK) | AI30: 1 | AJ30: : | AK30: 0 | AL30: =INDEX(daten!$AD$49:$AD$100,D30) -> (0 : 0) | AR30: D | AS30: London & Glasgow | AZ30: Tore | BB30: Diff. | BD30: P | BE30: S | U | N | BQ30: E | BR30: DE | BT30: =IF(LEN(BS30)=0,0,SUMIF(daten!$B$6:$B$29,"="&BS30,daten!$J$6:$J$29)) -> 0 | BV30: D | BW30: 30 | BX30: 30 | BY30: 0
B31: 20 | C31: D3 | D31: =MATCH(C31,daten!$D$49:$D$84,0) -> 20 | E31: 1 | F31: 1 | H31: =INDEX(daten!$L$106:$L$157,D31) -> 18.06. | K31: =INDEX(daten!$K$106:$K$157,D31) -> 18:00 | N31: =INDEX(daten!$B$106:$B$141,D31) -> Glasgow | T31: =INDEX(daten!$C$49:$C$100,D31) -> D | V31: =INDEX(daten!$K$49:$K$84,D31)&" ("&INDEX(daten!$M$49:$M$84,D31)&")" -> Kroatien (CRO) | AB31: : | AC31: =INDEX(daten!$L$49:$L$84,D31)&" ("&INDEX(daten!$N$49:$N$84,D31)&")" -> Tschechien (CZE) | AI31: 1 | AJ31: : | AK31: 1 | AL31: =INDEX(daten!$AD$49:$AD$100,D31) -> (0 : 1) | AS31: =IF(SUM(BD31:BD34)=0,"",IF(BL31=BL30,"",BL31)) -> 1 | AT31: =UPPER(INDEX(tabber!$P$335:$P$358,BJ31)) -> ENGLAND | AZ31: =INDEX(tabber!$E$335:$M$358,BJ31,4)&" : "&INDEX(tabber!$E$335:$M$358,BJ31,5) -> 2 : 0 | BB31: =INDEX(tabber!$E$335:$M$358,BJ31,6) -> 2 | BD31: =INDEX(tabber!$E$335:$M$358,BJ31,3) -> 7 | BE31: =INDEX(tabber!$E$335:$M$358,BJ31,7) &" | " &INDEX(tabber!$E$335:$M$358,BJ31,8)&" | " &INDEX(tabber!$E$335:$M$358,BJ31,9) -> 2 | 1 | 0 | BJ31: 13 | BL31: =INDEX(tabber!$A$335:$A$358,BJ31) -> 1 | BM31: =MATCH(AT31,teams,0) -> 13 | BQ31: E | BR31: VE | BT31: =IF(LEN(BS31)=0,0,SUMIF(daten!$B$6:$B$29,"="&BS31,daten!$J$6:$J$29)) -> 0 | BW31: 31 | BX31: 31 | BY31: 0
B32: 21 | C32: D4 | D32: =MATCH(C32,daten!$D$49:$D$84,0) -> 21 | E32: 0 | F32: 0 | H32: =INDEX(daten!$L$106:$L$157,D32) -> 18.06. | K32: =INDEX(daten!$K$106:$K$157,D32) -> 21:00 | N32: =INDEX(daten!$B$106:$B$141,D32) -> London | T32: =INDEX(daten!$C$49:$C$100,D32) -> D | V32: =INDEX(daten!$K$49:$K$84,D32)&" ("&INDEX(daten!$M$49:$M$84,D32)&")" -> England (ENG) | AB32: : | AC32: =INDEX(daten!$L$49:$L$84,D32)&" ("&INDEX(daten!$N$49:$N$84,D32)&")" -> Schottland (SCO) | AI32: 0 | AJ32: : | AK32: 0 | AL32: =INDEX(daten!$AD$49:$AD$100,D32) -> (0 : 0) | AS32: =IF(SUM(BD31:BD34)=0,"",IF(BL32=BL31,"",BL32)) -> 2 | AT32: =UPPER(INDEX(tabber!$P$335:$P$358,BJ32)) -> KROATIEN | AZ32: =INDEX(tabber!$E$335:$M$358,BJ32,4)&" : "&INDEX(tabber!$E$335:$M$358,BJ32,5) -> 4 : 3 | BB32: =INDEX(tabber!$E$335:$M$358,BJ32,6) -> 1 | BD32: =INDEX(tabber!$E$335:$M$358,BJ32,3) -> 4 | BE32: =INDEX(tabber!$E$335:$M$358,BJ32,7) &" | " &INDEX(tabber!$E$335:$M$358,BJ32,8)&" | " &INDEX(tabber!$E$335:$M$358,BJ32,9) -> 1 | 1 | 1 | BJ32: 14 | BL32: =INDEX(tabber!$A$335:$A$358,BJ32) -> 2 | BM32: =MATCH(AT32,teams,0) -> 14 | BQ32: F | BR32: SF | BT32: =IF(LEN(BS32)=0,0,SUMIF(daten!$B$6:$B$29,"="&BS32,daten!$J$6:$J$29)) -> 0 | BW32: 32 | BX32: 32 | BY32: 0
B33: 22 | C33: F3 | D33: =MATCH(C33,daten!$D$49:$D$84,0) -> 22 | E33: 1 | F33: 1 | H33: =INDEX(daten!$L$106:$L$157,D33) -> 19.06. | K33: =INDEX(daten!$K$106:$K$157,D33) -> 15:00 | N33: =INDEX(daten!$B$106:$B$141,D33) -> Budapest | T33: =INDEX(daten!$C$49:$C$100,D33) -> F | V33: =INDEX(daten!$K$49:$K$84,D33)&" ("&INDEX(daten!$M$49:$M$84,D33)&")" -> Ungarn (HUN) | AB33: : | AC33: =INDEX(daten!$L$49:$L$84,D33)&" ("&INDEX(daten!$N$49:$N$84,D33)&")" -> Frankreich (FRA) | AI33: 1 | AJ33: : | AK33: 1 | AL33: =INDEX(daten!$AD$49:$AD$100,D33) -> (1 : 0) | AS33: =IF(SUM(BD31:BD34)=0,"",IF(BL33=BL32,"",BL33)) -> 3 | AT33: =UPPER(INDEX(tabber!$P$335:$P$358,BJ33)) -> TSCHECHIEN | AZ33: =INDEX(tabber!$E$335:$M$358,BJ33,4)&" : "&INDEX(tabber!$E$335:$M$358,BJ33,5) -> 3 : 2 | BB33: =INDEX(tabber!$E$335:$M$358,BJ33,6) -> 1 | BD33: =INDEX(tabber!$E$335:$M$358,BJ33,3) -> 4 | BE33: =INDEX(tabber!$E$335:$M$358,BJ33,7) &" | " &INDEX(tabber!$E$335:$M$358,BJ33,8)&" | " &INDEX(tabber!$E$335:$M$358,BJ33,9) -> 1 | 1 | 1 | BJ33: 15 | BL33: =INDEX(tabber!$A$335:$A$358,BJ33) -> 3 | BM33: =MATCH(AT33,teams,0) -> 16 | BQ33: F | BR33: ZF | BT33: =IF(LEN(BS33)=0,0,SUMIF(daten!$B$6:$B$29,"="&BS33,daten!$J$6:$J$29)) -> 0 | BW33: 34 | BX33: 34 | BY33: 0
B34: 23 | C34: F4 | D34: =MATCH(C34,daten!$D$49:$D$84,0) -> 23 | E34: 2 | F34: 4 | H34: =INDEX(daten!$L$106:$L$157,D34) -> 19.06. | K34: =INDEX(daten!$K$106:$K$157,D34) -> 18:00 | N34: =INDEX(daten!$B$106:$B$141,D34) -> München | T34: =INDEX(daten!$C$49:$C$100,D34) -> F | V34: =INDEX(daten!$K$49:$K$84,D34)&" ("&INDEX(daten!$M$49:$M$84,D34)&")" -> Portugal (POR) | AB34: : | AC34: =INDEX(daten!$L$49:$L$84,D34)&" ("&INDEX(daten!$N$49:$N$84,D34)&")" -> Deutschland (GER) | AI34: 2 | AJ34: : | AK34: 4 | AL34: =INDEX(daten!$AD$49:$AD$100,D34) -> (1 : 2) | AS34: =IF(SUM(BD31:BD34)=0,"",IF(BL34=BL33,"",BL34)) -> 4 | AT34: =UPPER(INDEX(tabber!$P$335:$P$358,BJ34)) -> SCHOTTLAND | AZ34: =INDEX(tabber!$E$335:$M$358,BJ34,4)&" : "&INDEX(tabber!$E$335:$M$358,BJ34,5) -> 1 : 5 | BB34: =INDEX(tabber!$E$335:$M$358,BJ34,6) -> -4 | BD34: =INDEX(tabber!$E$335:$M$358,BJ34,3) -> 1 | BE34: =INDEX(tabber!$E$335:$M$358,BJ34,7) &" | " &INDEX(tabber!$E$335:$M$358,BJ34,8)&" | " &INDEX(tabber!$E$335:$M$358,BJ34,9) -> 0 | 1 | 2 | BJ34: 16 | BL34: =INDEX(tabber!$A$335:$A$358,BJ34) -> 4 | BM34: =MATCH(AT34,teams,0) -> 15 | BQ34: F | BR34: DF | BT34: =IF(LEN(BS34)=0,0,SUMIF(daten!$B$6:$B$29,"="&BS34,daten!$J$6:$J$29)) -> 0 | BW34: 33 | BX34: 33 | BY34: 0
B35: 24 | C35: E4 | D35: =MATCH(C35,daten!$D$49:$D$84,0) -> 24 | E35: 1 | F35: 1 | H35: =INDEX(daten!$L$106:$L$157,D35) -> 19.06. | K35: =INDEX(daten!$K$106:$K$157,D35) -> 21:00 | N35: =INDEX(daten!$B$106:$B$141,D35) -> Sevilla | T35: =INDEX(daten!$C$49:$C$100,D35) -> E | V35: =INDEX(daten!$K$49:$K$84,D35)&" ("&INDEX(daten!$M$49:$M$84,D35)&")" -> Spanien (ESP) | AB35: : | AC35: =INDEX(daten!$L$49:$L$84,D35)&" ("&INDEX(daten!$N$49:$N$84,D35)&")" -> Polen (POL) | AI35: 1 | AJ35: : | AK35: 1 | AL35: =INDEX(daten!$AD$49:$AD$100,D35) -> (1 : 0) | AO35: =IF(tabber!R265>0,"EMS GR","") ->  | BQ35: F | BR35: VF | BT35: =IF(LEN(BS35)=0,0,SUMIF(daten!$B$6:$B$29,"="&BS35,daten!$J$6:$J$29)) -> 0 | BV35: E | BW35: 35 | BX35: 35 | BY35: 0
B36: 25 | C36: A5 | D36: =MATCH(C36,daten!$D$49:$D$84,0) -> 25 | E36: 3 | F36: 1 | H36: =INDEX(daten!$L$106:$L$157,D36) -> 20.06. | K36: =INDEX(daten!$K$106:$K$157,D36) -> 18:00 | N36: =INDEX(daten!$B$106:$B$141,D36) -> Baku | T36: =INDEX(daten!$C$49:$C$100,D36) -> A | V36: =INDEX(daten!$K$49:$K$84,D36)&" ("&INDEX(daten!$M$49:$M$84,D36)&")" -> Schweiz (SUI) | AB36: : | AC36: =INDEX(daten!$L$49:$L$84,D36)&" ("&INDEX(daten!$N$49:$N$84,D36)&")" -> Türkei (TUR) | AI36: 3 | AJ36: : | AK36: 1 | AL36: =INDEX(daten!$AD$49:$AD$100,D36) -> (2 : 0) | AP36: =IF(tabber!M266,":","") ->  | AR36: E | AS36: St. Petersburg & Sevilla | AZ36: Tore | BB36: Diff. | BD36: P | BE36: S | U | N | BV36: E | BW36: 36 | BX36: 36 | BY36: 0
B37: 26 | C37: A6 | D37: =MATCH(C37,daten!$D$49:$D$84,0) -> 26 | E37: 1 | F37: 0 | H37: =INDEX(daten!$L$106:$L$157,D37) -> 20.06. | K37: =INDEX(daten!$K$106:$K$157,D37) -> 18:00 | N37: =INDEX(daten!$B$106:$B$141,D37) -> Rom | T37: =INDEX(daten!$C$49:$C$100,D37) -> A | V37: =INDEX(daten!$K$49:$K$84,D37)&" ("&INDEX(daten!$M$49:$M$84,D37)&")" -> Italien (ITA) | AB37: : | AC37: =INDEX(daten!$L$49:$L$84,D37)&" ("&INDEX(daten!$N$49:$N$84,D37)&")" -> Wales (WAL) | AI37: 1 | AJ37: : | AK37: 0 | AL37: =INDEX(daten!$AD$49:$AD$100,D37) -> (1 : 0) | AP37: =IF(tabber!M267,":","") ->  | AS37: =IF(SUM(BD37:BD40)=0,"",IF(BL37=BL36,"",BL37)) -> 1 | AT37: =UPPER(INDEX(tabber!$P$335:$P$358,BJ37)) -> SCHWEDEN | AZ37: =INDEX(tabber!$E$335:$M$358,BJ37,4)&" : "&INDEX(tabber!$E$335:$M$358,BJ37,5) -> 4 : 2 | BB37: =INDEX(tabber!$E$335:$M$358,BJ37,6) -> 2 | BD37: =INDEX(tabber!$E$335:$M$358,BJ37,3) -> 7 | BE37: =INDEX(tabber!$E$335:$M$358,BJ37,7) &" | " &INDEX(tabber!$E$335:$M$358,BJ37,8)&" | " &INDEX(tabber!$E$335:$M$358,BJ37,9) -> 2 | 1 | 0 | BJ37: 17 | BL37: =INDEX(tabber!$A$335:$A$358,BJ37) -> 1 | BM37: =MATCH(AT37,teams,0) -> 18 | BR37: Gruppe manuell | BS37: Dritter qualifiziert | BT37: =COUNTIF(BT38:BT45,"<99")=4 -> FALSE | BW37: 38 | BX37: 38 | BY37: 0
B38: 27 | C38: C5 | D38: =MATCH(C38,daten!$D$49:$D$84,0) -> 27 | E38: 0 | F38: 3 | H38: =INDEX(daten!$L$106:$L$157,D38) -> 21.06. | K38: =INDEX(daten!$K$106:$K$157,D38) -> 18:00 | N38: =INDEX(daten!$B$106:$B$141,D38) -> Amsterdam | T38: =INDEX(daten!$C$49:$C$100,D38) -> C | V38: =INDEX(daten!$K$49:$K$84,D38)&" ("&INDEX(daten!$M$49:$M$84,D38)&")" -> Nordmazedonien (MKD) | AB38: : | AC38: =INDEX(daten!$L$49:$L$84,D38)&" ("&INDEX(daten!$N$49:$N$84,D38)&")" -> Niederlande (NED) | AI38: 0 | AJ38: : | AK38: 3 | AL38: =INDEX(daten!$AD$49:$AD$100,D38) -> (0 : 1) | AP38: =IF(tabber!M268,":","") ->  | AS38: =IF(SUM(BD37:BD40)=0,"",IF(BL38=BL37,"",BL38)) -> 2 | AT38: =UPPER(INDEX(tabber!$P$335:$P$358,BJ38)) -> SPANIEN | AZ38: =INDEX(tabber!$E$335:$M$358,BJ38,4)&" : "&INDEX(tabber!$E$335:$M$358,BJ38,5) -> 6 : 1 | BB38: =INDEX(tabber!$E$335:$M$358,BJ38,6) -> 5 | BD38: =INDEX(tabber!$E$335:$M$358,BJ38,3) -> 5 | BE38: =INDEX(tabber!$E$335:$M$358,BJ38,7) &" | " &INDEX(tabber!$E$335:$M$358,BJ38,8)&" | " &INDEX(tabber!$E$335:$M$358,BJ38,9) -> 1 | 2 | 0 | BJ38: 18 | BL38: =INDEX(tabber!$A$335:$A$358,BJ38) -> 2 | BM38: =MATCH(AT38,teams,0) -> 17 | BP38: 1 | BQ38: A | BR38: =SUM(IF($BQ$12:$BQ$35=BQ38,IF($BT$12:$BT$35>0,1,0)))=4 -> FALSE | BT38: =IF(LEN(BS38)=0,99,IF(BS38,BP38,99)) -> 99 | BW38: 37 | BX38: 37 | BY38: 0
B39: 28 | C39: C6 | D39: =MATCH(C39,daten!$D$49:$D$84,0) -> 28 | E39: 0 | F39: 1 | H39: =INDEX(daten!$L$106:$L$157,D39) -> 21.06. | K39: =INDEX(daten!$K$106:$K$157,D39) -> 18:00 | N39: =INDEX(daten!$B$106:$B$141,D39) -> Bukarest | T39: =INDEX(daten!$C$49:$C$100,D39) -> C | V39: =INDEX(daten!$K$49:$K$84,D39)&" ("&INDEX(daten!$M$49:$M$84,D39)&")" -> Ukraine (UKR) | AB39: : | AC39: =INDEX(daten!$L$49:$L$84,D39)&" ("&INDEX(daten!$N$49:$N$84,D39)&")" -> Österreich (AUT) | AI39: 0 | AJ39: : | AK39: 1 | AL39: =INDEX(daten!$AD$49:$AD$100,D39) -> (0 : 1) | AP39: =IF(tabber!M269,":","") ->  | AS39: =IF(SUM(BD37:BD40)=0,"",IF(BL39=BL38,"",BL39)) -> 3 | AT39: =UPPER(INDEX(tabber!$P$335:$P$358,BJ39)) -> SLOWAKEI | AZ39: =INDEX(tabber!$E$335:$M$358,BJ39,4)&" : "&INDEX(tabber!$E$335:$M$358,BJ39,5) -> 2 : 7 | BB39: =INDEX(tabber!$E$335:$M$358,BJ39,6) -> -5 | BD39: =INDEX(tabber!$E$335:$M$358,BJ39,3) -> 3 | BE39: =INDEX(tabber!$E$335:$M$358,BJ39,7) &" | " &INDEX(tabber!$E$335:$M$358,BJ39,8)&" | " &INDEX(tabber!$E$335:$M$358,BJ39,9) -> 1 | 0 | 2 | BJ39: 19 | BL39: =INDEX(tabber!$A$335:$A$358,BJ39) -> 3 | BM39: =MATCH(AT39,teams,0) -> 20 | BP39: 2 | BQ39: B | BR39: =SUM(IF($BQ$12:$BQ$35=BQ39,IF($BT$12:$BT$35>0,1,0)))=4 -> FALSE | BT39: 99 | BW39: 40 | BX39: 40 | BY39: 0
B40: 29 | C40: B5 | D40: =MATCH(C40,daten!$D$49:$D$84,0) -> 29 | E40: 1 | F40: 4 | H40: =INDEX(daten!$L$106:$L$157,D40) -> 21.06. | K40: =INDEX(daten!$K$106:$K$157,D40) -> 21:00 | N40: =INDEX(daten!$B$106:$B$141,D40) -> Kopenhagen | T40: =INDEX(daten!$C$49:$C$100,D40) -> B | V40: =INDEX(daten!$K$49:$K$84,D40)&" ("&INDEX(daten!$M$49:$M$84,D40)&")" -> Russland (RUS) | AB40: : | AC40: =INDEX(daten!$L$49:$L$84,D40)&" ("&INDEX(daten!$N$49:$N$84,D40)&")" -> Dänemark (DEN) | AI40: 1 | AJ40: : | AK40: 4 | AL40: =INDEX(daten!$AD$49:$AD$100,D40) -> (0 : 1) | AP40: =IF(tabber!M270,":","") ->  | AS40: =IF(SUM(BD37:BD40)=0,"",IF(BL40=BL39,"",BL40)) -> 4 | AT40: =UPPER(INDEX(tabber!$P$335:$P$358,BJ40)) -> POLEN | AZ40: =INDEX(tabber!$E$335:$M$358,BJ40,4)&" : "&INDEX(tabber!$E$335:$M$358,BJ40,5) -> 4 : 6 | BB40: =INDEX(tabber!$E$335:$M$358,BJ40,6) -> -2 | BD40: =INDEX(tabber!$E$335:$M$358,BJ40,3) -> 1 | BE40: =INDEX(tabber!$E$335:$M$358,BJ40,7) &" | " &INDEX(tabber!$E$335:$M$358,BJ40,8)&" | " &INDEX(tabber!$E$335:$M$358,BJ40,9) -> 0 | 1 | 2 | BJ40: 20 | BL40: =INDEX(tabber!$A$335:$A$358,BJ40) -> 4 | BM40: =MATCH(AT40,teams,0) -> 19 | BP40: 3 | BQ40: C | BR40: =SUM(IF($BQ$12:$BQ$35=BQ40,IF($BT$12:$BT$35>0,1,0)))=4 -> FALSE | BT40: 99 | BW40: 39 | BX40: 39 | BY40: 0
B41: 30 | C41: B6 | D41: =MATCH(C41,daten!$D$49:$D$84,0) -> 30 | E41: 0 | F41: 2 | H41: =INDEX(daten!$L$106:$L$157,D41) -> 21.06. | K41: =INDEX(daten!$K$106:$K$157,D41) -> 21:00 | N41: =INDEX(daten!$B$106:$B$141,D41) -> St. Petersburg | T41: =INDEX(daten!$C$49:$C$100,D41) -> B | V41: =INDEX(daten!$K$49:$K$84,D41)&" ("&INDEX(daten!$M$49:$M$84,D41)&")" -> Finnland (FIN) | AB41: : | AC41: =INDEX(daten!$L$49:$L$84,D41)&" ("&INDEX(daten!$N$49:$N$84,D41)&")" -> Belgien (BEL) | AI41: 0 | AJ41: : | AK41: 2 | AL41: =INDEX(daten!$AD$49:$AD$100,D41) -> (0 : 0) | AP41: =IF(tabber!M271,":","") ->  | BP41: 4 | BQ41: D | BR41: =SUM(IF($BQ$12:$BQ$35=BQ41,IF($BT$12:$BT$35>0,1,0)))=4 -> FALSE | BT41: 99 | BV41: F | BW41: 41 | BX41: 41 | BY41: 0
B42: 31 | C42: D5 | D42: =MATCH(C42,daten!$D$49:$D$84,0) -> 31 | E42: 3 | F42: 1 | H42: =INDEX(daten!$L$106:$L$157,D42) -> 22.06. | K42: =INDEX(daten!$K$106:$K$157,D42) -> 21:00 | N42: =INDEX(daten!$B$106:$B$141,D42) -> Glasgow | T42: =INDEX(daten!$C$49:$C$100,D42) -> D | V42: =INDEX(daten!$K$49:$K$84,D42)&" ("&INDEX(daten!$M$49:$M$84,D42)&")" -> Kroatien (CRO) | AB42: : | AC42: =INDEX(daten!$L$49:$L$84,D42)&" ("&INDEX(daten!$N$49:$N$84,D42)&")" -> Schottland (SCO) | AI42: 3 | AJ42: : | AK42: 1 | AL42: =INDEX(daten!$AD$49:$AD$100,D42) -> (1 : 1) | AP42: =IF(tabber!M272,":","") ->  | AR42: F | AS42: München & Budapest | AZ42: Tore | BB42: Diff. | BD42: P | BE42: S | U | N | BP42: 5 | BQ42: E | BR42: =SUM(IF($BQ$12:$BQ$35=BQ42,IF($BT$12:$BT$35>0,1,0)))=4 -> FALSE | BT42: 99 | BV42: F | BW42: 42 | BX42: 42 | BY42: 0
B43: 32 | C43: D6 | D43: =MATCH(C43,daten!$D$49:$D$84,0) -> 32 | E43: 0 | F43: 1 | H43: =INDEX(daten!$L$106:$L$157,D43) -> 22.06. | K43: =INDEX(daten!$K$106:$K$157,D43) -> 21:00 | N43: =INDEX(daten!$B$106:$B$141,D43) -> London | T43: =INDEX(daten!$C$49:$C$100,D43) -> D | V43: =INDEX(daten!$K$49:$K$84,D43)&" ("&INDEX(daten!$M$49:$M$84,D43)&")" -> Tschechien (CZE) | AB43: : | AC43: =INDEX(daten!$L$49:$L$84,D43)&" ("&INDEX(daten!$N$49:$N$84,D43)&")" -> England (ENG) | AI43: 0 | AJ43: : | AK43: 1 | AL43: =INDEX(daten!$AD$49:$AD$100,D43) -> (0 : 1) | AP43: =IF(tabber!M273,":","") ->  | AS43: =IF(SUM(BD43:BD46)=0,"",IF(BL43=BL42,"",BL43)) -> 1 | AT43: =UPPER(INDEX(tabber!$P$335:$P$358,BJ43)) -> FRANKREICH | AZ43: =INDEX(tabber!$E$335:$M$358,BJ43,4)&" : "&INDEX(tabber!$E$335:$M$358,BJ43,5) -> 4 : 3 | BB43: =INDEX(tabber!$E$335:$M$358,BJ43,6) -> 1 | BD43: =INDEX(tabber!$E$335:$M$358,BJ43,3) -> 5 | BE43: =INDEX(tabber!$E$335:$M$358,BJ43,7) &" | " &INDEX(tabber!$E$335:$M$358,BJ43,8)&" | " &INDEX(tabber!$E$335:$M$358,BJ43,9) -> 1 | 2 | 0 | BJ43: 21 | BL43: =INDEX(tabber!$A$335:$A$358,BJ43) -> 1 | BM43: =MATCH(AT43,teams,0) -> 23 | BP43: 6 | BQ43: F | BR43: =SUM(IF($BQ$12:$BQ$35=BQ43,IF($BT$12:$BT$35>0,1,0)))=4 -> FALSE | BT43: 99 | BW43: 46 | BX43: 46 | BY43: 0
B44: 33 | C44: E5 | D44: =MATCH(C44,daten!$D$49:$D$84,0) -> 33 | E44: 0 | F44: 5 | H44: =INDEX(daten!$L$106:$L$157,D44) -> 23.06. | K44: =INDEX(daten!$K$106:$K$157,D44) -> 18:00 | N44: =INDEX(daten!$B$106:$B$141,D44) -> Sevilla | T44: =INDEX(daten!$C$49:$C$100,D44) -> E | V44: =INDEX(daten!$K$49:$K$84,D44)&" ("&INDEX(daten!$M$49:$M$84,D44)&")" -> Slowakei (SVK) | AB44: : | AC44: =INDEX(daten!$L$49:$L$84,D44)&" ("&INDEX(daten!$N$49:$N$84,D44)&")" -> Spanien (ESP) | AI44: 0 | AJ44: : | AK44: 5 | AL44: =INDEX(daten!$AD$49:$AD$100,D44) -> (0 : 2) | AP44: =IF(tabber!M274,":","") ->  | AS44: =IF(SUM(BD43:BD46)=0,"",IF(BL44=BL43,"",BL44)) -> 2 | AT44: =UPPER(INDEX(tabber!$P$335:$P$358,BJ44)) -> DEUTSCHLAND | AZ44: =INDEX(tabber!$E$335:$M$358,BJ44,4)&" : "&INDEX(tabber!$E$335:$M$358,BJ44,5) -> 6 : 5 | BB44: =INDEX(tabber!$E$335:$M$358,BJ44,6) -> 1 | BD44: =INDEX(tabber!$E$335:$M$358,BJ44,3) -> 4 | BE44: =INDEX(tabber!$E$335:$M$358,BJ44,7) &" | " &INDEX(tabber!$E$335:$M$358,BJ44,8)&" | " &INDEX(tabber!$E$335:$M$358,BJ44,9) -> 1 | 1 | 1 | BJ44: 22 | BL44: =INDEX(tabber!$A$335:$A$358,BJ44) -> 2 | BM44: =MATCH(AT44,teams,0) -> 24 | BP44: 7 | BQ44: G | BR44: =SUM(IF($BQ$12:$BQ$35=BQ44,IF($BT$12:$BT$35>0,1,0)))=4 -> FALSE | BT44: 99 | BW44: 45 | BX44: 45 | BY44: 0
B45: 34 | C45: E6 | D45: =MATCH(C45,daten!$D$49:$D$84,0) -> 34 | E45: 3 | F45: 2 | H45: =INDEX(daten!$L$106:$L$157,D45) -> 23.06. | K45: =INDEX(daten!$K$106:$K$157,D45) -> 18:00 | N45: =INDEX(daten!$B$106:$B$141,D45) -> St. Petersburg | T45: =INDEX(daten!$C$49:$C$100,D45) -> E | V45: =INDEX(daten!$K$49:$K$84,D45)&" ("&INDEX(daten!$M$49:$M$84,D45)&")" -> Schweden (SWE) | AB45: : | AC45: =INDEX(daten!$L$49:$L$84,D45)&" ("&INDEX(daten!$N$49:$N$84,D45)&")" -> Polen (POL) | AI45: 3 | AJ45: : | AK45: 2 | AL45: =INDEX(daten!$AD$49:$AD$100,D45) -> (1 : 0) | AP45: =IF(tabber!M275,":","") ->  | AS45: =IF(SUM(BD43:BD46)=0,"",IF(BL45=BL44,"",BL45)) -> 3 | AT45: =UPPER(INDEX(tabber!$P$335:$P$358,BJ45)) -> PORTUGAL | AZ45: =INDEX(tabber!$E$335:$M$358,BJ45,4)&" : "&INDEX(tabber!$E$335:$M$358,BJ45,5) -> 7 : 6 | BB45: =INDEX(tabber!$E$335:$M$358,BJ45,6) -> 1 | BD45: =INDEX(tabber!$E$335:$M$358,BJ45,3) -> 4 | BE45: =INDEX(tabber!$E$335:$M$358,BJ45,7) &" | " &INDEX(tabber!$E$335:$M$358,BJ45,8)&" | " &INDEX(tabber!$E$335:$M$358,BJ45,9) -> 1 | 1 | 1 | BJ45: 23 | BL45: =INDEX(tabber!$A$335:$A$358,BJ45) -> 3 | BM45: =MATCH(AT45,teams,0) -> 22 | BP45: 8 | BQ45: H | BR45: =SUM(IF($BQ$12:$BQ$35=BQ45,IF($BT$12:$BT$35>0,1,0)))=4 -> FALSE | BT45: 99 | BW45: 43 | BX45: 43 | BY45: 0
B46: 35 | C46: F5 | D46: =MATCH(C46,daten!$D$49:$D$84,0) -> 35 | E46: 2 | F46: 2 | H46: =INDEX(daten!$L$106:$L$157,D46) -> 23.06. | K46: =INDEX(daten!$K$106:$K$157,D46) -> 21:00 | N46: =INDEX(daten!$B$106:$B$141,D46) -> Budapest | T46: =INDEX(daten!$C$49:$C$100,D46) -> F | V46: =INDEX(daten!$K$49:$K$84,D46)&" ("&INDEX(daten!$M$49:$M$84,D46)&")" -> Portugal (POR) | AB46: : | AC46: =INDEX(daten!$L$49:$L$84,D46)&" ("&INDEX(daten!$N$49:$N$84,D46)&")" -> Frankreich (FRA) | AI46: 2 | AJ46: : | AK46: 2 | AL46: =INDEX(daten!$AD$49:$AD$100,D46) -> (1 : 1) | AP46: =IF(tabber!M276,":","") ->  | AS46: =IF(SUM(BD43:BD46)=0,"",IF(BL46=BL45,"",BL46)) -> 4 | AT46: =UPPER(INDEX(tabber!$P$335:$P$358,BJ46)) -> UNGARN | AZ46: =INDEX(tabber!$E$335:$M$358,BJ46,4)&" : "&INDEX(tabber!$E$335:$M$358,BJ46,5) -> 3 : 6 | BB46: =INDEX(tabber!$E$335:$M$358,BJ46,6) -> -3 | BD46: =INDEX(tabber!$E$335:$M$358,BJ46,3) -> 2 | BE46: =INDEX(tabber!$E$335:$M$358,BJ46,7) &" | " &INDEX(tabber!$E$335:$M$358,BJ46,8)&" | " &INDEX(tabber!$E$335:$M$358,BJ46,9) -> 0 | 2 | 1 | BJ46: 24 | BL46: =INDEX(tabber!$A$335:$A$358,BJ46) -> 4 | BM46: =MATCH(AT46,teams,0) -> 21 | BW46: 44 | BX46: 44 | BY46: 0
B47: 36 | C47: F6 | D47: =MATCH(C47,daten!$D$49:$D$84,0) -> 36 | E47: 2 | F47: 2 | H47: =INDEX(daten!$L$106:$L$157,D47) -> 23.06. | K47: =INDEX(daten!$K$106:$K$157,D47) -> 21:00 | N47: =INDEX(daten!$B$106:$B$141,D47) -> München | T47: =INDEX(daten!$C$49:$C$100,D47) -> F | V47: =INDEX(daten!$K$49:$K$84,D47)&" ("&INDEX(daten!$M$49:$M$84,D47)&")" -> Deutschland (GER) | AB47: : | AC47: =INDEX(daten!$L$49:$L$84,D47)&" ("&INDEX(daten!$N$49:$N$84,D47)&")" -> Ungarn (HUN) | AI47: 2 | AJ47: : | AK47: 2 | AL47: =INDEX(daten!$AD$49:$AD$100,D47) -> (0 : 1) | AP47: =IF(tabber!M277,":","") -> 
H49: =IF(LEN(AO35)>0,BR49,"") ->  | BR49: EMS GR: Ein Elfmeterschießen entscheidet über die Platzierung, wenn Teams, die am 3. Spieltag aufeinander treffen, gegeneinander Remis spielen, nach diesem Spiel punkt- und torgleich sind und kein weiteres Team der Gruppe die gleiche Punktzahl aufweist
H51: KO-Runde | M51: Ergebnis nach der regulären Spielzeit | X51: Ergebnis DER Verlängerung | AG51: Ergebnis DES Elfmeterschießens | BI51: ?
I52: =INDEX(daten!$B$106:$B$157,36+M59) -> Sevilla | O52: =INDEX(daten!$B$106:$B$157,36+N59) -> London | V52: =INDEX(daten!$B$106:$B$157,36+Z59) -> Bukarest | AB52: =INDEX(daten!$B$106:$B$157,36+AA59) -> Kopenhagen | AI52: =INDEX(daten!$B$106:$B$157,36+AM59) -> Glasgow | AO52: =INDEX(daten!$B$106:$B$157,36+AN59) -> London | AV52: =INDEX(daten!$B$106:$B$157,36+AZ59) -> Budapest | BB52: =INDEX(daten!$B$106:$B$157,36+BA59) -> Amsterdam | BR52: GR Manuell BR54:BR76 für Import in Formulare
H53: =INDEX(daten!$O$106:$O$157,36+M59) -> So.. 27.06., 21:00 | M53: AF | S53: =INDEX(daten!$O$106:$O$157,36+N59) -> Sa.. 26.06., 21:00 | U53: =INDEX(daten!$O$106:$O$157,36+Z59) -> Mo.. 28.06., 21:00 | Z53: AF | AF53: =INDEX(daten!$O$106:$O$157,36+AA59) -> Mo.. 28.06., 18:00 | AH53: =INDEX(daten!$O$106:$O$157,36+AM59) -> Di.. 29.06., 21:00 | AM53: AF | AS53: =INDEX(daten!$O$106:$O$157,36+AN59) -> Di.. 29.06., 18:00 | AU53: =INDEX(daten!$O$106:$O$157,36+AZ59) -> So.. 27.06., 18:00 | AZ53: AF | BF53: =INDEX(daten!$O$106:$O$157,36+BA59) -> Sa.. 26.06., 18:00 | BR53: =tabber!V335 -> 
I54: =INDEX(tabber!$S$395:$S$402,1) -> BEL:POR | O54: =INDEX(tabber!$S$395:$S$402,2) -> ITA:AUT | V54: =INDEX(tabber!$S$395:$S$402,3) -> FRA:SUI | AB54: =INDEX(tabber!$S$395:$S$402,4) -> CRO:ESP | AI54: =INDEX(tabber!$S$395:$S$402,5) -> SWE:UKR | AO54: =INDEX(tabber!$S$395:$S$402,6) -> ENG:GER | AV54: =INDEX(tabber!$S$395:$S$402,7) -> NED:CZE | BB54: =INDEX(tabber!$S$395:$S$402,8) -> WAL:DEN | BR54: =tabber!V336 -> 
BR55: =tabber!V337 -> 
J56: 1 | K56: 0 | P56: 0 | Q56: 0 | W56: 3 | X56: 3 | AC56: 3 | AD56: 3 | AJ56: 1 | AK56: 1 | AP56: 2 | AQ56: 0 | AW56: 0 | AX56: 2 | BC56: 0 | BD56: 4 | BR56: =tabber!V338 -> 
I57: =INDEX(daten!$AD$49:$AD$100,M59+36) -> (1 : 0) | O57: =INDEX(daten!$AD$49:$AD$100,N59+36) -> (0 : 0) | V57: =INDEX(daten!$AD$49:$AD$100,Z59+36) -> (0 : 1) | AB57: =INDEX(daten!$AD$49:$AD$100,AA59+36) -> (1 : 1) | AI57: =INDEX(daten!$AD$49:$AD$100,AM59+36) -> (1 : 1) | AO57: =INDEX(daten!$AD$49:$AD$100,AN59+36) -> (0 : 0) | AV57: =INDEX(daten!$AD$49:$AD$100,AZ59+36) -> (0 : 0) | BB57: =INDEX(daten!$AD$49:$AD$100,BA59+36) -> (0 : 1) | BR57: =tabber!V339 -> 
P58: 2 | Q58: 1 | W58: 0 | X58: 0 | AC58: 0 | AD58: 2 | AJ58: 0 | AK58: 1 | BR58: =tabber!V340 -> 
M59: 4 | N59: 2 | W59: 4 | X59: 5 | Z59: 6 | AA59: 5 | AM59: 8 | AN59: 7 | AZ59: 3 | BA59: 1 | BR59: =tabber!V341 -> 
BR60: =tabber!V342 -> 
H61: =INDEX(daten!$N$106:$N$157,44+H68) -> Fr.., 02.07. - 21:00 | P61: =INDEX(daten!$B$106:$B$157,44+H68) -> München | U61: =INDEX(daten!$N$106:$N$157,44+AF68) -> Fr.., 02.07. - 18:00 | AC61: =INDEX(daten!$B$106:$B$157,44+AF68) -> St. Petersburg | AH61: =INDEX(daten!$N$106:$N$157,44+AH68) -> Sa.., 03.07. - 21:00 | AP61: =INDEX(daten!$B$106:$B$157,44+AH68) -> Rom | AU61: =INDEX(daten!$N$106:$N$157,44+BF68) -> Sa.., 03.07. - 18:00 | BC61: =INDEX(daten!$B$106:$B$157,44+BF68) -> Baku | BR61: =tabber!V343 -> 
BR62: =tabber!V344 -> 
H63: =IF(INDEX($AL$108:$AL$122,1)=0,IF($D$7,"SIEGER AF "&M59,""),UPPER(INDEX(teams,INDEX($AL$108:$AL$122,1)))) -> BELGIEN | N63: =IF(INDEX($AL$108:$AL$122,2)=0,IF($D$7,"SIEGER AF "&N59,""),UPPER(INDEX(teams,INDEX($AL$108:$AL$122,2)))) -> ITALIEN | U63: =IF(INDEX($AL$108:$AL$122,3)=0,IF($D$7,"SIEGER AF "&Z59,""),UPPER(INDEX(teams,INDEX($AL$108:$AL$122,3)))) -> SCHWEIZ | AA63: =IF(INDEX($AL$108:$AL$122,4)=0,IF($D$7,"SIEGER AF "&AA59,""),UPPER(INDEX(teams,INDEX($AL$108:$AL$122,4)))) -> SPANIEN | AH63: =IF(INDEX($AL$108:$AL$122,5)=0,IF($D$7,"SIEGER AF "&AM59,""),UPPER(INDEX(teams,INDEX($AL$108:$AL$122,5)))) -> UKRAINE | AN63: =IF(INDEX($AL$108:$AL$122,6)=0,IF($D$7,"SIEGER AF "&AN59,""),UPPER(INDEX(teams,INDEX($AL$108:$AL$122,6)))) -> ENGLAND | AU63: =IF(INDEX($AL$108:$AL$122,7)=0,IF($D$7,"SIEGER AF "&AZ59,""),UPPER(INDEX(teams,INDEX($AL$108:$AL$122,7)))) -> TSCHECHIEN | BA63: =IF(INDEX($AL$108:$AL$122,8)=0,IF($D$7,"SIEGER AF "&BA59,""),UPPER(INDEX(teams,INDEX($AL$108:$AL$122,8)))) -> DÄNEMARK | BR63: =tabber!V345 -> 
BR64: =tabber!V346 -> 
M65: 1 | N65: 2 | Z65: 1 | AA65: 1 | AM65: 0 | AN65: 4 | AZ65: 1 | BA65: 2 | BR65: =tabber!V347 -> 
L66: =INDEX(daten!$AD$49:$AD$100,H68+44) -> (1 : 2) | S66: VF | Y66: =INDEX(daten!$AD$49:$AD$100,AF68+44) -> (0 : 1) | AL66: =INDEX(daten!$AD$49:$AD$100,AH68+44) -> (0 : 1) | AS66: VF | AY66: =INDEX(daten!$AD$49:$AD$100,BF68+44) -> (0 : 2) | BR66: =tabber!V348 -> 
Z67: 0 | AA67: 0 | BR67: =tabber!V349 -> 
H68: 2 | Z68: 1 | AA68: 3 | AF68: 1 | AH68: 4 | BF68: 3 | BR68: =tabber!V350 -> 
BR69: =tabber!V351 -> 
J70: =INDEX(daten!$N$106:$N$157,49) -> Di.., 06.07. - 21:00 | Q70: =INDEX(daten!$B$106:$B$157,49) -> London | AJ70: =INDEX(daten!$N$106:$N$157,50) -> Mi.., 07.07. - 21:00 | AQ70: =INDEX(daten!$B$106:$B$157,50) -> London | BR70: =tabber!V352 -> 
BR71: =tabber!V353 -> 
J72: =IF(INDEX($AL$108:$AL$122,9)=0,IF($D$7,"SIEGER VF "&H68,""),UPPER(INDEX(teams,INDEX($AL$108:$AL$122,9)))) -> ITALIEN | W72: =IF(INDEX($AL$108:$AL$122,10)=0,IF($D$7,"SIEGER VF "&AF68,""),UPPER(INDEX(teams,INDEX($AL$108:$AL$122,10)))) -> SPANIEN | AJ72: =IF(INDEX($AL$108:$AL$122,11)=0,IF($D$7,"SIEGER VF "&AH68,""),UPPER(INDEX(teams,INDEX($AL$108:$AL$122,11)))) -> ENGLAND | AW72: =IF(INDEX($AL$108:$AL$122,12)=0,IF($D$7,"SIEGER VF "&BF68,""),UPPER(INDEX(teams,INDEX($AL$108:$AL$122,12)))) -> DÄNEMARK | BR72: =tabber!V354 -> 
BR73: =tabber!V355 -> 
S74: 1 | U74: 1 | AS74: 1 | AU74: 1 | BR74: =tabber!V356 -> 
S75: =INDEX(daten!$AD$49:$AD$100,49) -> (0 : 0) | AE75: HALBFINALE | AS75: =INDEX(daten!$AD$49:$AD$100,50) -> (1 : 1) | BR75: =tabber!V357 -> 
S76: 0 | U76: 0 | AS76: 1 | AU76: 0 | BR76: =tabber!V358 -> 
I77: 1 | S77: 4 | U77: 2 | BE77: 2
AE80: FINALE
S81: =IF(INDEX($AL$108:$AL$122,13)=0,IF($D$7,"SIEGER HF 1",""),UPPER(INDEX(teams,INDEX($AL$108:$AL$122,13)))) -> ITALIEN | AK81: =IF(INDEX($AL$108:$AL$122,14)=0,IF($D$7,"SIEGER HF 2",""),UPPER(INDEX(teams,INDEX($AL$108:$AL$122,14)))) -> ENGLAND
I83: =INDEX(daten!$B$106:$B$157,51) -> London | AF83: 1 | AH83: 1 | AY83: =INDEX(daten!$N$106:$N$157,51) -> So.., 11.07. - 21:00
AF84: =INDEX(daten!$AD$49:$AD$100,51) -> (0 : 1)
AF85: 0 | AH85: 0
AF86: 3 | AH86: 2
BT105: Flagen AF von links nach rechts | BX105: Flagge AF
H106: Lidx | I106: Editierte Erg | M106: Sieger | P106: Korrigierte Erg | X106: Ko-Spiel # | AC106: Erlaubt | AZ106: Erg | BE106: Zeilen/Spalten Chronol | BT106: Zeile=54 | BV106: Team 1 oder 2 | BW106: Teams | BX106: sichtbar in Spalte 0=unsichtbar | BY106: bisher | BZ106: Test | CA106: =SUM(BZ107:BZ130) -> 0
W107: TXT | X107: # | Y107: Zuord | AA107: Chrono | AB107: Rd | AC107: VL | AD107: EMS | AF107: Sieger | AI107: Paarung | AL107: Sieger | AO107: Verlierer | AR107: Chrono | AU107: # | AV107: Chrono# | AY107: Chrono# | AZ107: lidx | BF107: Z | BG107: Sp | BH107: OfsX | BI107: Nachfolgende P | BL107: Spalten AF von links nach rechts und nachfolgende Paarung | BT107: T1 | BU107: T2 | BV107: =SUMIF($BT$108:$BU$115,"="&BX107,$BT$117:$BU$124) -> 0 | BW107: 1 | BX107: =SUMIF($AI$108:$AJ$115,"="&BW107,$BT$108:$BU$115) -> 0 | BY107: 0 | BZ107: =IF(BY107=BX107,0,1) -> 0
H108: AF1 | J108: =IF(COUNT(J56:K56)=2,J56,"") -> 1 | K108: =IF(COUNT(J56:K56)=2,K56,"") -> 0 | M108: =IF(COUNT(J108:K108)<>2,"x",J108-K108) -> 1 | O108: 90 | Q108: =J108 -> 1 | R108: =K108 -> 0 | W108: ="AF "&AA108 -> AF 4 | X108: 1 | AA108: =tabber!E395 -> 4 | AB108: 2 | AC108: =IF(M108=0,1,0) -> 0 | AD108: =IF(M109=0,1,0) -> 0 | AF108: =$M$110 -> 1 | AI108: =tabber!U395 -> 7 | AJ108: =tabber!V395 -> 22 | AL108: =IF(AF108="x",0,IF(AF108=0,0,IF(AF108>0,AI108,AJ108))) -> 7 | AO108: =IF(AF108="x",0,IF(AF108=0,0,IF(AF108>0,AJ108,AI108))) -> 22 | AR108: =AA108 -> 4 | AU108: 1 | AV108: =AA108 -> 4 | AY108: 1 | AZ108: =MATCH(AY108,$AV$108:$AV$122,0) -> 8 | BE108: AF 1 | BF108: 56 | BG108: =INDEX($BM$108:$BM$115,MATCH(BE108,$W$108:$W$115,0)) -> 55 | BH108: 0 | BI108: =INDEX($BN$108:$BN$115,MATCH(BE108,$W$108:$W$115,0)) -> 48 | BL108: 1 | BM108: 10 | BN108: 45 | BT108: 9 | BU108: 12 | BV108: 1 | BW108: 2 | BX108: 15 | BY108: 15 | BZ108: 0
J109: =IF(COUNT(J58:K58)=2,J58,"") ->  | K109: =IF(COUNT(J58:K58)=2,K58,"") ->  | M109: =IF(M108<>0,M108,IF(COUNT(J109:K109)<>2,"x",J109-K109)) -> 1 | O109: VL | Q109: =IF(M108=0,J109,"") ->  | R109: =IF(M108=0,K109,"") ->  | W109: AF 2 | X109: 2 | AA109: =tabber!E396 -> 2 | AB109: 2 | AC109: =IF(M112=0,1,0) -> 1 | AD109: =IF(M113=0,1,0) -> 0 | AF109: =$M$114 -> 1 | AI109: =tabber!U396 -> 2 | AJ109: =tabber!V396 -> 11 | AL109: 2 | AO109: 11 | AR109: 2 | AU109: 2 | AV109: 2 | AY109: 2 | AZ109: 2 | BE109: AF 2 | BF109: 56 | BG109: 16 | BH109: 0 | BI109: 45 | BL109: 2 | BM109: 16 | BN109: 45 | BT109: 15 | BU109: 18 | BV109: 1 | BW109: 3 | BX109: 54 | BY109: 54 | BZ109: 0
J110: =IF(COUNT(J59:K59)=2,J59,"") ->  | K110: =IF(COUNT(J59:K59)=2,K59,"") ->  | M110: =IF(M109<>0,M109,IF(COUNT(J110:K110)<>2,"x",J110-K110)) -> 1 | O110: EM | Q110: =IF(M109<>0,"",J110) ->  | R110: =IF(M109<>0,"",K110) ->  | W110: AF 6 | X110: 3 | AA110: =tabber!E397 -> 6 | AB110: 2 | AC110: =IF(M116=0,1,0) -> 1 | AD110: =IF(M117=0,1,0) -> 1 | AF110: =$M$118 -> -1 | AI110: =tabber!U397 -> 23 | AJ110: =tabber!V397 -> 4 | AL110: 4 | AO110: 23 | AR110: 6 | AU110: 3 | AV110: 6 | AY110: 3 | AZ110: 7 | BE110: AF 3 | BF110: 56 | BG110: 49 | BH110: 0 | BI110: 48 | BL110: 3 | BM110: 23 | BN110: 46 | BT110: 22 | BU110: 25 | BV110: 2 | BW110: 4 | BX110: 25 | BY110: 25 | BZ110: 0
W111: AF 5 | X111: 4 | AA111: =tabber!E398 -> 5 | AB111: 2 | AC111: =IF(M120=0,1,0) -> 1 | AD111: =IF(M121=0,1,0) -> 0 | AF111: =$M$122 -> -2 | AI111: =tabber!U398 -> 14 | AJ111: =tabber!V398 -> 17 | AL111: 17 | AO111: 14 | AR111: 5 | AU111: 4 | AV111: 5 | AY111: 4 | AZ111: 1 | BE111: AF 4 | BF111: 56 | BG111: 10 | BH111: 0 | BI111: 45 | BL111: 4 | BM111: 29 | BN111: 46 | BT111: 28 | BU111: 31 | BV111: 2 | BW111: 5 | BX111: 57 | BY111: 57 | BZ111: 0
H112: AF2 | J112: =IF(COUNT(P56:Q56)=2,P56,"") -> 0 | K112: =IF(COUNT(P56:Q56)=2,Q56,"") -> 0 | M112: =IF(COUNT(J112:K112)<>2,"x",J112-K112) -> 0 | O112: 90 | Q112: =J112 -> 0 | R112: =K112 -> 0 | W112: AF 8 | X112: 5 | AA112: =tabber!E399 -> 8 | AB112: 2 | AC112: =IF(M124=0,1,0) -> 1 | AD112: =IF(M125=0,1,0) -> 0 | AF112: =$M$126 -> -1 | AI112: =tabber!U399 -> 18 | AJ112: =tabber!V399 -> 10 | AL112: 10 | AO112: 18 | AR112: 8 | AU112: 5 | AV112: 8 | AY112: 5 | AZ112: 4 | BE112: AF 5 | BF112: 56 | BG112: 29 | BH112: 0 | BI112: 46 | BL112: 5 | BM112: 36 | BN112: 47 | BT112: 35 | BU112: 38 | BV112: 0 | BW112: 6 | BX112: 0 | BY112: 0 | BZ112: 0
J113: =IF(COUNT(P58:Q58)=2,P58,"") -> 2 | K113: =IF(COUNT(P58:Q58)=2,Q58,"") -> 1 | M113: =IF(M112<>0,M112,IF(COUNT(J113:K113)<>2,"x",J113-K113)) -> 1 | O113: VL | Q113: =IF(M112=0,J113,"") -> 2 | R113: =IF(M112=0,K113,"") -> 1 | W113: AF 7 | X113: 6 | AA113: =tabber!E400 -> 7 | AB113: 2 | AC113: =IF(M128=0,1,0) -> 0 | AD113: =IF(M129=0,1,0) -> 0 | AF113: =$M$130 -> 2 | AI113: =tabber!U400 -> 13 | AJ113: =tabber!V400 -> 24 | AL113: 13 | AO113: 24 | AR113: 7 | AU113: 6 | AV113: 7 | AY113: 6 | AZ113: 3 | BE113: AF 6 | BF113: 56 | BG113: 23 | BH113: 0 | BI113: 46 | BL113: 6 | BM113: 42 | BN113: 47 | BT113: 41 | BU113: 44 | BV113: 1 | BW113: 7 | BX113: 9 | BY113: 9 | BZ113: 0
J114: =IF(COUNT(P59:Q59)=2,P59,"") ->  | K114: =IF(COUNT(P59:Q59)=2,Q59,"") ->  | M114: =IF(M113<>0,M113,IF(COUNT(J114:K114)<>2,"x",J114-K114)) -> 1 | O114: EM | Q114: =IF(M113<>0,"",J114) ->  | R114: =IF(M113<>0,"",K114) ->  | W114: AF 3 | X114: 7 | AA114: =tabber!E401 -> 3 | AB114: 2 | AC114: =IF(M132=0,1,0) -> 0 | AD114: =IF(M133=0,1,0) -> 0 | AF114: =$M$134 -> -2 | AI114: =tabber!U401 -> 9 | AJ114: =tabber!V401 -> 16 | AL114: 16 | AO114: 9 | AR114: 3 | AU114: 7 | AV114: 3 | AY114: 7 | AZ114: 6 | BE114: AF 7 | BF114: 56 | BG114: 42 | BH114: 0 | BI114: 47 | BL114: 7 | BM114: 49 | BN114: 48 | BT114: 48 | BU114: 51 | BV114: 0 | BW114: 8 | BX114: 0 | BY114: 0 | BZ114: 0
W115: AF 1 | X115: 8 | AA115: =tabber!E402 -> 1 | AB115: 2 | AC115: =IF(M136=0,1,0) -> 0 | AD115: =IF(M137=0,1,0) -> 0 | AF115: =$M$138 -> -4 | AI115: =tabber!U402 -> 3 | AJ115: =tabber!V402 -> 5 | AL115: 5 | AO115: 3 | AR115: 1 | AU115: 8 | AV115: 1 | AY115: 8 | AZ115: 5 | BE115: AF 8 | BF115: 56 | BG115: 36 | BH115: 0 | BI115: 47 | BL115: 8 | BM115: 55 | BN115: 48 | BT115: 54 | BU115: 57 | BV115: 1 | BW115: 9 | BX115: 48 | BY115: 48 | BZ115: 0
H116: AF3 | J116: =IF(COUNT(W56:X56)=2,W56,"") -> 3 | K116: =IF(COUNT(W56:X56)=2,X56,"") -> 3 | M116: =IF(COUNT(J116:K116)<>2,"x",J116-K116) -> 0 | O116: 90 | Q116: =J116 -> 3 | R116: =K116 -> 3 | W116: ="VF "&AR116 -> VF 2 | X116: 9 | Y116: 1 | Z116: 2 | AA116: =AR116+8 -> 10 | AB116: 3 | AC116: =IF(M140=0,1,0) -> 0 | AD116: =IF(M141=0,1,0) -> 0 | AF116: =$M$142 -> -1 | AI116: =INDEX($AL$108:$AL$115,Y116) -> 7 | AJ116: 2 | AL116: 2 | AO116: 7 | AR116: =H68 -> 2 | AU116: 9 | AV116: 10 | AY116: 9 | AZ116: 10 | BB116: =INDEX($AA$108:$AA$115,INDEX(Y$108:Y$122,$AZ116)) -> 6 | BC116: 5 | BE116: VF1 | BF116: 65 | BG116: 13 | BH116: 1 | BI116: 49 | BV116: 2 | BW116: 10 | BX116: 38 | BY116: 38 | BZ116: 0
J117: =IF(COUNT(W58:X58)=2,W58,"") -> 0 | K117: =IF(COUNT(W58:X58)=2,X58,"") -> 0 | M117: =IF(M116<>0,M116,IF(COUNT(J117:K117)<>2,"x",J117-K117)) -> 0 | O117: VL | Q117: =IF(M116=0,J117,"") -> 0 | R117: =IF(M116=0,K117,"") -> 0 | W117: ="VF "&AR117 -> VF 1 | X117: 10 | Y117: 3 | Z117: 4 | AA117: =AR117+8 -> 9 | AB117: 3 | AC117: =IF(M144=0,1,0) -> 1 | AD117: =IF(M145=0,1,0) -> 1 | AF117: =$M$146 -> -2 | AI117: 4 | AJ117: 17 | AL117: 17 | AO117: 4 | AR117: =AF68 -> 1 | AU117: 10 | AV117: 9 | AY117: 10 | AZ117: 9 | BB117: 4 | BC117: 2 | BE117: VF2 | BF117: 65 | BG117: 26 | BH117: 1 | BI117: 49 | BT117: 1 | BU117: 2 | BV117: 2 | BW117: 11 | BX117: 18 | BY117: 18 | BZ117: 0
J118: =IF(COUNT(W59:X59)=2,W59,"") -> 4 | K118: =IF(COUNT(W59:X59)=2,X59,"") -> 5 | M118: =IF(M117<>0,M117,IF(COUNT(J118:K118)<>2,"x",J118-K118)) -> -1 | O118: EM | Q118: =IF(M117<>0,"",J118) -> 4 | R118: =IF(M117<>0,"",K118) -> 5 | W118: ="VF "&AR118 -> VF 4 | X118: 11 | Y118: 5 | Z118: 6 | AA118: =AR118+8 -> 12 | AB118: 3 | AC118: =IF(M148=0,1,0) -> 0 | AD118: =IF(M149=0,1,0) -> 0 | AF118: =$M$150 -> -4 | AI118: 10 | AJ118: 13 | AL118: 13 | AO118: 10 | AR118: =AH68 -> 4 | AU118: 11 | AV118: 12 | AY118: 11 | AZ118: 12 | BB118: 3 | BC118: 1 | BE118: VF3 | BF118: 65 | BG118: 39 | BH118: 1 | BI118: 50 | BT118: 1 | BU118: 2 | BV118: 0 | BW118: 12 | BX118: 0 | BY118: 0 | BZ118: 0
W119: ="VF "&AR119 -> VF 3 | X119: 12 | Y119: 7 | Z119: 8 | AA119: =AR119+8 -> 11 | AB119: 3 | AC119: =IF(M152=0,1,0) -> 0 | AD119: =IF(M153=0,1,0) -> 0 | AF119: =$M$154 -> -1 | AI119: 16 | AJ119: 5 | AL119: 5 | AO119: 16 | AR119: =BF68 -> 3 | AU119: 12 | AV119: 11 | AY119: 12 | AZ119: 11 | BB119: 8 | BC119: 7 | BE119: VF4 | BF119: 65 | BG119: 52 | BH119: 1 | BI119: 50 | BT119: 1 | BU119: 2 | BV119: 1 | BW119: 13 | BX119: 41 | BY119: 41 | BZ119: 0
H120: AF4 | J120: =IF(COUNT(AC56:AD56)=2,AC56,"") -> 3 | K120: =IF(COUNT(AC56:AD56)=2,AD56,"") -> 3 | M120: =IF(COUNT(J120:K120)<>2,"x",J120-K120) -> 0 | O120: 90 | Q120: =J120 -> 3 | R120: =K120 -> 3 | W120: H1 | X120: 13 | Y120: 9 | Z120: 10 | AA120: 13 | AB120: 4 | AC120: =IF(M156=0,1,0) -> 1 | AD120: =IF(M157=0,1,0) -> 1 | AF120: =$M$158 -> 2 | AI120: =INDEX($AL$108:$AL$119,Y120) -> 2 | AJ120: =INDEX($AL$108:$AL$119,Z120) -> 17 | AL120: 2 | AO120: 17 | AR120: 1 | AU120: 13 | AV120: 13 | AY120: 13 | AZ120: 13 | BB120: =AR116 -> 2 | BC120: =AR117 -> 1 | BE120: HF1 | BF120: 74 | BG120: 19 | BH120: 1 | BT120: 1 | BU120: 2 | BV120: 1 | BW120: 14 | BX120: 28 | BY120: 28 | BZ120: 0
J121: =IF(COUNT(AC58:AD58)=2,AC58,"") -> 0 | K121: =IF(COUNT(AC58:AD58)=2,AD58,"") -> 2 | M121: =IF(M120<>0,M120,IF(COUNT(J121:K121)<>2,"x",J121-K121)) -> -2 | O121: VL | Q121: =IF(M120=0,J121,"") -> 0 | R121: =IF(M120=0,K121,"") -> 2 | W121: H2 | X121: 14 | Y121: 11 | Z121: 12 | AA121: 14 | AB121: 4 | AC121: =IF(M160=0,1,0) -> 1 | AD121: =IF(M161=0,1,0) -> 0 | AF121: =$M$162 -> 1 | AI121: =INDEX($AL$108:$AL$119,Y121) -> 13 | AJ121: =INDEX($AL$108:$AL$119,Z121) -> 5 | AL121: 13 | AO121: 5 | AR121: 2 | AU121: 14 | AV121: 14 | AY121: 14 | AZ121: 14 | BB121: =AR118 -> 4 | BC121: =AR119 -> 3 | BE121: HF2 | BF121: 74 | BG121: 45 | BH121: 1 | BT121: 1 | BU121: 2 | BV121: 0 | BW121: 15 | BX121: 0 | BY121: 0 | BZ121: 0
J122: =IF(COUNT(AC59:AD59)=2,AC59,"") ->  | K122: =IF(COUNT(AC59:AD59)=2,AD59,"") ->  | M122: =IF(M121<>0,M121,IF(COUNT(J122:K122)<>2,"x",J122-K122)) -> -2 | O122: EM | Q122: =IF(M121<>0,"",J122) ->  | R122: =IF(M121<>0,"",K122) ->  | W122: F | X122: 16 | Y122: 13 | Z122: 14 | AA122: 15 | AB122: 5 | AC122: =IF(M164=0,1,0) -> 1 | AD122: =IF(M165=0,1,0) -> 1 | AF122: =$M$166 -> 1 | AI122: =AL120 -> 2 | AJ122: =AL121 -> 13 | AL122: 2 | AO122: 13 | AR122: 1 | AU122: 15 | AV122: 15 | AY122: 15 | AZ122: 15 | BE122: F | BF122: 83 | BG122: 32 | BH122: 1 | BT122: 1 | BU122: 2 | BV122: 2 | BW122: 16 | BX122: 51 | BY122: 51 | BZ122: 0
BT123: 1 | BU123: 2 | BV123: 2 | BW123: 17 | BX123: 31 | BY123: 31 | BZ123: 0
H124: AF5 | J124: =IF(COUNT(AJ56:AK56)=2,AJ56,"") -> 1 | K124: =IF(COUNT(AJ56:AK56)=2,AK56,"") -> 1 | M124: =IF(COUNT(J124:K124)<>2,"x",J124-K124) -> 0 | O124: 90 | Q124: =J124 -> 1 | R124: =K124 -> 1 | BT124: 1 | BU124: 2 | BV124: 1 | BW124: 18 | BX124: 35 | BY124: 35 | BZ124: 0
J125: =IF(COUNT(AJ58:AK58)=2,AJ58,"") -> 0 | K125: =IF(COUNT(AJ58:AK58)=2,AK58,"") -> 1 | M125: =IF(M124<>0,M124,IF(COUNT(J125:K125)<>2,"x",J125-K125)) -> -1 | O125: VL | Q125: =IF(M124=0,J125,"") -> 0 | R125: =IF(M124=0,K125,"") -> 1 | BV125: 0 | BW125: 19 | BX125: 0 | BY125: 0 | BZ125: 0
J126: =IF(COUNT(AJ59:AK59)=2,AJ59,"") ->  | K126: =IF(COUNT(AJ59:AK59)=2,AK59,"") ->  | M126: =IF(M125<>0,M125,IF(COUNT(J126:K126)<>2,"x",J126-K126)) -> -1 | O126: EM | Q126: =IF(M125<>0,"",J126) ->  | R126: =IF(M125<>0,"",K126) ->  | X126: Flaggen | AB126: =SUM(AC128:AC141) -> 0 | AC126: =AB126+BZ10+CA106 -> 0 | AG126: Positionen | BV126: 0 | BW126: 20 | BX126: 0 | BY126: 0 | BZ126: 0
Z127: akt | AA127: bisher | AC127: Test | AG127: vonSp | AH127: bissp | AI127: Zeile | AJ127: offsetY | AK127: Width | BV127: 0 | BW127: 21 | BX127: 0 | BY127: 0 | BZ127: 0
H128: AF6 | J128: =IF(COUNT(AP56:AQ56)=2,AP56,"") -> 2 | K128: =IF(COUNT(AP56:AQ56)=2,AQ56,"") -> 0 | M128: =IF(COUNT(J128:K128)<>2,"x",J128-K128) -> 2 | O128: 90 | Q128: =J128 -> 2 | R128: =K128 -> 0 | W128: 1 | X128: flag1 | Z128: =INDEX($AI$116:$AI$122,W128) -> 7 | AA128: 7 | AC128: =IF(Z128=AA128,0,1) -> 0 | AG128: 8 | AH128: 14 | AI128: 65 | AJ128: 0 | AK128: 30 | BV128: 2 | BW128: 22 | BX128: 12 | BY128: 12 | BZ128: 0
J129: =IF(COUNT(AP58:AQ58)=2,AP58,"") ->  | K129: =IF(COUNT(AP58:AQ58)=2,AQ58,"") ->  | M129: =IF(M128<>0,M128,IF(COUNT(J129:K129)<>2,"x",J129-K129)) -> 2 | O129: VL | Q129: =IF(M128=0,J129,"") ->  | R129: =IF(M128=0,K129,"") ->  | W129: 1 | X129: flag2 | Z129: =INDEX($AJ$116:$AJ$122,W129) -> 2 | AA129: 2 | AC129: 0 | AG129: 14 | AH129: 20 | AI129: 65 | AJ129: 0 | AK129: 30 | BV129: 1 | BW129: 23 | BX129: 22 | BY129: 22 | BZ129: 0
J130: =IF(COUNT(AP59:AQ59)=2,AP59,"") ->  | K130: =IF(COUNT(AP59:AQ59)=2,AQ59,"") ->  | M130: =IF(M129<>0,M129,IF(COUNT(J130:K130)<>2,"x",J130-K130)) -> 2 | O130: EM | Q130: =IF(M129<>0,"",J130) ->  | R130: =IF(M129<>0,"",K130) ->  | W130: 2 | X130: flag3 | Z130: =INDEX($AI$116:$AI$122,W130) -> 4 | AA130: 4 | AC130: 0 | AG130: 21 | AH130: 27 | AI130: 65 | AJ130: 0 | AK130: 30 | BV130: 2 | BW130: 24 | BX130: 44 | BY130: 44 | BZ130: 0
W131: 2 | X131: flag4 | Z131: =INDEX($AJ$116:$AJ$122,W131) -> 17 | AA131: 17 | AC131: 0 | AG131: 27 | AH131: 33 | AI131: 65 | AJ131: 0 | AK131: 30
H132: AF7 | J132: =IF(COUNT(AW56:AX56)=2,AW56,"") -> 0 | K132: =IF(COUNT(AW56:AX56)=2,AX56,"") -> 2 | M132: =IF(COUNT(J132:K132)<>2,"x",J132-K132) -> -2 | O132: 90 | Q132: =J132 -> 0 | R132: =K132 -> 2 | W132: 3 | X132: flag5 | Z132: =INDEX($AI$116:$AI$122,W132) -> 10 | AA132: 10 | AC132: 0 | AG132: 34 | AH132: 40 | AI132: 65 | AJ132: 0 | AK132: 30
J133: =IF(COUNT(AW58:AX58)=2,AW58,"") ->  | K133: =IF(COUNT(AW58:AX58)=2,AX58,"") ->  | M133: =IF(M132<>0,M132,IF(COUNT(J133:K133)<>2,"x",J133-K133)) -> -2 | O133: VL | Q133: =IF(M132=0,J133,"") ->  | R133: =IF(M132=0,K133,"") ->  | W133: 3 | X133: flag6 | Z133: =INDEX($AJ$116:$AJ$122,W133) -> 13 | AA133: 13 | AC133: 0 | AG133: 40 | AH133: 46 | AI133: 65 | AJ133: 0 | AK133: 30
J134: =IF(COUNT(AW59:AX59)=2,AW59,"") ->  | K134: =IF(COUNT(AW59:AX59)=2,AX59,"") ->  | M134: =IF(M133<>0,M133,IF(COUNT(J134:K134)<>2,"x",J134-K134)) -> -2 | O134: EM | Q134: =IF(M133<>0,"",J134) ->  | R134: =IF(M133<>0,"",K134) ->  | W134: 4 | X134: flag7 | Z134: =INDEX($AI$116:$AI$122,W134) -> 16 | AA134: 16 | AC134: 0 | AG134: 47 | AH134: 53 | AI134: 65 | AJ134: 0 | AK134: 30
W135: 4 | X135: flag8 | Z135: =INDEX($AJ$116:$AJ$122,W135) -> 5 | AA135: 5 | AC135: 0 | AG135: 53 | AH135: 59 | AI135: 65 | AJ135: 0 | AK135: 30
H136: AF8 | J136: =IF(COUNT(BC56:BD56)=2,BC56,"") -> 0 | K136: =IF(COUNT(BC56:BD56)=2,BD56,"") -> 4 | M136: =IF(COUNT(J136:K136)<>2,"x",J136-K136) -> -4 | O136: 90 | Q136: =J136 -> 0 | R136: =K136 -> 4 | W136: 5 | X136: flag9 | Z136: =INDEX($AI$116:$AI$122,W136) -> 2 | AA136: 2 | AC136: 0 | AG136: 10 | AH136: 18 | AI136: 74 | AJ136: 5 | AK136: 36
J137: =IF(COUNT(BC58:BD58)=2,BC58,"") ->  | K137: =IF(COUNT(BC58:BD58)=2,BD58,"") ->  | M137: =IF(M136<>0,M136,IF(COUNT(J137:K137)<>2,"x",J137-K137)) -> -4 | O137: VL | Q137: =IF(M136=0,J137,"") ->  | R137: =IF(M136=0,K137,"") ->  | W137: 5 | X137: flag10 | Z137: =INDEX($AJ$116:$AJ$122,W137) -> 17 | AA137: 17 | AC137: 0 | AG137: 23 | AH137: 31 | AI137: 74 | AJ137: 5 | AK137: 36
J138: =IF(COUNT(BC59:BD59)=2,BC59,"") ->  | K138: =IF(COUNT(BC59:BD59)=2,BD59,"") ->  | M138: =IF(M137<>0,M137,IF(COUNT(J138:K138)<>2,"x",J138-K138)) -> -4 | O138: EM | Q138: =IF(M137<>0,"",J138) ->  | R138: =IF(M137<>0,"",K138) ->  | W138: 6 | X138: flag11 | Z138: =INDEX($AI$116:$AI$122,W138) -> 13 | AA138: 13 | AC138: 0 | AG138: 36 | AH138: 44 | AI138: 74 | AJ138: 5 | AK138: 36
W139: 6 | X139: flag12 | Z139: =INDEX($AJ$116:$AJ$122,W139) -> 5 | AA139: 5 | AC139: 0 | AG139: 49 | AH139: 57 | AI139: 74 | AJ139: 5 | AK139: 36
H140: VF1 | J140: =IF(COUNT(M65:N65)=2,M65,"") -> 1 | K140: =IF(COUNT(M65:N65)=2,N65,"") -> 2 | M140: =IF(COUNT(J140:K140)<>2,"x",J140-K140) -> -1 | O140: 90 | Q140: =J140 -> 1 | R140: =K140 -> 2 | W140: 7 | X140: flag13 | Z140: =INDEX($AI$116:$AI$122,W140) -> 2 | AA140: 2 | AC140: 0 | AG140: 19 | AH140: 30 | AI140: 84 | AJ140: -6 | AK140: 54
J141: =IF(COUNT(M67:N67)=2,M67,"") ->  | K141: =IF(COUNT(M67:N67)=2,N67,"") ->  | M141: =IF(M140<>0,M140,IF(COUNT(J141:K141)<>2,"x",J141-K141)) -> -1 | O141: VL | Q141: =IF(M140=0,J141,"") ->  | R141: =IF(M140=0,K141,"") ->  | W141: 7 | X141: flag14 | Z141: =INDEX($AJ$116:$AJ$122,W141) -> 13 | AA141: 13 | AC141: 0 | AG141: 37 | AH141: 48 | AI141: 84 | AJ141: -6 | AK141: 54
J142: =IF(COUNT(M68:N68)=2,M68,"") ->  | K142: =IF(COUNT(M68:N68)=2,N68,"") ->  | M142: =IF(M141<>0,M141,IF(COUNT(J142:K142)<>2,"x",J142-K142)) -> -1 | O142: EM | Q142: =IF(M141<>0,"",J142) ->  | R142: =IF(M141<>0,"",K142) -> 
H144: VF2 | J144: =IF(COUNT(Z65:AA65)=2,Z65,"") -> 1 | K144: =IF(COUNT(Z65:AA65)=2,AA65,"") -> 1 | M144: =IF(COUNT(J144:K144)<>2,"x",J144-K144) -> 0 | O144: 90 | Q144: =J144 -> 1 | R144: =K144 -> 1
J145: =IF(COUNT(Z67:AA67)=2,Z67,"") -> 0 | K145: =IF(COUNT(Z67:AA67)=2,AA67,"") -> 0 | M145: =IF(M144<>0,M144,IF(COUNT(J145:K145)<>2,"x",J145-K145)) -> 0 | O145: VL | Q145: =IF(M144=0,J145,"") -> 0 | R145: =IF(M144=0,K145,"") -> 0
J146: =IF(COUNT(Z68:AA68)=2,Z68,"") -> 1 | K146: =IF(COUNT(Z68:AA68)=2,AA68,"") -> 3 | M146: =IF(M145<>0,M145,IF(COUNT(J146:K146)<>2,"x",J146-K146)) -> -2 | O146: EM | Q146: =IF(M145<>0,"",J146) -> 1 | R146: =IF(M145<>0,"",K146) -> 3
H148: VF3 | J148: =IF(COUNT(AM65:AN65)=2,AM65,"") -> 0 | K148: =IF(COUNT(AM65:AN65)=2,AN65,"") -> 4 | M148: =IF(COUNT(J148:K148)<>2,"x",J148-K148) -> -4 | O148: 90 | Q148: =J148 -> 0 | R148: =K148 -> 4
J149: =IF(COUNT(AM67:AN67)=2,AM67,"") ->  | K149: =IF(COUNT(AM67:AN67)=2,AN67,"") ->  | M149: =IF(M148<>0,M148,IF(COUNT(J149:K149)<>2,"x",J149-K149)) -> -4 | O149: VL | Q149: =IF(M148=0,J149,"") ->  | R149: =IF(M148=0,K149,"") -> 
J150: =IF(COUNT(AM68:AN68)=2,AM68,"") ->  | K150: =IF(COUNT(AM68:AN68)=2,AN68,"") ->  | M150: =IF(M149<>0,M149,IF(COUNT(J150:K150)<>2,"x",J150-K150)) -> -4 | O150: EM | Q150: =IF(M149<>0,"",J150) ->  | R150: =IF(M149<>0,"",K150) -> 
H152: VF4 | J152: =IF(COUNT(AZ65:BA65)=2,AZ65,"") -> 1 | K152: =IF(COUNT(AZ65:BA65)=2,BA65,"") -> 2 | M152: =IF(COUNT(J152:K152)<>2,"x",J152-K152) -> -1 | O152: 90 | Q152: =J152 -> 1 | R152: =K152 -> 2
J153: =IF(COUNT(AZ67:BA67)=2,AZ67,"") ->  | K153: =IF(COUNT(AZ67:BA67)=2,BA67,"") ->  | M153: =IF(M152<>0,M152,IF(COUNT(J153:K153)<>2,"x",J153-K153)) -> -1 | O153: VL | Q153: =IF(M152=0,J153,"") ->  | R153: =IF(M152=0,K153,"") -> 
J154: =IF(COUNT(AZ68:BA68)=2,AZ68,"") ->  | K154: =IF(COUNT(AZ68:BA68)=2,BA68,"") ->  | M154: =IF(M153<>0,M153,IF(COUNT(J154:K154)<>2,"x",J154-K154)) -> -1 | O154: EM | Q154: =IF(M153<>0,"",J154) ->  | R154: =IF(M153<>0,"",K154) -> 
H156: HF1 | J156: =IF(COUNT(S74,U74)=2,S74,"") -> 1 | K156: =IF(COUNT(S74,U74)=2,U74,"") -> 1 | M156: =IF(COUNT(J156:K156)<>2,"x",J156-K156) -> 0 | O156: 90 | Q156: =J156 -> 1 | R156: =K156 -> 1
J157: =IF(COUNT(S76,U76)=2,S76,"") -> 0 | K157: =IF(COUNT(S76,U76)=2,U76,"") -> 0 | M157: =IF(M156<>0,M156,IF(COUNT(J157:K157)<>2,"x",J157-K157)) -> 0 | O157: VL | Q157: =IF(M156=0,J157,"") -> 0 | R157: =IF(M156=0,K157,"") -> 0
J158: =IF(COUNT(S77,U77)=2,S77,"") -> 4 | K158: =IF(COUNT(S77,U77)=2,U77,"") -> 2 | M158: =IF(M157<>0,M157,IF(COUNT(J158:K158)<>2,"x",J158-K158)) -> 2 | O158: EM | Q158: =IF(M157<>0,"",J158) -> 4 | R158: =IF(M157<>0,"",K158) -> 2
H160: HF2 | J160: =IF(COUNT(AS74,AU74)=2,AS74,"") -> 1 | K160: =IF(COUNT(AS74,AU74)=2,AU74,"") -> 1 | M160: =IF(COUNT(J160:K160)<>2,"x",J160-K160) -> 0 | O160: 90 | Q160: =J160 -> 1 | R160: =K160 -> 1
J161: =IF(COUNT(AS76,AU76)=2,AS76,"") -> 1 | K161: =IF(COUNT(AS76,AU76)=2,AU76,"") -> 0 | M161: =IF(M160<>0,M160,IF(COUNT(J161:K161)<>2,"x",J161-K161)) -> 1 | O161: VL | Q161: =IF(M160=0,J161,"") -> 1 | R161: =IF(M160=0,K161,"") -> 0
J162: =IF(COUNT(AS77,AU77)=2,AS77,"") ->  | K162: =IF(COUNT(AS77,AU77)=2,AU77,"") ->  | M162: =IF(M161<>0,M161,IF(COUNT(J162:K162)<>2,"x",J162-K162)) -> 1 | O162: EM | Q162: =IF(M161<>0,"",J162) ->  | R162: =IF(M161<>0,"",K162) -> 
H164: F | J164: =IF(COUNT(AF83,AH83)=2,AF83,"") -> 1 | K164: =IF(COUNT(AF83,AH83)=2,AH83,"") -> 1 | M164: =IF(COUNT(J164:K164)<>2,"x",J164-K164) -> 0 | O164: 90 | Q164: =J164 -> 1 | R164: =K164 -> 1
J165: =IF(COUNT(AF85,AH85)=2,AF85,"") -> 0 | K165: =IF(COUNT(AF85,AH85)=2,AH85,"") -> 0 | M165: =IF(M164<>0,M164,IF(COUNT(J165:K165)<>2,"x",J165-K165)) -> 0 | O165: VL | Q165: =IF(M164=0,J165,"") -> 0 | R165: =IF(M164=0,K165,"") -> 0
J166: =IF(COUNT(AF86,AH86)=2,AF86,"") -> 3 | K166: =IF(COUNT(AF86,AH86)=2,AH86,"") -> 2 | M166: =IF(M165<>0,M165,IF(COUNT(J166:K166)<>2,"x",J166-K166)) -> 1 | O166: EM | Q166: =IF(M165<>0,"",J166) -> 3 | R166: =IF(M165<>0,"",K166) -> 2
I211: RECHTSKLICK
H212: =D12 -> 1 | I212: =H212 -> 1 | J212: 1 | K212: 1 | L212: 1 | M212: 1 | N212: 1 | O212: 1 | P212: 1 | Q212: 1 | R212: 1 | S212: 1 | T212: 1 | U212: =-H212 -> -1 | V212: =U212 -> -1 | W212: -1 | X212: -1 | Y212: -1 | Z212: -1 | AA212: -1 | AB212: -1 | AC212: -1 | AD212: -1 | AE212: -1 | AF212: -1 | AG212: -1 | AH212: -1 | AI212: -1 | AJ212: -1 | AK212: -1 | AL212: -1 | AM212: -1 | AN212: -1
H213: 2 | I213: =H213 -> 2 | J213: 2 | K213: 2 | L213: 2 | M213: 2 | N213: 2 | O213: 2 | P213: 2 | Q213: 2 | R213: 2 | S213: 2 | T213: 2 | U213: -2 | V213: =U213 -> -2 | W213: -2 | X213: -2 | Y213: -2 | Z213: -2 | AA213: -2 | AB213: -2 | AC213: -2 | AD213: -2 | AE213: -2 | AF213: -2 | AG213: -2 | AH213: -2 | AI213: -2 | AJ213: -2 | AK213: -2 | AL213: -2 | AM213: -2 | AN213: -2
H214: 3 | I214: =H214 -> 3 | J214: 3 | K214: 3 | L214: 3 | M214: 3 | N214: 3 | O214: 3 | P214: 3 | Q214: 3 | R214: 3 | S214: 3 | T214: 3 | U214: -3 | V214: =U214 -> -3 | W214: -3 | X214: -3 | Y214: -3 | Z214: -3 | AA214: -3 | AB214: -3 | AC214: -3 | AD214: -3 | AE214: -3 | AF214: -3 | AG214: -3 | AH214: -3 | AI214: -3 | AJ214: -3 | AK214: -3 | AL214: -3 | AM214: -3 | AN214: -3
H215: 4 | I215: =H215 -> 4 | J215: 4 | K215: 4 | L215: 4 | M215: 4 | N215: 4 | O215: 4 | P215: 4 | Q215: 4 | R215: 4 | S215: 4 | T215: 4 | U215: -4 | V215: =U215 -> -4 | W215: -4 | X215: -4 | Y215: -4 | Z215: -4 | AA215: -4 | AB215: -4 | AC215: -4 | AD215: -4 | AE215: -4 | AF215: -4 | AG215: -4 | AH215: -4 | AI215: -4 | AJ215: -4 | AK215: -4 | AL215: -4 | AM215: -4 | AN215: -4
H216: 5 | I216: =H216 -> 5 | J216: 5 | K216: 5 | L216: 5 | M216: 5 | N216: 5 | O216: 5 | P216: 5 | Q216: 5 | R216: 5 | S216: 5 | T216: 5 | U216: -5 | V216: =U216 -> -5 | W216: -5 | X216: -5 | Y216: -5 | Z216: -5 | AA216: -5 | AB216: -5 | AC216: -5 | AD216: -5 | AE216: -5 | AF216: -5 | AG216: -5 | AH216: -5 | AI216: -5 | AJ216: -5 | AK216: -5 | AL216: -5 | AM216: -5 | AN216: -5
H217: 6 | I217: =H217 -> 6 | J217: 6 | K217: 6 | L217: 6 | M217: 6 | N217: 6 | O217: 6 | P217: 6 | Q217: 6 | R217: 6 | S217: 6 | T217: 6 | U217: -6 | V217: =U217 -> -6 | W217: -6 | X217: -6 | Y217: -6 | Z217: -6 | AA217: -6 | AB217: -6 | AC217: -6 | AD217: -6 | AE217: -6 | AF217: -6 | AG217: -6 | AH217: -6 | AI217: -6 | AJ217: -6 | AK217: -6 | AL217: -6 | AM217: -6 | AN217: -6
H218: 7 | I218: =H218 -> 7 | J218: 7 | K218: 7 | L218: 7 | M218: 7 | N218: 7 | O218: 7 | P218: 7 | Q218: 7 | R218: 7 | S218: 7 | T218: 7 | U218: -7 | V218: =U218 -> -7 | W218: -7 | X218: -7 | Y218: -7 | Z218: -7 | AA218: -7 | AB218: -7 | AC218: -7 | AD218: -7 | AE218: -7 | AF218: -7 | AG218: -7 | AH218: -7 | AI218: -7 | AJ218: -7 | AK218: -7 | AL218: -7 | AM218: -7 | AN218: -7
H219: 8 | I219: =H219 -> 8 | J219: 8 | K219: 8 | L219: 8 | M219: 8 | N219: 8 | O219: 8 | P219: 8 | Q219: 8 | R219: 8 | S219: 8 | T219: 8 | U219: -8 | V219: =U219 -> -8 | W219: -8 | X219: -8 | Y219: -8 | Z219: -8 | AA219: -8 | AB219: -8 | AC219: -8 | AD219: -8 | AE219: -8 | AF219: -8 | AG219: -8 | AH219: -8 | AI219: -8 | AJ219: -8 | AK219: -8 | AL219: -8 | AM219: -8 | AN219: -8
H220: 9 | I220: =H220 -> 9 | J220: 9 | K220: 9 | L220: 9 | M220: 9 | N220: 9 | O220: 9 | P220: 9 | Q220: 9 | R220: 9 | S220: 9 | T220: 9 | U220: -9 | V220: =U220 -> -9 | W220: -9 | X220: -9 | Y220: -9 | Z220: -9 | AA220: -9 | AB220: -9 | AC220: -9 | AD220: -9 | AE220: -9 | AF220: -9 | AG220: -9 | AH220: -9 | AI220: -9 | AJ220: -9 | AK220: -9 | AL220: -9 | AM220: -9 | AN220: -9
H221: 10 | I221: =H221 -> 10 | J221: 10 | K221: 10 | L221: 10 | M221: 10 | N221: 10 | O221: 10 | P221: 10 | Q221: 10 | R221: 10 | S221: 10 | T221: 10 | U221: -10 | V221: =U221 -> -10 | W221: -10 | X221: -10 | Y221: -10 | Z221: -10 | AA221: -10 | AB221: -10 | AC221: -10 | AD221: -10 | AE221: -10 | AF221: -10 | AG221: -10 | AH221: -10 | AI221: -10 | AJ221: -10 | AK221: -10 | AL221: -10 | AM221: -10 | AN221: -10
H222: 11 | I222: =H222 -> 11 | J222: 11 | K222: 11 | L222: 11 | M222: 11 | N222: 11 | O222: 11 | P222: 11 | Q222: 11 | R222: 11 | S222: 11 | T222: 11 | U222: -11 | V222: =U222 -> -11 | W222: -11 | X222: -11 | Y222: -11 | Z222: -11 | AA222: -11 | AB222: -11 | AC222: -11 | AD222: -11 | AE222: -11 | AF222: -11 | AG222: -11 | AH222: -11 | AI222: -11 | AJ222: -11 | AK222: -11 | AL222: -11 | AM222: -11 | AN222: -11
H223: 12 | I223: =H223 -> 12 | J223: 12 | K223: 12 | L223: 12 | M223: 12 | N223: 12 | O223: 12 | P223: 12 | Q223: 12 | R223: 12 | S223: 12 | T223: 12 | U223: -12 | V223: =U223 -> -12 | W223: -12 | X223: -12 | Y223: -12 | Z223: -12 | AA223: -12 | AB223: -12 | AC223: -12 | AD223: -12 | AE223: -12 | AF223: -12 | AG223: -12 | AH223: -12 | AI223: -12 | AJ223: -12 | AK223: -12 | AL223: -12 | AM223: -12 | AN223: -12
H224: 13 | I224: =H224 -> 13 | J224: 13 | K224: 13 | L224: 13 | M224: 13 | N224: 13 | O224: 13 | P224: 13 | Q224: 13 | R224: 13 | S224: 13 | T224: 13 | U224: -13 | V224: =U224 -> -13 | W224: -13 | X224: -13 | Y224: -13 | Z224: -13 | AA224: -13 | AB224: -13 | AC224: -13 | AD224: -13 | AE224: -13 | AF224: -13 | AG224: -13 | AH224: -13 | AI224: -13 | AJ224: -13 | AK224: -13 | AL224: -13 | AM224: -13 | AN224: -13
H225: 14 | I225: =H225 -> 14 | J225: 14 | K225: 14 | L225: 14 | M225: 14 | N225: 14 | O225: 14 | P225: 14 | Q225: 14 | R225: 14 | S225: 14 | T225: 14 | U225: -14 | V225: =U225 -> -14 | W225: -14 | X225: -14 | Y225: -14 | Z225: -14 | AA225: -14 | AB225: -14 | AC225: -14 | AD225: -14 | AE225: -14 | AF225: -14 | AG225: -14 | AH225: -14 | AI225: -14 | AJ225: -14 | AK225: -14 | AL225: -14 | AM225: -14 | AN225: -14
H226: 15 | I226: =H226 -> 15 | J226: 15 | K226: 15 | L226: 15 | M226: 15 | N226: 15 | O226: 15 | P226: 15 | Q226: 15 | R226: 15 | S226: 15 | T226: 15 | U226: -15 | V226: =U226 -> -15 | W226: -15 | X226: -15 | Y226: -15 | Z226: -15 | AA226: -15 | AB226: -15 | AC226: -15 | AD226: -15 | AE226: -15 | AF226: -15 | AG226: -15 | AH226: -15 | AI226: -15 | AJ226: -15 | AK226: -15 | AL226: -15 | AM226: -15 | AN226: -15
H227: 16 | I227: =H227 -> 16 | J227: 16 | K227: 16 | L227: 16 | M227: 16 | N227: 16 | O227: 16 | P227: 16 | Q227: 16 | R227: 16 | S227: 16 | T227: 16 | U227: -16 | V227: =U227 -> -16 | W227: -16 | X227: -16 | Y227: -16 | Z227: -16 | AA227: -16 | AB227: -16 | AC227: -16 | AD227: -16 | AE227: -16 | AF227: -16 | AG227: -16 | AH227: -16 | AI227: -16 | AJ227: -16 | AK227: -16 | AL227: -16 | AM227: -16 | AN227: -16
H228: 17 | I228: =H228 -> 17 | J228: 17 | K228: 17 | L228: 17 | M228: 17 | N228: 17 | O228: 17 | P228: 17 | Q228: 17 | R228: 17 | S228: 17 | T228: 17 | U228: -17 | V228: =U228 -> -17 | W228: -17 | X228: -17 | Y228: -17 | Z228: -17 | AA228: -17 | AB228: -17 | AC228: -17 | AD228: -17 | AE228: -17 | AF228: -17 | AG228: -17 | AH228: -17 | AI228: -17 | AJ228: -17 | AK228: -17 | AL228: -17 | AM228: -17 | AN228: -17
H229: 18 | I229: =H229 -> 18 | J229: 18 | K229: 18 | L229: 18 | M229: 18 | N229: 18 | O229: 18 | P229: 18 | Q229: 18 | R229: 18 | S229: 18 | T229: 18 | U229: -18 | V229: =U229 -> -18 | W229: -18 | X229: -18 | Y229: -18 | Z229: -18 | AA229: -18 | AB229: -18 | AC229: -18 | AD229: -18 | AE229: -18 | AF229: -18 | AG229: -18 | AH229: -18 | AI229: -18 | AJ229: -18 | AK229: -18 | AL229: -18 | AM229: -18 | AN229: -18
H230: 19 | I230: =H230 -> 19 | J230: 19 | K230: 19 | L230: 19 | M230: 19 | N230: 19 | O230: 19 | P230: 19 | Q230: 19 | R230: 19 | S230: 19 | T230: 19 | U230: -19 | V230: =U230 -> -19 | W230: -19 | X230: -19 | Y230: -19 | Z230: -19 | AA230: -19 | AB230: -19 | AC230: -19 | AD230: -19 | AE230: -19 | AF230: -19 | AG230: -19 | AH230: -19 | AI230: -19 | AJ230: -19 | AK230: -19 | AL230: -19 | AM230: -19 | AN230: -19
H231: 20 | I231: =H231 -> 20 | J231: 20 | K231: 20 | L231: 20 | M231: 20 | N231: 20 | O231: 20 | P231: 20 | Q231: 20 | R231: 20 | S231: 20 | T231: 20 | U231: -20 | V231: =U231 -> -20 | W231: -20 | X231: -20 | Y231: -20 | Z231: -20 | AA231: -20 | AB231: -20 | AC231: -20 | AD231: -20 | AE231: -20 | AF231: -20 | AG231: -20 | AH231: -20 | AI231: -20 | AJ231: -20 | AK231: -20 | AL231: -20 | AM231: -20 | AN231: -20
H232: 21 | I232: =H232 -> 21 | J232: 21 | K232: 21 | L232: 21 | M232: 21 | N232: 21 | O232: 21 | P232: 21 | Q232: 21 | R232: 21 | S232: 21 | T232: 21 | U232: -21 | V232: =U232 -> -21 | W232: -21 | X232: -21 | Y232: -21 | Z232: -21 | AA232: -21 | AB232: -21 | AC232: -21 | AD232: -21 | AE232: -21 | AF232: -21 | AG232: -21 | AH232: -21 | AI232: -21 | AJ232: -21 | AK232: -21 | AL232: -21 | AM232: -21 | AN232: -21
H233: 22 | I233: =H233 -> 22 | J233: 22 | K233: 22 | L233: 22 | M233: 22 | N233: 22 | O233: 22 | P233: 22 | Q233: 22 | R233: 22 | S233: 22 | T233: 22 | U233: -22 | V233: =U233 -> -22 | W233: -22 | X233: -22 | Y233: -22 | Z233: -22 | AA233: -22 | AB233: -22 | AC233: -22 | AD233: -22 | AE233: -22 | AF233: -22 | AG233: -22 | AH233: -22 | AI233: -22 | AJ233: -22 | AK233: -22 | AL233: -22 | AM233: -22 | AN233: -22
H234: 23 | I234: =H234 -> 23 | J234: 23 | K234: 23 | L234: 23 | M234: 23 | N234: 23 | O234: 23 | P234: 23 | Q234: 23 | R234: 23 | S234: 23 | T234: 23 | U234: -23 | V234: =U234 -> -23 | W234: -23 | X234: -23 | Y234: -23 | Z234: -23 | AA234: -23 | AB234: -23 | AC234: -23 | AD234: -23 | AE234: -23 | AF234: -23 | AG234: -23 | AH234: -23 | AI234: -23 | AJ234: -23 | AK234: -23 | AL234: -23 | AM234: -23 | AN234: -23
H235: 24 | I235: =H235 -> 24 | J235: 24 | K235: 24 | L235: 24 | M235: 24 | N235: 24 | O235: 24 | P235: 24 | Q235: 24 | R235: 24 | S235: 24 | T235: 24 | U235: -24 | V235: =U235 -> -24 | W235: -24 | X235: -24 | Y235: -24 | Z235: -24 | AA235: -24 | AB235: -24 | AC235: -24 | AD235: -24 | AE235: -24 | AF235: -24 | AG235: -24 | AH235: -24 | AI235: -24 | AJ235: -24 | AK235: -24 | AL235: -24 | AM235: -24 | AN235: -24
H236: 25 | I236: =H236 -> 25 | J236: 25 | K236: 25 | L236: 25 | M236: 25 | N236: 25 | O236: 25 | P236: 25 | Q236: 25 | R236: 25 | S236: 25 | T236: 25 | U236: -25 | V236: =U236 -> -25 | W236: -25 | X236: -25 | Y236: -25 | Z236: -25 | AA236: -25 | AB236: -25 | AC236: -25 | AD236: -25 | AE236: -25 | AF236: -25 | AG236: -25 | AH236: -25 | AI236: -25 | AJ236: -25 | AK236: -25 | AL236: -25 | AM236: -25 | AN236: -25
H237: 26 | I237: =H237 -> 26 | J237: 26 | K237: 26 | L237: 26 | M237: 26 | N237: 26 | O237: 26 | P237: 26 | Q237: 26 | R237: 26 | S237: 26 | T237: 26 | U237: -26 | V237: =U237 -> -26 | W237: -26 | X237: -26 | Y237: -26 | Z237: -26 | AA237: -26 | AB237: -26 | AC237: -26 | AD237: -26 | AE237: -26 | AF237: -26 | AG237: -26 | AH237: -26 | AI237: -26 | AJ237: -26 | AK237: -26 | AL237: -26 | AM237: -26 | AN237: -26
H238: 27 | I238: =H238 -> 27 | J238: 27 | K238: 27 | L238: 27 | M238: 27 | N238: 27 | O238: 27 | P238: 27 | Q238: 27 | R238: 27 | S238: 27 | T238: 27 | U238: -27 | V238: =U238 -> -27 | W238: -27 | X238: -27 | Y238: -27 | Z238: -27 | AA238: -27 | AB238: -27 | AC238: -27 | AD238: -27 | AE238: -27 | AF238: -27 | AG238: -27 | AH238: -27 | AI238: -27 | AJ238: -27 | AK238: -27 | AL238: -27 | AM238: -27 | AN238: -27
H239: 28 | I239: =H239 -> 28 | J239: 28 | K239: 28 | L239: 28 | M239: 28 | N239: 28 | O239: 28 | P239: 28 | Q239: 28 | R239: 28 | S239: 28 | T239: 28 | U239: -28 | V239: =U239 -> -28 | W239: -28 | X239: -28 | Y239: -28 | Z239: -28 | AA239: -28 | AB239: -28 | AC239: -28 | AD239: -28 | AE239: -28 | AF239: -28 | AG239: -28 | AH239: -28 | AI239: -28 | AJ239: -28 | AK239: -28 | AL239: -28 | AM239: -28 | AN239: -28
H240: 29 | I240: =H240 -> 29 | J240: 29 | K240: 29 | L240: 29 | M240: 29 | N240: 29 | O240: 29 | P240: 29 | Q240: 29 | R240: 29 | S240: 29 | T240: 29 | U240: -29 | V240: =U240 -> -29 | W240: -29 | X240: -29 | Y240: -29 | Z240: -29 | AA240: -29 | AB240: -29 | AC240: -29 | AD240: -29 | AE240: -29 | AF240: -29 | AG240: -29 | AH240: -29 | AI240: -29 | AJ240: -29 | AK240: -29 | AL240: -29 | AM240: -29 | AN240: -29
